Workbook

Sheet REPORT
A1: Surveyor’s Report
A2: Project: | B2: LUC-23-11.75 | D2: PID: | E2: 105889
A4: Scope:
A5: Type:
A7: Gray boxes denote INPUT | E7: Tan boxes denote OUTPUT (check)
A9: Datum and Coordinate System | G9: Type:
A10: Coordinate System: | C10: Ohio State Plane, North Zone | G10: (Select from List)
A11: Horizontal Reference Datum: | C11: NAD83 (2011) | G11: Bridge Monitoring
A12: Ellipsoid: | C12: GRS80 | G12: Bridge Rehab
A13: Grid to Ground Multiplier (1/CSF): | C13: 1.00002534 | D13: Factor is 8 decimal places per Survey & Mapping Specifications. | G13: Bridge Replacement
A14: Origin of Combined Scale Factor: | C14: (0,0) | G14: Culvert Rehab
A15: Vertical Reference Datum: | C15: NAVD88 | G15: Highway Widening
A16: Geoid Model: | C16: Geoid 12A | G16: Slope Repair
A17: Units: | C17: US Survey Feet (sft) | G17: Stream Maintenance
A18: Original Survey Subdivision: | C18: Michigan Survey, Town 9 Survey, Range 6, East
A19: Township: | C19: Sylvania
A20: Quarter Section/Section/Lot: | C20: N 1/2, Sec. 10, N 1/2, Sec. 11
A21: Files | E21: Description
A31: References
A32: Alignment based on the following plan:
A33: Other references used:
A36: Equipment Maintenance
A37: Equipment maintenance logs are on file at the Ohio Department of Transportation, Central Office
A38: Methodology and Equipment Used
A40: GPS Antenna Used
A41: Trimble R6
A48: Report Submitted/Prepared by: | C48: TK/DCK
A49: Date Submitted: | C49: 2021-07-22
A50: Surveying Performed by: | C50: SDP/LP/MDH
A51: Surveying Performed by: | C51: DCK/JS/MDH
A52: Checked By: | C52: DCK/JS/MDH
A55: DGN Overview Map
A56: Insert close-up screen shot of combined DGN here

Sheet CSF
A1: Combined Scale Factor Calculations | I1: Zone | J1: Index Value | K1: Project Latitude | M1: Radius of the Earth (meters) | N1: Tabular Difference | O1: Scale Factor (k) | P1: Differences | Q1: Coordinate System List
A2: Project: | B2: =REPORT!B2 -> LUC-23-11.75 | D2: PID: | E2: =REPORT!E2 -> 105889 | I2: NZ | J2: 3940 | K2: 39 | L2: 40 | M2: 7485451.598 | N2: 30.84836 | O2: 1.00023491
I3: NZ | J3: 3941 | K3: 39 | L3: 41 | M3: 7483600.697 | N3: 30.84823 | O3: 1.00022793 | P3: =O2-O3 -> 6.98e-06 | Q3: State Plane Coordinate System: Ohio North (3401)
A4: Horizontal Datum: NAD83 | C4: State Plane Coordinate System: Ohio North (3401) | I4: NZ | J4: 3942 | K4: 39 | L4: 42 | M4: 7481749.803 | N4: 30.84811 | O4: 1.00022104 | P4: 6.89e-06 | Q4: State Plane Coordinate System: Ohio South (3402)
I5: NZ | J5: 3943 | K5: 39 | L5: 43 | M5: 7479898.916 | N5: 30.84799 | O5: 1.00021424 | P5: 6.8e-06
A6: Gray boxes denote INPUT | D6: Tan boxes denote OUTPUT (check) | I6: NZ | J6: 3944 | K6: 39 | L6: 44 | M6: 7478048.037 | N6: 30.84787 | O6: 1.00020751 | P6: 6.73e-06
I7: NZ | J7: 3945 | K7: 39 | L7: 45 | M7: 7476197.165 | N7: 30.84776 | O7: 1.00020087 | P7: 6.64e-06
C8: Input Deg. | D8: Min. | E8: Sec. | F8: Zone Parameters: | I8: NZ | J8: 3946 | K8: 39 | L8: 46 | M8: 7474346.299 | N8: 30.84765 | O8: 1.00019431 | P8: 6.56e-06
A9: Project Mean Latitude (DMS): | C9: 41 | D9: 42 | E9: 55.09 | F9: =IF(C4="State Plane Coordinate System: Ohio North (3401)", "k = 1 at lats. 40⁰ 26' and 41⁰ 42'", "k = 1 at lats. 38⁰ 44' and 40⁰ 20'") -> k = 1 at lats. 40⁰ 26' and 41⁰ 42' | I9: NZ | J9: 3947 | K9: 39 | L9: 47 | M9: 7472495.44 | N9: 30.84754 | O9: 1.00018783 | P9: 6.48e-06
A10: =ISBLANK(D9) -> FALSE | B10: =ISBLANK(E9) -> FALSE | D10: =IF(OR(A10,B10)=TRUE,"Minute and second fields must be populated","") ->  | I10: NZ | J10: 3948 | K10: 39 | L10: 48 | M10: 7470644.588 | N10: 30.84743 | O10: 1.00018144 | P10: 6.39e-06
C11: Input Ellipsoid Height: | F11: =IF(C4="State Plane Coordinate System: Ohio North (3401)", "Origin at 82⁰ 30' long., 39⁰ 40' lat.", "Origin at 82⁰ 30' long., 38⁰ 00' lat.") -> Origin at 82⁰ 30' long., 39⁰ 40' lat. | I11: NZ | J11: 3949 | K11: 39 | L11: 49 | M11: 7468793.742 | N11: 30.84732 | O11: 1.00017513 | P11: 6.31e-06
A12: Project Mean Height (ft): | C12: 535.34 | F12: Origin coords: x=600,000m, y=0m | I12: NZ | J12: 3950 | K12: 39 | L12: 50 | M12: 7466942.903 | N12: 30.84722 | O12: 1.0001689 | P12: 6.23e-06
I13: NZ | J13: 3951 | K13: 39 | L13: 51 | M13: 7465092.069 | N13: 30.84712 | O13: 1.00016276 | P13: 6.14e-06
C14: Radius of the Earth * (Radius of the Earth + Proj. Mean Elev.) = | I14: NZ | J14: 3952 | K14: 39 | L14: 52 | M14: 7463241.242 | N14: 30.84703 | O14: 1.0001567 | P14: 6.06e-06
A15: Sea Level Factor: | C15: =TRUNC(20906000/(20906000+C12),9) -> 0.999974393 | I15: NZ | J15: 3953 | K15: 39 | L15: 53 | M15: 7461390.42 | N15: 30.84693 | O15: 1.00015072 | P15: 5.98e-06
I16: NZ | J16: 3954 | K16: 39 | L16: 54 | M16: 7459539.604 | N16: 30.84684 | O16: 1.00014482 | P16: 5.9e-06
C17: Tabular data proportioned according to the number of seconds: | I17: NZ | J17: 3955 | K17: 39 | L17: 55 | M17: 7457688.794 | N17: 30.84675 | O17: 1.00013901 | P17: 5.81e-06
C18: =IF($C$4="State Plane Coordinate System: Ohio North (3401)",VLOOKUP(D18,J1:O150,6),VLOOKUP(D18,J151:O310,6)) -> 1 | D18: =VALUE(IF(D9>9,CONCATENATE(C9,D9),CONCATENATE(C9*10,D9))) -> 4142 | E18: =IF(C18>C19,1-E9/60,E9/60) -> 0.9181666667 | F18: ="Scale factor at "&LEFT($D18,2)&"⁰ "&RIGHT($D18,2)&"' latitude" -> Scale factor at 41⁰ 42' latitude | I18: NZ | J18: 3956 | K18: 39 | L18: 56 | M18: 7455837.989 | N18: 30.84667 | O18: 1.00013328 | P18: 5.73e-06
C19: =IF($C$4="State Plane Coordinate System: Ohio North (3401)",VLOOKUP(D19,J2:O151,6),VLOOKUP(D19,J152:O311,6)) -> 1.00000326 | D19: =IF(D9=59,(VALUE(IF(D9>9,CONCATENATE(C9,D9),CONCATENATE(C9*10,D9)))+41),(VALUE(IF(D9>9,CONCATENATE(C9,D9),CONCATENATE(C9*10,D9)))+1)) -> 4143 | E19: =IF(C18<C19,1-E9/60,E9/60) -> 0.08183333333 | F19: ="Scale factor at "&LEFT($D19,2)&"⁰ "&RIGHT($D19,2)&"' latitude" -> Scale factor at 41⁰ 43' latitude | I19: NZ | J19: 3957 | K19: 39 | L19: 57 | M19: 7453987.189 | N19: 30.84658 | O19: 1.00012763 | P19: 5.65e-06
A20: Scale Factor (k): | C20: =C18*E18+C19*E19 -> 1.000000267 | I20: NZ | J20: 3958 | K20: 39 | L20: 58 | M20: 7452136.394 | N20: 30.8465 | O20: 1.00012206 | P20: 5.57e-06
I21: NZ | J21: 3959 | K21: 39 | L21: 59 | M21: 7450285.604 | N21: 30.84642 | O21: 1.00011658 | P21: 5.48e-06
C22: =LEFT(A15,16)&" * "&LEFT(A20,12)&" =" -> Sea Level Factor * Scale Factor = | I22: NZ | J22: 4000 | K22: 40 | L22: 0 | M22: 7448434.819 | N22: 30.84634 | O22: 1.00011118 | P22: 5.4e-06
A23: Combined Scale Factor (CSF): | C23: =C15*C20 -> 0.9999746598 | I23: NZ | J23: 4001 | K23: 40 | L23: 1 | M23: 7446584.038 | N23: 30.84627 | O23: 1.00010587 | P23: 5.31e-06
I24: NZ | J24: 4002 | K24: 40 | L24: 2 | M24: 7444733.262 | N24: 30.8462 | O24: 1.00010063 | P24: 5.24e-06
C25: Unitless Grid to Ground Multiplier: | I25: NZ | J25: 4003 | K25: 40 | L25: 3 | M25: 7442882.49 | N25: 30.84613 | O25: 1.00009548 | P25: 5.15e-06
A26: Grid to Ground Multiplier (1/CSF): | C26: =1/C23 -> 1.000025341 | I26: NZ | J26: 4004 | K26: 40 | L26: 4 | M26: 7441031.722 | N26: 30.84607 | O26: 1.00009042 | P26: 5.06e-06
I27: NZ | J27: 4005 | K27: 40 | L27: 5 | M27: 7439180.958 | N27: 30.846 | O27: 1.00008543 | P27: 4.99e-06
C28: Converts Grid Meters to Ground Feet: | I28: NZ | J28: 4006 | K28: 40 | L28: 6 | M28: 7437330.198 | N28: 30.84594 | O28: 1.00008053 | P28: 4.9e-06
A29: Project Adjustment Factor (PAF): | C29: =C26*3.28083333 -> 3.280916469 | I29: NZ | J29: 4007 | K29: 40 | L29: 7 | M29: 7435479.441 | N29: 30.84588 | O29: 1.00007571 | P29: 4.82e-06
I30: NZ | J30: 4011 | K30: 40 | L30: 11 | M30: 7428076.449 | N30: 30.84568 | O30: 1.00005728 | P30: =O34-O30 -> 4.48e-06
A31: Check spreadsheet-generated (XLS) CSF against Trimble Business Center-generated (TBC) CSF below. | I31: NZ | J31: 4012 | K31: 40 | L31: 12 | M31: 7426225.708 | N31: 30.84563 | O31: 1.00005287 | P31: =O30-O31 -> 4.41e-06
I32: NZ | J32: 4008 | K32: 40 | L32: 8 | M32: 7433628.688 | N32: 30.84583 | O32: 1.00007098 | P32: =O29-O32 -> 4.73e-06
C33: Compare to Unitless Grid to Ground Multiplier: | I33: NZ | J33: 4009 | K33: 40 | L33: 9 | M33: 7431777.939 | N33: 30.84577 | O33: 1.00006633 | P33: =O32-O33 -> 4.65e-06
A34: Input TBC-generated 1/CSF: | I34: NZ | J34: 4010 | K34: 40 | L34: 10 | M34: 7429927.192 | N34: 30.84572 | O34: 1.00006176 | P34: =O33-O34 -> 4.57e-06
I35: NZ | J35: 4013 | K35: 40 | L35: 13 | M35: 7424374.97 | N35: 30.84559 | O35: 1.00004856 | P35: =O31-O35 -> 4.31e-06
A36: Test point at one end of project: | C36: Northing (ft) | D36: Easting (ft) | F36: Grid - Ground (XLS) | I36: NZ | J36: 4014 | K36: 40 | L36: 14 | M36: 7422524.235 | N36: 30.84555 | O36: 1.00004432 | P36: =O35-O36 -> 4.24e-06
B37: Input Grid Coordinates: | F37: =IF(C37-C38>0,ABS(ROUND(C37-C38,3))&"' shift N",ABS(ROUND(C37-C38,3))&"' shift S") -> 0' shift S | G37: =IF(D37-D38>0,ABS(ROUND(D37-D38,3))&"' shift E",ABS(ROUND(D37-D38,3))&"' shift W") -> 0' shift W | I37: NZ | J37: 4015 | K37: 40 | L37: 15 | M37: 7420673.502 | N37: 30.84551 | O37: 1.00004017 | P37: 4.15e-06
A38: =$A37 -> 0 | B38: Ground (XLS): | C38: =$C37*$C$26 -> 0 | D38: =$D37*$C$26 -> 0 | F38: Ground (XLS) - Ground (TBC) | I38: NZ | J38: 4016 | K38: 40 | L38: 16 | M38: 7418822.772 | N38: 30.84547 | O38: 1.0000361 | P38: 4.07e-06
A39: =$A37 -> 0 | B39: Ground (TBC): | C39: =$C37*$C$34 -> 0 | D39: =$D37*$C$34 -> 0 | F39: =IF(C38-C39>0,ABS(ROUND(C38-C39,3))&"' shift N",ABS(ROUND(C38-C39,3))&"' shift S") -> 0' shift S | G39: =IF(D38-D39>0,ABS(ROUND(D38-D39,3))&"' shift E",ABS(ROUND(D38-D39,3))&"' shift W") -> 0' shift W | I39: NZ | J39: 4017 | K39: 40 | L39: 17 | M39: 7416972.043 | N39: 30.84544 | O39: 1.00003212 | P39: 3.98e-06
I40: NZ | J40: 4018 | K40: 40 | L40: 18 | M40: 7415121.317 | N40: 30.84541 | O40: 1.00002821 | P40: 3.91e-06
A41: Test point at other end of project: | C41: Northing (ft) | D41: Easting (ft) | F41: Grid - Ground (XLS) | I41: NZ | J41: 4019 | K41: 40 | L41: 19 | M41: 7413270.592 | N41: 30.84538 | O41: 1.0000244 | P41: 3.81e-06
B42: Input Grid Coordinates: | F42: =IF(C42-C43>0,ABS(ROUND(C42-C43,3))&"' shift N",ABS(ROUND(C42-C43,3))&"' shift S") -> 0' shift S | G42: =IF(D42-D43>0,ABS(ROUND(D42-D43,3))&"' shift E",ABS(ROUND(D42-D43,3))&"' shift W") -> 0' shift W | I42: NZ | J42: 4020 | K42: 40 | L42: 20 | M42: 7411419.869 | N42: 30.84536 | O42: 1.00002066 | P42: 3.74e-06
A43: =$A42 -> 0 | B43: Ground (XLS): | C43: =$C42*$C$26 -> 0 | D43: =$D42*$C$26 -> 0 | F43: Ground XLS - Ground TBC | I43: NZ | J43: 4021 | K43: 40 | L43: 21 | M43: 7409569.147 | N43: 30.84534 | O43: 1.00001701 | P43: 3.65e-06
A44: =$A42 -> 0 | B44: Ground (TBC): | C44: =$C42*$C$34 -> 0 | D44: =$D42*$C$34 -> 0 | F44: =IF(C43-C44>0,ABS(ROUND(C43-C44,3))&"' shift N",ABS(ROUND(C43-C44,3))&"' shift S") -> 0' shift S | G44: =IF(D43-D44>0,ABS(ROUND(D43-D44,3))&"' shift E",ABS(ROUND(D43-D44,3))&"' shift W") -> 0' shift W | I44: NZ | J44: 4022 | K44: 40 | L44: 22 | M44: 7407718.427 | N44: 30.84532 | O44: 1.00001344 | P44: 3.57e-06
I45: NZ | J45: 4023 | K45: 40 | L45: 23 | M45: 7405867.708 | N45: 30.8453 | O45: 1.00000995 | P45: 3.49e-06
A46: ="Change in computed horizontal distance between "&A$37&" and "&A$42&" due to CSF used (an approximate "&ROUND(SQRT((C38-C43)^2+(D38-D43)^2),0)&" foot distance):" -> Change in computed horizontal distance between and due to CSF used (an approximate 0 foot distance): | F46: Ground (XLS) vs. Ground (TBC) | I46: NZ | J46: 4024 | K46: 40 | L46: 24 | M46: 7404016.99 | N46: 30.84529 | O46: 1.00000655 | P46: 3.4e-06
F47: =IF(ABS(C38-C43)>ABS(C39-C44),ABS(ROUND((C38-C39)-(C43-C44),3))&"' further N-S",ABS(ROUND((C38-C39)-(C43-C44),3))&"' nearer N-S") -> 0' nearer N-S | G47: =IF(ABS(D38-D43)>ABS(D39-D44),ABS(ROUND((D38-D39)-(D43-D44),3))&"' further E-W",ABS(ROUND((D38-D39)-(D43-D44),3))&"' nearer E-W") -> 0' nearer E-W | I47: NZ | J47: 4025 | K47: 40 | L47: 25 | M47: 7402166.273 | N47: 30.84527 | O47: 1.00000323 | P47: 3.32e-06
I48: NZ | J48: 4027 | K48: 40 | L48: 27 | M48: 7398464.84 | N48: 30.84526 | O48: 0.99999685 | P48: 6.38e-06
A49: ="Change in computed horizontal distance between "&A$37&" and "&A$42&" by adjusting from grid to ground (approx. "&ROUND(SQRT((C38-C43)^2+(D38-D43)^2),0)&" ft dist.):" -> Change in computed horizontal distance between and by adjusting from grid to ground (approx. 0 ft dist.): | F49: Grid vs. Ground (XLS) | I49: NZ | J49: 4028 | K49: 40 | L49: 28 | M49: 7396614.125 | N49: 30.84525 | O49: 0.99999378 | P49: 3.07e-06
F50: =IF(ABS(C38-C43)>ABS(C37-C42),ABS(ROUND((C37-C38)-(C42-C43),3))&"' further N-S",ABS(ROUND((C37-C38)-(C42-C43),3))&"' nearer N-S") -> 0' nearer N-S | G50: =IF(ABS(D38-D43)>ABS(D37-D42),ABS(ROUND((D37-D38)-(D42-D43),3))&"' further E-W",ABS(ROUND((D37-D38)-(D42-D43),3))&"' nearer E-W") -> 0' nearer E-W | I50: NZ | J50: 4029 | K50: 40 | L50: 29 | M50: 7394763.409 | N50: 30.84525 | O50: 0.9999908 | P50: 2.98e-06
I51: NZ | J51: 4030 | K51: 40 | L51: 30 | M51: 7392912.694 | N51: 30.84525 | O51: 0.9999879 | P51: 2.9e-06
I52: NZ | J52: 4031 | K52: 40 | L52: 31 | M52: 7391061.979 | N52: 30.84526 | O52: 0.99998508 | P52: 2.82e-06
I53: NZ | J53: 4032 | K53: 40 | L53: 32 | M53: 7389211.263 | N53: 30.84526 | O53: 0.99998235 | P53: 2.73e-06
I54: NZ | J54: 4033 | K54: 40 | L54: 33 | M54: 7387360.548 | N54: 30.84527 | O54: 0.9999797 | P54: 2.65e-06
I55: NZ | J55: 4034 | K55: 40 | L55: 34 | M55: 7385509.831 | N55: 30.84528 | O55: 0.99997713 | P55: 2.57e-06
I56: NZ | J56: 4035 | K56: 40 | L56: 35 | M56: 7383659.114 | N56: 30.8453 | O56: 0.99997465 | P56: 2.48e-06
I57: NZ | J57: 4036 | K57: 40 | L57: 36 | M57: 7381808.396 | N57: 30.84532 | O57: 0.99997225 | P57: 2.4e-06
I58: NZ | J58: 4037 | K58: 40 | L58: 37 | M58: 7379957.677 | N58: 30.84533 | O58: 0.99996993 | P58: 2.32e-06
I59: NZ | J59: 4038 | K59: 40 | L59: 38 | M59: 7378106.957 | N59: 30.84536 | O59: 0.9999677 | P59: 2.23e-06
I60: NZ | J60: 4039 | K60: 40 | L60: 39 | M60: 7376256.236 | N60: 30.84538 | O60: 0.99996556 | P60: 2.14e-06
I61: NZ | J61: 4040 | K61: 40 | L61: 40 | M61: 7374405.513 | N61: 30.84541 | O61: 0.99996349 | P61: 2.07e-06
I62: NZ | J62: 4041 | K62: 40 | L62: 41 | M62: 7372554.789 | N62: 30.84544 | O62: 0.99996151 | P62: 1.98e-06
I63: NZ | J63: 4042 | K63: 40 | L63: 42 | M63: 7370704.062 | N63: 30.84547 | O63: 0.99995961 | P63: 1.9e-06
I64: NZ | J64: 4043 | K64: 40 | L64: 43 | M64: 7368853.334 | N64: 30.8455 | O64: 0.9999578 | P64: 1.81e-06
I65: NZ | J65: 4044 | K65: 40 | L65: 44 | M65: 7367002.604 | N65: 30.84554 | O65: 0.99995607 | P65: 1.73e-06
I66: NZ | J66: 4045 | K66: 40 | L66: 45 | M66: 7365151.872 | N66: 30.84558 | O66: 0.99995443 | P66: 1.64e-06
I67: NZ | J67: 4046 | K67: 40 | L67: 46 | M67: 7363301.137 | N67: 30.84562 | O67: 0.99995287 | P67: 1.56e-06
I68: NZ | J68: 4047 | K68: 40 | L68: 47 | M68: 7361450.399 | N68: 30.84567 | O68: 0.99995139 | P68: =O67-O68 -> 1.48e-06
I69: NZ | J69: 4048 | K69: 40 | L69: 48 | M69: 7359599.659 | N69: 30.84572 | O69: 0.99995 | P69: 1.39e-06
I70: NZ | J70: 4049 | K70: 40 | L70: 49 | M70: 7357748.916 | N70: 30.84577 | O70: 0.99994869 | P70: 1.31e-06
I71: NZ | J71: 4050 | K71: 40 | L71: 50 | M71: 7355898.17 | N71: 30.84582 | O71: 0.99994746 | P71: 1.23e-06
I72: NZ | J72: 4051 | K72: 40 | L72: 51 | M72: 7354047.421 | N72: 30.84588 | O72: 0.99994632 | P72: 1.14e-06
I73: NZ | J73: 4052 | K73: 40 | L73: 52 | M73: 7352196.669 | N73: 30.84593 | O73: 0.99994527 | P73: 1.05e-06
I74: NZ | J74: 4053 | K74: 40 | L74: 53 | M74: 7350345.913 | N74: 30.84599 | O74: 0.99994429 | P74: 9.8e-07
I75: NZ | J75: 4054 | K75: 40 | L75: 54 | M75: 7348495.153 | N75: 30.84606 | O75: 0.9999434 | P75: 8.899999999e-07
I76: NZ | J76: 4055 | K76: 40 | L76: 55 | M76: 7346644.39 | N76: 30.84612 | O76: 0.9999426 | P76: 8e-07
I77: NZ | J77: 4056 | K77: 40 | L77: 56 | M77: 7344793.622 | N77: 30.84619 | O77: 0.99994188 | P77: 7.200000001e-07
I78: NZ | J78: 4057 | K78: 40 | L78: 57 | M78: 7342942.851 | N78: 30.84626 | O78: 0.99994124 | P78: 6.4e-07
I79: NZ | J79: 4058 | K79: 40 | L79: 58 | M79: 7341092.075 | N79: 30.84634 | O79: 0.99994069 | P79: 5.5e-07
I80: NZ | J80: 4059 | K80: 40 | L80: 59 | M80: 7339241.295 | N80: 30.84641 | O80: 0.99994022 | P80: 4.699999999e-07
I81: NZ | J81: 4100 | K81: 41 | L81: 0 | M81: 7337390.51 | N81: 30.84649 | O81: 0.99993984 | P81: 3.8e-07
I82: NZ | J82: 4101 | K82: 41 | L82: 1 | M82: 7335539.72 | N82: 30.84657 | O82: 0.99993954 | P82: 3.000000001e-07
I83: NZ | J83: 4102 | K83: 41 | L83: 2 | M83: 7333688.926 | N83: 30.84666 | O83: 0.99993932 | P83: 2.2e-07
I84: NZ | J84: 4103 | K84: 41 | L84: 3 | M84: 7331838.127 | N84: 30.84674 | O84: 0.99993919 | P84: 1.3e-07
I85: NZ | J85: 4104 | K85: 41 | L85: 4 | M85: 7329987.322 | N85: 30.84683 | O85: 0.99993914 | P85: 5.000000003e-08
I86: NZ | J86: 4105 | K86: 41 | L86: 5 | M86: 7328136.512 | N86: 30.84693 | O86: 0.99993918 | P86: -4.000000009e-08
I87: NZ | J87: 4106 | K87: 41 | L87: 6 | M87: 7326285.696 | N87: 30.84702 | O87: 0.9999393 | P87: -1.199999999e-07
I88: NZ | J88: 4107 | K88: 41 | L88: 7 | M88: 7324434.875 | N88: 30.84712 | O88: 0.9999395 | P88: -2e-07
I89: NZ | J89: 4108 | K89: 41 | L89: 8 | M89: 7322584.048 | N89: 30.84722 | O89: 0.99993979 | P89: -2.9e-07
I90: NZ | J90: 4109 | K90: 41 | L90: 9 | M90: 7320733.215 | N90: 30.84732 | O90: 0.99994017 | P90: -3.8e-07
I91: NZ | J91: 4110 | K91: 41 | L91: 10 | M91: 7318882.376 | N91: 30.84742 | O91: 0.99994063 | P91: -4.6e-07
I92: NZ | J92: 4111 | K92: 41 | L92: 11 | M92: 7317031.531 | N92: 30.84753 | O92: 0.99994117 | P92: -5.4e-07
I93: NZ | J93: 4112 | K93: 41 | L93: 12 | M93: 7315180.679 | N93: 30.84764 | O93: 0.9999418 | P93: -6.299999999e-07
I94: NZ | J94: 4113 | K94: 41 | L94: 13 | M94: 7313329.82 | N94: 30.84776 | O94: 0.99994251 | P94: -7.1e-07
I95: NZ | J95: 4114 | K95: 41 | L95: 14 | M95: 7311478.955 | N95: 30.84787 | O95: 0.99994331 | P95: -8e-07
I96: NZ | J96: 4115 | K96: 41 | L96: 15 | M96: 7309628.083 | N96: 30.84799 | O96: 0.99994419 | P96: -8.8e-07
I97: NZ | J97: 4116 | K97: 41 | L97: 16 | M97: 7307777.203 | N97: 30.84811 | O97: 0.99994515 | P97: -9.599999999e-07
I98: NZ | J98: 4117 | K98: 41 | L98: 17 | M98: 7305926.317 | N98: 30.84823 | O98: 0.9999462 | P98: -1.05e-06
I99: NZ | J99: 4118 | K99: 41 | L99: 18 | M99: 7304075.423 | N99: 30.84836 | O99: 0.99994734 | P99: -1.14e-06
I100: NZ | J100: 4119 | K100: 41 | L100: 19 | M100: 7302224.521 | N100: 30.84849 | O100: 0.99994856 | P100: =O99-O100 -> -1.22e-06
I101: NZ | J101: 4120 | K101: 41 | L101: 20 | M101: 7300373.612 | N101: 30.84862 | O101: 0.99994986 | P101: -1.3e-06
I102: NZ | J102: 4121 | K102: 41 | L102: 21 | M102: 7298522.695 | N102: 30.84875 | O102: 0.99995125 | P102: -1.39e-06
I103: NZ | J103: 4122 | K103: 41 | L103: 22 | M103: 7296671.77 | N103: 30.84889 | O103: 0.99995272 | P103: -1.47e-06
I104: NZ | J104: 4123 | K104: 41 | L104: 23 | M104: 7294820.837 | N104: 30.84903 | O104: 0.99995428 | P104: -1.56e-06
I105: NZ | J105: 4124 | K105: 41 | L105: 24 | M105: 7292969.895 | N105: 30.84917 | O105: 0.99995592 | P105: -1.64e-06
I106: NZ | J106: 4125 | K106: 41 | L106: 25 | M106: 7291118.945 | N106: 30.84931 | O106: 0.99995765 | P106: -1.73e-06
I107: NZ | J107: 4126 | K107: 41 | L107: 26 | M107: 7289267.986 | N107: 30.84946 | O107: 0.99995946 | P107: -1.81e-06
I108: NZ | J108: 4127 | K108: 41 | L108: 27 | M108: 7287417.018 | N108: 30.84961 | O108: 0.99996136 | P108: -1.9e-06
I109: NZ | J109: 4128 | K109: 41 | L109: 28 | M109: 7285566.042 | N109: 30.84976 | O109: 0.99996334 | P109: -1.98e-06
I110: NZ | J110: 4129 | K110: 41 | L110: 29 | M110: 7283715.056 | N110: 30.84992 | O110: 0.99996541 | P110: -2.07e-06
I111: NZ | J111: 4130 | K111: 41 | L111: 30 | M111: 7281864.061 | N111: 30.85007 | O111: 0.99996756 | P111: -2.15e-06
I112: NZ | J112: 4131 | K112: 41 | L112: 31 | M112: 7280013.057 | N112: 30.85023 | O112: 0.99996979 | P112: -2.23e-06
I113: NZ | J113: 4132 | K113: 41 | L113: 32 | M113: 7278162.043 | N113: 30.8504 | O113: 0.99997212 | P113: -2.33e-06
I114: NZ | J114: 4133 | K114: 41 | L114: 33 | M114: 7276311.019 | N114: 30.85056 | O114: 0.99997452 | P114: -2.4e-06
I115: NZ | J115: 4134 | K115: 41 | L115: 34 | M115: 7274459.985 | N115: 30.85073 | O115: 0.99997701 | P115: -2.49e-06
I116: NZ | J116: 4135 | K116: 41 | L116: 35 | M116: 7272608.941 | N116: 30.8509 | O116: 0.99997959 | P116: -2.58e-06
I117: NZ | J117: 4136 | K117: 41 | L117: 36 | M117: 7270757.887 | N117: 30.85107 | O117: 0.99998225 | P117: -2.66e-06
I118: NZ | J118: 4137 | K118: 41 | L118: 37 | M118: 7268906.823 | N118: 30.85125 | O118: 0.99998499 | P118: -2.74e-06
I119: NZ | J119: 4138 | K119: 41 | L119: 38 | M119: 7267055.748 | N119: 30.85143 | O119: 0.99998783 | P119: -2.84e-06
I120: NZ | J120: 4139 | K120: 41 | L120: 39 | M120: 7265204.662 | N120: 30.85161 | O120: 0.99999074 | P120: -2.91e-06
I121: NZ | J121: 4140 | K121: 41 | L121: 40 | M121: 7263353.566 | N121: 30.85179 | O121: 0.99999374 | P121: -3e-06
I122: NZ | J122: 4141 | K122: 41 | L122: 41 | M122: 7261502.458 | N122: 30.85198 | O122: 0.99999683 | P122: -3.09e-06
I123: NZ | J123: 4142 | K123: 41 | L123: 42 | M123: 7259651.339 | N123: 30.85217 | O123: 1 | P123: -3.17e-06
I124: NZ | J124: 4143 | K124: 41 | L124: 43 | M124: 7257800.209 | N124: 30.85236 | O124: 1.00000326 | P124: -3.26e-06
I125: NZ | J125: 4144 | K125: 41 | L125: 44 | M125: 7255949.068 | N125: 30.85255 | O125: 1.0000066 | P125: -3.34e-06
I126: NZ | J126: 4145 | K126: 41 | L126: 45 | M126: 7254097.915 | N126: 30.85275 | O126: 1.00001002 | P126: -3.42e-06
I127: NZ | J127: 4146 | K127: 41 | L127: 46 | M127: 7252246.75 | N127: 30.85295 | O127: 1.00001354 | P127: -3.52e-06
I128: NZ | J128: 4147 | K128: 41 | L128: 47 | M128: 7250395.573 | N128: 30.85315 | O128: 1.00001713 | P128: -3.59e-06
I129: NZ | J129: 4148 | K129: 41 | L129: 48 | M129: 7248544.384 | N129: 30.85336 | O129: 1.00002082 | P129: -3.69e-06
I130: NZ | J130: 4149 | K130: 41 | L130: 49 | M130: 7246693.182 | N130: 30.85356 | O130: 1.00002458 | P130: -3.76e-06
I131: NZ | J131: 4150 | K131: 41 | L131: 50 | M131: 7244841.968 | N131: 30.85377 | O131: 1.00002844 | P131: -3.86e-06
I132: NZ | J132: 4151 | K132: 41 | L132: 51 | M132: 7242990.742 | N132: 30.85399 | O132: 1.00003238 | P132: =O131-O132 -> -3.94e-06
I133: NZ | J133: 4152 | K133: 41 | L133: 52 | M133: 7241139.503 | N133: 30.8542 | O133: 1.0000364 | P133: -4.02e-06
I134: NZ | J134: 4153 | K134: 41 | L134: 53 | M134: 7239288.251 | N134: 30.85442 | O134: 1.00004051 | P134: -4.11e-06
I135: NZ | J135: 4154 | K135: 41 | L135: 54 | M135: 7237436.985 | N135: 30.85464 | O135: 1.0000447 | P135: -4.19e-06
I136: NZ | J136: 4155 | K136: 41 | L136: 55 | M136: 7235585.707 | N136: 30.85486 | O136: 1.00004898 | P136: -4.28e-06
I137: NZ | J137: 4156 | K137: 41 | L137: 56 | M137: 7233734.415 | N137: 30.85509 | O137: 1.00005335 | P137: -4.37e-06
I138: NZ | J138: 4157 | K138: 41 | L138: 57 | M138: 7231883.11 | N138: 30.85532 | O138: 1.0000578 | P138: -4.45e-06
I139: NZ | J139: 4158 | K139: 41 | L139: 58 | M139: 7230031.791 | N139: 30.85555 | O139: 1.00006234 | P139: -4.54e-06
I140: NZ | J140: 4159 | K140: 41 | L140: 59 | M140: 7228180.458 | N140: 30.85578 | O140: 1.00006696 | P140: -4.62e-06
I141: NZ | J141: 4200 | K141: 42 | L141: 0 | M141: 7226329.111 | N141: 30.85602 | O141: 1.00007167 | P141: -4.71e-06
I142: NZ | J142: 4201 | K142: 42 | L142: 1 | M142: 7224477.749 | N142: 30.85626 | O142: 1.00007646 | P142: -4.79e-06
I143: NZ | J143: 4202 | K143: 42 | L143: 2 | M143: 7222626.374 | N143: 30.8565 | O143: 1.00008134 | P143: -4.88e-06
I144: NZ | J144: 4203 | K144: 42 | L144: 3 | M144: 7220774.984 | N144: 30.85675 | O144: 1.0000863 | P144: -4.96e-06
I145: NZ | J145: 4204 | K145: 42 | L145: 4 | M145: 7218923.579 | N145: 30.85699 | O145: 1.00009135 | P145: -5.05e-06
I146: NZ | J146: 4205 | K146: 42 | L146: 5 | M146: 7217072.16 | N146: 30.85724 | O146: 1.00009649 | P146: -5.14e-06
I147: NZ | J147: 4206 | K147: 42 | L147: 6 | M147: 7215220.725 | N147: 30.85749 | O147: 1.00010171 | P147: -5.22e-06
I148: NZ | J148: 4207 | K148: 42 | L148: 7 | M148: 7213369.275 | N148: 30.85775 | O148: 1.00010702 | P148: -5.31e-06
I149: NZ | J149: 4208 | K149: 42 | L149: 8 | M149: 7211517.811 | N149: 30.85801 | O149: 1.00011241 | P149: -5.39e-06
I150: NZ | J150: 4209 | K150: 42 | L150: 9 | M150: 7209666.33 | N150: 30.85827 | O150: 1.00011789 | P150: -5.48e-06
I151: NZ | J151: 4210 | K151: 42 | L151: 10 | M151: 7207814.834 | N151: 30.85853 | O151: 1.00012345 | P151: -5.56e-06
I152: SZ | J152: 3800 | K152: 38 | L152: 0 | M152: 7932869.037 | N152: 30.83922 | O152: 1.00022476
I153: SZ | J153: 3801 | K153: 38 | L153: 1 | M153: 7931018.684 | N153: 30.8391 | O153: 1.00021786 | P153: =O152-O153 -> 6.9e-06
I154: SZ | J154: 3802 | K154: 38 | L154: 2 | M154: 7929168.338 | N154: 30.83898 | O154: 1.00021105 | P154: 6.81e-06
I155: SZ | J155: 3803 | K155: 38 | L155: 3 | M155: 7927318 | N155: 30.83886 | O155: 1.00020433 | P155: 6.72e-06
I156: SZ | J156: 3804 | K156: 38 | L156: 4 | M156: 7925467.668 | N156: 30.83874 | O156: 1.00019768 | P156: 6.65e-06
I157: SZ | J157: 3805 | K157: 38 | L157: 5 | M157: 7923617.343 | N157: 30.83863 | O157: 1.00019112 | P157: 6.56e-06
I158: SZ | J158: 3806 | K158: 38 | L158: 6 | M158: 7921767.026 | N158: 30.83852 | O158: 1.00018464 | P158: 6.48e-06
I159: SZ | J159: 3807 | K159: 38 | L159: 7 | M159: 7919916.715 | N159: 30.83841 | O159: 1.00017825 | P159: 6.39e-06
I160: SZ | J160: 3808 | K160: 38 | L160: 8 | M160: 7918066.41 | N160: 30.8383 | O160: 1.00017193 | P160: 6.32e-06
I161: SZ | J161: 3809 | K161: 38 | L161: 9 | M161: 7916216.112 | N161: 30.8382 | O161: 1.0001657 | P161: 6.23e-06
I162: SZ | J162: 3810 | K162: 38 | L162: 10 | M162: 7914365.82 | N162: 30.8381 | O162: 1.00015956 | P162: 6.14e-06
I163: SZ | J163: 3811 | K163: 38 | L163: 11 | M163: 7912515.534 | N163: 30.8381 | O163: 1.00015349 | P163: 6.07e-06
I164: SZ | J164: 3812 | K164: 38 | L164: 12 | M164: 7910665.253 | N164: 30.83791 | O164: 1.00014751 | P164: 5.98e-06
I165: SZ | J165: 3813 | K165: 38 | L165: 13 | M165: 7908814.979 | N165: 30.83782 | O165: 1.00014161 | P165: 5.9e-06
I166: SZ | J166: 3814 | K166: 38 | L166: 14 | M166: 7906964.71 | N166: 30.83772 | O166: 1.0001358 | P166: 5.81e-06
I167: SZ | J167: 3815 | K167: 38 | L167: 15 | M167: 7905114.446 | N167: 30.83764 | O167: 1.00013007 | P167: 5.73e-06
I168: SZ | J168: 3816 | K168: 38 | L168: 16 | M168: 7903264.188 | N168: 30.83755 | O168: 1.00012442 | P168: 5.65e-06
I169: SZ | J169: 3817 | K169: 38 | L169: 17 | M169: 7901413.935 | N169: 30.83747 | O169: 1.00011885 | P169: 5.57e-06
I170: SZ | J170: 3818 | K170: 38 | L170: 18 | M170: 7899563.687 | N170: 30.83739 | O170: 1.00011337 | P170: 5.48e-06
I171: SZ | J171: 3819 | K171: 38 | L171: 19 | M171: 7897713.444 | N171: 30.83731 | O171: 1.00010797 | P171: 5.4e-06
I172: SZ | J172: 3820 | K172: 38 | L172: 20 | M172: 7895863.205 | N172: 30.83724 | O172: 1.00010265 | P172: 5.32e-06
I173: SZ | J173: 3821 | K173: 38 | L173: 21 | M173: 7894012.971 | N173: 30.83717 | O173: 1.00009741 | P173: 5.24e-06
I174: SZ | J174: 3822 | K174: 38 | L174: 22 | M174: 7892162.741 | N174: 30.8371 | O174: 1.00009226 | P174: 5.15e-06
I175: SZ | J175: 3823 | K175: 38 | L175: 23 | M175: 7890312.515 | N175: 30.83703 | O175: 1.0000872 | P175: 5.06e-06
I176: SZ | J176: 3824 | K176: 38 | L176: 24 | M176: 7888462.293 | N176: 30.83696 | O176: 1.00008221 | P176: 4.99e-06
I177: SZ | J177: 3825 | K177: 38 | L177: 25 | M177: 7886612.075 | N177: 30.8369 | O177: 1.00007731 | P177: 4.9e-06
I178: SZ | J178: 3826 | K178: 38 | L178: 26 | M178: 7884761.861 | N178: 30.83684 | O178: 1.00007249 | P178: 4.82e-06
I179: SZ | J179: 3827 | K179: 38 | L179: 27 | M179: 7882911.651 | N179: 30.83679 | O179: 1.00006776 | P179: 4.73e-06
I180: SZ | J180: 3828 | K180: 38 | L180: 28 | M180: 7881061.444 | N180: 30.83673 | O180: 1.0000631 | P180: 4.66e-06
I181: SZ | J181: 3829 | K181: 38 | L181: 29 | M181: 7879211.24 | N181: 30.83668 | O181: 1.00005853 | P181: 4.57e-06
I182: SZ | J182: 3830 | K182: 38 | L182: 30 | M182: 7877361.039 | N182: 30.83663 | O182: 1.00005405 | P182: 4.48e-06
I183: SZ | J183: 3831 | K183: 38 | L183: 31 | M183: 7875510.841 | N183: 30.83658 | O183: 1.00004965 | P183: 4.4e-06
I184: SZ | J184: 3832 | K184: 38 | L184: 32 | M184: 7873660.646 | N184: 30.83654 | O184: 1.00004533 | P184: 4.32e-06
I185: SZ | J185: 3833 | K185: 38 | L185: 33 | M185: 7871810.453 | N185: 30.8365 | O185: 1.00004109 | P185: =O184-O185 -> 4.24e-06
I186: SZ | J186: 3834 | K186: 38 | L186: 34 | M186: 7869960.263 | N186: 30.83646 | O186: 1.00003694 | P186: 4.15e-06
I187: SZ | J187: 3835 | K187: 38 | L187: 35 | M187: 7868110.076 | N187: 30.83642 | O187: 1.00003287 | P187: 4.07e-06
I188: SZ | J188: 3836 | K188: 38 | L188: 36 | M188: 7866259.89 | N188: 30.83639 | O188: 1.00002888 | P188: 3.99e-06
I189: SZ | J189: 3837 | K189: 38 | L189: 37 | M189: 7864409.707 | N189: 30.83636 | O189: 1.00002498 | P189: 3.9e-06
I190: SZ | J190: 3838 | K190: 38 | L190: 38 | M190: 7862559.525 | N190: 30.83633 | O190: 1.00002116 | P190: 3.82e-06
I191: SZ | J191: 3839 | K191: 38 | L191: 39 | M191: 7860709.345 | N191: 30.83631 | O191: 1.00001743 | P191: 3.73e-06
I192: SZ | J192: 3840 | K192: 38 | L192: 40 | M192: 7858859.167 | N192: 30.83628 | O192: 1.00001377 | P192: 3.66e-06
I193: SZ | J193: 3841 | K193: 38 | L193: 41 | M193: 7857008.99 | N193: 30.83626 | O193: 1.00001021 | P193: 3.56e-06
I194: SZ | J194: 3842 | K194: 38 | L194: 42 | M194: 7855158.814 | N194: 30.83624 | O194: 1.00000672 | P194: 3.49e-06
I195: SZ | J195: 3843 | K195: 38 | L195: 43 | M195: 7853308.64 | N195: 30.83623 | O195: 1.00000332 | P195: 3.4e-06
I196: SZ | J196: 3844 | K196: 38 | L196: 44 | M196: 7851458.466 | N196: 30.83622 | O196: 1 | P196: 3.32e-06
I197: SZ | J197: 3845 | K197: 38 | L197: 45 | M197: 7849608.293 | N197: 30.83621 | O197: 0.99999677 | P197: 3.23e-06
I198: SZ | J198: 3846 | K198: 38 | L198: 46 | M198: 7847758.121 | N198: 30.8362 | O198: 0.99999361 | P198: 3.16e-06
I199: SZ | J199: 3847 | K199: 38 | L199: 47 | M199: 7845907.949 | N199: 30.83619 | O199: 0.99999055 | P199: 3.06e-06
I200: SZ | J200: 3848 | K200: 38 | L200: 48 | M200: 7844057.777 | N200: 30.83619 | O200: 0.99998756 | P200: 2.99e-06
... 111 more rows

Sheet GRID<->GRND
A1: Project: | B1: =REPORT!B2 -> LUC-23-11.75 | E1: Import Units (please select): | G1: Ground Coord? | H1: FALSE | I1: =IF(H1=TRUE,"Unitless Ground to Grid Factor:","Unitless Grid to Ground Factor:") -> Unitless Grid to Ground Factor: | K1: =IF(H1=TRUE,1/REPORT!C13,REPORT!C13) -> 1.00002534
A2: Pid: | B2: =REPORT!E2 -> 105889 | G2: U.S. Survey FT | H2: =INDEX(ShortUnits,MATCH(G2,Units,0),1) -> sft | I2: ="Unit Conversion Factor ("&H2&"->"&H3&"):" -> Unit Conversion Factor (sft->m): | K2: =INDEX(FactorValues,MATCH(H2&"->"&H3,FactorNames,0)) -> 0.3048006096
E3: Output Units (please select): | G3: Meters | H3: =INDEX(ShortUnits,MATCH(G3,Units,0),1) -> m | I3: Project Adjustment Factor: | K3: =K1*K2 -> 0.3048083332
A5: INPUT | G5: OUTPUT
A6: =IF(H1=TRUE,"Ground","Grid")&" - "&G2 -> Grid - U.S. Survey FT | G6: =IF(H1=TRUE,"Grid","Ground")&" - "&G3 -> Ground - Meters
A7: NAME | B7: NORTH | C7: EAST | D7: ORTHO HT | E7: FEATURE | G7: NAME | H7: NORTH | I7: EAST | J7: ORTHO HT | K7: FEATURE
G8: =A8 -> 0 | H8: =B8*$K$3 -> 0 | I8: =C8*$K$3 -> 0 | J8: =D8*$K$2 -> 0 | K8: =E8 -> 0
G9: 0 | H9: 0 | I9: 0 | J9: 0 | K9: 0
G10: 0 | H10: 0 | I10: 0 | J10: 0 | K10: 0
G11: 0 | H11: 0 | I11: 0 | J11: 0 | K11: 0
G12: 0 | H12: 0 | I12: 0 | J12: 0 | K12: 0
G13: 0 | H13: 0 | I13: 0 | J13: 0 | K13: 0
G14: 0 | H14: 0 | I14: 0 | J14: 0 | K14: 0
G15: 0 | H15: 0 | I15: 0 | J15: 0 | K15: 0
G16: 0 | H16: 0 | I16: 0 | J16: 0 | K16: 0
G17: 0 | H17: 0 | I17: 0 | J17: 0 | K17: 0
G18: 0 | H18: 0 | I18: 0 | J18: 0 | K18: 0
G19: 0 | H19: 0 | I19: 0 | J19: 0 | K19: 0
G20: 0 | H20: 0 | I20: 0 | J20: 0 | K20: 0
G21: 0 | H21: 0 | I21: 0 | J21: 0 | K21: 0
G22: 0 | H22: 0 | I22: 0 | J22: 0 | K22: 0
G23: 0 | H23: 0 | I23: 0 | J23: 0 | K23: 0
G24: 0 | H24: 0 | I24: 0 | J24: 0 | K24: 0
G25: 0 | H25: 0 | I25: 0 | J25: 0 | K25: 0
G26: 0 | H26: 0 | I26: 0 | J26: 0 | K26: 0
G27: 0 | H27: 0 | I27: 0 | J27: 0 | K27: 0
G28: 0 | H28: 0 | I28: 0 | J28: 0 | K28: 0
G29: 0 | H29: 0 | I29: 0 | J29: 0 | K29: 0
G30: 0 | H30: 0 | I30: 0 | J30: 0 | K30: 0
G31: 0 | H31: 0 | I31: 0 | J31: 0 | K31: 0
G32: 0 | H32: 0 | I32: 0 | J32: 0 | K32: 0
G33: 0 | H33: 0 | I33: 0 | J33: 0 | K33: 0
G34: 0 | H34: 0 | I34: 0 | J34: 0 | K34: 0
G35: 0 | H35: 0 | I35: 0 | J35: 0 | K35: 0
G36: 0 | H36: 0 | I36: 0 | J36: 0 | K36: 0
G37: 0 | H37: 0 | I37: 0 | J37: 0 | K37: 0
G38: 0 | H38: 0 | I38: 0 | J38: 0 | K38: 0
G39: 0 | H39: 0 | I39: 0 | J39: 0 | K39: 0
G40: 0 | H40: =B40*$K$3 -> 0 | I40: =C40*$K$3 -> 0 | J40: =D40*$K$2 -> 0 | K40: 0
G41: 0 | H41: 0 | I41: 0 | J41: 0 | K41: 0
G42: 0 | H42: 0 | I42: 0 | J42: 0 | K42: 0
G43: 0 | H43: 0 | I43: 0 | J43: 0 | K43: 0
G44: 0 | H44: 0 | I44: 0 | J44: 0 | K44: 0
G45: 0 | H45: 0 | I45: 0 | J45: 0 | K45: 0
G46: 0 | H46: 0 | I46: 0 | J46: 0 | K46: 0
G47: 0 | H47: 0 | I47: 0 | J47: 0 | K47: 0
G48: 0 | H48: 0 | I48: 0 | J48: 0 | K48: 0
G49: 0 | H49: 0 | I49: 0 | J49: 0 | K49: 0
G50: 0 | H50: 0 | I50: 0 | J50: 0 | K50: 0
G51: 0 | H51: 0 | I51: 0 | J51: 0 | K51: 0
G52: 0 | H52: 0 | I52: 0 | J52: 0 | K52: 0

Sheet OWNERS
A1: First | B1: Last | C1: Address | D1: City | E1: State | F1: Zip Code | G1: Deed Book/Page | H1: Auditor Parcel Number | I1: Area | J1: Section | K1: Lot | L1: Tax Map Parcel

Sheet OSIP
B1: Project: | C1: =REPORT!B2 -> LUC-23-11.75
B2: Pid: | C2: =REPORT!E2 -> 105889
A4: Calculate the Project Coordinates for the corners of the Aerial Mapping Raster File
A5: To scale the Geo-referenced file to the Project Datum | N5: Project County: | P5: =REPORT!B2 -> LUC-23-11.75 | Q5: =MID(P5,1,3) -> LUC
O7: Photo Corners | Q7: Pixel Range
A8: INPUT: SP GRID - US SURVEY FEET | N8: COUNTY | O8: EASTING | P8: NORTHING | Q8: EASTING | R8: NORTHING
B9: X (East) | C9: Y (North) | N9: ADA | O9: 1620000 | P9: 215000 | Q9: 130000 | R9: 175000
A10: Lower left (SW) origin: | B10: =VLOOKUP(MID(REPORT!B2,1,3),OSIP!N9:R96,2,FALSE) -> 1585000 | C10: =VLOOKUP(MID(REPORT!B2,1,3),OSIP!N9:R96,3,FALSE) -> 635000 | D10: Enter X,Y from Georeferenced Raster File Header | N10: ALL | O10: 1440000 | P10: 355000 | Q10: 150000 | R10: 110000
A11: Pixel Range: | B11: =VLOOKUP(MID(REPORT!B2,1,3),OSIP!N9:R96,4,FALSE) -> 225000 | C11: =VLOOKUP(MID(REPORT!B2,1,3),OSIP!N9:R96,5,FALSE) -> 125000 | D11: Enter X,Y from Georeferenced Raster File Header | N11: ASD | O11: 1985000 | P11: 320000 | Q11: 90000 | R11: 195000
A12: Upper right (NE) origin: | B12: =B10+B11 -> 1810000 | C12: =C10+C11 -> 760000 | D12: Calculated NE ORIGIN using Delta X & Delta Y | N12: ASH | O12: 2375000 | P12: 670000 | Q12: 140000 | R12: 185000
N13: ATH | O13: 2025000 | P13: 430000 | Q13: 165000 | R13: 140000
A14: PAF (scale multiplier): | B14: =REPORT!C13 -> 1.00002534 | D14: Enter Unitless Project Adjustment Factor for Project | N14: AUG | O14: 1420000 | P14: 255000 | Q14: 170000 | R14: 125000
N15: BEL | O15: 2320000 | P15: 675000 | Q15: 155000 | R15: 120000
A16: OUTPUT: PROJECT GROUND - US SURVEY FEET | N16: BRO | O16: 1525000 | P16: 230000 | Q16: 115000 | R16: 235000
B17: X (East) | C17: Y (North) | N17: BUT | O17: 1310000 | P17: 475000 | Q17: 145000 | R17: 115000
A18: Lower left (SW) origin (MAP01): | B18: =PRODUCT(B10,B14) -> 1585040.164 | C18: =PRODUCT(C10,B14) -> 635016.0909 | D18: Calculated Scaled ORIGIN Coordinates | N18: CAR | O18: 2295000 | P18: 275000 | Q18: 130000 | R18: 120000
A19: Upper right (NE) origin (MAP02): | B19: =PRODUCT(B12,B14) -> 1810045.865 | C19: =PRODUCT(C12,B14) -> 760019.2584 | D19: Calculated Scaled ORIGIN Coordinates | N19: CHP | O19: 1535000 | P19: 730000 | Q19: 160000 | R19: 105000
N20: CLA | O20: 1530000 | P20: 645000 | Q20: 160000 | R20: 105000
D21: (Edit Header & Footer for Printing File report copy) | N21: CLE | O21: 1450000 | P21: 280000 | Q21: 100000 | R21: 190000
N22: CLI | O22: 1540000 | P22: 445000 | Q22: 125000 | R22: 130000
A23: 1) Place a Shape (BOX) in the MicroStation file at the Project Origin Coordinates and use KEY-IN COMMAND XY= (X value),(Y value) for both corners | N23: COL | O23: 2355000 | P23: 335000 | Q23: 165000 | R23: 130000
A24: 2) Attach the Raster File using the "INTERACTIVE" Toggle & PLACE at the Corners of the BOX | N24: COS | O24: 2050000 | P24: 175000 | Q24: 165000 | R24: 115000
N25: CRA | O25: 1795000 | P25: 375000 | Q25: 115000 | R25: 115000
A26: This will scale the Aerial Mapping Ortho Photo to fit the PROJECT COORDINATES | N26: CUY | O26: 2110000 | P26: 585000 | Q26: 170000 | R26: 145000
N27: DAR | O27: 1315000 | P27: 700000 | Q27: 115000 | R27: 170000
N28: DEF | O28: 1330000 | P28: 550000 | Q28: 165000 | R28: 100000
N29: DEL | O29: 1755000 | P29: 165000 | Q29: 150000 | R29: 120000
N30: ERI | O30: 1855000 | P30: 585000 | Q30: 160000 | R30: 135000
N31: FAI | O31: 1870000 | P31: 565000 | Q31: 140000 | R31: 145000
N32: FAY | O32: 1635000 | P32: 500000 | Q32: 125000 | R32: 130000
N33: FRA | O33: 1755000 | P33: 650000 | Q33: 145000 | R33: 135000
N34: FUL | O34: 1445000 | P34: 665000 | Q34: 150000 | R34: 90000
N35: GAL | O35: 1940000 | P35: 210000 | Q35: 145000 | R35: 170000
N36: GEA | O36: 2270000 | P36: 610000 | Q36: 110000 | R36: 145000
N37: GRE | O37: 1510000 | P37: 565000 | Q37: 140000 | R37: 115000
N38: GUE | O38: 2180000 | P38: 670000 | Q38: 145000 | R38: 145000
N39: HAM | O39: 1305000 | P39: 375000 | Q39: 170000 | R39: 110000
N40: HAN | O40: 1585000 | P40: 420000 | Q40: 135000 | R40: 135000
N41: HAR | O41: 1580000 | P41: 305000 | Q41: 135000 | R41: 120000
N42: HAS | O42: 2290000 | P42: 180000 | Q42: 135000 | R42: 105000
N43: HEN | O43: 1460000 | P43: 545000 | Q43: 130000 | R43: 125000
N44: HIG | O44: 1575000 | P44: 370000 | Q44: 155000 | R44: 135000
N45: HOC | O45: 1895000 | P45: 495000 | Q45: 170000 | R45: 115000
N46: HOL | O46: 2045000 | P46: 280000 | Q46: 160000 | R46: 90000
N47: HUR | O47: 1870000 | P47: 480000 | Q47: 145000 | R47: 115000
N48: JAC | O48: 1880000 | P48: 305000 | Q48: 110000 | R48: 140000
N49: JEF | O49: 2400000 | P49: 180000 | Q49: 100000 | R49: 165000
N50: KNO | O50: 1895000 | P50: 205000 | Q50: 165000 | R50: 130000
N51: LAK | O51: 2240000 | P51: 690000 | Q51: 140000 | R51: 115000
N52: LAW | O52: 1875000 | P52: 145000 | Q52: 155000 | R52: 165000
N53: LIC | O53: 1885000 | P53: 695000 | Q53: 175000 | R53: 135000
N54: LOG | O54: 1545000 | P54: 205000 | Q54: 145000 | R54: 120000
N55: LOR | O55: 2005000 | P55: 505000 | Q55: 135000 | R55: 175000
N56: LUC | O56: 1585000 | P56: 635000 | Q56: 225000 | R56: 125000
N57: MAD | O57: 1640000 | P57: 615000 | Q57: 135000 | R57: 160000
N58: MAH | O58: 2355000 | P58: 450000 | Q58: 165000 | R58: 95000
N59: MAR | O59: 1710000 | P59: 275000 | Q59: 160000 | R59: 105000
N60: MED | O60: 2055000 | P60: 480000 | Q60: 140000 | R60: 110000
N61: MEG | O61: 2015000 | P61: 315000 | Q61: 175000 | R61: 125000
N62: MER | O62: 1325000 | P62: 255000 | Q62: 110000 | R62: 145000
N63: MIA | O63: 1425000 | P63: 685000 | Q63: 120000 | R63: 125000
N64: MOE | O64: 2300000 | P64: 560000 | Q64: 145000 | R64: 125000
N65: MOT | O65: 1410000 | P65: 575000 | Q65: 125000 | R65: 130000
N66: MRG | O66: 2085000 | P66: 525000 | Q66: 145000 | R66: 125000
N67: MRW | O67: 1820000 | P67: 245000 | Q67: 115000 | R67: 140000
N68: MUS | O68: 2040000 | P68: 640000 | Q68: 160000 | R68: 150000
N69: NOB | O69: 2190000 | P69: 575000 | Q69: 135000 | R69: 140000
N70: OTT | O70: 1715000 | P70: 650000 | Q70: 20000 | R70: 105000
N71: PAU | O71: 1330000 | P71: 485000 | Q71: 135000 | R71: 105000
N72: PER | O72: 1975000 | P72: 560000 | Q72: 130000 | R72: 145000
N73: PIC | O73: 1750000 | P73: 530000 | Q73: 155000 | R73: 135000
N74: PIK | O74: 1715000 | P74: 345000 | Q74: 175000 | R74: 95000
N75: POR | O75: 2270000 | P75: 480000 | Q75: 115000 | R75: 140000
N76: PRE | O76: 1310000 | P76: 575000 | Q76: 105000 | R76: 135000
N77: PUT | O77: 1440000 | P77: 435000 | Q77: 150000 | R77: 120000
N78: RIC | O78: 1900000 | P78: 320000 | Q78: 115000 | R78: 165000
N79: ROS | O79: 1715000 | P79: 425000 | Q79: 190000 | R79: 130000
N80: SAN | O80: 1715000 | P80: 575000 | Q80: 165000 | R80: 100000
N81: SCI | O81: 1745000 | P81: 205000 | Q81: 185000 | R81: 170000
N82: SEN | O82: 1710000 | P82: 480000 | Q82: 170000 | R82: 105000
N83: SHE | O83: 1425000 | P83: 190000 | Q83: 130000 | R83: 115000
N84: STA | O84: 2200000 | P84: 350000 | Q84: 165000 | R84: 135000
N85: SUM | O85: 2190000 | P85: 450000 | Q85: 85000 | R85: 175000
N86: TRU | O86: 2375000 | P86: 535000 | Q86: 145000 | R86: 140000
N87: TUS | O87: 2185000 | P87: 200000 | Q87: 130000 | R87: 170000
N88: UNI | O88: 1650000 | P88: 160000 | Q88: 265000 | R88: 295000
N89: VAN | O89: 1325000 | P89: 375000 | Q89: 135000 | R89: 120000
N90: VIN | O90: 1890000 | P90: 370000 | Q90: 150000 | R90: 140000
N91: WAR | O91: 1440000 | P91: 460000 | Q91: 115000 | R91: 125000
N92: WAS | O92: 2150000 | P92: 440000 | Q92: 235000 | R92: 165000
N93: WAY | O93: 2070000 | P93: 360000 | Q93: 135000 | R93: 125000
N94: WIL | O94: 1335000 | P94: 645000 | Q94: 130000 | R94: 105000
N95: WOO | O95: 1585000 | P95: 545000 | Q95: 135000 | R95: 170000
N96: WYA | O96: 1685000 | P96: 370000 | Q96: 115000 | R96: 115000

Sheet MON TABLE
A1: PROJECT: | F1: =REPORT!B2 -> LUC-23-11.75 | N1: PID: | O1: =REPORT!$E$2 -> 105889
A2: Import Units: | C2: Ground Coord? | D2: TRUE | E2: ="Unit Conversion Factor1 ("&D3&"->"&D4&"):" -> Unit Conversion Factor1 (sft->m): | H2: =INDEX(FactorValues,MATCH(D3&"->"&D4,FactorNames,0)) -> 0.3048006096 | I2: Unitless Ground to Grid Factor: | J2: Unitless Factor:
C3: U.S. Survey FT | D3: =INDEX(ShortUnits,MATCH($C$3,Units,0),1) -> sft | E3: ="Unit Conversion Factor2 ("&D3&"->"&D5&"):" -> Unit Conversion Factor2 (sft->sft): | H3: =INDEX(FactorValues,MATCH(D3&"->"&D5,FactorNames,0)) -> 1 | J3: =REPORT!A46&REPORT!C46 -> 
A4: Output Unit1: | C4: Meters | D4: =INDEX(ShortUnits,MATCH($C$4,Units,0),1) -> m | E4: Adjustment Factor1: | H4: =IF(D2=TRUE,I4*H2,H2) -> 0.3047928861 | I4: =IF(D2=TRUE,1/REPORT!C13,"n/a") -> 0.9999746606 | J4: Primary Project Control:
A5: Output Unit2: | C5: U.S. Survey FT | D5: =INDEX(ShortUnits,MATCH($C$5,Units,0),1) -> sft | E5: Adjustment Factor2: | H5: =IF(D2=TRUE,I4*H3,H3) -> 0.9999746606 | J5: =REPORT!A41&REPORT!A42&REPORT!A43 -> Trimble R6
A6: =IF(D2=TRUE,"GROUND","GRID")&" COORDINATES - "&C3 -> GROUND COORDINATES - U.S. Survey FT | L6: STATE PLANE GRID COORDINATES | S6: MONUMENTS TO BE SET
S7: DURING CONSTRUCTION
A8: =IF(ISNUMBER(SEARCH("NORTH",REPORT!C10))=TRUE,"PROJECT coordinates are scaled from GRID coordinates about the Ohio North Zone grid point "&Lists!$G$1,"PROJECT coordinates are scaled from GRID coordinates about the Ohio South Zone grid point "&Lists!$G$2) -> PROJECT coordinates are scaled from GRID coordinates about the Ohio North Zone grid point N=0, E=0 (N 39⁰ 27' 01.76097", W 89⁰ 28' 32.98476") | L8: Horiz. Datum: | M8: =REPORT!C11 -> NAD83 (2011) | N8: =REPORT!C10 -> Ohio State Plane, North Zone | P8: Vert. Datum: | Q8: =REPORT!C15 -> NAVD88
L9: =REPORT!A43&" defined by GPS from CORS using "&REPORT!C15&". All other elevations are established by leveling from "&REPORT!A43&"." -> defined by GPS from CORS using NAVD88. All other elevations are established by leveling from . | S9: ITEM 623.05 | T9: ITEM 623.05
A10: NAME | B10: Alignment Name | C10: STATION | D10: ="OFFSET ("&D3&")" -> OFFSET (sft) | E10: RT/LT | F10: ="NORTH ("&D3&")" -> NORTH (sft) | G10: ="EAST ("&D3&")" -> EAST (sft) | H10: ="ELEVATION ("&D3&")" -> ELEVATION (sft) | I10: FEATURE | J10: POINT TYPE | K10: DESCRIPTION | L10: NAME | M10: ="NORTH ("&D4&")" -> NORTH (m) | N10: ="EAST ("&D4&")" -> EAST (m) | O10: ="ORTHO HT ("&D4&")" -> ORTHO HT (m) | P10: ="NORTH ("&D5&")" -> NORTH (sft) | Q10: ="EAST ("&D5&")" -> EAST (sft) | R10: ="ORTHO HT ("&D5&")" -> ORTHO HT (sft) | S10: MONUMENT ASSEMBLY | T10: REFERENCE MONUMENT
L11: =A11 -> 0 | M11: =F11*$H$4 -> 0 | N11: =G11*$H$4 -> 0 | O11: =H11*$H$4 -> 0 | P11: =$F11*$H$5 -> 0 | Q11: =$G11*$H$5 -> 0 | R11: =H11*$H$5 -> 0
L12: =A12 -> 0 | M12: 0 | N12: 0 | O12: 0 | P12: 0 | Q12: 0 | R12: 0
L13: 0 | M13: 0 | N13: 0 | O13: 0 | P13: 0 | Q13: 0 | R13: 0
L14: 0 | M14: 0 | N14: 0 | O14: 0 | P14: 0 | Q14: 0 | R14: 0
L15: 0 | M15: 0 | N15: 0 | O15: 0 | P15: 0 | Q15: 0 | R15: 0
L16: 0 | M16: 0 | N16: 0 | O16: 0 | P16: 0 | Q16: 0 | R16: 0
L17: 0 | M17: 0 | N17: 0 | O17: 0 | P17: 0 | Q17: 0 | R17: 0
L18: 0 | M18: 0 | N18: 0 | O18: 0 | P18: 0 | Q18: 0 | R18: 0
L19: 0 | M19: 0 | N19: 0 | O19: 0 | P19: 0 | Q19: 0 | R19: 0
L20: 0 | M20: 0 | N20: 0 | O20: 0 | P20: 0 | Q20: 0 | R20: 0
L21: 0 | M21: 0 | N21: 0 | O21: 0 | P21: 0 | Q21: 0 | R21: 0
L22: 0 | M22: 0 | N22: 0 | O22: 0 | P22: 0 | Q22: 0 | R22: 0
L23: 0 | M23: 0 | N23: 0 | O23: 0 | P23: 0 | Q23: 0 | R23: 0
L24: 0 | M24: 0 | N24: 0 | O24: 0 | P24: 0 | Q24: 0 | R24: 0
L25: 0 | M25: 0 | N25: 0 | O25: 0 | P25: 0 | Q25: 0 | R25: 0
L26: 0 | M26: 0 | N26: 0 | O26: 0 | P26: 0 | Q26: 0 | R26: 0
L27: 0 | M27: 0 | N27: 0 | O27: 0 | P27: 0 | Q27: 0 | R27: 0
L28: 0 | M28: 0 | N28: 0 | O28: 0 | P28: 0 | Q28: 0 | R28: 0
L29: 0 | M29: 0 | N29: 0 | O29: 0 | P29: 0 | Q29: 0 | R29: 0
L30: 0 | M30: 0 | N30: 0 | O30: 0 | P30: 0 | Q30: 0 | R30: 0
L31: 0 | M31: 0 | N31: 0 | O31: 0 | P31: 0 | Q31: 0 | R31: 0
L32: 0 | M32: 0 | N32: 0 | O32: 0 | P32: 0 | Q32: 0 | R32: 0
L33: 0 | M33: 0 | N33: 0 | O33: 0 | P33: 0 | Q33: 0 | R33: 0
L34: 0 | M34: 0 | N34: 0 | O34: 0 | P34: 0 | Q34: 0 | R34: 0
L35: 0 | M35: 0 | N35: 0 | O35: 0 | P35: 0 | Q35: 0 | R35: 0
L36: 0 | M36: 0 | N36: 0 | O36: 0 | P36: 0 | Q36: 0 | R36: 0
L37: 0 | M37: 0 | N37: 0 | O37: 0 | P37: 0 | Q37: 0 | R37: 0
L38: 0 | M38: 0 | N38: 0 | O38: 0 | P38: 0 | Q38: 0 | R38: 0
L39: 0 | M39: 0 | N39: 0 | O39: 0 | P39: 0 | Q39: 0 | R39: 0
L40: 0 | M40: 0 | N40: 0 | O40: 0 | P40: 0 | Q40: 0 | R40: 0
L41: 0 | M41: 0 | N41: 0 | O41: 0 | P41: 0 | Q41: 0 | R41: 0
L42: 0 | M42: 0 | N42: 0 | O42: 0 | P42: 0 | Q42: 0 | R42: 0
L43: 0 | M43: =F43*$H$4 -> 0 | N43: =G43*$H$4 -> 0 | O43: =H43*$H$4 -> 0 | P43: =$F43*$H$5 -> 0 | Q43: =$G43*$H$5 -> 0 | R43: =H43*$H$5 -> 0
L44: 0 | M44: 0 | N44: 0 | O44: 0 | P44: 0 | Q44: 0 | R44: 0
L45: 0 | M45: 0 | N45: 0 | O45: 0 | P45: 0 | Q45: 0 | R45: 0
L46: 0 | M46: 0 | N46: 0 | O46: 0 | P46: 0 | Q46: 0 | R46: 0
L47: 0 | M47: 0 | N47: 0 | O47: 0 | P47: 0 | Q47: 0 | R47: 0
L48: 0 | M48: 0 | N48: 0 | O48: 0 | P48: 0 | Q48: 0 | R48: 0
L49: 0 | M49: 0 | N49: 0 | O49: 0 | P49: 0 | Q49: 0 | R49: 0
L50: 0 | M50: 0 | N50: 0 | O50: 0 | P50: 0 | Q50: 0 | R50: 0
L51: 0 | M51: 0 | N51: 0 | O51: 0 | P51: 0 | Q51: 0 | R51: 0
L52: 0 | M52: 0 | N52: 0 | O52: 0 | P52: 0 | Q52: 0 | R52: 0
L53: 0 | M53: 0 | N53: 0 | O53: 0 | P53: 0 | Q53: 0 | R53: 0
L54: 0 | M54: 0 | N54: 0 | O54: 0 | P54: 0 | Q54: 0 | R54: 0
L55: 0 | M55: 0 | N55: 0 | O55: 0 | P55: 0 | Q55: 0 | R55: 0
L56: 0 | M56: 0 | N56: 0 | O56: 0 | P56: 0 | Q56: 0 | R56: 0
L57: 0 | M57: 0 | N57: 0 | O57: 0 | P57: 0 | Q57: 0 | R57: 0
L58: 0 | M58: 0 | N58: 0 | O58: 0 | P58: 0 | Q58: 0 | R58: 0
L59: 0 | M59: 0 | N59: 0 | O59: 0 | P59: 0 | Q59: 0 | R59: 0
L60: 0 | M60: 0 | N60: 0 | O60: 0 | P60: 0 | Q60: 0 | R60: 0
L61: 0 | M61: 0 | N61: 0 | O61: 0 | P61: 0 | Q61: 0 | R61: 0
L62: 0 | M62: 0 | N62: 0 | O62: 0 | P62: 0 | Q62: 0 | R62: 0
L63: 0 | M63: 0 | N63: 0 | O63: 0 | P63: 0 | Q63: 0 | R63: 0
L64: 0 | M64: 0 | N64: 0 | O64: 0 | P64: 0 | Q64: 0 | R64: 0
L65: 0 | M65: 0 | N65: 0 | O65: 0 | P65: 0 | Q65: 0 | R65: 0
L66: 0 | M66: 0 | N66: 0 | O66: 0 | P66: 0 | Q66: 0 | R66: 0
L67: 0 | M67: 0 | N67: 0 | O67: 0 | P67: 0 | Q67: 0 | R67: 0
L68: 0 | M68: 0 | N68: 0 | O68: 0 | P68: 0 | Q68: 0 | R68: 0
L69: 0 | M69: 0 | N69: 0 | O69: 0 | P69: 0 | Q69: 0 | R69: 0
L70: 0 | M70: 0 | N70: 0 | O70: 0 | P70: 0 | Q70: 0 | R70: 0
L71: 0 | M71: 0 | N71: 0 | O71: 0 | P71: 0 | Q71: 0 | R71: 0
L72: 0 | M72: 0 | N72: 0 | O72: 0 | P72: 0 | Q72: 0 | R72: 0
L73: 0 | M73: 0 | N73: 0 | O73: 0 | P73: 0 | Q73: 0 | R73: 0
L74: 0 | M74: 0 | N74: 0 | O74: 0 | P74: 0 | Q74: 0 | R74: 0
L75: 0 | M75: =F75*$H$4 -> 0 | N75: =G75*$H$4 -> 0 | O75: =H75*$H$4 -> 0 | P75: =$F75*$H$5 -> 0 | Q75: =$G75*$H$5 -> 0 | R75: =H75*$H$5 -> 0
L76: =A76 -> 0 | M76: 0 | N76: 0 | O76: 0 | P76: 0 | Q76: 0 | R76: 0
L77: 0 | M77: 0 | N77: 0 | O77: 0 | P77: 0 | Q77: 0 | R77: 0
L78: 0 | M78: 0 | N78: 0 | O78: 0 | P78: 0 | Q78: 0 | R78: 0
L79: 0 | M79: 0 | N79: 0 | O79: 0 | P79: 0 | Q79: 0 | R79: 0
L80: 0 | M80: 0 | N80: 0 | O80: 0 | P80: 0 | Q80: 0 | R80: 0
L81: 0 | M81: 0 | N81: 0 | O81: 0 | P81: 0 | Q81: 0 | R81: 0
L82: 0 | M82: 0 | N82: 0 | O82: 0 | P82: 0 | Q82: 0 | R82: 0
L83: 0 | M83: 0 | N83: 0 | O83: 0 | P83: 0 | Q83: 0 | R83: 0
L84: 0 | M84: 0 | N84: 0 | O84: 0 | P84: 0 | Q84: 0 | R84: 0
L85: 0 | M85: 0 | N85: 0 | O85: 0 | P85: 0 | Q85: 0 | R85: 0
L86: 0 | M86: 0 | N86: 0 | O86: 0 | P86: 0 | Q86: 0 | R86: 0
L87: 0 | M87: 0 | N87: 0 | O87: 0 | P87: 0 | Q87: 0 | R87: 0
L88: 0 | M88: 0 | N88: 0 | O88: 0 | P88: 0 | Q88: 0 | R88: 0
L89: 0 | M89: 0 | N89: 0 | O89: 0 | P89: 0 | Q89: 0 | R89: 0
L90: 0 | M90: 0 | N90: 0 | O90: 0 | P90: 0 | Q90: 0 | R90: 0
L91: 0 | M91: 0 | N91: 0 | O91: 0 | P91: 0 | Q91: 0 | R91: 0
L92: 0 | M92: 0 | N92: 0 | O92: 0 | P92: 0 | Q92: 0 | R92: 0
L93: 0 | M93: 0 | N93: 0 | O93: 0 | P93: 0 | Q93: 0 | R93: 0
L94: 0 | M94: 0 | N94: 0 | O94: 0 | P94: 0 | Q94: 0 | R94: 0
L95: 0 | M95: 0 | N95: 0 | O95: 0 | P95: 0 | Q95: 0 | R95: 0

Sheet GPS_IMPORT
A1: NAME | B1: Date | C1: Time | D1: Northing | E1: Easting | F1: Elevation | G1: Code | I1: GPS Import Settings
A2: 50 | B2: 07.06.2021 | C2: 08:57:37 | D2: 747927.4197 | E2: 1642284.648 | F2: 627.2773 | G2: IPS | I2: Import | J2: Ground Coord? | K2: FALSE | L2: Factor
A3: 50 | B3: 07.06.2021 | C3: 08:59:04 | D3: 747927.4385 | E3: 1642284.657 | F3: 627.2678 | G3: IPS | J3: Units | K3: Short Unit | L3: =K4&"->"&K6 -> sft->sft
A4: 50 | B4: 07.06.2021 | C4: 09:00:10 | D4: 747927.4175 | E4: 1642284.674 | F4: 627.303 | G4: IPS | J4: U.S. Survey FT | K4: =INDEX(ShortUnits,MATCH(GPS_IMPORT!$J$4,Units,0),1) -> sft
A5: 50 | B5: 07.06.2021 | C5: 09:01:12 | D5: 747927.3959 | E5: 1642284.647 | F5: 627.2888 | G5: IPS
A6: 50 | B6: 07.06.2021 | C6: 13:20:33 | D6: 747927.2336 | E6: 1642284.68 | F6: 627.3285 | G6: IPS | I6: Output | J6: U.S. Survey FT | K6: =INDEX(ShortUnits,MATCH(GPS_IMPORT!$J$6,Units,0),1) -> sft | L6: =INDEX(FactorValues,MATCH(L3,FactorNames,0)) -> 1
A7: 50 | B7: 07.06.2021 | C7: 13:22:21 | D7: 747927.291 | E7: 1642284.691 | F7: 627.4091 | G7: IPS
A8: 50 | B8: 07.06.2021 | C8: 13:23:19 | D8: 747927.2948 | E8: 1642284.656 | F8: 627.4384 | G8: IPS
A9: 50 | B9: 07.06.2021 | C9: 13:24:23 | D9: 747927.3007 | E9: 1642284.675 | F9: 627.4307 | G9: IPS
A10: 50 | B10: 07.06.2021 | C10: 13:25:40 | D10: 747927.3035 | E10: 1642284.679 | F10: 627.3789 | G10: IPS
A11: 50 | B11: 07.06.2021 | C11: 13:26:46 | D11: 747927.337 | E11: 1642284.661 | F11: 627.3842 | G11: IPS
A12: 50 | B12: 07.06.2021 | C12: 13:41:44 | D12: 747927.3512 | E12: 1642284.687 | F12: 627.2028 | G12: IPS
A13: 50 | B13: 07.06.2021 | C13: 13:42:21 | D13: 747927.3611 | E13: 1642284.688 | F13: 627.2338 | G13: IPS
A14: 51 | B14: 07.06.2021 | C14: 09:11:26 | D14: 748313.2926 | E14: 1642208.612 | F14: 632.9214 | G14: IPS
A15: 51 | B15: 07.06.2021 | C15: 09:12:16 | D15: 748313.2694 | E15: 1642208.619 | F15: 632.8348 | G15: IPS
A16: 51 | B16: 07.06.2021 | C16: 09:13:01 | D16: 748313.2792 | E16: 1642208.602 | F16: 632.8496 | G16: IPS
A17: 51 | B17: 07.06.2021 | C17: 09:14:07 | D17: 748313.2609 | E17: 1642208.609 | F17: 632.837 | G17: IPS
A18: 51 | B18: 07.06.2021 | C18: 13:12:07 | D18: 748313.2144 | E18: 1642208.633 | F18: 632.9759 | G18: IPS
A19: 51 | B19: 07.06.2021 | C19: 13:13:06 | D19: 748313.1816 | E19: 1642208.616 | F19: 632.9513 | G19: IPS
A20: 51 | B20: 07.06.2021 | C20: 13:14:07 | D20: 748313.1552 | E20: 1642208.636 | F20: 632.9331 | G20: IPS
A21: 51 | B21: 07.06.2021 | C21: 13:15:50 | D21: 748313.1968 | E21: 1642208.624 | F21: 632.934 | G21: IPS
A22: 51 | B22: 07.06.2021 | C22: 13:16:54 | D22: 748313.2003 | E22: 1642208.615 | F22: 633.0114 | G22: IPS
A23: 51 | B23: 07.06.2021 | C23: 13:17:59 | D23: 748313.174 | E23: 1642208.621 | F23: 633.0158 | G23: IPS
A24: 51 | B24: 07.06.2021 | C24: 13:48:07 | D24: 748313.2022 | E24: 1642208.642 | F24: 633.0026 | G24: IPS
A25: 51 | B25: 07.06.2021 | C25: 13:48:50 | D25: 748313.2221 | E25: 1642208.655 | F25: 632.9757 | G25: IPS
A26: 52 | B26: 07.06.2021 | C26: 09:20:12 | D26: 748574.4745 | E26: 1642379.821 | F26: 643.0625 | G26: IPS
A27: 52 | B27: 07.06.2021 | C27: 09:21:06 | D27: 748574.4796 | E27: 1642379.836 | F27: 643.0787 | G27: IPS
A28: 52 | B28: 07.06.2021 | C28: 09:22:48 | D28: 748574.4735 | E28: 1642379.846 | F28: 643.07 | G28: IPS
A29: 52 | B29: 07.06.2021 | C29: 09:23:35 | D29: 748574.4466 | E29: 1642379.854 | F29: 643.0571 | G29: IPS
A30: 52 | B30: 07.06.2021 | C30: 13:30:00 | D30: 748574.4005 | E30: 1642379.873 | F30: 643.1821 | G30: IPS
A31: 52 | B31: 07.06.2021 | C31: 13:31:11 | D31: 748574.3872 | E31: 1642379.874 | F31: 643.0915 | G31: IPS
A32: 52 | B32: 07.06.2021 | C32: 13:32:42 | D32: 748574.4042 | E32: 1642379.882 | F32: 643.0731 | G32: IPS
A33: 52 | B33: 07.06.2021 | C33: 13:34:04 | D33: 748574.3912 | E33: 1642379.894 | F33: 643.1319 | G33: IPS
A34: 52 | B34: 07.06.2021 | C34: 13:35:19 | D34: 748574.3657 | E34: 1642379.882 | F34: 643.0942 | G34: IPS
A35: 52 | B35: 07.06.2021 | C35: 13:36:13 | D35: 748574.3901 | E35: 1642379.873 | F35: 643.0915 | G35: IPS
A36: 52 | B36: 07.06.2021 | C36: 13:37:19 | D36: 748574.4079 | E36: 1642379.884 | F36: 643.1546 | G36: IPS
A37: 52 | B37: 07.06.2021 | C37: 13:38:18 | D37: 748574.3905 | E37: 1642379.901 | F37: 643.166 | G37: IPS
A38: 53 | B38: 07.06.2021 | C38: 09:33:32 | D38: 748684.542 | E38: 1642191.68 | F38: 644.4957 | G38: IPS
A39: 53 | B39: 07.06.2021 | C39: 09:35:33 | D39: 748684.519 | E39: 1642191.666 | F39: 644.4834 | G39: IPS
A40: 53 | B40: 07.06.2021 | C40: 09:37:36 | D40: 748684.4997 | E40: 1642191.667 | F40: 644.5456 | G40: IPS
A41: 53 | B41: 07.06.2021 | C41: 09:38:35 | D41: 748684.5561 | E41: 1642191.711 | F41: 644.5006 | G41: IPS
A42: 53 | B42: 07.06.2021 | C42: 12:53:44 | D42: 748684.496 | E42: 1642191.652 | F42: 644.5393 | G42: IPS
A43: 53 | B43: 07.06.2021 | C43: 12:54:49 | D43: 748684.5043 | E43: 1642191.651 | F43: 644.5915 | G43: IPS
A44: 53 | B44: 07.06.2021 | C44: 12:55:45 | D44: 748684.5076 | E44: 1642191.683 | F44: 644.5637 | G44: IPS
A45: 53 | B45: 07.06.2021 | C45: 14:00:59 | D45: 748684.5126 | E45: 1642191.672 | F45: 644.6126 | G45: IPS
A46: 53 | B46: 07.06.2021 | C46: 14:01:58 | D46: 748684.5214 | E46: 1642191.649 | F46: 644.634 | G46: IPS
A47: 53 | B47: 07.06.2021 | C47: 14:02:56 | D47: 748684.529 | E47: 1642191.651 | F47: 644.5415 | G47: IPS
A48: 53 | B48: 07.06.2021 | C48: 14:04:02 | D48: 748684.5624 | E48: 1642191.663 | F48: 644.4656 | G48: IPS
A49: 53 | B49: 07.06.2021 | C49: 14:05:20 | D49: 748684.5296 | E49: 1642191.652 | F49: 644.489 | G49: IPS
A50: 54 | B50: 07.06.2021 | C50: 09:43:47 | D50: 748616.2756 | E50: 1641773.309 | F50: 642.6238 | G50: IPS
A51: 54 | B51: 07.06.2021 | C51: 09:44:53 | D51: 748616.2849 | E51: 1641773.32 | F51: 642.6175 | G51: IPS
A52: 54 | B52: 07.06.2021 | C52: 09:46:44 | D52: 748616.2775 | E52: 1641773.332 | F52: 642.5759 | G52: IPS
A53: 54 | B53: 07.06.2021 | C53: 09:47:59 | D53: 748616.2589 | E53: 1641773.352 | F53: 642.5879 | G53: IPS
A54: 54 | B54: 07.06.2021 | C54: 13:00:06 | D54: 748616.2008 | E54: 1641773.278 | F54: 642.6864 | G54: IPS
A55: 54 | B55: 07.06.2021 | C55: 13:01:16 | D55: 748616.2435 | E55: 1641773.277 | F55: 642.68 | G55: IPS
A56: 54 | B56: 07.06.2021 | C56: 13:02:22 | D56: 748616.1847 | E56: 1641773.28 | F56: 642.7287 | G56: IPS
A57: 54 | B57: 07.06.2021 | C57: 13:04:18 | D57: 748616.1746 | E57: 1641773.304 | F57: 642.6439 | G57: IPS
A58: 54 | B58: 07.06.2021 | C58: 13:05:17 | D58: 748616.2004 | E58: 1641773.31 | F58: 642.6227 | G58: IPS
A59: 54 | B59: 07.06.2021 | C59: 13:06:15 | D59: 748616.2135 | E59: 1641773.298 | F59: 642.6833 | G59: IPS
A60: 54 | B60: 07.06.2021 | C60: 13:53:10 | D60: 748616.239 | E60: 1641773.309 | F60: 642.6641 | G60: IPS
A61: 54 | B61: 07.06.2021 | C61: 13:53:46 | D61: 748616.2282 | E61: 1641773.322 | F61: 642.6817 | G61: IPS
A62: 55 | B62: 07.06.2021 | C62: 10:02:46 | D62: 748634.4853 | E62: 1643552.512 | F62: 646.9491 | G62: IPS
A63: 55 | B63: 07.06.2021 | C63: 10:03:47 | D63: 748634.4882 | E63: 1643552.491 | F63: 646.9147 | G63: IPS
A64: 55 | B64: 07.06.2021 | C64: 10:05:30 | D64: 748634.5081 | E64: 1643552.453 | F64: 646.8912 | G64: IPS
A65: 55 | B65: 07.06.2021 | C65: 10:06:21 | D65: 748634.5327 | E65: 1643552.416 | F65: 646.9044 | G65: IPS
A66: 55 | B66: 07.06.2021 | C66: 10:07:15 | D66: 748634.5178 | E66: 1643552.445 | F66: 646.8797 | G66: IPS
A67: 55 | B67: 07.06.2021 | C67: 14:39:45 | D67: 748634.5231 | E67: 1643552.423 | F67: 646.9556 | G67: IPS
A68: 55 | B68: 07.06.2021 | C68: 14:40:35 | D68: 748634.5106 | E68: 1643552.48 | F68: 646.9709 | G68: IPS
A69: 55 | B69: 07.06.2021 | C69: 14:41:27 | D69: 748634.5179 | E69: 1643552.488 | F69: 647.0017 | G69: IPS
A70: 55 | B70: 07.06.2021 | C70: 14:42:17 | D70: 748634.5393 | E70: 1643552.505 | F70: 647.008 | G70: IPS
A71: 55 | B71: 07.06.2021 | C71: 14:44:33 | D71: 748634.5108 | E71: 1643552.531 | F71: 646.9605 | G71: IPS
A72: 55 | B72: 07.06.2021 | C72: 14:45:47 | D72: 748634.563 | E72: 1643552.526 | F72: 646.8594 | G72: IPS
A73: 55 | B73: 07.06.2021 | C73: 14:46:41 | D73: 748634.5054 | E73: 1643552.521 | F73: 646.8471 | G73: IPS
A74: 55 | B74: 07.06.2021 | C74: 14:47:31 | D74: 748634.499 | E74: 1643552.493 | F74: 646.7859 | G74: IPS
A75: 56 | B75: 07.06.2021 | C75: 10:09:18 | D75: 748859.2699 | E75: 1643564.151 | F75: 644.7948 | G75: IPS
A76: 56 | B76: 07.06.2021 | C76: 10:10:17 | D76: 748859.2832 | E76: 1643564.159 | F76: 644.8667 | G76: IPS
A77: 56 | B77: 07.06.2021 | C77: 10:11:21 | D77: 748859.3186 | E77: 1643564.159 | F77: 644.7949 | G77: IPS
A78: 56 | B78: 07.06.2021 | C78: 10:12:29 | D78: 748859.3211 | E78: 1643564.184 | F78: 644.8365 | G78: IPS
A79: 56 | B79: 07.06.2021 | C79: 14:52:04 | D79: 748859.3034 | E79: 1643564.191 | F79: 644.8808 | G79: IPS
A80: 56 | B80: 07.06.2021 | C80: 14:53:12 | D80: 748859.2431 | E80: 1643564.189 | F80: 644.9015 | G80: IPS
A81: 56 | B81: 07.06.2021 | C81: 14:54:05 | D81: 748859.2387 | E81: 1643564.191 | F81: 644.9102 | G81: IPS
A82: 56 | B82: 07.06.2021 | C82: 14:54:59 | D82: 748859.2268 | E82: 1643564.191 | F82: 644.8378 | G82: IPS
A83: 56 | B83: 07.06.2021 | C83: 14:57:18 | D83: 748859.2103 | E83: 1643564.194 | F83: 644.8268 | G83: IPS
A84: 56 | B84: 07.06.2021 | C84: 14:58:22 | D84: 748859.1559 | E84: 1643564.204 | F84: 644.8044 | G84: IPS
A85: 56 | B85: 07.06.2021 | C85: 14:59:11 | D85: 748859.1953 | E85: 1643564.229 | F85: 644.7876 | G85: IPS
A86: 56 | B86: 07.06.2021 | C86: 15:00:07 | D86: 748859.2357 | E86: 1643564.206 | F86: 644.8865 | G86: IPS
A87: 57 | B87: 07.06.2021 | C87: 10:27:08 | D87: 748660.8593 | E87: 1642783.382 | F87: 639.6324 | G87: IPS
A88: 57 | B88: 07.06.2021 | C88: 10:27:56 | D88: 748660.8589 | E88: 1642783.358 | F88: 639.6092 | G88: IPS
A89: 57 | B89: 07.06.2021 | C89: 10:28:49 | D89: 748660.8531 | E89: 1642783.361 | F89: 639.6284 | G89: IPS
A90: 57 | B90: 07.06.2021 | C90: 10:29:41 | D90: 748660.8472 | E90: 1642783.343 | F90: 639.6147 | G90: IPS
A91: 57 | B91: 07.06.2021 | C91: 14:09:14 | D91: 748660.8659 | E91: 1642783.334 | F91: 639.7991 | G91: IPS
A92: 57 | B92: 07.06.2021 | C92: 14:10:26 | D92: 748660.8902 | E92: 1642783.303 | F92: 639.7082 | G92: IPS
A93: 57 | B93: 07.06.2021 | C93: 14:11:30 | D93: 748660.8636 | E93: 1642783.331 | F93: 639.6887 | G93: IPS
A94: 57 | B94: 07.06.2021 | C94: 14:12:40 | D94: 748660.8747 | E94: 1642783.337 | F94: 639.6141 | G94: IPS
A95: 57 | B95: 07.06.2021 | C95: 14:29:59 | D95: 748660.9016 | E95: 1642783.335 | F95: 639.5417 | G95: IPS
A96: 57 | B96: 07.06.2021 | C96: 14:31:07 | D96: 748660.8994 | E96: 1642783.333 | F96: 639.5755 | G96: IPS
A97: 57 | B97: 07.06.2021 | C97: 14:32:09 | D97: 748660.8895 | E97: 1642783.317 | F97: 639.5628 | G97: IPS
A98: 57 | B98: 07.06.2021 | C98: 14:33:30 | D98: 748660.8708 | E98: 1642783.311 | F98: 639.6316 | G98: IPS
A99: 58 | B99: 07.06.2021 | C99: 10:40:14 | D99: 748557.6183 | E99: 1643176.983 | F99: 644.1309 | G99: IPS
A100: 58 | B100: 07.06.2021 | C100: 10:41:32 | D100: 748557.6256 | E100: 1643176.975 | F100: 644.0949 | G100: IPS
A101: 58 | B101: 07.06.2021 | C101: 10:42:22 | D101: 748557.6218 | E101: 1643177 | F101: 644.0984 | G101: IPS
A102: 58 | B102: 07.06.2021 | C102: 10:43:14 | D102: 748557.614 | E102: 1643177 | F102: 644.1207 | G102: IPS
A103: 58 | B103: 07.06.2021 | C103: 14:16:36 | D103: 748557.6259 | E103: 1643176.97 | F103: 644.053 | G103: IPS
A104: 58 | B104: 07.06.2021 | C104: 14:17:52 | D104: 748557.594 | E104: 1643176.983 | F104: 644.1584 | G104: IPS
A105: 58 | B105: 07.06.2021 | C105: 14:18:57 | D105: 748557.6076 | E105: 1643177.011 | F105: 644.0851 | G105: IPS
A106: 58 | B106: 07.06.2021 | C106: 14:19:56 | D106: 748557.5934 | E106: 1643176.974 | F106: 644.081 | G106: IPS
A107: 58 | B107: 07.06.2021 | C107: 14:21:16 | D107: 748557.616 | E107: 1643176.977 | F107: 644.0684 | G107: IPS
A108: 58 | B108: 07.06.2021 | C108: 14:22:09 | D108: 748557.5796 | E108: 1643176.986 | F108: 644.0851 | G108: IPS
A109: 58 | B109: 07.06.2021 | C109: 14:23:22 | D109: 748557.5878 | E109: 1643176.971 | F109: 644.0219 | G109: IPS
A110: 58 | B110: 07.06.2021 | C110: 14:24:36 | D110: 748557.613 | E110: 1643176.961 | F110: 644.0461 | G110: IPS
A111: 59 | B111: 07.06.2021 | C111: 10:53:02 | D111: 748539.8739 | E111: 1643644.001 | F111: 648.6238 | G111: IPS
A112: 59 | B112: 07.06.2021 | C112: 10:54:00 | D112: 748539.9086 | E112: 1643644.013 | F112: 648.6439 | G112: IPS
A113: 59 | B113: 07.06.2021 | C113: 10:54:49 | D113: 748539.9296 | E113: 1643644.044 | F113: 648.6073 | G113: IPS
A114: 59 | B114: 07.06.2021 | C114: 10:55:51 | D114: 748539.8502 | E114: 1643644.004 | F114: 648.5953 | G114: IPS
A115: 59 | B115: 07.06.2021 | C115: 15:03:16 | D115: 748539.9084 | E115: 1643644.016 | F115: 648.6998 | G115: IPS
A116: 59 | B116: 07.06.2021 | C116: 15:04:15 | D116: 748539.8759 | E116: 1643643.992 | F116: 648.7122 | G116: IPS
A117: 59 | B117: 07.06.2021 | C117: 15:05:03 | D117: 748539.8888 | E117: 1643643.999 | F117: 648.664 | G117: IPS
A118: 59 | B118: 07.06.2021 | C118: 15:06:01 | D118: 748539.9036 | E118: 1643643.976 | F118: 648.6739 | G118: IPS
A119: 59 | B119: 07.06.2021 | C119: 15:07:06 | D119: 748539.9561 | E119: 1643643.961 | F119: 648.778 | G119: IPS
A120: 59 | B120: 07.06.2021 | C120: 15:07:59 | D120: 748539.9612 | E120: 1643643.985 | F120: 648.8441 | G120: IPS
A121: 59 | B121: 07.06.2021 | C121: 15:08:52 | D121: 748539.9465 | E121: 1643643.997 | F121: 648.8186 | G121: IPS
A122: 59 | B122: 07.06.2021 | C122: 15:09:45 | D122: 748539.9562 | E122: 1643644.049 | F122: 648.7231 | G122: IPS
A123: 60 | B123: 07.06.2021 | C123: 11:06:25 | D123: 748597.3073 | E123: 1644244.875 | F123: 651.1043 | G123: IPS
A124: 60 | B124: 07.06.2021 | C124: 11:07:21 | D124: 748597.3111 | E124: 1644244.847 | F124: 651.0986 | G124: IPS
A125: 60 | B125: 07.06.2021 | C125: 11:08:16 | D125: 748597.2751 | E125: 1644244.858 | F125: 651.1319 | G125: IPS
A126: 60 | B126: 07.06.2021 | C126: 11:09:19 | D126: 748597.2992 | E126: 1644244.873 | F126: 651.117 | G126: IPS
A127: 60 | B127: 07.06.2021 | C127: 15:14:26 | D127: 748597.3405 | E127: 1644244.87 | F127: 651.1288 | G127: IPS
A128: 60 | B128: 07.06.2021 | C128: 15:15:20 | D128: 748597.3083 | E128: 1644244.891 | F128: 651.097 | G128: IPS
A129: 60 | B129: 07.06.2021 | C129: 15:16:27 | D129: 748597.3721 | E129: 1644244.865 | F129: 651.0944 | G129: IPS
A130: 60 | B130: 07.06.2021 | C130: 15:17:38 | D130: 748597.4321 | E130: 1644244.869 | F130: 651.1937 | G130: IPS
A131: 60 | B131: 07.06.2021 | C131: 15:19:14 | D131: 748597.3619 | E131: 1644244.892 | F131: 651.2446 | G131: IPS
A132: 60 | B132: 07.06.2021 | C132: 15:20:10 | D132: 748597.32 | E132: 1644244.887 | F132: 651.2309 | G132: IPS
A133: 60 | B133: 07.06.2021 | C133: 15:21:09 | D133: 748597.3579 | E133: 1644244.868 | F133: 651.3201 | G133: IPS
A134: 60 | B134: 07.06.2021 | C134: 15:22:06 | D134: 748597.3834 | E134: 1644244.879 | F134: 651.2353 | G134: IPS
A135: 61 | B135: 07.06.2021 | C135: 11:18:56 | D135: 748592.1275 | E135: 1644625.607 | F135: 647.7504 | G135: IPS
A136: 61 | B136: 07.06.2021 | C136: 11:20:17 | D136: 748592.1293 | E136: 1644625.594 | F136: 647.7849 | G136: IPS
A137: 61 | B137: 07.06.2021 | C137: 11:21:06 | D137: 748592.1322 | E137: 1644625.569 | F137: 647.7927 | G137: IPS
A138: 61 | B138: 07.06.2021 | C138: 11:21:59 | D138: 748592.1386 | E138: 1644625.602 | F138: 647.7514 | G138: IPS
A139: 61 | B139: 07.06.2021 | C139: 15:26:28 | D139: 748592.1317 | E139: 1644625.556 | F139: 647.8065 | G139: IPS
A140: 61 | B140: 07.06.2021 | C140: 15:27:25 | D140: 748592.1617 | E140: 1644625.565 | F140: 647.7788 | G140: IPS
A141: 61 | B141: 07.06.2021 | C141: 15:28:25 | D141: 748592.1268 | E141: 1644625.617 | F141: 647.7661 | G141: IPS
A142: 61 | B142: 07.06.2021 | C142: 15:29:25 | D142: 748592.1448 | E142: 1644625.604 | F142: 647.7763 | G142: IPS
A143: 61 | B143: 07.06.2021 | C143: 15:30:35 | D143: 748592.1872 | E143: 1644625.607 | F143: 647.6656 | G143: IPS
A144: 61 | B144: 07.06.2021 | C144: 15:31:27 | D144: 748592.1666 | E144: 1644625.598 | F144: 647.6191 | G144: IPS
A145: 61 | B145: 07.06.2021 | C145: 15:32:14 | D145: 748592.1821 | E145: 1644625.58 | F145: 647.6752 | G145: IPS
A146: 61 | B146: 07.06.2021 | C146: 15:33:10 | D146: 748592.1996 | E146: 1644625.546 | F146: 647.5984 | G146: IPS
A147: 62 | B147: 07.06.2021 | C147: 11:26:52 | D147: 748614.7122 | E147: 1645078.897 | F147: 646.0567 | G147: IPS
A148: 62 | B148: 07.06.2021 | C148: 11:27:47 | D148: 748614.7093 | E148: 1645078.892 | F148: 646.0288 | G148: IPS
A149: 62 | B149: 07.06.2021 | C149: 11:28:34 | D149: 748614.697 | E149: 1645078.873 | F149: 646.0035 | G149: IPS
A150: 62 | B150: 07.06.2021 | C150: 11:30:20 | D150: 748614.7324 | E150: 1645078.894 | F150: 646.0014 | G150: IPS
A151: 62 | B151: 07.06.2021 | C151: 15:49:40 | D151: 748614.6579 | E151: 1645078.92 | F151: 646.1928 | G151: IPS
A152: 62 | B152: 07.06.2021 | C152: 15:50:42 | D152: 748614.6906 | E152: 1645078.886 | F152: 646.1442 | G152: IPS
A153: 62 | B153: 07.06.2021 | C153: 15:51:42 | D153: 748614.6924 | E153: 1645078.886 | F153: 646.1073 | G153: IPS
A154: 62 | B154: 07.06.2021 | C154: 15:52:47 | D154: 748614.7049 | E154: 1645078.855 | F154: 646.0972 | G154: IPS
A155: 62 | B155: 07.06.2021 | C155: 15:54:38 | D155: 748614.7277 | E155: 1645078.856 | F155: 646.0894 | G155: IPS
A156: 62 | B156: 07.06.2021 | C156: 15:55:39 | D156: 748614.6916 | E156: 1645078.887 | F156: 646.1028 | G156: IPS
A157: 62 | B157: 07.06.2021 | C157: 15:56:30 | D157: 748614.6962 | E157: 1645078.916 | F157: 646.1007 | G157: IPS
A158: 62 | B158: 07.06.2021 | C158: 15:57:38 | D158: 748614.6855 | E158: 1645078.914 | F158: 646.063 | G158: IPS
A159: 63 | B159: 07.06.2021 | C159: 11:42:29 | D159: 749080.9326 | E159: 1645044.212 | F159: 649.5024 | G159: IPS
A160: 63 | B160: 07.06.2021 | C160: 11:43:16 | D160: 749080.8947 | E160: 1645044.199 | F160: 649.606 | G160: IPS
A161: 63 | B161: 07.06.2021 | C161: 11:44:11 | D161: 749080.8978 | E161: 1645044.219 | F161: 649.6096 | G161: IPS
A162: 63 | B162: 07.06.2021 | C162: 11:45:00 | D162: 749080.8982 | E162: 1645044.23 | F162: 649.5485 | G162: IPS
A163: 63 | B163: 07.06.2021 | C163: 15:36:59 | D163: 749080.9679 | E163: 1645044.085 | F163: 649.7874 | G163: IPS
A164: 63 | B164: 07.06.2021 | C164: 15:38:01 | D164: 749080.9471 | E164: 1645044.151 | F164: 649.7987 | G164: IPS
A165: 63 | B165: 07.06.2021 | C165: 15:38:56 | D165: 749080.9106 | E165: 1645044.203 | F165: 649.7973 | G165: IPS
A166: 63 | B166: 07.06.2021 | C166: 15:40:04 | D166: 749080.9366 | E166: 1645044.23 | F166: 649.7656 | G166: IPS
A167: 63 | B167: 07.06.2021 | C167: 15:41:11 | D167: 749080.9301 | E167: 1645044.255 | F167: 649.6727 | G167: IPS
A168: 63 | B168: 07.06.2021 | C168: 15:42:06 | D168: 749080.8996 | E168: 1645044.233 | F168: 649.6052 | G168: IPS
A169: 63 | B169: 07.06.2021 | C169: 15:42:54 | D169: 749080.8804 | E169: 1645044.259 | F169: 649.5694 | G169: IPS
A170: 63 | B170: 07.06.2021 | C170: 15:43:49 | D170: 749080.9196 | E170: 1645044.237 | F170: 649.5796 | G170: IPS
A171: 64 | B171: 07.06.2021 | C171: 11:54:38 | D171: 748775.2625 | E171: 1645625.51 | F171: 650.2274 | G171: IPS
A172: 64 | B172: 07.06.2021 | C172: 11:55:58 | D172: 748775.2479 | E172: 1645625.52 | F172: 650.1952 | G172: IPS
A173: 64 | B173: 07.06.2021 | C173: 11:56:49 | D173: 748775.2525 | E173: 1645625.522 | F173: 650.2035 | G173: IPS
A174: 64 | B174: 07.06.2021 | C174: 11:57:46 | D174: 748775.2465 | E174: 1645625.541 | F174: 650.1634 | G174: IPS
A175: 64 | B175: 07.06.2021 | C175: 16:01:45 | D175: 748775.3017 | E175: 1645625.538 | F175: 650.2101 | G175: IPS
A176: 64 | B176: 07.06.2021 | C176: 16:03:05 | D176: 748775.308 | E176: 1645625.511 | F176: 650.1826 | G176: IPS
A177: 64 | B177: 07.06.2021 | C177: 16:04:06 | D177: 748775.3262 | E177: 1645625.515 | F177: 650.1402 | G177: IPS
A178: 64 | B178: 07.06.2021 | C178: 16:05:02 | D178: 748775.3178 | E178: 1645625.493 | F178: 650.1312 | G178: IPS
A179: 64 | B179: 07.06.2021 | C179: 16:06:46 | D179: 748775.2874 | E179: 1645625.47 | F179: 650.1567 | G179: IPS
A180: 64 | B180: 07.06.2021 | C180: 16:08:01 | D180: 748775.2636 | E180: 1645625.452 | F180: 650.1617 | G180: IPS
A181: 64 | B181: 07.06.2021 | C181: 16:08:58 | D181: 748775.2906 | E181: 1645625.447 | F181: 650.1646 | G181: IPS
A182: 64 | B182: 07.06.2021 | C182: 16:09:56 | D182: 748775.2753 | E182: 1645625.482 | F182: 650.2219 | G182: IPS
A183: 65 | B183: 07.06.2021 | C183: 12:06:53 | D183: 748309.8613 | E183: 1645018.749 | F183: 643.6996 | G183: IPS
A184: 65 | B184: 07.06.2021 | C184: 12:07:45 | D184: 748309.8301 | E184: 1645018.736 | F184: 643.7458 | G184: IPS
A185: 65 | B185: 07.06.2021 | C185: 12:09:04 | D185: 748309.8206 | E185: 1645018.754 | F185: 643.7655 | G185: IPS
A186: 65 | B186: 07.06.2021 | C186: 12:09:57 | D186: 748309.8734 | E186: 1645018.768 | F186: 643.7688 | G186: IPS
A187: 65 | B187: 07.06.2021 | C187: 16:16:23 | D187: 748309.7887 | E187: 1645018.754 | F187: 643.7797 | G187: IPS
A188: 65 | B188: 07.06.2021 | C188: 16:17:08 | D188: 748309.7905 | E188: 1645018.783 | F188: 643.8132 | G188: IPS
A189: 65 | B189: 07.06.2021 | C189: 16:18:12 | D189: 748309.782 | E189: 1645018.73 | F189: 643.8339 | G189: IPS
A190: 65 | B190: 07.06.2021 | C190: 16:19:12 | D190: 748309.8047 | E190: 1645018.754 | F190: 643.8273 | G190: IPS
A191: 65 | B191: 07.06.2021 | C191: 16:20:23 | D191: 748309.8547 | E191: 1645018.828 | F191: 643.7458 | G191: IPS
A192: 65 | B192: 07.06.2021 | C192: 16:21:29 | D192: 748309.8577 | E192: 1645018.828 | F192: 643.7636 | G192: IPS
A193: 65 | B193: 07.06.2021 | C193: 16:22:19 | D193: 748309.9046 | E193: 1645018.788 | F193: 643.7219 | G193: IPS
A194: 65 | B194: 07.06.2021 | C194: 16:23:15 | D194: 748309.8652 | E194: 1645018.767 | F194: 643.7573 | G194: IPS
A195: 66 | B195: 07.06.2021 | C195: 12:21:05 | D195: 747995.9441 | E195: 1645239.642 | F195: 646.8608 | G195: IPS
A196: 66 | B196: 07.06.2021 | C196: 12:21:58 | D196: 747995.9475 | E196: 1645239.617 | F196: 646.8438 | G196: IPS
A197: 66 | B197: 07.06.2021 | C197: 12:22:53 | D197: 747995.9282 | E197: 1645239.626 | F197: 646.8121 | G197: IPS
A198: 66 | B198: 07.06.2021 | C198: 12:23:50 | D198: 747995.9044 | E198: 1645239.622 | F198: 646.8626 | G198: IPS
A199: 66 | B199: 07.06.2021 | C199: 16:26:40 | D199: 747995.9408 | E199: 1645239.703 | F199: 646.7406 | G199: IPS
A200: 66 | B200: 07.06.2021 | C200: 16:27:43 | D200: 747995.8922 | E200: 1645239.68 | F200: 646.776 | G200: IPS
... 427 more rows

Sheet PointTemplate
A1: VRS GNSS Project Control Monument Coordinate Analysis
A3: Project: | B3: =REPORT!B2 -> LUC-23-11.75 | D3: GPS Antenna: | E3: =REPORT!A41 -> Trimble R6 | I3: Report Date: | J3: =REPORT!C49 -> 2021-07-22
A4: PID: | B4: =REPORT!E2 -> 105889 | D4: VRS Network: | E4: ODOT VRS | I4: Prepared By: | J4: =REPORT!C48 -> TK/DCK
A5: Point ID: | C5: No. of Sessions: | D5: =COUNTIF(GPS_IMPORT!A2:A1000,$B$5) -> 0 | E5: =IF(GPS_IMPORT!K2="TRUE","(GROUND)","(GRID)") -> (GRID) | I5: Checked By: | J5: =REPORT!C52 -> DCK/JS/MDH
A6: SESSION # | B6: Point | C6: Observation Date | D6: Start Time | E6: ="Northing("&GPS_IMPORT!K4&")" -> Northing(sft) | F6: ="Easting("&GPS_IMPORT!K4&")" -> Easting(sft) | G6: ="Height("&GPS_IMPORT!K4&")" -> Height(sft) | H6: ="∆ Northing("&GPS_IMPORT!K4&")" -> ∆ Northing(sft) | I6: ="∆ Easting("&GPS_IMPORT!K4&")" -> ∆ Easting(sft) | J6: ="∆ Height("&GPS_IMPORT!K4&")" -> ∆ Height(sft) | K6: Include in Solution?
A7: 1 | B7: =IF(ROWS(GPS_IMPORT!$1:1)<=COUNTIF(GPS_IMPORT!$A$2:$A$10000,$B$5),INDEX(GPS_IMPORT!$2:$10000,MATCH($B$5,(GPS_IMPORT!$A$2:$A$10000),0)+ROWS($1:1)-1,COLUMN()-1),0) -> 0 | C7: =IF(ROWS(GPS_IMPORT!$1:1)<=COUNTIF(GPS_IMPORT!$A$2:$A$10000,$B$5),INDEX(GPS_IMPORT!$2:$10000,MATCH($B$5,(GPS_IMPORT!$A$2:$A$10000),0)+ROWS($1:1)-1,COLUMN()-1),0) -> 00:00:00 | D7: =IF(ROWS(GPS_IMPORT!$1:1)<=COUNTIF(GPS_IMPORT!$A$2:$A$10000,$B$5),INDEX(GPS_IMPORT!$2:$10000,MATCH($B$5,(GPS_IMPORT!$A$2:$A$10000),0)+ROWS($1:1)-1,COLUMN()-1),0) -> 00:00:00 | E7: =IF(ROWS(GPS_IMPORT!$1:1)<=COUNTIF(GPS_IMPORT!$A$2:$A$10000,$B$5),INDEX(GPS_IMPORT!$2:$10000,MATCH($B$5,(GPS_IMPORT!$A$2:$A$10000),0)+ROWS($1:1)-1,COLUMN()-1),0) -> 0 | F7: =IF(ROWS(GPS_IMPORT!$1:1)<=COUNTIF(GPS_IMPORT!$A$2:$A$10000,$B$5),INDEX(GPS_IMPORT!$2:$10000,MATCH($B$5,(GPS_IMPORT!$A$2:$A$10000),0)+ROWS($1:1)-1,COLUMN()-1),0) -> 0 | G7: =IF(ROWS(GPS_IMPORT!$1:1)<=COUNTIF(GPS_IMPORT!$A$2:$A$10000,$B$5),INDEX(GPS_IMPORT!$2:$10000,MATCH($B$5,(GPS_IMPORT!$A$2:$A$10000),0)+ROWS($1:1)-1,COLUMN()-1),0) -> 0 | H7: =IF(K7=TRUE,IF(E7>0,E$22-E7,0),0) -> 0 | I7: =IF(K7=TRUE,IF(F7>0,F$22-F7,0),0) -> 0 | J7: =IF(K7=TRUE,IF(G7>0,G$22-G7,0),0) -> 0 | K7: TRUE | L7: =IF(OR(ABS(H7)>$H$24,ABS(I7)>$H$24,ABS(SQRT((H7^2)+(I7^2)))>$H$24),IF(K7=TRUE,IF(E7>0,E$22-E7,0),0),0) -> 0 | M7: =IF(OR(ABS(H7)>$H$24,ABS(I7)>$H$24,ABS(SQRT((H7^2)+(I7^2)))>$H$24),IF(K7=TRUE,IF(E7>0,F$22-F7,0),0),0) -> 0
A8: 2 | B8: =IF(ROWS(GPS_IMPORT!$1:2)<=COUNTIF(GPS_IMPORT!$A$2:$A$10000,$B$5),INDEX(GPS_IMPORT!$2:$10000,MATCH($B$5,(GPS_IMPORT!$A$2:$A$10000),0)+ROWS($1:2)-1,COLUMN()-1),0) -> 0 | C8: =IF(ROWS(GPS_IMPORT!$1:2)<=COUNTIF(GPS_IMPORT!$A$2:$A$10000,$B$5),INDEX(GPS_IMPORT!$2:$10000,MATCH($B$5,(GPS_IMPORT!$A$2:$A$10000),0)+ROWS($1:2)-1,COLUMN()-1),0) -> 00:00:00 | D8: =IF(ROWS(GPS_IMPORT!$1:2)<=COUNTIF(GPS_IMPORT!$A$2:$A$10000,$B$5),INDEX(GPS_IMPORT!$2:$10000,MATCH($B$5,(GPS_IMPORT!$A$2:$A$10000),0)+ROWS($1:2)-1,COLUMN()-1),0) -> 00:00:00 | E8: =IF(ROWS(GPS_IMPORT!$1:2)<=COUNTIF(GPS_IMPORT!$A$2:$A$10000,$B$5),INDEX(GPS_IMPORT!$2:$10000,MATCH($B$5,(GPS_IMPORT!$A$2:$A$10000),0)+ROWS($1:2)-1,COLUMN()-1),0) -> 0 | F8: =IF(ROWS(GPS_IMPORT!$1:2)<=COUNTIF(GPS_IMPORT!$A$2:$A$10000,$B$5),INDEX(GPS_IMPORT!$2:$10000,MATCH($B$5,(GPS_IMPORT!$A$2:$A$10000),0)+ROWS($1:2)-1,COLUMN()-1),0) -> 0 | G8: =IF(ROWS(GPS_IMPORT!$1:2)<=COUNTIF(GPS_IMPORT!$A$2:$A$10000,$B$5),INDEX(GPS_IMPORT!$2:$10000,MATCH($B$5,(GPS_IMPORT!$A$2:$A$10000),0)+ROWS($1:2)-1,COLUMN()-1),0) -> 0 | H8: =IF(K8=TRUE,IF(E8>0,E$22-E8,0),0) -> 0 | I8: =IF(K8=TRUE,IF(F8>0,F$22-F8,0),0) -> 0 | J8: =IF(K8=TRUE,IF(G8>0,G$22-G8,0),0) -> 0 | K8: TRUE | L8: 0 | M8: 0
A9: 3 | B9: =IF(ROWS(GPS_IMPORT!$1:3)<=COUNTIF(GPS_IMPORT!$A$2:$A$10000,$B$5),INDEX(GPS_IMPORT!$2:$10000,MATCH($B$5,(GPS_IMPORT!$A$2:$A$10000),0)+ROWS($1:3)-1,COLUMN()-1),0) -> 0 | C9: =IF(ROWS(GPS_IMPORT!$1:3)<=COUNTIF(GPS_IMPORT!$A$2:$A$10000,$B$5),INDEX(GPS_IMPORT!$2:$10000,MATCH($B$5,(GPS_IMPORT!$A$2:$A$10000),0)+ROWS($1:3)-1,COLUMN()-1),0) -> 00:00:00 | D9: =IF(ROWS(GPS_IMPORT!$1:3)<=COUNTIF(GPS_IMPORT!$A$2:$A$10000,$B$5),INDEX(GPS_IMPORT!$2:$10000,MATCH($B$5,(GPS_IMPORT!$A$2:$A$10000),0)+ROWS($1:3)-1,COLUMN()-1),0) -> 00:00:00 | E9: =IF(ROWS(GPS_IMPORT!$1:3)<=COUNTIF(GPS_IMPORT!$A$2:$A$10000,$B$5),INDEX(GPS_IMPORT!$2:$10000,MATCH($B$5,(GPS_IMPORT!$A$2:$A$10000),0)+ROWS($1:3)-1,COLUMN()-1),0) -> 0 | F9: =IF(ROWS(GPS_IMPORT!$1:3)<=COUNTIF(GPS_IMPORT!$A$2:$A$10000,$B$5),INDEX(GPS_IMPORT!$2:$10000,MATCH($B$5,(GPS_IMPORT!$A$2:$A$10000),0)+ROWS($1:3)-1,COLUMN()-1),0) -> 0 | G9: =IF(ROWS(GPS_IMPORT!$1:3)<=COUNTIF(GPS_IMPORT!$A$2:$A$10000,$B$5),INDEX(GPS_IMPORT!$2:$10000,MATCH($B$5,(GPS_IMPORT!$A$2:$A$10000),0)+ROWS($1:3)-1,COLUMN()-1),0) -> 0 | H9: 0 | I9: 0 | J9: 0 | K9: TRUE | L9: 0 | M9: 0
A10: 4 | B10: =IF(ROWS(GPS_IMPORT!$1:4)<=COUNTIF(GPS_IMPORT!$A$2:$A$10000,$B$5),INDEX(GPS_IMPORT!$2:$10000,MATCH($B$5,(GPS_IMPORT!$A$2:$A$10000),0)+ROWS($1:4)-1,COLUMN()-1),0) -> 0 | C10: =IF(ROWS(GPS_IMPORT!$1:4)<=COUNTIF(GPS_IMPORT!$A$2:$A$10000,$B$5),INDEX(GPS_IMPORT!$2:$10000,MATCH($B$5,(GPS_IMPORT!$A$2:$A$10000),0)+ROWS($1:4)-1,COLUMN()-1),0) -> 00:00:00 | D10: =IF(ROWS(GPS_IMPORT!$1:4)<=COUNTIF(GPS_IMPORT!$A$2:$A$10000,$B$5),INDEX(GPS_IMPORT!$2:$10000,MATCH($B$5,(GPS_IMPORT!$A$2:$A$10000),0)+ROWS($1:4)-1,COLUMN()-1),0) -> 00:00:00 | E10: =IF(ROWS(GPS_IMPORT!$1:4)<=COUNTIF(GPS_IMPORT!$A$2:$A$10000,$B$5),INDEX(GPS_IMPORT!$2:$10000,MATCH($B$5,(GPS_IMPORT!$A$2:$A$10000),0)+ROWS($1:4)-1,COLUMN()-1),0) -> 0 | F10: =IF(ROWS(GPS_IMPORT!$1:4)<=COUNTIF(GPS_IMPORT!$A$2:$A$10000,$B$5),INDEX(GPS_IMPORT!$2:$10000,MATCH($B$5,(GPS_IMPORT!$A$2:$A$10000),0)+ROWS($1:4)-1,COLUMN()-1),0) -> 0 | G10: =IF(ROWS(GPS_IMPORT!$1:4)<=COUNTIF(GPS_IMPORT!$A$2:$A$10000,$B$5),INDEX(GPS_IMPORT!$2:$10000,MATCH($B$5,(GPS_IMPORT!$A$2:$A$10000),0)+ROWS($1:4)-1,COLUMN()-1),0) -> 0 | H10: 0 | I10: 0 | J10: 0 | K10: TRUE | L10: 0 | M10: 0
A11: 5 | B11: =IF(ROWS(GPS_IMPORT!$1:5)<=COUNTIF(GPS_IMPORT!$A$2:$A$10000,$B$5),INDEX(GPS_IMPORT!$2:$10000,MATCH($B$5,(GPS_IMPORT!$A$2:$A$10000),0)+ROWS($1:5)-1,COLUMN()-1),0) -> 0 | C11: =IF(ROWS(GPS_IMPORT!$1:5)<=COUNTIF(GPS_IMPORT!$A$2:$A$10000,$B$5),INDEX(GPS_IMPORT!$2:$10000,MATCH($B$5,(GPS_IMPORT!$A$2:$A$10000),0)+ROWS($1:5)-1,COLUMN()-1),0) -> 00:00:00 | D11: =IF(ROWS(GPS_IMPORT!$1:5)<=COUNTIF(GPS_IMPORT!$A$2:$A$10000,$B$5),INDEX(GPS_IMPORT!$2:$10000,MATCH($B$5,(GPS_IMPORT!$A$2:$A$10000),0)+ROWS($1:5)-1,COLUMN()-1),0) -> 00:00:00 | E11: =IF(ROWS(GPS_IMPORT!$1:5)<=COUNTIF(GPS_IMPORT!$A$2:$A$10000,$B$5),INDEX(GPS_IMPORT!$2:$10000,MATCH($B$5,(GPS_IMPORT!$A$2:$A$10000),0)+ROWS($1:5)-1,COLUMN()-1),0) -> 0 | F11: =IF(ROWS(GPS_IMPORT!$1:5)<=COUNTIF(GPS_IMPORT!$A$2:$A$10000,$B$5),INDEX(GPS_IMPORT!$2:$10000,MATCH($B$5,(GPS_IMPORT!$A$2:$A$10000),0)+ROWS($1:5)-1,COLUMN()-1),0) -> 0 | G11: =IF(ROWS(GPS_IMPORT!$1:5)<=COUNTIF(GPS_IMPORT!$A$2:$A$10000,$B$5),INDEX(GPS_IMPORT!$2:$10000,MATCH($B$5,(GPS_IMPORT!$A$2:$A$10000),0)+ROWS($1:5)-1,COLUMN()-1),0) -> 0 | H11: 0 | I11: 0 | J11: 0 | K11: TRUE | L11: 0 | M11: 0
A12: 6 | B12: =IF(ROWS(GPS_IMPORT!$1:6)<=COUNTIF(GPS_IMPORT!$A$2:$A$10000,$B$5),INDEX(GPS_IMPORT!$2:$10000,MATCH($B$5,(GPS_IMPORT!$A$2:$A$10000),0)+ROWS($1:6)-1,COLUMN()-1),0) -> 0 | C12: =IF(ROWS(GPS_IMPORT!$1:6)<=COUNTIF(GPS_IMPORT!$A$2:$A$10000,$B$5),INDEX(GPS_IMPORT!$2:$10000,MATCH($B$5,(GPS_IMPORT!$A$2:$A$10000),0)+ROWS($1:6)-1,COLUMN()-1),0) -> 00:00:00 | D12: =IF(ROWS(GPS_IMPORT!$1:6)<=COUNTIF(GPS_IMPORT!$A$2:$A$10000,$B$5),INDEX(GPS_IMPORT!$2:$10000,MATCH($B$5,(GPS_IMPORT!$A$2:$A$10000),0)+ROWS($1:6)-1,COLUMN()-1),0) -> 00:00:00 | E12: =IF(ROWS(GPS_IMPORT!$1:6)<=COUNTIF(GPS_IMPORT!$A$2:$A$10000,$B$5),INDEX(GPS_IMPORT!$2:$10000,MATCH($B$5,(GPS_IMPORT!$A$2:$A$10000),0)+ROWS($1:6)-1,COLUMN()-1),0) -> 0 | F12: =IF(ROWS(GPS_IMPORT!$1:6)<=COUNTIF(GPS_IMPORT!$A$2:$A$10000,$B$5),INDEX(GPS_IMPORT!$2:$10000,MATCH($B$5,(GPS_IMPORT!$A$2:$A$10000),0)+ROWS($1:6)-1,COLUMN()-1),0) -> 0 | G12: =IF(ROWS(GPS_IMPORT!$1:6)<=COUNTIF(GPS_IMPORT!$A$2:$A$10000,$B$5),INDEX(GPS_IMPORT!$2:$10000,MATCH($B$5,(GPS_IMPORT!$A$2:$A$10000),0)+ROWS($1:6)-1,COLUMN()-1),0) -> 0 | H12: 0 | I12: 0 | J12: 0 | K12: TRUE | L12: 0 | M12: 0
A13: 7 | B13: =IF(ROWS(GPS_IMPORT!$1:7)<=COUNTIF(GPS_IMPORT!$A$2:$A$10000,$B$5),INDEX(GPS_IMPORT!$2:$10000,MATCH($B$5,(GPS_IMPORT!$A$2:$A$10000),0)+ROWS($1:7)-1,COLUMN()-1),0) -> 0 | C13: =IF(ROWS(GPS_IMPORT!$1:7)<=COUNTIF(GPS_IMPORT!$A$2:$A$10000,$B$5),INDEX(GPS_IMPORT!$2:$10000,MATCH($B$5,(GPS_IMPORT!$A$2:$A$10000),0)+ROWS($1:7)-1,COLUMN()-1),0) -> 00:00:00 | D13: =IF(ROWS(GPS_IMPORT!$1:7)<=COUNTIF(GPS_IMPORT!$A$2:$A$10000,$B$5),INDEX(GPS_IMPORT!$2:$10000,MATCH($B$5,(GPS_IMPORT!$A$2:$A$10000),0)+ROWS($1:7)-1,COLUMN()-1),0) -> 00:00:00 | E13: =IF(ROWS(GPS_IMPORT!$1:7)<=COUNTIF(GPS_IMPORT!$A$2:$A$10000,$B$5),INDEX(GPS_IMPORT!$2:$10000,MATCH($B$5,(GPS_IMPORT!$A$2:$A$10000),0)+ROWS($1:7)-1,COLUMN()-1),0) -> 0 | F13: =IF(ROWS(GPS_IMPORT!$1:7)<=COUNTIF(GPS_IMPORT!$A$2:$A$10000,$B$5),INDEX(GPS_IMPORT!$2:$10000,MATCH($B$5,(GPS_IMPORT!$A$2:$A$10000),0)+ROWS($1:7)-1,COLUMN()-1),0) -> 0 | G13: =IF(ROWS(GPS_IMPORT!$1:7)<=COUNTIF(GPS_IMPORT!$A$2:$A$10000,$B$5),INDEX(GPS_IMPORT!$2:$10000,MATCH($B$5,(GPS_IMPORT!$A$2:$A$10000),0)+ROWS($1:7)-1,COLUMN()-1),0) -> 0 | H13: 0 | I13: 0 | J13: 0 | K13: TRUE | L13: 0 | M13: 0
A14: 8 | B14: =IF(ROWS(GPS_IMPORT!$1:8)<=COUNTIF(GPS_IMPORT!$A$2:$A$10000,$B$5),INDEX(GPS_IMPORT!$2:$10000,MATCH($B$5,(GPS_IMPORT!$A$2:$A$10000),0)+ROWS($1:8)-1,COLUMN()-1),0) -> 0 | C14: =IF(ROWS(GPS_IMPORT!$1:8)<=COUNTIF(GPS_IMPORT!$A$2:$A$10000,$B$5),INDEX(GPS_IMPORT!$2:$10000,MATCH($B$5,(GPS_IMPORT!$A$2:$A$10000),0)+ROWS($1:8)-1,COLUMN()-1),0) -> 00:00:00 | D14: =IF(ROWS(GPS_IMPORT!$1:8)<=COUNTIF(GPS_IMPORT!$A$2:$A$10000,$B$5),INDEX(GPS_IMPORT!$2:$10000,MATCH($B$5,(GPS_IMPORT!$A$2:$A$10000),0)+ROWS($1:8)-1,COLUMN()-1),0) -> 00:00:00 | E14: =IF(ROWS(GPS_IMPORT!$1:8)<=COUNTIF(GPS_IMPORT!$A$2:$A$10000,$B$5),INDEX(GPS_IMPORT!$2:$10000,MATCH($B$5,(GPS_IMPORT!$A$2:$A$10000),0)+ROWS($1:8)-1,COLUMN()-1),0) -> 0 | F14: =IF(ROWS(GPS_IMPORT!$1:8)<=COUNTIF(GPS_IMPORT!$A$2:$A$10000,$B$5),INDEX(GPS_IMPORT!$2:$10000,MATCH($B$5,(GPS_IMPORT!$A$2:$A$10000),0)+ROWS($1:8)-1,COLUMN()-1),0) -> 0 | G14: =IF(ROWS(GPS_IMPORT!$1:8)<=COUNTIF(GPS_IMPORT!$A$2:$A$10000,$B$5),INDEX(GPS_IMPORT!$2:$10000,MATCH($B$5,(GPS_IMPORT!$A$2:$A$10000),0)+ROWS($1:8)-1,COLUMN()-1),0) -> 0 | H14: 0 | I14: 0 | J14: 0 | K14: TRUE | L14: 0 | M14: 0
A15: 9 | B15: =IF(ROWS(GPS_IMPORT!$1:9)<=COUNTIF(GPS_IMPORT!$A$2:$A$10000,$B$5),INDEX(GPS_IMPORT!$2:$10000,MATCH($B$5,(GPS_IMPORT!$A$2:$A$10000),0)+ROWS($1:9)-1,COLUMN()-1),0) -> 0 | C15: =IF(ROWS(GPS_IMPORT!$1:9)<=COUNTIF(GPS_IMPORT!$A$2:$A$10000,$B$5),INDEX(GPS_IMPORT!$2:$10000,MATCH($B$5,(GPS_IMPORT!$A$2:$A$10000),0)+ROWS($1:9)-1,COLUMN()-1),0) -> 00:00:00 | D15: =IF(ROWS(GPS_IMPORT!$1:9)<=COUNTIF(GPS_IMPORT!$A$2:$A$10000,$B$5),INDEX(GPS_IMPORT!$2:$10000,MATCH($B$5,(GPS_IMPORT!$A$2:$A$10000),0)+ROWS($1:9)-1,COLUMN()-1),0) -> 00:00:00 | E15: =IF(ROWS(GPS_IMPORT!$1:9)<=COUNTIF(GPS_IMPORT!$A$2:$A$10000,$B$5),INDEX(GPS_IMPORT!$2:$10000,MATCH($B$5,(GPS_IMPORT!$A$2:$A$10000),0)+ROWS($1:9)-1,COLUMN()-1),0) -> 0 | F15: =IF(ROWS(GPS_IMPORT!$1:9)<=COUNTIF(GPS_IMPORT!$A$2:$A$10000,$B$5),INDEX(GPS_IMPORT!$2:$10000,MATCH($B$5,(GPS_IMPORT!$A$2:$A$10000),0)+ROWS($1:9)-1,COLUMN()-1),0) -> 0 | G15: =IF(ROWS(GPS_IMPORT!$1:9)<=COUNTIF(GPS_IMPORT!$A$2:$A$10000,$B$5),INDEX(GPS_IMPORT!$2:$10000,MATCH($B$5,(GPS_IMPORT!$A$2:$A$10000),0)+ROWS($1:9)-1,COLUMN()-1),0) -> 0 | H15: 0 | I15: 0 | J15: 0 | K15: TRUE | L15: 0 | M15: 0
A16: 10 | B16: =IF(ROWS(GPS_IMPORT!$1:10)<=COUNTIF(GPS_IMPORT!$A$2:$A$10000,$B$5),INDEX(GPS_IMPORT!$2:$10000,MATCH($B$5,(GPS_IMPORT!$A$2:$A$10000),0)+ROWS($1:10)-1,COLUMN()-1),0) -> 0 | C16: =IF(ROWS(GPS_IMPORT!$1:10)<=COUNTIF(GPS_IMPORT!$A$2:$A$10000,$B$5),INDEX(GPS_IMPORT!$2:$10000,MATCH($B$5,(GPS_IMPORT!$A$2:$A$10000),0)+ROWS($1:10)-1,COLUMN()-1),0) -> 00:00:00 | D16: =IF(ROWS(GPS_IMPORT!$1:10)<=COUNTIF(GPS_IMPORT!$A$2:$A$10000,$B$5),INDEX(GPS_IMPORT!$2:$10000,MATCH($B$5,(GPS_IMPORT!$A$2:$A$10000),0)+ROWS($1:10)-1,COLUMN()-1),0) -> 00:00:00 | E16: =IF(ROWS(GPS_IMPORT!$1:10)<=COUNTIF(GPS_IMPORT!$A$2:$A$10000,$B$5),INDEX(GPS_IMPORT!$2:$10000,MATCH($B$5,(GPS_IMPORT!$A$2:$A$10000),0)+ROWS($1:10)-1,COLUMN()-1),0) -> 0 | F16: =IF(ROWS(GPS_IMPORT!$1:10)<=COUNTIF(GPS_IMPORT!$A$2:$A$10000,$B$5),INDEX(GPS_IMPORT!$2:$10000,MATCH($B$5,(GPS_IMPORT!$A$2:$A$10000),0)+ROWS($1:10)-1,COLUMN()-1),0) -> 0 | G16: =IF(ROWS(GPS_IMPORT!$1:10)<=COUNTIF(GPS_IMPORT!$A$2:$A$10000,$B$5),INDEX(GPS_IMPORT!$2:$10000,MATCH($B$5,(GPS_IMPORT!$A$2:$A$10000),0)+ROWS($1:10)-1,COLUMN()-1),0) -> 0 | H16: 0 | I16: 0 | J16: 0 | K16: TRUE | L16: 0 | M16: 0
A17: 11 | B17: =IF(ROWS(GPS_IMPORT!$1:11)<=COUNTIF(GPS_IMPORT!$A$2:$A$10000,$B$5),INDEX(GPS_IMPORT!$2:$10000,MATCH($B$5,(GPS_IMPORT!$A$2:$A$10000),0)+ROWS($1:11)-1,COLUMN()-1),0) -> 0 | C17: =IF(ROWS(GPS_IMPORT!$1:11)<=COUNTIF(GPS_IMPORT!$A$2:$A$10000,$B$5),INDEX(GPS_IMPORT!$2:$10000,MATCH($B$5,(GPS_IMPORT!$A$2:$A$10000),0)+ROWS($1:11)-1,COLUMN()-1),0) -> 00:00:00 | D17: =IF(ROWS(GPS_IMPORT!$1:11)<=COUNTIF(GPS_IMPORT!$A$2:$A$10000,$B$5),INDEX(GPS_IMPORT!$2:$10000,MATCH($B$5,(GPS_IMPORT!$A$2:$A$10000),0)+ROWS($1:11)-1,COLUMN()-1),0) -> 00:00:00 | E17: =IF(ROWS(GPS_IMPORT!$1:11)<=COUNTIF(GPS_IMPORT!$A$2:$A$10000,$B$5),INDEX(GPS_IMPORT!$2:$10000,MATCH($B$5,(GPS_IMPORT!$A$2:$A$10000),0)+ROWS($1:11)-1,COLUMN()-1),0) -> 0 | F17: =IF(ROWS(GPS_IMPORT!$1:11)<=COUNTIF(GPS_IMPORT!$A$2:$A$10000,$B$5),INDEX(GPS_IMPORT!$2:$10000,MATCH($B$5,(GPS_IMPORT!$A$2:$A$10000),0)+ROWS($1:11)-1,COLUMN()-1),0) -> 0 | G17: =IF(ROWS(GPS_IMPORT!$1:11)<=COUNTIF(GPS_IMPORT!$A$2:$A$10000,$B$5),INDEX(GPS_IMPORT!$2:$10000,MATCH($B$5,(GPS_IMPORT!$A$2:$A$10000),0)+ROWS($1:11)-1,COLUMN()-1),0) -> 0 | H17: 0 | I17: 0 | J17: 0 | K17: TRUE | L17: 0 | M17: 0
A18: 12 | B18: =IF(ROWS(GPS_IMPORT!$1:12)<=COUNTIF(GPS_IMPORT!$A$2:$A$10000,$B$5),INDEX(GPS_IMPORT!$2:$10000,MATCH($B$5,(GPS_IMPORT!$A$2:$A$10000),0)+ROWS($1:12)-1,COLUMN()-1),0) -> 0 | C18: =IF(ROWS(GPS_IMPORT!$1:12)<=COUNTIF(GPS_IMPORT!$A$2:$A$10000,$B$5),INDEX(GPS_IMPORT!$2:$10000,MATCH($B$5,(GPS_IMPORT!$A$2:$A$10000),0)+ROWS($1:12)-1,COLUMN()-1),0) -> 00:00:00 | D18: =IF(ROWS(GPS_IMPORT!$1:12)<=COUNTIF(GPS_IMPORT!$A$2:$A$10000,$B$5),INDEX(GPS_IMPORT!$2:$10000,MATCH($B$5,(GPS_IMPORT!$A$2:$A$10000),0)+ROWS($1:12)-1,COLUMN()-1),0) -> 00:00:00 | E18: =IF(ROWS(GPS_IMPORT!$1:12)<=COUNTIF(GPS_IMPORT!$A$2:$A$10000,$B$5),INDEX(GPS_IMPORT!$2:$10000,MATCH($B$5,(GPS_IMPORT!$A$2:$A$10000),0)+ROWS($1:12)-1,COLUMN()-1),0) -> 0 | F18: =IF(ROWS(GPS_IMPORT!$1:12)<=COUNTIF(GPS_IMPORT!$A$2:$A$10000,$B$5),INDEX(GPS_IMPORT!$2:$10000,MATCH($B$5,(GPS_IMPORT!$A$2:$A$10000),0)+ROWS($1:12)-1,COLUMN()-1),0) -> 0 | G18: =IF(ROWS(GPS_IMPORT!$1:12)<=COUNTIF(GPS_IMPORT!$A$2:$A$10000,$B$5),INDEX(GPS_IMPORT!$2:$10000,MATCH($B$5,(GPS_IMPORT!$A$2:$A$10000),0)+ROWS($1:12)-1,COLUMN()-1),0) -> 0 | H18: 0 | I18: 0 | J18: 0 | K18: TRUE | L18: 0 | M18: 0
A19: 13 | B19: =IF(ROWS(GPS_IMPORT!$1:13)<=COUNTIF(GPS_IMPORT!$A$2:$A$10000,$B$5),INDEX(GPS_IMPORT!$2:$10000,MATCH($B$5,(GPS_IMPORT!$A$2:$A$10000),0)+ROWS($1:13)-1,COLUMN()-1),0) -> 0 | C19: =IF(ROWS(GPS_IMPORT!$1:13)<=COUNTIF(GPS_IMPORT!$A$2:$A$10000,$B$5),INDEX(GPS_IMPORT!$2:$10000,MATCH($B$5,(GPS_IMPORT!$A$2:$A$10000),0)+ROWS($1:13)-1,COLUMN()-1),0) -> 00:00:00 | D19: =IF(ROWS(GPS_IMPORT!$1:13)<=COUNTIF(GPS_IMPORT!$A$2:$A$10000,$B$5),INDEX(GPS_IMPORT!$2:$10000,MATCH($B$5,(GPS_IMPORT!$A$2:$A$10000),0)+ROWS($1:13)-1,COLUMN()-1),0) -> 00:00:00 | E19: =IF(ROWS(GPS_IMPORT!$1:13)<=COUNTIF(GPS_IMPORT!$A$2:$A$10000,$B$5),INDEX(GPS_IMPORT!$2:$10000,MATCH($B$5,(GPS_IMPORT!$A$2:$A$10000),0)+ROWS($1:13)-1,COLUMN()-1),0) -> 0 | F19: =IF(ROWS(GPS_IMPORT!$1:13)<=COUNTIF(GPS_IMPORT!$A$2:$A$10000,$B$5),INDEX(GPS_IMPORT!$2:$10000,MATCH($B$5,(GPS_IMPORT!$A$2:$A$10000),0)+ROWS($1:13)-1,COLUMN()-1),0) -> 0 | G19: =IF(ROWS(GPS_IMPORT!$1:13)<=COUNTIF(GPS_IMPORT!$A$2:$A$10000,$B$5),INDEX(GPS_IMPORT!$2:$10000,MATCH($B$5,(GPS_IMPORT!$A$2:$A$10000),0)+ROWS($1:13)-1,COLUMN()-1),0) -> 0 | H19: 0 | I19: 0 | J19: 0 | K19: FALSE | L19: 0 | M19: 0
A20: 14 | B20: =IF(ROWS(GPS_IMPORT!$1:14)<=COUNTIF(GPS_IMPORT!$A$2:$A$10000,$B$5),INDEX(GPS_IMPORT!$2:$10000,MATCH($B$5,(GPS_IMPORT!$A$2:$A$10000),0)+ROWS($1:14)-1,COLUMN()-1),0) -> 0 | C20: =IF(ROWS(GPS_IMPORT!$1:14)<=COUNTIF(GPS_IMPORT!$A$2:$A$10000,$B$5),INDEX(GPS_IMPORT!$2:$10000,MATCH($B$5,(GPS_IMPORT!$A$2:$A$10000),0)+ROWS($1:14)-1,COLUMN()-1),0) -> 00:00:00 | D20: =IF(ROWS(GPS_IMPORT!$1:14)<=COUNTIF(GPS_IMPORT!$A$2:$A$10000,$B$5),INDEX(GPS_IMPORT!$2:$10000,MATCH($B$5,(GPS_IMPORT!$A$2:$A$10000),0)+ROWS($1:14)-1,COLUMN()-1),0) -> 00:00:00 | E20: =IF(ROWS(GPS_IMPORT!$1:14)<=COUNTIF(GPS_IMPORT!$A$2:$A$10000,$B$5),INDEX(GPS_IMPORT!$2:$10000,MATCH($B$5,(GPS_IMPORT!$A$2:$A$10000),0)+ROWS($1:14)-1,COLUMN()-1),0) -> 0 | F20: =IF(ROWS(GPS_IMPORT!$1:14)<=COUNTIF(GPS_IMPORT!$A$2:$A$10000,$B$5),INDEX(GPS_IMPORT!$2:$10000,MATCH($B$5,(GPS_IMPORT!$A$2:$A$10000),0)+ROWS($1:14)-1,COLUMN()-1),0) -> 0 | G20: =IF(ROWS(GPS_IMPORT!$1:14)<=COUNTIF(GPS_IMPORT!$A$2:$A$10000,$B$5),INDEX(GPS_IMPORT!$2:$10000,MATCH($B$5,(GPS_IMPORT!$A$2:$A$10000),0)+ROWS($1:14)-1,COLUMN()-1),0) -> 0 | H20: 0 | I20: 0 | J20: 0 | K20: FALSE | L20: 0 | M20: 0
A21: 15 | B21: =IF(ROWS(GPS_IMPORT!$1:15)<=COUNTIF(GPS_IMPORT!$A$2:$A$10000,$B$5),INDEX(GPS_IMPORT!$2:$10000,MATCH($B$5,(GPS_IMPORT!$A$2:$A$10000),0)+ROWS($1:15)-1,COLUMN()-1),0) -> 0 | C21: =IF(ROWS(GPS_IMPORT!$1:15)<=COUNTIF(GPS_IMPORT!$A$2:$A$10000,$B$5),INDEX(GPS_IMPORT!$2:$10000,MATCH($B$5,(GPS_IMPORT!$A$2:$A$10000),0)+ROWS($1:15)-1,COLUMN()-1),0) -> 00:00:00 | D21: =IF(ROWS(GPS_IMPORT!$1:15)<=COUNTIF(GPS_IMPORT!$A$2:$A$10000,$B$5),INDEX(GPS_IMPORT!$2:$10000,MATCH($B$5,(GPS_IMPORT!$A$2:$A$10000),0)+ROWS($1:15)-1,COLUMN()-1),0) -> 00:00:00 | E21: =IF(ROWS(GPS_IMPORT!$1:15)<=COUNTIF(GPS_IMPORT!$A$2:$A$10000,$B$5),INDEX(GPS_IMPORT!$2:$10000,MATCH($B$5,(GPS_IMPORT!$A$2:$A$10000),0)+ROWS($1:15)-1,COLUMN()-1),0) -> 0 | F21: =IF(ROWS(GPS_IMPORT!$1:15)<=COUNTIF(GPS_IMPORT!$A$2:$A$10000,$B$5),INDEX(GPS_IMPORT!$2:$10000,MATCH($B$5,(GPS_IMPORT!$A$2:$A$10000),0)+ROWS($1:15)-1,COLUMN()-1),0) -> 0 | G21: =IF(ROWS(GPS_IMPORT!$1:15)<=COUNTIF(GPS_IMPORT!$A$2:$A$10000,$B$5),INDEX(GPS_IMPORT!$2:$10000,MATCH($B$5,(GPS_IMPORT!$A$2:$A$10000),0)+ROWS($1:15)-1,COLUMN()-1),0) -> 0 | H21: =IF(K21=TRUE,IF(E21>0,E$22-E21,0),0) -> 0 | I21: 0 | J21: 0 | K21: FALSE | L21: 0 | M21: 0
D22: AVERAGE | E22: =(IF($K$7=TRUE,E7,0)+IF($K$8=TRUE,E8,0)+IF($K$9=TRUE,E9,0)+IF($K$10=TRUE,E10,0)+IF($K$11=TRUE,E11,0)+IF($K$12=TRUE,E12,0)+IF($K$13=TRUE,E13,0)+IF($K$14=TRUE,E14,0)+IF($K$15=TRUE,E15,0)+IF($K$16=TRUE,E16,0)+IF($K$17=TRUE,E17,0)+IF($K$18=TRUE,E18,0)+IF($K$19=TRUE,E19,0)+IF($K$20=TRUE,E20,0)+IF($K$21=TRUE,E21,0))/(IF($K$7=TRUE,1,0)+IF($K$8=TRUE,1,0)+IF($K$9=TRUE,1,0)+IF($K$10=TRUE,1,0)+IF($K$11=TRUE,1,0)+IF($K$12=TRUE,1,0)+IF($K$13=TRUE,1,0)+IF($K$14=TRUE,1,0)+IF($K$15=TRUE,1,0)+IF($K$16=TRUE,1,0)+IF($K$17=TRUE,1,0)+IF($K$18=TRUE,1,0)+IF($K$19=TRUE,1,0)+IF($K$20=TRUE,1,0)+IF($K$21=TRUE,1,0)) -> 0 | F22: =(IF($K$7=TRUE,F7,0)+IF($K$8=TRUE,F8,0)+IF($K$9=TRUE,F9,0)+IF($K$10=TRUE,F10,0)+IF($K$11=TRUE,F11,0)+IF($K$12=TRUE,F12,0)+IF($K$13=TRUE,F13,0)+IF($K$14=TRUE,F14,0)+IF($K$15=TRUE,F15,0)+IF($K$16=TRUE,F16,0)+IF($K$17=TRUE,F17,0)+IF($K$18=TRUE,F18,0)+IF($K$19=TRUE,F19,0)+IF($K$20=TRUE,F20,0)+IF($K$21=TRUE,F21,0))/(IF($K$7=TRUE,1,0)+IF($K$8=TRUE,1,0)+IF($K$9=TRUE,1,0)+IF($K$10=TRUE,1,0)+IF($K$11=TRUE,1,0)+IF($K$12=TRUE,1,0)+IF($K$13=TRUE,1,0)+IF($K$14=TRUE,1,0)+IF($K$15=TRUE,1,0)+IF($K$16=TRUE,1,0)+IF($K$17=TRUE,1,0)+IF($K$18=TRUE,1,0)+IF($K$19=TRUE,1,0)+IF($K$20=TRUE,1,0)+IF($K$21=TRUE,1,0)) -> 0 | G22: =(IF($K$7=TRUE,G7,0)+IF($K$8=TRUE,G8,0)+IF($K$9=TRUE,G9,0)+IF($K$10=TRUE,G10,0)+IF($K$11=TRUE,G11,0)+IF($K$12=TRUE,G12,0)+IF($K$13=TRUE,G13,0)+IF($K$14=TRUE,G14,0)+IF($K$15=TRUE,G15,0)+IF($K$16=TRUE,G16,0)+IF($K$17=TRUE,G17,0)+IF($K$18=TRUE,G18,0)+IF($K$19=TRUE,G19,0)+IF($K$20=TRUE,G20,0)+IF($K$21=TRUE,G21,0))/ (IF($K$7=TRUE,1,0)+IF($K$8=TRUE,1,0)+IF($K$9=TRUE,1,0)+IF($K$10=TRUE,1,0)+IF($K$11=TRUE,1,0)+IF($K$12=TRUE,1,0)+IF($K$13=TRUE,1,0)+IF($K$14=TRUE,1,0)+IF($K$15=TRUE,1,0)+IF($K$16=TRUE,1,0)+IF($K$17=TRUE,1,0)+IF($K$18=TRUE,1,0)+IF($K$19=TRUE,1,0)+IF($K$20=TRUE,1,0)+IF($K$21=TRUE,1,0)) -> 0 | H22: RMSE: | I22: RMSE: | J22: RMSE:
G23: ="RMSE IN "&GPS_IMPORT!J4&":" -> RMSE IN U.S. Survey FT: | H23: =SQRT(SUMSQ((IF(K7:K21=TRUE,H7:H21)))/COUNTIF(K7:K21,K7:K21=TRUE)) -> 0 | I23: =SQRT(SUMSQ((IF(K7:K21=TRUE,I7:I21)))/COUNTIF(K7:K21,K7:K21=TRUE)) -> 0 | J23: =SQRT(SUMSQ((IF(K7:K21=TRUE,J7:J21)))/COUNTIF(K7:K21,K7:K21=TRUE)) -> 0
G24: Tolerance: | H24: =VLOOKUP(GPS_IMPORT!$K$4,Lists!H3:I5,2,FALSE) -> 0.029 | J24: =VLOOKUP(GPS_IMPORT!$K$4,Lists!H3:J5,3,FALSE) -> 0.039
H25: =IF(H23<=H24,"PASS","FAIL") -> PASS | I25: =IF(I23<=H24,"PASS","FAIL") -> PASS | J25: =IF(J23<=J24,"PASS","FAIL") -> PASS
A27: AVERAGED GPS-DERIVED POSITION | I27: Notes:
B28: MONUMENT COORDINATES | D28: NORTHING | E28: EASTING | F28: ORTHO HEIGHT | N28: Degrees | O28: Radians | P28: SIN | Q28: COS
B29: =GPS_IMPORT!J4&" ("&IF(GPS_IMPORT!K2="TRUE","GROUND","GRID")&")" -> U.S. Survey FT (GRID) | D29: =$E$22 -> 0 | E29: =$F$22 -> 0 | F29: =$G$22 -> 0 | N29: 1 | O29: =N29*(PI()/180) -> 0.01745329252 | P29: =SIN(O29)*H$24 -> 0.0005061197867 | Q29: =COS(O29)*H$24 -> 0.02899558316
N30: =N29+1 -> 2 | O30: =N30*(PI()/180) -> 0.03490658504 | P30: 0.001012085404 | Q30: 0.02898233398
A31: LEVELED ELEVATION | N31: =N30+1 -> 3 | O31: 0.05235987756 | P31: 0.001517742731 | Q31: 0.02896025651
A32: ='LEVEL RUN'!B5 -> U.S. Survey FT | C32: =IFERROR(VLOOKUP(B5,'LEVEL RUN'!A7:I59,9,FALSE),"N/A") -> N/A | D32: (Fill out Level Run Sheet or N/A if no leveled elevation is available) | N32: 4 | O32: 0.06981317008 | P32: 0.002022937739 | Q32: 0.02892935746
A33: MONUMENT HELD | C33: =IF('LEVEL RUN'!A7="","",'LEVEL RUN'!A7) -> 331 | D33: (Type the monument name from which leveling originated) | N33: 5 | O33: 0.0872664626 | P33: 0.00252751654 | Q33: 0.02888964624
A34: LEVELED ELEVATION - GPS DERIVED ELEVATION = | E34: =IF(C32="N/A","N/A",C32-(F29*'LEVEL RUN'!F5)) -> N/A | F34: ='LEVEL RUN'!D5 -> sft | N34: 6 | O34: 0.1047197551 | P34: 0.003031325435 | Q34: 0.02884113497
N35: 7 | O35: 0.1221730476 | P35: 0.003534210959 | Q35: 0.0287838384
A36: FINAL MONUMENT COORDINATES | N36: 8 | O36: 0.1396263402 | P36: 0.004036019928 | Q36: 0.02871777399
B37: MONUMENT COORDINATES | D37: NORTHING | E37: EASTING | F37: ELEVATION | G37: FEATURE CODE | N37: 9 | O37: 0.1570796327 | P37: 0.004536599486 | Q37: 0.02864296188
B38: =GPS_IMPORT!J6&" (GRID)" -> U.S. Survey FT (GRID) | D38: =IF(GPS_IMPORT!K2=TRUE,($E$22*GPS_IMPORT!$L$6)*(1/REPORT!C13),$E$22*GPS_IMPORT!$L$6) -> 0 | E38: =IF(GPS_IMPORT!K2=TRUE,($F$22*GPS_IMPORT!$L$6)*(1/REPORT!C13),$F$22*GPS_IMPORT!$L$6) -> 0 | F38: =IF($C$32="N/A",($G$22*GPS_IMPORT!$L$6),$C$32*'LEVEL RUN'!H5) -> 0 | G38: =VLOOKUP($B$5,GPS_IMPORT!$A$2:$G$2000,7,FALSE) ->  | N38: 10 | O38: 0.1745329252 | P38: 0.005035797152 | Q38: 0.02855942484
B39: =GPS_IMPORT!J6&" (GROUND)" -> U.S. Survey FT (GROUND) | D39: =IF(GPS_IMPORT!K2=TRUE,$E$22*GPS_IMPORT!$L$6,$E$22*GPS_IMPORT!$L$6*REPORT!C13) -> 0 | E39: =IF(GPS_IMPORT!K2=TRUE,$F$22*GPS_IMPORT!$L$6,$F$22*GPS_IMPORT!$L$6*REPORT!C13) -> 0 | F39: =IF($C$32="N/A",($G$22*GPS_IMPORT!$L$6),$C$32*'LEVEL RUN'!H5) -> 0 | G39: =$G$38 ->  | N39: 11 | O39: 0.1919862177 | P39: 0.005533460866 | Q39: 0.02846718832
N40: 12 | O40: 0.2094395102 | P40: 0.006029439034 | Q40: 0.02836628042
A41: ∆ North, ∆ East, and ∆ Ht. are the difference between the average northing, easting, and height for each observation. | I41: Mask Angle: | J41: 10° | N41: 13 | O41: 0.2268928028 | P41: 0.006523580576 | Q41: 0.02825673188
N42: 14 | O42: 0.2443460953 | P42: 0.007015734972 | Q42: 0.02813857606
N43: 15 | O43: 0.2617993878 | P43: 0.007505752308 | Q43: 0.02801184896
N44: 16 | O44: 0.2792526803 | P44: 0.007993483319 | Q44: 0.02787658918
N45: 17 | O45: 0.2967059728 | P45: 0.008478779437 | Q45: 0.02773283792
N46: 18 | O46: 0.3141592654 | P46: 0.008961492837 | Q46: 0.02758063897
N47: 19 | O47: 0.3316125579 | P47: 0.009441476479 | Q47: 0.02742003869
N48: 20 | O48: 0.3490658504 | P48: 0.009918584156 | Q48: 0.027251086
N49: 21 | O49: 0.3665191429 | P49: 0.01039267054 | Q49: 0.02707383237
N50: 22 | O50: 0.3839724354 | P50: 0.01086359121 | Q50: 0.02688833178
N51: 23 | O51: 0.401425728 | P51: 0.01133120273 | Q51: 0.02669464075
N52: 24 | O52: 0.4188790205 | P52: 0.01179536265 | Q52: 0.02649281827
N53: 25 | O53: 0.436332313 | P53: 0.01225592959 | Q53: 0.02628292582
N54: 26 | O54: 0.4537856055 | P54: 0.01271276326 | Q54: 0.02606502734
N55: 27 | O55: 0.471238898 | P55: 0.01316572449 | Q55: 0.0258391892
N56: 28 | O56: 0.4886921906 | P56: 0.01361467532 | Q56: 0.02560548019
N57: 29 | O57: 0.5061454831 | P57: 0.01405947899 | Q57: 0.02536397151
N58: 30 | O58: 0.5235987756 | P58: 0.0145 | Q58: 0.02511473671
N59: 31 | O59: 0.5410520681 | P59: 0.01493610417 | Q59: 0.02485785172
N60: 32 | O60: 0.5585053606 | P60: 0.01536765866 | Q60: 0.02459339479
N61: 33 | O61: 0.5759586532 | P61: 0.01579453202 | Q61: 0.02432144647
N62: 34 | O62: 0.5934119457 | P62: 0.0162165942 | Q62: 0.0240420896
N63: 35 | O63: 0.6108652382 | P63: 0.01663371665 | Q63: 0.02375540928
N64: 36 | O64: 0.6283185307 | P64: 0.01704577232 | Q64: 0.02346149284
N65: 37 | O65: 0.6457718232 | P65: 0.01745263567 | Q65: 0.02316042979
N66: 38 | O66: 0.6632251158 | P66: 0.01785418278 | Q66: 0.02285231185
N67: 39 | O67: 0.6806784083 | P67: 0.01825029134 | Q67: 0.02253723288
N68: 40 | O68: 0.6981317008 | P68: 0.01864084068 | Q68: 0.02221528885
N69: 41 | O69: 0.7155849933 | P69: 0.01902571184 | Q69: 0.02188657783
N70: 42 | O70: 0.7330382858 | P70: 0.01940478758 | Q70: 0.02155119994
N71: 43 | O71: 0.7504915784 | P71: 0.01977795244 | Q71: 0.02120925735
N72: 44 | O72: 0.7679448709 | P72: 0.02014509274 | Q72: 0.02086085421
N73: 45 | O73: 0.7853981634 | P73: 0.02050609665 | Q73: 0.02050609665
N74: 46 | O74: 0.8028514559 | P74: 0.02086085421 | Q74: 0.02014509274
N75: 47 | O75: 0.8203047484 | P75: 0.02120925735 | Q75: 0.01977795244
N76: 48 | O76: 0.837758041 | P76: 0.02155119994 | Q76: 0.01940478758
N77: 49 | O77: 0.8552113335 | P77: 0.02188657783 | Q77: 0.01902571184
N78: 50 | O78: 0.872664626 | P78: 0.02221528885 | Q78: 0.01864084068
N79: 51 | O79: 0.8901179185 | P79: 0.02253723288 | Q79: 0.01825029134
N80: 52 | O80: 0.907571211 | P80: 0.02285231185 | Q80: 0.01785418278
N81: 53 | O81: 0.9250245036 | P81: 0.02316042979 | Q81: 0.01745263567
N82: 54 | O82: 0.9424777961 | P82: 0.02346149284 | Q82: 0.01704577232
N83: 55 | O83: 0.9599310886 | P83: 0.02375540928 | Q83: 0.01663371665
N84: 56 | O84: 0.9773843811 | P84: 0.0240420896 | Q84: 0.0162165942
N85: 57 | O85: 0.9948376736 | P85: 0.02432144647 | Q85: 0.01579453202
N86: 58 | O86: 1.012290966 | P86: 0.02459339479 | Q86: 0.01536765866
N87: 59 | O87: 1.029744259 | P87: 0.02485785172 | Q87: 0.01493610417
N88: 60 | O88: 1.047197551 | P88: 0.02511473671 | Q88: 0.0145
N89: 61 | O89: 1.064650844 | P89: 0.02536397151 | Q89: 0.01405947899
N90: 62 | O90: 1.082104136 | P90: 0.02560548019 | Q90: 0.01361467532
N91: 63 | O91: 1.099557429 | P91: 0.0258391892 | Q91: 0.01316572449
N92: 64 | O92: 1.117010721 | P92: 0.02606502734 | Q92: 0.01271276326
N93: 65 | O93: 1.134464014 | P93: =SIN(O93)*H$24 -> 0.02628292582 | Q93: =COS(O93)*H$24 -> 0.01225592959
N94: 66 | O94: =N94*(PI()/180) -> 1.151917306 | P94: 0.02649281827 | Q94: 0.01179536265
N95: =N94+1 -> 67 | O95: 1.169370599 | P95: 0.02669464075 | Q95: 0.01133120273
N96: 68 | O96: 1.186823891 | P96: 0.02688833178 | Q96: 0.01086359121
N97: 69 | O97: 1.204277184 | P97: 0.02707383237 | Q97: 0.01039267054
N98: 70 | O98: 1.221730476 | P98: 0.027251086 | Q98: 0.009918584156
N99: 71 | O99: 1.239183769 | P99: 0.02742003869 | Q99: 0.009441476479
N100: 72 | O100: 1.256637061 | P100: 0.02758063897 | Q100: 0.008961492837
N101: 73 | O101: 1.274090354 | P101: 0.02773283792 | Q101: 0.008478779437
N102: 74 | O102: 1.291543646 | P102: 0.02787658918 | Q102: 0.007993483319
N103: 75 | O103: 1.308996939 | P103: 0.02801184896 | Q103: 0.007505752308
N104: 76 | O104: 1.326450232 | P104: 0.02813857606 | Q104: 0.007015734972
N105: 77 | O105: 1.343903524 | P105: 0.02825673188 | Q105: 0.006523580576
N106: 78 | O106: 1.361356817 | P106: 0.02836628042 | Q106: 0.006029439034
N107: 79 | O107: 1.378810109 | P107: 0.02846718832 | Q107: 0.005533460866
N108: 80 | O108: 1.396263402 | P108: 0.02855942484 | Q108: 0.005035797152
N109: 81 | O109: 1.413716694 | P109: 0.02864296188 | Q109: 0.004536599486
N110: 82 | O110: 1.431169987 | P110: 0.02871777399 | Q110: 0.004036019928
N111: 83 | O111: 1.448623279 | P111: 0.0287838384 | Q111: 0.003534210959
N112: 84 | O112: 1.466076572 | P112: 0.02884113497 | Q112: 0.003031325435
N113: 85 | O113: 1.483529864 | P113: 0.02888964624 | Q113: 0.00252751654
N114: 86 | O114: 1.500983157 | P114: 0.02892935746 | Q114: 0.002022937739
N115: 87 | O115: 1.518436449 | P115: 0.02896025651 | Q115: 0.001517742731
N116: 88 | O116: 1.535889742 | P116: 0.02898233398 | Q116: 0.001012085404
N117: 89 | O117: 1.553343034 | P117: 0.02899558316 | Q117: 0.0005061197867
N118: 90 | O118: 1.570796327 | P118: 0.029 | Q118: 1.77646526e-18
N119: 91 | O119: 1.588249619 | P119: 0.02899558316 | Q119: -0.0005061197867
N120: 92 | O120: 1.605702912 | P120: 0.02898233398 | Q120: -0.001012085404
N121: 93 | O121: 1.623156204 | P121: 0.02896025651 | Q121: -0.001517742731
N122: 94 | O122: 1.640609497 | P122: 0.02892935746 | Q122: -0.002022937739
N123: 95 | O123: 1.658062789 | P123: 0.02888964624 | Q123: -0.00252751654
N124: 96 | O124: 1.675516082 | P124: 0.02884113497 | Q124: -0.003031325435
N125: 97 | O125: 1.692969374 | P125: 0.0287838384 | Q125: -0.003534210959
N126: 98 | O126: 1.710422667 | P126: 0.02871777399 | Q126: -0.004036019928
N127: 99 | O127: 1.727875959 | P127: 0.02864296188 | Q127: -0.004536599486
N128: 100 | O128: 1.745329252 | P128: 0.02855942484 | Q128: -0.005035797152
N129: 101 | O129: 1.762782545 | P129: 0.02846718832 | Q129: -0.005533460866
N130: 102 | O130: 1.780235837 | P130: 0.02836628042 | Q130: -0.006029439034
N131: 103 | O131: 1.79768913 | P131: 0.02825673188 | Q131: -0.006523580576
N132: 104 | O132: 1.815142422 | P132: 0.02813857606 | Q132: -0.007015734972
N133: 105 | O133: 1.832595715 | P133: 0.02801184896 | Q133: -0.007505752308
N134: 106 | O134: 1.850049007 | P134: 0.02787658918 | Q134: -0.007993483319
N135: 107 | O135: 1.8675023 | P135: 0.02773283792 | Q135: -0.008478779437
N136: 108 | O136: 1.884955592 | P136: 0.02758063897 | Q136: -0.008961492837
N137: 109 | O137: 1.902408885 | P137: 0.02742003869 | Q137: -0.009441476479
N138: 110 | O138: 1.919862177 | P138: 0.027251086 | Q138: -0.009918584156
N139: 111 | O139: 1.93731547 | P139: 0.02707383237 | Q139: -0.01039267054
N140: 112 | O140: 1.954768762 | P140: 0.02688833178 | Q140: -0.01086359121
N141: 113 | O141: 1.972222055 | P141: 0.02669464075 | Q141: -0.01133120273
N142: 114 | O142: 1.989675347 | P142: 0.02649281827 | Q142: -0.01179536265
N143: 115 | O143: 2.00712864 | P143: 0.02628292582 | Q143: -0.01225592959
N144: 116 | O144: 2.024581932 | P144: 0.02606502734 | Q144: -0.01271276326
N145: 117 | O145: 2.042035225 | P145: 0.0258391892 | Q145: -0.01316572449
N146: 118 | O146: 2.059488517 | P146: 0.02560548019 | Q146: -0.01361467532
N147: 119 | O147: 2.07694181 | P147: 0.02536397151 | Q147: -0.01405947899
N148: 120 | O148: 2.094395102 | P148: 0.02511473671 | Q148: -0.0145
N149: 121 | O149: 2.111848395 | P149: 0.02485785172 | Q149: -0.01493610417
N150: 122 | O150: 2.129301687 | P150: 0.02459339479 | Q150: -0.01536765866
N151: 123 | O151: 2.14675498 | P151: 0.02432144647 | Q151: -0.01579453202
N152: 124 | O152: 2.164208272 | P152: 0.0240420896 | Q152: -0.0162165942
N153: 125 | O153: 2.181661565 | P153: 0.02375540928 | Q153: -0.01663371665
N154: 126 | O154: 2.199114858 | P154: 0.02346149284 | Q154: -0.01704577232
N155: 127 | O155: 2.21656815 | P155: 0.02316042979 | Q155: -0.01745263567
N156: 128 | O156: 2.234021443 | P156: 0.02285231185 | Q156: -0.01785418278
N157: 129 | O157: 2.251474735 | P157: =SIN(O157)*H$24 -> 0.02253723288 | Q157: =COS(O157)*H$24 -> -0.01825029134
N158: 130 | O158: =N158*(PI()/180) -> 2.268928028 | P158: 0.02221528885 | Q158: -0.01864084068
N159: =N158+1 -> 131 | O159: 2.28638132 | P159: 0.02188657783 | Q159: -0.01902571184
N160: 132 | O160: 2.303834613 | P160: 0.02155119994 | Q160: -0.01940478758
N161: 133 | O161: 2.321287905 | P161: 0.02120925735 | Q161: -0.01977795244
N162: 134 | O162: 2.338741198 | P162: 0.02086085421 | Q162: -0.02014509274
N163: 135 | O163: 2.35619449 | P163: 0.02050609665 | Q163: -0.02050609665
N164: 136 | O164: 2.373647783 | P164: 0.02014509274 | Q164: -0.02086085421
N165: 137 | O165: 2.391101075 | P165: 0.01977795244 | Q165: -0.02120925735
N166: 138 | O166: 2.408554368 | P166: 0.01940478758 | Q166: -0.02155119994
N167: 139 | O167: 2.42600766 | P167: 0.01902571184 | Q167: -0.02188657783
N168: 140 | O168: 2.443460953 | P168: 0.01864084068 | Q168: -0.02221528885
N169: 141 | O169: 2.460914245 | P169: 0.01825029134 | Q169: -0.02253723288
N170: 142 | O170: 2.478367538 | P170: 0.01785418278 | Q170: -0.02285231185
N171: 143 | O171: 2.49582083 | P171: 0.01745263567 | Q171: -0.02316042979
N172: 144 | O172: 2.513274123 | P172: 0.01704577232 | Q172: -0.02346149284
N173: 145 | O173: 2.530727415 | P173: 0.01663371665 | Q173: -0.02375540928
N174: 146 | O174: 2.548180708 | P174: 0.0162165942 | Q174: -0.0240420896
N175: 147 | O175: 2.565634 | P175: 0.01579453202 | Q175: -0.02432144647
N176: 148 | O176: 2.583087293 | P176: 0.01536765866 | Q176: -0.02459339479
N177: 149 | O177: 2.600540585 | P177: 0.01493610417 | Q177: -0.02485785172
N178: 150 | O178: 2.617993878 | P178: 0.0145 | Q178: -0.02511473671
N179: 151 | O179: 2.635447171 | P179: 0.01405947899 | Q179: -0.02536397151
N180: 152 | O180: 2.652900463 | P180: 0.01361467532 | Q180: -0.02560548019
N181: 153 | O181: 2.670353756 | P181: 0.01316572449 | Q181: -0.0258391892
N182: 154 | O182: 2.687807048 | P182: 0.01271276326 | Q182: -0.02606502734
N183: 155 | O183: 2.705260341 | P183: 0.01225592959 | Q183: -0.02628292582
N184: 156 | O184: 2.722713633 | P184: 0.01179536265 | Q184: -0.02649281827
N185: 157 | O185: 2.740166926 | P185: 0.01133120273 | Q185: -0.02669464075
N186: 158 | O186: 2.757620218 | P186: 0.01086359121 | Q186: -0.02688833178
N187: 159 | O187: 2.775073511 | P187: 0.01039267054 | Q187: -0.02707383237
N188: 160 | O188: 2.792526803 | P188: 0.009918584156 | Q188: -0.027251086
N189: 161 | O189: 2.809980096 | P189: 0.009441476479 | Q189: -0.02742003869
N190: 162 | O190: 2.827433388 | P190: 0.008961492837 | Q190: -0.02758063897
N191: 163 | O191: 2.844886681 | P191: 0.008478779437 | Q191: -0.02773283792
N192: 164 | O192: 2.862339973 | P192: 0.007993483319 | Q192: -0.02787658918
N193: 165 | O193: 2.879793266 | P193: 0.007505752308 | Q193: -0.02801184896
N194: 166 | O194: 2.897246558 | P194: 0.007015734972 | Q194: -0.02813857606
N195: 167 | O195: 2.914699851 | P195: 0.006523580576 | Q195: -0.02825673188
N196: 168 | O196: 2.932153143 | P196: 0.006029439034 | Q196: -0.02836628042
N197: 169 | O197: 2.949606436 | P197: 0.005533460866 | Q197: -0.02846718832
N198: 170 | O198: 2.967059728 | P198: 0.005035797152 | Q198: -0.02855942484
N199: 171 | O199: 2.984513021 | P199: 0.004536599486 | Q199: -0.02864296188
N200: 172 | O200: 3.001966313 | P200: 0.004036019928 | Q200: -0.02871777399
N201: 173 | O201: 3.019419606 | P201: 0.003534210959 | Q201: -0.0287838384
N202: 174 | O202: 3.036872898 | P202: 0.003031325435 | Q202: -0.02884113497
... 186 more rows

Sheet 50
A1: VRS GNSS Project Control Monument Coordinate Analysis
A3: Project: | B3: =REPORT!B2 -> LUC-23-11.75 | D3: GPS Antenna: | E3: =REPORT!A41 -> Trimble R6 | I3: Report Date: | J3: =REPORT!C49 -> 2021-07-22
A4: PID: | B4: =REPORT!E2 -> 105889 | D4: VRS Network: | E4: ODOT VRS | I4: Prepared By: | J4: =REPORT!C48 -> TK/DCK
A5: Point ID: | B5: 50 | C5: No. of Sessions: | D5: =COUNTIF(GPS_IMPORT!A2:A1000,$B$5) -> 12 | E5: =IF(GPS_IMPORT!K2="TRUE","(GROUND)","(GRID)") -> (GRID) | I5: Checked By: | J5: =REPORT!C52 -> DCK/JS/MDH
A6: SESSION # | B6: Point | C6: Observation Date | D6: Start Time | E6: ="Northing("&GPS_IMPORT!K4&")" -> Northing(sft) | F6: ="Easting("&GPS_IMPORT!K4&")" -> Easting(sft) | G6: ="Height("&GPS_IMPORT!K4&")" -> Height(sft) | H6: ="∆ Northing("&GPS_IMPORT!K4&")" -> ∆ Northing(sft) | I6: ="∆ Easting("&GPS_IMPORT!K4&")" -> ∆ Easting(sft) | J6: ="∆ Height("&GPS_IMPORT!K4&")" -> ∆ Height(sft) | K6: Include in Solution?
A7: 1 | B7: =IF(ROWS(GPS_IMPORT!$1:1)<=COUNTIF(GPS_IMPORT!$A$2:$A$10000,$B$5),INDEX(GPS_IMPORT!$2:$10000,MATCH($B$5,(GPS_IMPORT!$A$2:$A$10000),0)+ROWS($1:1)-1,COLUMN()-1),0) -> 50 | C7: =IF(ROWS(GPS_IMPORT!$1:1)<=COUNTIF(GPS_IMPORT!$A$2:$A$10000,$B$5),INDEX(GPS_IMPORT!$2:$10000,MATCH($B$5,(GPS_IMPORT!$A$2:$A$10000),0)+ROWS($1:1)-1,COLUMN()-1),0) -> 07.06.2021 | D7: =IF(ROWS(GPS_IMPORT!$1:1)<=COUNTIF(GPS_IMPORT!$A$2:$A$10000,$B$5),INDEX(GPS_IMPORT!$2:$10000,MATCH($B$5,(GPS_IMPORT!$A$2:$A$10000),0)+ROWS($1:1)-1,COLUMN()-1),0) -> 08:57:37 | E7: =IF(ROWS(GPS_IMPORT!$1:1)<=COUNTIF(GPS_IMPORT!$A$2:$A$10000,$B$5),INDEX(GPS_IMPORT!$2:$10000,MATCH($B$5,(GPS_IMPORT!$A$2:$A$10000),0)+ROWS($1:1)-1,COLUMN()-1),0) -> 747927.4197 | F7: =IF(ROWS(GPS_IMPORT!$1:1)<=COUNTIF(GPS_IMPORT!$A$2:$A$10000,$B$5),INDEX(GPS_IMPORT!$2:$10000,MATCH($B$5,(GPS_IMPORT!$A$2:$A$10000),0)+ROWS($1:1)-1,COLUMN()-1),0) -> 1642284.648 | G7: =IF(ROWS(GPS_IMPORT!$1:1)<=COUNTIF(GPS_IMPORT!$A$2:$A$10000,$B$5),INDEX(GPS_IMPORT!$2:$10000,MATCH($B$5,(GPS_IMPORT!$A$2:$A$10000),0)+ROWS($1:1)-1,COLUMN()-1),0) -> 627.2773 | H7: =IF(K7=TRUE,IF(E7>0,E$22-E7,0),0) -> 0 | I7: =IF(K7=TRUE,IF(F7>0,F$22-F7,0),0) -> 0 | J7: =IF(K7=TRUE,IF(G7>0,G$22-G7,0),0) -> 0 | K7: FALSE | L7: =IF(OR(ABS(H7)>$H$24,ABS(I7)>$H$24,ABS(SQRT((H7^2)+(I7^2)))>$H$24),IF(K7=TRUE,IF(E7>0,E$22-E7,0),0),0) -> 0 | M7: =IF(OR(ABS(H7)>$H$24,ABS(I7)>$H$24,ABS(SQRT((H7^2)+(I7^2)))>$H$24),IF(K7=TRUE,IF(E7>0,F$22-F7,0),0),0) -> 0
A8: 2 | B8: =IF(ROWS(GPS_IMPORT!$1:2)<=COUNTIF(GPS_IMPORT!$A$2:$A$10000,$B$5),INDEX(GPS_IMPORT!$2:$10000,MATCH($B$5,(GPS_IMPORT!$A$2:$A$10000),0)+ROWS($1:2)-1,COLUMN()-1),0) -> 50 | C8: =IF(ROWS(GPS_IMPORT!$1:2)<=COUNTIF(GPS_IMPORT!$A$2:$A$10000,$B$5),INDEX(GPS_IMPORT!$2:$10000,MATCH($B$5,(GPS_IMPORT!$A$2:$A$10000),0)+ROWS($1:2)-1,COLUMN()-1),0) -> 07.06.2021 | D8: =IF(ROWS(GPS_IMPORT!$1:2)<=COUNTIF(GPS_IMPORT!$A$2:$A$10000,$B$5),INDEX(GPS_IMPORT!$2:$10000,MATCH($B$5,(GPS_IMPORT!$A$2:$A$10000),0)+ROWS($1:2)-1,COLUMN()-1),0) -> 08:59:04 | E8: =IF(ROWS(GPS_IMPORT!$1:2)<=COUNTIF(GPS_IMPORT!$A$2:$A$10000,$B$5),INDEX(GPS_IMPORT!$2:$10000,MATCH($B$5,(GPS_IMPORT!$A$2:$A$10000),0)+ROWS($1:2)-1,COLUMN()-1),0) -> 747927.4385 | F8: =IF(ROWS(GPS_IMPORT!$1:2)<=COUNTIF(GPS_IMPORT!$A$2:$A$10000,$B$5),INDEX(GPS_IMPORT!$2:$10000,MATCH($B$5,(GPS_IMPORT!$A$2:$A$10000),0)+ROWS($1:2)-1,COLUMN()-1),0) -> 1642284.657 | G8: =IF(ROWS(GPS_IMPORT!$1:2)<=COUNTIF(GPS_IMPORT!$A$2:$A$10000,$B$5),INDEX(GPS_IMPORT!$2:$10000,MATCH($B$5,(GPS_IMPORT!$A$2:$A$10000),0)+ROWS($1:2)-1,COLUMN()-1),0) -> 627.2678 | H8: =IF(K8=TRUE,IF(E8>0,E$22-E8,0),0) -> 0 | I8: =IF(K8=TRUE,IF(F8>0,F$22-F8,0),0) -> 0 | J8: =IF(K8=TRUE,IF(G8>0,G$22-G8,0),0) -> 0 | K8: FALSE | L8: 0 | M8: 0
A9: 3 | B9: =IF(ROWS(GPS_IMPORT!$1:3)<=COUNTIF(GPS_IMPORT!$A$2:$A$10000,$B$5),INDEX(GPS_IMPORT!$2:$10000,MATCH($B$5,(GPS_IMPORT!$A$2:$A$10000),0)+ROWS($1:3)-1,COLUMN()-1),0) -> 50 | C9: =IF(ROWS(GPS_IMPORT!$1:3)<=COUNTIF(GPS_IMPORT!$A$2:$A$10000,$B$5),INDEX(GPS_IMPORT!$2:$10000,MATCH($B$5,(GPS_IMPORT!$A$2:$A$10000),0)+ROWS($1:3)-1,COLUMN()-1),0) -> 07.06.2021 | D9: =IF(ROWS(GPS_IMPORT!$1:3)<=COUNTIF(GPS_IMPORT!$A$2:$A$10000,$B$5),INDEX(GPS_IMPORT!$2:$10000,MATCH($B$5,(GPS_IMPORT!$A$2:$A$10000),0)+ROWS($1:3)-1,COLUMN()-1),0) -> 09:00:10 | E9: =IF(ROWS(GPS_IMPORT!$1:3)<=COUNTIF(GPS_IMPORT!$A$2:$A$10000,$B$5),INDEX(GPS_IMPORT!$2:$10000,MATCH($B$5,(GPS_IMPORT!$A$2:$A$10000),0)+ROWS($1:3)-1,COLUMN()-1),0) -> 747927.4175 | F9: =IF(ROWS(GPS_IMPORT!$1:3)<=COUNTIF(GPS_IMPORT!$A$2:$A$10000,$B$5),INDEX(GPS_IMPORT!$2:$10000,MATCH($B$5,(GPS_IMPORT!$A$2:$A$10000),0)+ROWS($1:3)-1,COLUMN()-1),0) -> 1642284.674 | G9: =IF(ROWS(GPS_IMPORT!$1:3)<=COUNTIF(GPS_IMPORT!$A$2:$A$10000,$B$5),INDEX(GPS_IMPORT!$2:$10000,MATCH($B$5,(GPS_IMPORT!$A$2:$A$10000),0)+ROWS($1:3)-1,COLUMN()-1),0) -> 627.303 | H9: 0 | I9: 0 | J9: 0 | K9: FALSE | L9: 0 | M9: 0
A10: 4 | B10: =IF(ROWS(GPS_IMPORT!$1:4)<=COUNTIF(GPS_IMPORT!$A$2:$A$10000,$B$5),INDEX(GPS_IMPORT!$2:$10000,MATCH($B$5,(GPS_IMPORT!$A$2:$A$10000),0)+ROWS($1:4)-1,COLUMN()-1),0) -> 50 | C10: =IF(ROWS(GPS_IMPORT!$1:4)<=COUNTIF(GPS_IMPORT!$A$2:$A$10000,$B$5),INDEX(GPS_IMPORT!$2:$10000,MATCH($B$5,(GPS_IMPORT!$A$2:$A$10000),0)+ROWS($1:4)-1,COLUMN()-1),0) -> 07.06.2021 | D10: =IF(ROWS(GPS_IMPORT!$1:4)<=COUNTIF(GPS_IMPORT!$A$2:$A$10000,$B$5),INDEX(GPS_IMPORT!$2:$10000,MATCH($B$5,(GPS_IMPORT!$A$2:$A$10000),0)+ROWS($1:4)-1,COLUMN()-1),0) -> 09:01:12 | E10: =IF(ROWS(GPS_IMPORT!$1:4)<=COUNTIF(GPS_IMPORT!$A$2:$A$10000,$B$5),INDEX(GPS_IMPORT!$2:$10000,MATCH($B$5,(GPS_IMPORT!$A$2:$A$10000),0)+ROWS($1:4)-1,COLUMN()-1),0) -> 747927.3959 | F10: =IF(ROWS(GPS_IMPORT!$1:4)<=COUNTIF(GPS_IMPORT!$A$2:$A$10000,$B$5),INDEX(GPS_IMPORT!$2:$10000,MATCH($B$5,(GPS_IMPORT!$A$2:$A$10000),0)+ROWS($1:4)-1,COLUMN()-1),0) -> 1642284.647 | G10: =IF(ROWS(GPS_IMPORT!$1:4)<=COUNTIF(GPS_IMPORT!$A$2:$A$10000,$B$5),INDEX(GPS_IMPORT!$2:$10000,MATCH($B$5,(GPS_IMPORT!$A$2:$A$10000),0)+ROWS($1:4)-1,COLUMN()-1),0) -> 627.2888 | H10: 0 | I10: 0 | J10: 0 | K10: FALSE | L10: 0 | M10: 0
A11: 5 | B11: =IF(ROWS(GPS_IMPORT!$1:5)<=COUNTIF(GPS_IMPORT!$A$2:$A$10000,$B$5),INDEX(GPS_IMPORT!$2:$10000,MATCH($B$5,(GPS_IMPORT!$A$2:$A$10000),0)+ROWS($1:5)-1,COLUMN()-1),0) -> 50 | C11: =IF(ROWS(GPS_IMPORT!$1:5)<=COUNTIF(GPS_IMPORT!$A$2:$A$10000,$B$5),INDEX(GPS_IMPORT!$2:$10000,MATCH($B$5,(GPS_IMPORT!$A$2:$A$10000),0)+ROWS($1:5)-1,COLUMN()-1),0) -> 07.06.2021 | D11: =IF(ROWS(GPS_IMPORT!$1:5)<=COUNTIF(GPS_IMPORT!$A$2:$A$10000,$B$5),INDEX(GPS_IMPORT!$2:$10000,MATCH($B$5,(GPS_IMPORT!$A$2:$A$10000),0)+ROWS($1:5)-1,COLUMN()-1),0) -> 13:20:33 | E11: =IF(ROWS(GPS_IMPORT!$1:5)<=COUNTIF(GPS_IMPORT!$A$2:$A$10000,$B$5),INDEX(GPS_IMPORT!$2:$10000,MATCH($B$5,(GPS_IMPORT!$A$2:$A$10000),0)+ROWS($1:5)-1,COLUMN()-1),0) -> 747927.2336 | F11: =IF(ROWS(GPS_IMPORT!$1:5)<=COUNTIF(GPS_IMPORT!$A$2:$A$10000,$B$5),INDEX(GPS_IMPORT!$2:$10000,MATCH($B$5,(GPS_IMPORT!$A$2:$A$10000),0)+ROWS($1:5)-1,COLUMN()-1),0) -> 1642284.68 | G11: =IF(ROWS(GPS_IMPORT!$1:5)<=COUNTIF(GPS_IMPORT!$A$2:$A$10000,$B$5),INDEX(GPS_IMPORT!$2:$10000,MATCH($B$5,(GPS_IMPORT!$A$2:$A$10000),0)+ROWS($1:5)-1,COLUMN()-1),0) -> 627.3285 | H11: 0.05983333336 | I11: -0.006333332974 | J11: 0.06646666667 | K11: TRUE | L11: 0.05983333336 | M11: -0.006333332974
A12: 6 | B12: =IF(ROWS(GPS_IMPORT!$1:6)<=COUNTIF(GPS_IMPORT!$A$2:$A$10000,$B$5),INDEX(GPS_IMPORT!$2:$10000,MATCH($B$5,(GPS_IMPORT!$A$2:$A$10000),0)+ROWS($1:6)-1,COLUMN()-1),0) -> 50 | C12: =IF(ROWS(GPS_IMPORT!$1:6)<=COUNTIF(GPS_IMPORT!$A$2:$A$10000,$B$5),INDEX(GPS_IMPORT!$2:$10000,MATCH($B$5,(GPS_IMPORT!$A$2:$A$10000),0)+ROWS($1:6)-1,COLUMN()-1),0) -> 07.06.2021 | D12: =IF(ROWS(GPS_IMPORT!$1:6)<=COUNTIF(GPS_IMPORT!$A$2:$A$10000,$B$5),INDEX(GPS_IMPORT!$2:$10000,MATCH($B$5,(GPS_IMPORT!$A$2:$A$10000),0)+ROWS($1:6)-1,COLUMN()-1),0) -> 13:22:21 | E12: =IF(ROWS(GPS_IMPORT!$1:6)<=COUNTIF(GPS_IMPORT!$A$2:$A$10000,$B$5),INDEX(GPS_IMPORT!$2:$10000,MATCH($B$5,(GPS_IMPORT!$A$2:$A$10000),0)+ROWS($1:6)-1,COLUMN()-1),0) -> 747927.291 | F12: =IF(ROWS(GPS_IMPORT!$1:6)<=COUNTIF(GPS_IMPORT!$A$2:$A$10000,$B$5),INDEX(GPS_IMPORT!$2:$10000,MATCH($B$5,(GPS_IMPORT!$A$2:$A$10000),0)+ROWS($1:6)-1,COLUMN()-1),0) -> 1642284.691 | G12: =IF(ROWS(GPS_IMPORT!$1:6)<=COUNTIF(GPS_IMPORT!$A$2:$A$10000,$B$5),INDEX(GPS_IMPORT!$2:$10000,MATCH($B$5,(GPS_IMPORT!$A$2:$A$10000),0)+ROWS($1:6)-1,COLUMN()-1),0) -> 627.4091 | H12: 0.00243333343 | I12: -0.01733333315 | J12: -0.01413333333 | K12: TRUE | L12: 0 | M12: 0
A13: 7 | B13: =IF(ROWS(GPS_IMPORT!$1:7)<=COUNTIF(GPS_IMPORT!$A$2:$A$10000,$B$5),INDEX(GPS_IMPORT!$2:$10000,MATCH($B$5,(GPS_IMPORT!$A$2:$A$10000),0)+ROWS($1:7)-1,COLUMN()-1),0) -> 50 | C13: =IF(ROWS(GPS_IMPORT!$1:7)<=COUNTIF(GPS_IMPORT!$A$2:$A$10000,$B$5),INDEX(GPS_IMPORT!$2:$10000,MATCH($B$5,(GPS_IMPORT!$A$2:$A$10000),0)+ROWS($1:7)-1,COLUMN()-1),0) -> 07.06.2021 | D13: =IF(ROWS(GPS_IMPORT!$1:7)<=COUNTIF(GPS_IMPORT!$A$2:$A$10000,$B$5),INDEX(GPS_IMPORT!$2:$10000,MATCH($B$5,(GPS_IMPORT!$A$2:$A$10000),0)+ROWS($1:7)-1,COLUMN()-1),0) -> 13:23:19 | E13: =IF(ROWS(GPS_IMPORT!$1:7)<=COUNTIF(GPS_IMPORT!$A$2:$A$10000,$B$5),INDEX(GPS_IMPORT!$2:$10000,MATCH($B$5,(GPS_IMPORT!$A$2:$A$10000),0)+ROWS($1:7)-1,COLUMN()-1),0) -> 747927.2948 | F13: =IF(ROWS(GPS_IMPORT!$1:7)<=COUNTIF(GPS_IMPORT!$A$2:$A$10000,$B$5),INDEX(GPS_IMPORT!$2:$10000,MATCH($B$5,(GPS_IMPORT!$A$2:$A$10000),0)+ROWS($1:7)-1,COLUMN()-1),0) -> 1642284.656 | G13: =IF(ROWS(GPS_IMPORT!$1:7)<=COUNTIF(GPS_IMPORT!$A$2:$A$10000,$B$5),INDEX(GPS_IMPORT!$2:$10000,MATCH($B$5,(GPS_IMPORT!$A$2:$A$10000),0)+ROWS($1:7)-1,COLUMN()-1),0) -> 627.4384 | H13: -0.001366666635 | I13: 0.017666667 | J13: -0.04343333333 | K13: TRUE | L13: 0 | M13: 0
A14: 8 | B14: =IF(ROWS(GPS_IMPORT!$1:8)<=COUNTIF(GPS_IMPORT!$A$2:$A$10000,$B$5),INDEX(GPS_IMPORT!$2:$10000,MATCH($B$5,(GPS_IMPORT!$A$2:$A$10000),0)+ROWS($1:8)-1,COLUMN()-1),0) -> 50 | C14: =IF(ROWS(GPS_IMPORT!$1:8)<=COUNTIF(GPS_IMPORT!$A$2:$A$10000,$B$5),INDEX(GPS_IMPORT!$2:$10000,MATCH($B$5,(GPS_IMPORT!$A$2:$A$10000),0)+ROWS($1:8)-1,COLUMN()-1),0) -> 07.06.2021 | D14: =IF(ROWS(GPS_IMPORT!$1:8)<=COUNTIF(GPS_IMPORT!$A$2:$A$10000,$B$5),INDEX(GPS_IMPORT!$2:$10000,MATCH($B$5,(GPS_IMPORT!$A$2:$A$10000),0)+ROWS($1:8)-1,COLUMN()-1),0) -> 13:24:23 | E14: =IF(ROWS(GPS_IMPORT!$1:8)<=COUNTIF(GPS_IMPORT!$A$2:$A$10000,$B$5),INDEX(GPS_IMPORT!$2:$10000,MATCH($B$5,(GPS_IMPORT!$A$2:$A$10000),0)+ROWS($1:8)-1,COLUMN()-1),0) -> 747927.3007 | F14: =IF(ROWS(GPS_IMPORT!$1:8)<=COUNTIF(GPS_IMPORT!$A$2:$A$10000,$B$5),INDEX(GPS_IMPORT!$2:$10000,MATCH($B$5,(GPS_IMPORT!$A$2:$A$10000),0)+ROWS($1:8)-1,COLUMN()-1),0) -> 1642284.675 | G14: =IF(ROWS(GPS_IMPORT!$1:8)<=COUNTIF(GPS_IMPORT!$A$2:$A$10000,$B$5),INDEX(GPS_IMPORT!$2:$10000,MATCH($B$5,(GPS_IMPORT!$A$2:$A$10000),0)+ROWS($1:8)-1,COLUMN()-1),0) -> 627.4307 | H14: -0.007266666624 | I14: -0.001333333086 | J14: -0.03573333333 | K14: TRUE | L14: 0 | M14: 0
A15: 9 | B15: =IF(ROWS(GPS_IMPORT!$1:9)<=COUNTIF(GPS_IMPORT!$A$2:$A$10000,$B$5),INDEX(GPS_IMPORT!$2:$10000,MATCH($B$5,(GPS_IMPORT!$A$2:$A$10000),0)+ROWS($1:9)-1,COLUMN()-1),0) -> 50 | C15: =IF(ROWS(GPS_IMPORT!$1:9)<=COUNTIF(GPS_IMPORT!$A$2:$A$10000,$B$5),INDEX(GPS_IMPORT!$2:$10000,MATCH($B$5,(GPS_IMPORT!$A$2:$A$10000),0)+ROWS($1:9)-1,COLUMN()-1),0) -> 07.06.2021 | D15: =IF(ROWS(GPS_IMPORT!$1:9)<=COUNTIF(GPS_IMPORT!$A$2:$A$10000,$B$5),INDEX(GPS_IMPORT!$2:$10000,MATCH($B$5,(GPS_IMPORT!$A$2:$A$10000),0)+ROWS($1:9)-1,COLUMN()-1),0) -> 13:25:40 | E15: =IF(ROWS(GPS_IMPORT!$1:9)<=COUNTIF(GPS_IMPORT!$A$2:$A$10000,$B$5),INDEX(GPS_IMPORT!$2:$10000,MATCH($B$5,(GPS_IMPORT!$A$2:$A$10000),0)+ROWS($1:9)-1,COLUMN()-1),0) -> 747927.3035 | F15: =IF(ROWS(GPS_IMPORT!$1:9)<=COUNTIF(GPS_IMPORT!$A$2:$A$10000,$B$5),INDEX(GPS_IMPORT!$2:$10000,MATCH($B$5,(GPS_IMPORT!$A$2:$A$10000),0)+ROWS($1:9)-1,COLUMN()-1),0) -> 1642284.679 | G15: =IF(ROWS(GPS_IMPORT!$1:9)<=COUNTIF(GPS_IMPORT!$A$2:$A$10000,$B$5),INDEX(GPS_IMPORT!$2:$10000,MATCH($B$5,(GPS_IMPORT!$A$2:$A$10000),0)+ROWS($1:9)-1,COLUMN()-1),0) -> 627.3789 | H15: -0.01006666664 | I15: -0.005333333043 | J15: 0.01606666667 | K15: TRUE | L15: 0 | M15: 0
A16: 10 | B16: =IF(ROWS(GPS_IMPORT!$1:10)<=COUNTIF(GPS_IMPORT!$A$2:$A$10000,$B$5),INDEX(GPS_IMPORT!$2:$10000,MATCH($B$5,(GPS_IMPORT!$A$2:$A$10000),0)+ROWS($1:10)-1,COLUMN()-1),0) -> 50 | C16: =IF(ROWS(GPS_IMPORT!$1:10)<=COUNTIF(GPS_IMPORT!$A$2:$A$10000,$B$5),INDEX(GPS_IMPORT!$2:$10000,MATCH($B$5,(GPS_IMPORT!$A$2:$A$10000),0)+ROWS($1:10)-1,COLUMN()-1),0) -> 07.06.2021 | D16: =IF(ROWS(GPS_IMPORT!$1:10)<=COUNTIF(GPS_IMPORT!$A$2:$A$10000,$B$5),INDEX(GPS_IMPORT!$2:$10000,MATCH($B$5,(GPS_IMPORT!$A$2:$A$10000),0)+ROWS($1:10)-1,COLUMN()-1),0) -> 13:26:46 | E16: =IF(ROWS(GPS_IMPORT!$1:10)<=COUNTIF(GPS_IMPORT!$A$2:$A$10000,$B$5),INDEX(GPS_IMPORT!$2:$10000,MATCH($B$5,(GPS_IMPORT!$A$2:$A$10000),0)+ROWS($1:10)-1,COLUMN()-1),0) -> 747927.337 | F16: =IF(ROWS(GPS_IMPORT!$1:10)<=COUNTIF(GPS_IMPORT!$A$2:$A$10000,$B$5),INDEX(GPS_IMPORT!$2:$10000,MATCH($B$5,(GPS_IMPORT!$A$2:$A$10000),0)+ROWS($1:10)-1,COLUMN()-1),0) -> 1642284.661 | G16: =IF(ROWS(GPS_IMPORT!$1:10)<=COUNTIF(GPS_IMPORT!$A$2:$A$10000,$B$5),INDEX(GPS_IMPORT!$2:$10000,MATCH($B$5,(GPS_IMPORT!$A$2:$A$10000),0)+ROWS($1:10)-1,COLUMN()-1),0) -> 627.3842 | H16: -0.04356666666 | I16: 0.01266666688 | J16: 0.01076666667 | K16: TRUE | L16: -0.04356666666 | M16: 0.01266666688
A17: 11 | B17: =IF(ROWS(GPS_IMPORT!$1:11)<=COUNTIF(GPS_IMPORT!$A$2:$A$10000,$B$5),INDEX(GPS_IMPORT!$2:$10000,MATCH($B$5,(GPS_IMPORT!$A$2:$A$10000),0)+ROWS($1:11)-1,COLUMN()-1),0) -> 50 | C17: =IF(ROWS(GPS_IMPORT!$1:11)<=COUNTIF(GPS_IMPORT!$A$2:$A$10000,$B$5),INDEX(GPS_IMPORT!$2:$10000,MATCH($B$5,(GPS_IMPORT!$A$2:$A$10000),0)+ROWS($1:11)-1,COLUMN()-1),0) -> 07.06.2021 | D17: =IF(ROWS(GPS_IMPORT!$1:11)<=COUNTIF(GPS_IMPORT!$A$2:$A$10000,$B$5),INDEX(GPS_IMPORT!$2:$10000,MATCH($B$5,(GPS_IMPORT!$A$2:$A$10000),0)+ROWS($1:11)-1,COLUMN()-1),0) -> 13:41:44 | E17: =IF(ROWS(GPS_IMPORT!$1:11)<=COUNTIF(GPS_IMPORT!$A$2:$A$10000,$B$5),INDEX(GPS_IMPORT!$2:$10000,MATCH($B$5,(GPS_IMPORT!$A$2:$A$10000),0)+ROWS($1:11)-1,COLUMN()-1),0) -> 747927.3512 | F17: =IF(ROWS(GPS_IMPORT!$1:11)<=COUNTIF(GPS_IMPORT!$A$2:$A$10000,$B$5),INDEX(GPS_IMPORT!$2:$10000,MATCH($B$5,(GPS_IMPORT!$A$2:$A$10000),0)+ROWS($1:11)-1,COLUMN()-1),0) -> 1642284.687 | G17: =IF(ROWS(GPS_IMPORT!$1:11)<=COUNTIF(GPS_IMPORT!$A$2:$A$10000,$B$5),INDEX(GPS_IMPORT!$2:$10000,MATCH($B$5,(GPS_IMPORT!$A$2:$A$10000),0)+ROWS($1:11)-1,COLUMN()-1),0) -> 627.2028 | H17: 0 | I17: 0 | J17: 0 | K17: FALSE | L17: 0 | M17: 0
A18: 12 | B18: =IF(ROWS(GPS_IMPORT!$1:12)<=COUNTIF(GPS_IMPORT!$A$2:$A$10000,$B$5),INDEX(GPS_IMPORT!$2:$10000,MATCH($B$5,(GPS_IMPORT!$A$2:$A$10000),0)+ROWS($1:12)-1,COLUMN()-1),0) -> 50 | C18: =IF(ROWS(GPS_IMPORT!$1:12)<=COUNTIF(GPS_IMPORT!$A$2:$A$10000,$B$5),INDEX(GPS_IMPORT!$2:$10000,MATCH($B$5,(GPS_IMPORT!$A$2:$A$10000),0)+ROWS($1:12)-1,COLUMN()-1),0) -> 07.06.2021 | D18: =IF(ROWS(GPS_IMPORT!$1:12)<=COUNTIF(GPS_IMPORT!$A$2:$A$10000,$B$5),INDEX(GPS_IMPORT!$2:$10000,MATCH($B$5,(GPS_IMPORT!$A$2:$A$10000),0)+ROWS($1:12)-1,COLUMN()-1),0) -> 13:42:21 | E18: =IF(ROWS(GPS_IMPORT!$1:12)<=COUNTIF(GPS_IMPORT!$A$2:$A$10000,$B$5),INDEX(GPS_IMPORT!$2:$10000,MATCH($B$5,(GPS_IMPORT!$A$2:$A$10000),0)+ROWS($1:12)-1,COLUMN()-1),0) -> 747927.3611 | F18: =IF(ROWS(GPS_IMPORT!$1:12)<=COUNTIF(GPS_IMPORT!$A$2:$A$10000,$B$5),INDEX(GPS_IMPORT!$2:$10000,MATCH($B$5,(GPS_IMPORT!$A$2:$A$10000),0)+ROWS($1:12)-1,COLUMN()-1),0) -> 1642284.688 | G18: =IF(ROWS(GPS_IMPORT!$1:12)<=COUNTIF(GPS_IMPORT!$A$2:$A$10000,$B$5),INDEX(GPS_IMPORT!$2:$10000,MATCH($B$5,(GPS_IMPORT!$A$2:$A$10000),0)+ROWS($1:12)-1,COLUMN()-1),0) -> 627.2338 | H18: 0 | I18: 0 | J18: 0 | K18: FALSE | L18: 0 | M18: 0
A19: 13 | B19: =IF(ROWS(GPS_IMPORT!$1:13)<=COUNTIF(GPS_IMPORT!$A$2:$A$10000,$B$5),INDEX(GPS_IMPORT!$2:$10000,MATCH($B$5,(GPS_IMPORT!$A$2:$A$10000),0)+ROWS($1:13)-1,COLUMN()-1),0) -> 0 | C19: =IF(ROWS(GPS_IMPORT!$1:13)<=COUNTIF(GPS_IMPORT!$A$2:$A$10000,$B$5),INDEX(GPS_IMPORT!$2:$10000,MATCH($B$5,(GPS_IMPORT!$A$2:$A$10000),0)+ROWS($1:13)-1,COLUMN()-1),0) -> 00:00:00 | D19: =IF(ROWS(GPS_IMPORT!$1:13)<=COUNTIF(GPS_IMPORT!$A$2:$A$10000,$B$5),INDEX(GPS_IMPORT!$2:$10000,MATCH($B$5,(GPS_IMPORT!$A$2:$A$10000),0)+ROWS($1:13)-1,COLUMN()-1),0) -> 00:00:00 | E19: =IF(ROWS(GPS_IMPORT!$1:13)<=COUNTIF(GPS_IMPORT!$A$2:$A$10000,$B$5),INDEX(GPS_IMPORT!$2:$10000,MATCH($B$5,(GPS_IMPORT!$A$2:$A$10000),0)+ROWS($1:13)-1,COLUMN()-1),0) -> 0 | F19: =IF(ROWS(GPS_IMPORT!$1:13)<=COUNTIF(GPS_IMPORT!$A$2:$A$10000,$B$5),INDEX(GPS_IMPORT!$2:$10000,MATCH($B$5,(GPS_IMPORT!$A$2:$A$10000),0)+ROWS($1:13)-1,COLUMN()-1),0) -> 0 | G19: =IF(ROWS(GPS_IMPORT!$1:13)<=COUNTIF(GPS_IMPORT!$A$2:$A$10000,$B$5),INDEX(GPS_IMPORT!$2:$10000,MATCH($B$5,(GPS_IMPORT!$A$2:$A$10000),0)+ROWS($1:13)-1,COLUMN()-1),0) -> 0 | H19: 0 | I19: 0 | J19: 0 | K19: FALSE | L19: 0 | M19: 0
A20: 14 | B20: =IF(ROWS(GPS_IMPORT!$1:14)<=COUNTIF(GPS_IMPORT!$A$2:$A$10000,$B$5),INDEX(GPS_IMPORT!$2:$10000,MATCH($B$5,(GPS_IMPORT!$A$2:$A$10000),0)+ROWS($1:14)-1,COLUMN()-1),0) -> 0 | C20: =IF(ROWS(GPS_IMPORT!$1:14)<=COUNTIF(GPS_IMPORT!$A$2:$A$10000,$B$5),INDEX(GPS_IMPORT!$2:$10000,MATCH($B$5,(GPS_IMPORT!$A$2:$A$10000),0)+ROWS($1:14)-1,COLUMN()-1),0) -> 00:00:00 | D20: =IF(ROWS(GPS_IMPORT!$1:14)<=COUNTIF(GPS_IMPORT!$A$2:$A$10000,$B$5),INDEX(GPS_IMPORT!$2:$10000,MATCH($B$5,(GPS_IMPORT!$A$2:$A$10000),0)+ROWS($1:14)-1,COLUMN()-1),0) -> 00:00:00 | E20: =IF(ROWS(GPS_IMPORT!$1:14)<=COUNTIF(GPS_IMPORT!$A$2:$A$10000,$B$5),INDEX(GPS_IMPORT!$2:$10000,MATCH($B$5,(GPS_IMPORT!$A$2:$A$10000),0)+ROWS($1:14)-1,COLUMN()-1),0) -> 0 | F20: =IF(ROWS(GPS_IMPORT!$1:14)<=COUNTIF(GPS_IMPORT!$A$2:$A$10000,$B$5),INDEX(GPS_IMPORT!$2:$10000,MATCH($B$5,(GPS_IMPORT!$A$2:$A$10000),0)+ROWS($1:14)-1,COLUMN()-1),0) -> 0 | G20: =IF(ROWS(GPS_IMPORT!$1:14)<=COUNTIF(GPS_IMPORT!$A$2:$A$10000,$B$5),INDEX(GPS_IMPORT!$2:$10000,MATCH($B$5,(GPS_IMPORT!$A$2:$A$10000),0)+ROWS($1:14)-1,COLUMN()-1),0) -> 0 | H20: 0 | I20: 0 | J20: 0 | K20: FALSE | L20: 0 | M20: 0
A21: 15 | B21: =IF(ROWS(GPS_IMPORT!$1:15)<=COUNTIF(GPS_IMPORT!$A$2:$A$10000,$B$5),INDEX(GPS_IMPORT!$2:$10000,MATCH($B$5,(GPS_IMPORT!$A$2:$A$10000),0)+ROWS($1:15)-1,COLUMN()-1),0) -> 0 | C21: =IF(ROWS(GPS_IMPORT!$1:15)<=COUNTIF(GPS_IMPORT!$A$2:$A$10000,$B$5),INDEX(GPS_IMPORT!$2:$10000,MATCH($B$5,(GPS_IMPORT!$A$2:$A$10000),0)+ROWS($1:15)-1,COLUMN()-1),0) -> 00:00:00 | D21: =IF(ROWS(GPS_IMPORT!$1:15)<=COUNTIF(GPS_IMPORT!$A$2:$A$10000,$B$5),INDEX(GPS_IMPORT!$2:$10000,MATCH($B$5,(GPS_IMPORT!$A$2:$A$10000),0)+ROWS($1:15)-1,COLUMN()-1),0) -> 00:00:00 | E21: =IF(ROWS(GPS_IMPORT!$1:15)<=COUNTIF(GPS_IMPORT!$A$2:$A$10000,$B$5),INDEX(GPS_IMPORT!$2:$10000,MATCH($B$5,(GPS_IMPORT!$A$2:$A$10000),0)+ROWS($1:15)-1,COLUMN()-1),0) -> 0 | F21: =IF(ROWS(GPS_IMPORT!$1:15)<=COUNTIF(GPS_IMPORT!$A$2:$A$10000,$B$5),INDEX(GPS_IMPORT!$2:$10000,MATCH($B$5,(GPS_IMPORT!$A$2:$A$10000),0)+ROWS($1:15)-1,COLUMN()-1),0) -> 0 | G21: =IF(ROWS(GPS_IMPORT!$1:15)<=COUNTIF(GPS_IMPORT!$A$2:$A$10000,$B$5),INDEX(GPS_IMPORT!$2:$10000,MATCH($B$5,(GPS_IMPORT!$A$2:$A$10000),0)+ROWS($1:15)-1,COLUMN()-1),0) -> 0 | H21: =IF(K21=TRUE,IF(E21>0,E$22-E21,0),0) -> 0 | I21: 0 | J21: 0 | K21: FALSE | L21: 0 | M21: 0
D22: AVERAGE | E22: =(IF($K$7=TRUE,E7,0)+IF($K$8=TRUE,E8,0)+IF($K$9=TRUE,E9,0)+IF($K$10=TRUE,E10,0)+IF($K$11=TRUE,E11,0)+IF($K$12=TRUE,E12,0)+IF($K$13=TRUE,E13,0)+IF($K$14=TRUE,E14,0)+IF($K$15=TRUE,E15,0)+IF($K$16=TRUE,E16,0)+IF($K$17=TRUE,E17,0)+IF($K$18=TRUE,E18,0)+IF($K$19=TRUE,E19,0)+IF($K$20=TRUE,E20,0)+IF($K$21=TRUE,E21,0))/(IF($K$7=TRUE,1,0)+IF($K$8=TRUE,1,0)+IF($K$9=TRUE,1,0)+IF($K$10=TRUE,1,0)+IF($K$11=TRUE,1,0)+IF($K$12=TRUE,1,0)+IF($K$13=TRUE,1,0)+IF($K$14=TRUE,1,0)+IF($K$15=TRUE,1,0)+IF($K$16=TRUE,1,0)+IF($K$17=TRUE,1,0)+IF($K$18=TRUE,1,0)+IF($K$19=TRUE,1,0)+IF($K$20=TRUE,1,0)+IF($K$21=TRUE,1,0)) -> 747927.2934 | F22: =(IF($K$7=TRUE,F7,0)+IF($K$8=TRUE,F8,0)+IF($K$9=TRUE,F9,0)+IF($K$10=TRUE,F10,0)+IF($K$11=TRUE,F11,0)+IF($K$12=TRUE,F12,0)+IF($K$13=TRUE,F13,0)+IF($K$14=TRUE,F14,0)+IF($K$15=TRUE,F15,0)+IF($K$16=TRUE,F16,0)+IF($K$17=TRUE,F17,0)+IF($K$18=TRUE,F18,0)+IF($K$19=TRUE,F19,0)+IF($K$20=TRUE,F20,0)+IF($K$21=TRUE,F21,0))/(IF($K$7=TRUE,1,0)+IF($K$8=TRUE,1,0)+IF($K$9=TRUE,1,0)+IF($K$10=TRUE,1,0)+IF($K$11=TRUE,1,0)+IF($K$12=TRUE,1,0)+IF($K$13=TRUE,1,0)+IF($K$14=TRUE,1,0)+IF($K$15=TRUE,1,0)+IF($K$16=TRUE,1,0)+IF($K$17=TRUE,1,0)+IF($K$18=TRUE,1,0)+IF($K$19=TRUE,1,0)+IF($K$20=TRUE,1,0)+IF($K$21=TRUE,1,0)) -> 1642284.674 | G22: =(IF($K$7=TRUE,G7,0)+IF($K$8=TRUE,G8,0)+IF($K$9=TRUE,G9,0)+IF($K$10=TRUE,G10,0)+IF($K$11=TRUE,G11,0)+IF($K$12=TRUE,G12,0)+IF($K$13=TRUE,G13,0)+IF($K$14=TRUE,G14,0)+IF($K$15=TRUE,G15,0)+IF($K$16=TRUE,G16,0)+IF($K$17=TRUE,G17,0)+IF($K$18=TRUE,G18,0)+IF($K$19=TRUE,G19,0)+IF($K$20=TRUE,G20,0)+IF($K$21=TRUE,G21,0))/ (IF($K$7=TRUE,1,0)+IF($K$8=TRUE,1,0)+IF($K$9=TRUE,1,0)+IF($K$10=TRUE,1,0)+IF($K$11=TRUE,1,0)+IF($K$12=TRUE,1,0)+IF($K$13=TRUE,1,0)+IF($K$14=TRUE,1,0)+IF($K$15=TRUE,1,0)+IF($K$16=TRUE,1,0)+IF($K$17=TRUE,1,0)+IF($K$18=TRUE,1,0)+IF($K$19=TRUE,1,0)+IF($K$20=TRUE,1,0)+IF($K$21=TRUE,1,0)) -> 627.3949667 | H22: RMSE: | I22: RMSE: | J22: RMSE:
G23: ="RMSE IN "&GPS_IMPORT!J4&":" -> RMSE IN U.S. Survey FT: | H23: =SQRT(SUMSQ((IF(K7:K21=TRUE,H7:H21)))/COUNTIF(K7:K21,K7:K21=TRUE)) -> 0.02503334074 | I23: =SQRT(SUMSQ((IF(K7:K21=TRUE,I7:I21)))/COUNTIF(K7:K21,K7:K21=TRUE)) -> 0.009680067354 | J23: =SQRT(SUMSQ((IF(K7:K21=TRUE,J7:J21)))/COUNTIF(K7:K21,K7:K21=TRUE)) -> 0.03010159341
G24: Tolerance: | H24: =VLOOKUP(GPS_IMPORT!$K$4,Lists!H3:I5,2,FALSE) -> 0.029 | J24: =VLOOKUP(GPS_IMPORT!$K$4,Lists!H3:J5,3,FALSE) -> 0.039
H25: =IF(H23<=H24,"PASS","FAIL") -> PASS | I25: =IF(I23<=H24,"PASS","FAIL") -> PASS | J25: =IF(J23<=J24,"PASS","FAIL") -> PASS
A27: AVERAGED GPS-DERIVED POSITION | I27: Notes:
B28: MONUMENT COORDINATES | D28: NORTHING | E28: EASTING | F28: ORTHO HEIGHT | N28: Degrees | O28: Radians | P28: SIN | Q28: COS
B29: =GPS_IMPORT!J4&" ("&IF(GPS_IMPORT!K2="TRUE","GROUND","GRID")&")" -> U.S. Survey FT (GRID) | D29: =$E$22 -> 747927.2934 | E29: =$F$22 -> 1642284.674 | F29: =$G$22 -> 627.3949667 | N29: 1 | O29: =N29*(PI()/180) -> 0.01745329252 | P29: =SIN(O29)*H$24 -> 0.0005061197867 | Q29: =COS(O29)*H$24 -> 0.02899558316
N30: =N29+1 -> 2 | O30: =N30*(PI()/180) -> 0.03490658504 | P30: 0.001012085404 | Q30: 0.02898233398
A31: LEVELED ELEVATION | N31: =N30+1 -> 3 | O31: 0.05235987756 | P31: 0.001517742731 | Q31: 0.02896025651
A32: ='LEVEL RUN'!B5 -> U.S. Survey FT | C32: =IFERROR(VLOOKUP(B5,'LEVEL RUN'!A7:I59,9,FALSE),"N/A") -> 627.3779723 | D32: (Fill out Level Run Sheet or N/A if no leveled elevation is available) | N32: 4 | O32: 0.06981317008 | P32: 0.002022937739 | Q32: 0.02892935746
A33: MONUMENT HELD | C33: =IF('LEVEL RUN'!A7="","",'LEVEL RUN'!A7) -> 331 | D33: (Type the monument name from which leveling originated) | N33: 5 | O33: 0.0872664626 | P33: 0.00252751654 | Q33: 0.02888964624
A34: LEVELED ELEVATION - GPS DERIVED ELEVATION = | E34: =IF(C32="N/A","N/A",C32-(F29*'LEVEL RUN'!F5)) -> -0.01699437751 | F34: ='LEVEL RUN'!D5 -> sft | N34: 6 | O34: 0.1047197551 | P34: 0.003031325435 | Q34: 0.02884113497
N35: 7 | O35: 0.1221730476 | P35: 0.003534210959 | Q35: 0.0287838384
A36: FINAL MONUMENT COORDINATES | N36: 8 | O36: 0.1396263402 | P36: 0.004036019928 | Q36: 0.02871777399
B37: MONUMENT COORDINATES | D37: NORTHING | E37: EASTING | F37: ELEVATION | G37: FEATURE CODE | N37: 9 | O37: 0.1570796327 | P37: 0.004536599486 | Q37: 0.02864296188
B38: =GPS_IMPORT!J6&" (GRID)" -> U.S. Survey FT (GRID) | D38: =IF(GPS_IMPORT!K2=TRUE,($E$22*GPS_IMPORT!$L$6)*(1/REPORT!C13),$E$22*GPS_IMPORT!$L$6) -> 747927.2934 | E38: =IF(GPS_IMPORT!K2=TRUE,($F$22*GPS_IMPORT!$L$6)*(1/REPORT!C13),$F$22*GPS_IMPORT!$L$6) -> 1642284.674 | F38: =IF($C$32="N/A",($G$22*GPS_IMPORT!$L$6),$C$32*'LEVEL RUN'!H5) -> 627.3779723 | G38: =VLOOKUP($B$5,GPS_IMPORT!$A$2:$G$2000,7,FALSE) -> IPS | N38: 10 | O38: 0.1745329252 | P38: 0.005035797152 | Q38: 0.02855942484
B39: =GPS_IMPORT!J6&" (GROUND)" -> U.S. Survey FT (GROUND) | D39: =IF(GPS_IMPORT!K2=TRUE,$E$22*GPS_IMPORT!$L$6,$E$22*GPS_IMPORT!$L$6*REPORT!C13) -> 747946.2459 | E39: =IF(GPS_IMPORT!K2=TRUE,$F$22*GPS_IMPORT!$L$6,$F$22*GPS_IMPORT!$L$6*REPORT!C13) -> 1642326.289 | F39: =IF($C$32="N/A",($G$22*GPS_IMPORT!$L$6),$C$32*'LEVEL RUN'!H5) -> 627.3779723 | G39: =$G$38 -> IPS | N39: 11 | O39: 0.1919862177 | P39: 0.005533460866 | Q39: 0.02846718832
N40: 12 | O40: 0.2094395102 | P40: 0.006029439034 | Q40: 0.02836628042
A41: ∆ North, ∆ East, and ∆ Ht. are the difference between the average northing, easting, and height for each observation. | I41: Mask Angle: | J41: 10° | N41: 13 | O41: 0.2268928028 | P41: 0.006523580576 | Q41: 0.02825673188
N42: 14 | O42: 0.2443460953 | P42: 0.007015734972 | Q42: 0.02813857606
N43: 15 | O43: 0.2617993878 | P43: 0.007505752308 | Q43: 0.02801184896
N44: 16 | O44: 0.2792526803 | P44: 0.007993483319 | Q44: 0.02787658918
N45: 17 | O45: 0.2967059728 | P45: 0.008478779437 | Q45: 0.02773283792
N46: 18 | O46: 0.3141592654 | P46: 0.008961492837 | Q46: 0.02758063897
N47: 19 | O47: 0.3316125579 | P47: 0.009441476479 | Q47: 0.02742003869
N48: 20 | O48: 0.3490658504 | P48: 0.009918584156 | Q48: 0.027251086
N49: 21 | O49: 0.3665191429 | P49: 0.01039267054 | Q49: 0.02707383237
N50: 22 | O50: 0.3839724354 | P50: 0.01086359121 | Q50: 0.02688833178
N51: 23 | O51: 0.401425728 | P51: 0.01133120273 | Q51: 0.02669464075
N52: 24 | O52: 0.4188790205 | P52: 0.01179536265 | Q52: 0.02649281827
N53: 25 | O53: 0.436332313 | P53: 0.01225592959 | Q53: 0.02628292582
N54: 26 | O54: 0.4537856055 | P54: 0.01271276326 | Q54: 0.02606502734
N55: 27 | O55: 0.471238898 | P55: 0.01316572449 | Q55: 0.0258391892
N56: 28 | O56: 0.4886921906 | P56: 0.01361467532 | Q56: 0.02560548019
N57: 29 | O57: 0.5061454831 | P57: 0.01405947899 | Q57: 0.02536397151
N58: 30 | O58: 0.5235987756 | P58: 0.0145 | Q58: 0.02511473671
N59: 31 | O59: 0.5410520681 | P59: 0.01493610417 | Q59: 0.02485785172
N60: 32 | O60: 0.5585053606 | P60: 0.01536765866 | Q60: 0.02459339479
N61: 33 | O61: 0.5759586532 | P61: 0.01579453202 | Q61: 0.02432144647
N62: 34 | O62: 0.5934119457 | P62: 0.0162165942 | Q62: 0.0240420896
N63: 35 | O63: 0.6108652382 | P63: 0.01663371665 | Q63: 0.02375540928
N64: 36 | O64: 0.6283185307 | P64: 0.01704577232 | Q64: 0.02346149284
N65: 37 | O65: 0.6457718232 | P65: 0.01745263567 | Q65: 0.02316042979
N66: 38 | O66: 0.6632251158 | P66: 0.01785418278 | Q66: 0.02285231185
N67: 39 | O67: 0.6806784083 | P67: 0.01825029134 | Q67: 0.02253723288
N68: 40 | O68: 0.6981317008 | P68: 0.01864084068 | Q68: 0.02221528885
N69: 41 | O69: 0.7155849933 | P69: 0.01902571184 | Q69: 0.02188657783
N70: 42 | O70: 0.7330382858 | P70: 0.01940478758 | Q70: 0.02155119994
N71: 43 | O71: 0.7504915784 | P71: 0.01977795244 | Q71: 0.02120925735
N72: 44 | O72: 0.7679448709 | P72: 0.02014509274 | Q72: 0.02086085421
N73: 45 | O73: 0.7853981634 | P73: 0.02050609665 | Q73: 0.02050609665
N74: 46 | O74: 0.8028514559 | P74: 0.02086085421 | Q74: 0.02014509274
N75: 47 | O75: 0.8203047484 | P75: 0.02120925735 | Q75: 0.01977795244
N76: 48 | O76: 0.837758041 | P76: 0.02155119994 | Q76: 0.01940478758
N77: 49 | O77: 0.8552113335 | P77: 0.02188657783 | Q77: 0.01902571184
N78: 50 | O78: 0.872664626 | P78: 0.02221528885 | Q78: 0.01864084068
N79: 51 | O79: 0.8901179185 | P79: 0.02253723288 | Q79: 0.01825029134
N80: 52 | O80: 0.907571211 | P80: 0.02285231185 | Q80: 0.01785418278
N81: 53 | O81: 0.9250245036 | P81: 0.02316042979 | Q81: 0.01745263567
N82: 54 | O82: 0.9424777961 | P82: 0.02346149284 | Q82: 0.01704577232
N83: 55 | O83: 0.9599310886 | P83: 0.02375540928 | Q83: 0.01663371665
N84: 56 | O84: 0.9773843811 | P84: 0.0240420896 | Q84: 0.0162165942
N85: 57 | O85: 0.9948376736 | P85: 0.02432144647 | Q85: 0.01579453202
N86: 58 | O86: 1.012290966 | P86: 0.02459339479 | Q86: 0.01536765866
N87: 59 | O87: 1.029744259 | P87: 0.02485785172 | Q87: 0.01493610417
N88: 60 | O88: 1.047197551 | P88: 0.02511473671 | Q88: 0.0145
N89: 61 | O89: 1.064650844 | P89: 0.02536397151 | Q89: 0.01405947899
N90: 62 | O90: 1.082104136 | P90: 0.02560548019 | Q90: 0.01361467532
N91: 63 | O91: 1.099557429 | P91: 0.0258391892 | Q91: 0.01316572449
N92: 64 | O92: 1.117010721 | P92: 0.02606502734 | Q92: 0.01271276326
N93: 65 | O93: 1.134464014 | P93: =SIN(O93)*H$24 -> 0.02628292582 | Q93: =COS(O93)*H$24 -> 0.01225592959
N94: 66 | O94: =N94*(PI()/180) -> 1.151917306 | P94: 0.02649281827 | Q94: 0.01179536265
N95: =N94+1 -> 67 | O95: 1.169370599 | P95: 0.02669464075 | Q95: 0.01133120273
N96: 68 | O96: 1.186823891 | P96: 0.02688833178 | Q96: 0.01086359121
N97: 69 | O97: 1.204277184 | P97: 0.02707383237 | Q97: 0.01039267054
N98: 70 | O98: 1.221730476 | P98: 0.027251086 | Q98: 0.009918584156
N99: 71 | O99: 1.239183769 | P99: 0.02742003869 | Q99: 0.009441476479
N100: 72 | O100: 1.256637061 | P100: 0.02758063897 | Q100: 0.008961492837
N101: 73 | O101: 1.274090354 | P101: 0.02773283792 | Q101: 0.008478779437
N102: 74 | O102: 1.291543646 | P102: 0.02787658918 | Q102: 0.007993483319
N103: 75 | O103: 1.308996939 | P103: 0.02801184896 | Q103: 0.007505752308
N104: 76 | O104: 1.326450232 | P104: 0.02813857606 | Q104: 0.007015734972
N105: 77 | O105: 1.343903524 | P105: 0.02825673188 | Q105: 0.006523580576
N106: 78 | O106: 1.361356817 | P106: 0.02836628042 | Q106: 0.006029439034
N107: 79 | O107: 1.378810109 | P107: 0.02846718832 | Q107: 0.005533460866
N108: 80 | O108: 1.396263402 | P108: 0.02855942484 | Q108: 0.005035797152
N109: 81 | O109: 1.413716694 | P109: 0.02864296188 | Q109: 0.004536599486
N110: 82 | O110: 1.431169987 | P110: 0.02871777399 | Q110: 0.004036019928
N111: 83 | O111: 1.448623279 | P111: 0.0287838384 | Q111: 0.003534210959
N112: 84 | O112: 1.466076572 | P112: 0.02884113497 | Q112: 0.003031325435
N113: 85 | O113: 1.483529864 | P113: 0.02888964624 | Q113: 0.00252751654
N114: 86 | O114: 1.500983157 | P114: 0.02892935746 | Q114: 0.002022937739
N115: 87 | O115: 1.518436449 | P115: 0.02896025651 | Q115: 0.001517742731
N116: 88 | O116: 1.535889742 | P116: 0.02898233398 | Q116: 0.001012085404
N117: 89 | O117: 1.553343034 | P117: 0.02899558316 | Q117: 0.0005061197867
N118: 90 | O118: 1.570796327 | P118: 0.029 | Q118: 1.77646526e-18
N119: 91 | O119: 1.588249619 | P119: 0.02899558316 | Q119: -0.0005061197867
N120: 92 | O120: 1.605702912 | P120: 0.02898233398 | Q120: -0.001012085404
N121: 93 | O121: 1.623156204 | P121: 0.02896025651 | Q121: -0.001517742731
N122: 94 | O122: 1.640609497 | P122: 0.02892935746 | Q122: -0.002022937739
N123: 95 | O123: 1.658062789 | P123: 0.02888964624 | Q123: -0.00252751654
N124: 96 | O124: 1.675516082 | P124: 0.02884113497 | Q124: -0.003031325435
N125: 97 | O125: 1.692969374 | P125: 0.0287838384 | Q125: -0.003534210959
N126: 98 | O126: 1.710422667 | P126: 0.02871777399 | Q126: -0.004036019928
N127: 99 | O127: 1.727875959 | P127: 0.02864296188 | Q127: -0.004536599486
N128: 100 | O128: 1.745329252 | P128: 0.02855942484 | Q128: -0.005035797152
N129: 101 | O129: 1.762782545 | P129: 0.02846718832 | Q129: -0.005533460866
N130: 102 | O130: 1.780235837 | P130: 0.02836628042 | Q130: -0.006029439034
N131: 103 | O131: 1.79768913 | P131: 0.02825673188 | Q131: -0.006523580576
N132: 104 | O132: 1.815142422 | P132: 0.02813857606 | Q132: -0.007015734972
N133: 105 | O133: 1.832595715 | P133: 0.02801184896 | Q133: -0.007505752308
N134: 106 | O134: 1.850049007 | P134: 0.02787658918 | Q134: -0.007993483319
N135: 107 | O135: 1.8675023 | P135: 0.02773283792 | Q135: -0.008478779437
N136: 108 | O136: 1.884955592 | P136: 0.02758063897 | Q136: -0.008961492837
N137: 109 | O137: 1.902408885 | P137: 0.02742003869 | Q137: -0.009441476479
N138: 110 | O138: 1.919862177 | P138: 0.027251086 | Q138: -0.009918584156
N139: 111 | O139: 1.93731547 | P139: 0.02707383237 | Q139: -0.01039267054
N140: 112 | O140: 1.954768762 | P140: 0.02688833178 | Q140: -0.01086359121
N141: 113 | O141: 1.972222055 | P141: 0.02669464075 | Q141: -0.01133120273
N142: 114 | O142: 1.989675347 | P142: 0.02649281827 | Q142: -0.01179536265
N143: 115 | O143: 2.00712864 | P143: 0.02628292582 | Q143: -0.01225592959
N144: 116 | O144: 2.024581932 | P144: 0.02606502734 | Q144: -0.01271276326
N145: 117 | O145: 2.042035225 | P145: 0.0258391892 | Q145: -0.01316572449
N146: 118 | O146: 2.059488517 | P146: 0.02560548019 | Q146: -0.01361467532
N147: 119 | O147: 2.07694181 | P147: 0.02536397151 | Q147: -0.01405947899
N148: 120 | O148: 2.094395102 | P148: 0.02511473671 | Q148: -0.0145
N149: 121 | O149: 2.111848395 | P149: 0.02485785172 | Q149: -0.01493610417
N150: 122 | O150: 2.129301687 | P150: 0.02459339479 | Q150: -0.01536765866
N151: 123 | O151: 2.14675498 | P151: 0.02432144647 | Q151: -0.01579453202
N152: 124 | O152: 2.164208272 | P152: 0.0240420896 | Q152: -0.0162165942
N153: 125 | O153: 2.181661565 | P153: 0.02375540928 | Q153: -0.01663371665
N154: 126 | O154: 2.199114858 | P154: 0.02346149284 | Q154: -0.01704577232
N155: 127 | O155: 2.21656815 | P155: 0.02316042979 | Q155: -0.01745263567
N156: 128 | O156: 2.234021443 | P156: 0.02285231185 | Q156: -0.01785418278
N157: 129 | O157: 2.251474735 | P157: =SIN(O157)*H$24 -> 0.02253723288 | Q157: =COS(O157)*H$24 -> -0.01825029134
N158: 130 | O158: =N158*(PI()/180) -> 2.268928028 | P158: 0.02221528885 | Q158: -0.01864084068
N159: =N158+1 -> 131 | O159: 2.28638132 | P159: 0.02188657783 | Q159: -0.01902571184
N160: 132 | O160: 2.303834613 | P160: 0.02155119994 | Q160: -0.01940478758
N161: 133 | O161: 2.321287905 | P161: 0.02120925735 | Q161: -0.01977795244
N162: 134 | O162: 2.338741198 | P162: 0.02086085421 | Q162: -0.02014509274
N163: 135 | O163: 2.35619449 | P163: 0.02050609665 | Q163: -0.02050609665
N164: 136 | O164: 2.373647783 | P164: 0.02014509274 | Q164: -0.02086085421
N165: 137 | O165: 2.391101075 | P165: 0.01977795244 | Q165: -0.02120925735
N166: 138 | O166: 2.408554368 | P166: 0.01940478758 | Q166: -0.02155119994
N167: 139 | O167: 2.42600766 | P167: 0.01902571184 | Q167: -0.02188657783
N168: 140 | O168: 2.443460953 | P168: 0.01864084068 | Q168: -0.02221528885
N169: 141 | O169: 2.460914245 | P169: 0.01825029134 | Q169: -0.02253723288
N170: 142 | O170: 2.478367538 | P170: 0.01785418278 | Q170: -0.02285231185
N171: 143 | O171: 2.49582083 | P171: 0.01745263567 | Q171: -0.02316042979
N172: 144 | O172: 2.513274123 | P172: 0.01704577232 | Q172: -0.02346149284
N173: 145 | O173: 2.530727415 | P173: 0.01663371665 | Q173: -0.02375540928
N174: 146 | O174: 2.548180708 | P174: 0.0162165942 | Q174: -0.0240420896
N175: 147 | O175: 2.565634 | P175: 0.01579453202 | Q175: -0.02432144647
N176: 148 | O176: 2.583087293 | P176: 0.01536765866 | Q176: -0.02459339479
N177: 149 | O177: 2.600540585 | P177: 0.01493610417 | Q177: -0.02485785172
N178: 150 | O178: 2.617993878 | P178: 0.0145 | Q178: -0.02511473671
N179: 151 | O179: 2.635447171 | P179: 0.01405947899 | Q179: -0.02536397151
N180: 152 | O180: 2.652900463 | P180: 0.01361467532 | Q180: -0.02560548019
N181: 153 | O181: 2.670353756 | P181: 0.01316572449 | Q181: -0.0258391892
N182: 154 | O182: 2.687807048 | P182: 0.01271276326 | Q182: -0.02606502734
N183: 155 | O183: 2.705260341 | P183: 0.01225592959 | Q183: -0.02628292582
N184: 156 | O184: 2.722713633 | P184: 0.01179536265 | Q184: -0.02649281827
N185: 157 | O185: 2.740166926 | P185: 0.01133120273 | Q185: -0.02669464075
N186: 158 | O186: 2.757620218 | P186: 0.01086359121 | Q186: -0.02688833178
N187: 159 | O187: 2.775073511 | P187: 0.01039267054 | Q187: -0.02707383237
N188: 160 | O188: 2.792526803 | P188: 0.009918584156 | Q188: -0.027251086
N189: 161 | O189: 2.809980096 | P189: 0.009441476479 | Q189: -0.02742003869
N190: 162 | O190: 2.827433388 | P190: 0.008961492837 | Q190: -0.02758063897
N191: 163 | O191: 2.844886681 | P191: 0.008478779437 | Q191: -0.02773283792
N192: 164 | O192: 2.862339973 | P192: 0.007993483319 | Q192: -0.02787658918
N193: 165 | O193: 2.879793266 | P193: 0.007505752308 | Q193: -0.02801184896
N194: 166 | O194: 2.897246558 | P194: 0.007015734972 | Q194: -0.02813857606
N195: 167 | O195: 2.914699851 | P195: 0.006523580576 | Q195: -0.02825673188
N196: 168 | O196: 2.932153143 | P196: 0.006029439034 | Q196: -0.02836628042
N197: 169 | O197: 2.949606436 | P197: 0.005533460866 | Q197: -0.02846718832
N198: 170 | O198: 2.967059728 | P198: 0.005035797152 | Q198: -0.02855942484
N199: 171 | O199: 2.984513021 | P199: 0.004536599486 | Q199: -0.02864296188
N200: 172 | O200: 3.001966313 | P200: 0.004036019928 | Q200: -0.02871777399
N201: 173 | O201: 3.019419606 | P201: 0.003534210959 | Q201: -0.0287838384
N202: 174 | O202: 3.036872898 | P202: 0.003031325435 | Q202: -0.02884113497
... 186 more rows

Sheet 51
A1: VRS GNSS Project Control Monument Coordinate Analysis
A3: Project: | B3: =REPORT!B2 -> LUC-23-11.75 | D3: GPS Antenna: | E3: =REPORT!A41 -> Trimble R6 | I3: Report Date: | J3: =REPORT!C49 -> 2021-07-22
A4: PID: | B4: =REPORT!E2 -> 105889 | D4: VRS Network: | E4: ODOT VRS | I4: Prepared By: | J4: =REPORT!C48 -> TK/DCK
A5: Point ID: | B5: 51 | C5: No. of Sessions: | D5: =COUNTIF(GPS_IMPORT!A2:A1000,$B$5) -> 12 | E5: =IF(GPS_IMPORT!K2="TRUE","(GROUND)","(GRID)") -> (GRID) | I5: Checked By: | J5: =REPORT!C52 -> DCK/JS/MDH
A6: SESSION # | B6: Point | C6: Observation Date | D6: Start Time | E6: ="Northing("&GPS_IMPORT!K4&")" -> Northing(sft) | F6: ="Easting("&GPS_IMPORT!K4&")" -> Easting(sft) | G6: ="Height("&GPS_IMPORT!K4&")" -> Height(sft) | H6: ="∆ Northing("&GPS_IMPORT!K4&")" -> ∆ Northing(sft) | I6: ="∆ Easting("&GPS_IMPORT!K4&")" -> ∆ Easting(sft) | J6: ="∆ Height("&GPS_IMPORT!K4&")" -> ∆ Height(sft) | K6: Include in Solution?
A7: 1 | B7: =IF(ROWS(GPS_IMPORT!$1:1)<=COUNTIF(GPS_IMPORT!$A$2:$A$10000,$B$5),INDEX(GPS_IMPORT!$2:$10000,MATCH($B$5,(GPS_IMPORT!$A$2:$A$10000),0)+ROWS($1:1)-1,COLUMN()-1),0) -> 51 | C7: =IF(ROWS(GPS_IMPORT!$1:1)<=COUNTIF(GPS_IMPORT!$A$2:$A$10000,$B$5),INDEX(GPS_IMPORT!$2:$10000,MATCH($B$5,(GPS_IMPORT!$A$2:$A$10000),0)+ROWS($1:1)-1,COLUMN()-1),0) -> 07.06.2021 | D7: =IF(ROWS(GPS_IMPORT!$1:1)<=COUNTIF(GPS_IMPORT!$A$2:$A$10000,$B$5),INDEX(GPS_IMPORT!$2:$10000,MATCH($B$5,(GPS_IMPORT!$A$2:$A$10000),0)+ROWS($1:1)-1,COLUMN()-1),0) -> 09:11:26 | E7: =IF(ROWS(GPS_IMPORT!$1:1)<=COUNTIF(GPS_IMPORT!$A$2:$A$10000,$B$5),INDEX(GPS_IMPORT!$2:$10000,MATCH($B$5,(GPS_IMPORT!$A$2:$A$10000),0)+ROWS($1:1)-1,COLUMN()-1),0) -> 748313.2926 | F7: =IF(ROWS(GPS_IMPORT!$1:1)<=COUNTIF(GPS_IMPORT!$A$2:$A$10000,$B$5),INDEX(GPS_IMPORT!$2:$10000,MATCH($B$5,(GPS_IMPORT!$A$2:$A$10000),0)+ROWS($1:1)-1,COLUMN()-1),0) -> 1642208.612 | G7: =IF(ROWS(GPS_IMPORT!$1:1)<=COUNTIF(GPS_IMPORT!$A$2:$A$10000,$B$5),INDEX(GPS_IMPORT!$2:$10000,MATCH($B$5,(GPS_IMPORT!$A$2:$A$10000),0)+ROWS($1:1)-1,COLUMN()-1),0) -> 632.9214 | H7: =IF(K7=TRUE,IF(E7>0,E$22-E7,0),0) -> 0 | I7: =IF(K7=TRUE,IF(F7>0,F$22-F7,0),0) -> 0 | J7: =IF(K7=TRUE,IF(G7>0,G$22-G7,0),0) -> 0 | K7: FALSE | L7: =IF(OR(ABS(H7)>$H$24,ABS(I7)>$H$24,ABS(SQRT((H7^2)+(I7^2)))>$H$24),IF(K7=TRUE,IF(E7>0,E$22-E7,0),0),0) -> 0 | M7: =IF(OR(ABS(H7)>$H$24,ABS(I7)>$H$24,ABS(SQRT((H7^2)+(I7^2)))>$H$24),IF(K7=TRUE,IF(E7>0,F$22-F7,0),0),0) -> 0
A8: 2 | B8: =IF(ROWS(GPS_IMPORT!$1:2)<=COUNTIF(GPS_IMPORT!$A$2:$A$10000,$B$5),INDEX(GPS_IMPORT!$2:$10000,MATCH($B$5,(GPS_IMPORT!$A$2:$A$10000),0)+ROWS($1:2)-1,COLUMN()-1),0) -> 51 | C8: =IF(ROWS(GPS_IMPORT!$1:2)<=COUNTIF(GPS_IMPORT!$A$2:$A$10000,$B$5),INDEX(GPS_IMPORT!$2:$10000,MATCH($B$5,(GPS_IMPORT!$A$2:$A$10000),0)+ROWS($1:2)-1,COLUMN()-1),0) -> 07.06.2021 | D8: =IF(ROWS(GPS_IMPORT!$1:2)<=COUNTIF(GPS_IMPORT!$A$2:$A$10000,$B$5),INDEX(GPS_IMPORT!$2:$10000,MATCH($B$5,(GPS_IMPORT!$A$2:$A$10000),0)+ROWS($1:2)-1,COLUMN()-1),0) -> 09:12:16 | E8: =IF(ROWS(GPS_IMPORT!$1:2)<=COUNTIF(GPS_IMPORT!$A$2:$A$10000,$B$5),INDEX(GPS_IMPORT!$2:$10000,MATCH($B$5,(GPS_IMPORT!$A$2:$A$10000),0)+ROWS($1:2)-1,COLUMN()-1),0) -> 748313.2694 | F8: =IF(ROWS(GPS_IMPORT!$1:2)<=COUNTIF(GPS_IMPORT!$A$2:$A$10000,$B$5),INDEX(GPS_IMPORT!$2:$10000,MATCH($B$5,(GPS_IMPORT!$A$2:$A$10000),0)+ROWS($1:2)-1,COLUMN()-1),0) -> 1642208.619 | G8: =IF(ROWS(GPS_IMPORT!$1:2)<=COUNTIF(GPS_IMPORT!$A$2:$A$10000,$B$5),INDEX(GPS_IMPORT!$2:$10000,MATCH($B$5,(GPS_IMPORT!$A$2:$A$10000),0)+ROWS($1:2)-1,COLUMN()-1),0) -> 632.8348 | H8: =IF(K8=TRUE,IF(E8>0,E$22-E8,0),0) -> 0 | I8: =IF(K8=TRUE,IF(F8>0,F$22-F8,0),0) -> 0 | J8: =IF(K8=TRUE,IF(G8>0,G$22-G8,0),0) -> 0 | K8: FALSE | L8: 0 | M8: 0
A9: 3 | B9: =IF(ROWS(GPS_IMPORT!$1:3)<=COUNTIF(GPS_IMPORT!$A$2:$A$10000,$B$5),INDEX(GPS_IMPORT!$2:$10000,MATCH($B$5,(GPS_IMPORT!$A$2:$A$10000),0)+ROWS($1:3)-1,COLUMN()-1),0) -> 51 | C9: =IF(ROWS(GPS_IMPORT!$1:3)<=COUNTIF(GPS_IMPORT!$A$2:$A$10000,$B$5),INDEX(GPS_IMPORT!$2:$10000,MATCH($B$5,(GPS_IMPORT!$A$2:$A$10000),0)+ROWS($1:3)-1,COLUMN()-1),0) -> 07.06.2021 | D9: =IF(ROWS(GPS_IMPORT!$1:3)<=COUNTIF(GPS_IMPORT!$A$2:$A$10000,$B$5),INDEX(GPS_IMPORT!$2:$10000,MATCH($B$5,(GPS_IMPORT!$A$2:$A$10000),0)+ROWS($1:3)-1,COLUMN()-1),0) -> 09:13:01 | E9: =IF(ROWS(GPS_IMPORT!$1:3)<=COUNTIF(GPS_IMPORT!$A$2:$A$10000,$B$5),INDEX(GPS_IMPORT!$2:$10000,MATCH($B$5,(GPS_IMPORT!$A$2:$A$10000),0)+ROWS($1:3)-1,COLUMN()-1),0) -> 748313.2792 | F9: =IF(ROWS(GPS_IMPORT!$1:3)<=COUNTIF(GPS_IMPORT!$A$2:$A$10000,$B$5),INDEX(GPS_IMPORT!$2:$10000,MATCH($B$5,(GPS_IMPORT!$A$2:$A$10000),0)+ROWS($1:3)-1,COLUMN()-1),0) -> 1642208.602 | G9: =IF(ROWS(GPS_IMPORT!$1:3)<=COUNTIF(GPS_IMPORT!$A$2:$A$10000,$B$5),INDEX(GPS_IMPORT!$2:$10000,MATCH($B$5,(GPS_IMPORT!$A$2:$A$10000),0)+ROWS($1:3)-1,COLUMN()-1),0) -> 632.8496 | H9: 0 | I9: 0 | J9: 0 | K9: FALSE | L9: 0 | M9: 0
A10: 4 | B10: =IF(ROWS(GPS_IMPORT!$1:4)<=COUNTIF(GPS_IMPORT!$A$2:$A$10000,$B$5),INDEX(GPS_IMPORT!$2:$10000,MATCH($B$5,(GPS_IMPORT!$A$2:$A$10000),0)+ROWS($1:4)-1,COLUMN()-1),0) -> 51 | C10: =IF(ROWS(GPS_IMPORT!$1:4)<=COUNTIF(GPS_IMPORT!$A$2:$A$10000,$B$5),INDEX(GPS_IMPORT!$2:$10000,MATCH($B$5,(GPS_IMPORT!$A$2:$A$10000),0)+ROWS($1:4)-1,COLUMN()-1),0) -> 07.06.2021 | D10: =IF(ROWS(GPS_IMPORT!$1:4)<=COUNTIF(GPS_IMPORT!$A$2:$A$10000,$B$5),INDEX(GPS_IMPORT!$2:$10000,MATCH($B$5,(GPS_IMPORT!$A$2:$A$10000),0)+ROWS($1:4)-1,COLUMN()-1),0) -> 09:14:07 | E10: =IF(ROWS(GPS_IMPORT!$1:4)<=COUNTIF(GPS_IMPORT!$A$2:$A$10000,$B$5),INDEX(GPS_IMPORT!$2:$10000,MATCH($B$5,(GPS_IMPORT!$A$2:$A$10000),0)+ROWS($1:4)-1,COLUMN()-1),0) -> 748313.2609 | F10: =IF(ROWS(GPS_IMPORT!$1:4)<=COUNTIF(GPS_IMPORT!$A$2:$A$10000,$B$5),INDEX(GPS_IMPORT!$2:$10000,MATCH($B$5,(GPS_IMPORT!$A$2:$A$10000),0)+ROWS($1:4)-1,COLUMN()-1),0) -> 1642208.609 | G10: =IF(ROWS(GPS_IMPORT!$1:4)<=COUNTIF(GPS_IMPORT!$A$2:$A$10000,$B$5),INDEX(GPS_IMPORT!$2:$10000,MATCH($B$5,(GPS_IMPORT!$A$2:$A$10000),0)+ROWS($1:4)-1,COLUMN()-1),0) -> 632.837 | H10: 0 | I10: 0 | J10: 0 | K10: FALSE | L10: 0 | M10: 0
A11: 5 | B11: =IF(ROWS(GPS_IMPORT!$1:5)<=COUNTIF(GPS_IMPORT!$A$2:$A$10000,$B$5),INDEX(GPS_IMPORT!$2:$10000,MATCH($B$5,(GPS_IMPORT!$A$2:$A$10000),0)+ROWS($1:5)-1,COLUMN()-1),0) -> 51 | C11: =IF(ROWS(GPS_IMPORT!$1:5)<=COUNTIF(GPS_IMPORT!$A$2:$A$10000,$B$5),INDEX(GPS_IMPORT!$2:$10000,MATCH($B$5,(GPS_IMPORT!$A$2:$A$10000),0)+ROWS($1:5)-1,COLUMN()-1),0) -> 07.06.2021 | D11: =IF(ROWS(GPS_IMPORT!$1:5)<=COUNTIF(GPS_IMPORT!$A$2:$A$10000,$B$5),INDEX(GPS_IMPORT!$2:$10000,MATCH($B$5,(GPS_IMPORT!$A$2:$A$10000),0)+ROWS($1:5)-1,COLUMN()-1),0) -> 13:12:07 | E11: =IF(ROWS(GPS_IMPORT!$1:5)<=COUNTIF(GPS_IMPORT!$A$2:$A$10000,$B$5),INDEX(GPS_IMPORT!$2:$10000,MATCH($B$5,(GPS_IMPORT!$A$2:$A$10000),0)+ROWS($1:5)-1,COLUMN()-1),0) -> 748313.2144 | F11: =IF(ROWS(GPS_IMPORT!$1:5)<=COUNTIF(GPS_IMPORT!$A$2:$A$10000,$B$5),INDEX(GPS_IMPORT!$2:$10000,MATCH($B$5,(GPS_IMPORT!$A$2:$A$10000),0)+ROWS($1:5)-1,COLUMN()-1),0) -> 1642208.633 | G11: =IF(ROWS(GPS_IMPORT!$1:5)<=COUNTIF(GPS_IMPORT!$A$2:$A$10000,$B$5),INDEX(GPS_IMPORT!$2:$10000,MATCH($B$5,(GPS_IMPORT!$A$2:$A$10000),0)+ROWS($1:5)-1,COLUMN()-1),0) -> 632.9759 | H11: -0.02107500006 | I11: -0.002750000218 | J11: -0.0009250000001 | K11: TRUE | L11: 0 | M11: 0
A12: 6 | B12: =IF(ROWS(GPS_IMPORT!$1:6)<=COUNTIF(GPS_IMPORT!$A$2:$A$10000,$B$5),INDEX(GPS_IMPORT!$2:$10000,MATCH($B$5,(GPS_IMPORT!$A$2:$A$10000),0)+ROWS($1:6)-1,COLUMN()-1),0) -> 51 | C12: =IF(ROWS(GPS_IMPORT!$1:6)<=COUNTIF(GPS_IMPORT!$A$2:$A$10000,$B$5),INDEX(GPS_IMPORT!$2:$10000,MATCH($B$5,(GPS_IMPORT!$A$2:$A$10000),0)+ROWS($1:6)-1,COLUMN()-1),0) -> 07.06.2021 | D12: =IF(ROWS(GPS_IMPORT!$1:6)<=COUNTIF(GPS_IMPORT!$A$2:$A$10000,$B$5),INDEX(GPS_IMPORT!$2:$10000,MATCH($B$5,(GPS_IMPORT!$A$2:$A$10000),0)+ROWS($1:6)-1,COLUMN()-1),0) -> 13:13:06 | E12: =IF(ROWS(GPS_IMPORT!$1:6)<=COUNTIF(GPS_IMPORT!$A$2:$A$10000,$B$5),INDEX(GPS_IMPORT!$2:$10000,MATCH($B$5,(GPS_IMPORT!$A$2:$A$10000),0)+ROWS($1:6)-1,COLUMN()-1),0) -> 748313.1816 | F12: =IF(ROWS(GPS_IMPORT!$1:6)<=COUNTIF(GPS_IMPORT!$A$2:$A$10000,$B$5),INDEX(GPS_IMPORT!$2:$10000,MATCH($B$5,(GPS_IMPORT!$A$2:$A$10000),0)+ROWS($1:6)-1,COLUMN()-1),0) -> 1642208.616 | G12: =IF(ROWS(GPS_IMPORT!$1:6)<=COUNTIF(GPS_IMPORT!$A$2:$A$10000,$B$5),INDEX(GPS_IMPORT!$2:$10000,MATCH($B$5,(GPS_IMPORT!$A$2:$A$10000),0)+ROWS($1:6)-1,COLUMN()-1),0) -> 632.9513 | H12: 0.01172499999 | I12: 0.01424999977 | J12: 0.023675 | K12: TRUE | L12: 0 | M12: 0
A13: 7 | B13: =IF(ROWS(GPS_IMPORT!$1:7)<=COUNTIF(GPS_IMPORT!$A$2:$A$10000,$B$5),INDEX(GPS_IMPORT!$2:$10000,MATCH($B$5,(GPS_IMPORT!$A$2:$A$10000),0)+ROWS($1:7)-1,COLUMN()-1),0) -> 51 | C13: =IF(ROWS(GPS_IMPORT!$1:7)<=COUNTIF(GPS_IMPORT!$A$2:$A$10000,$B$5),INDEX(GPS_IMPORT!$2:$10000,MATCH($B$5,(GPS_IMPORT!$A$2:$A$10000),0)+ROWS($1:7)-1,COLUMN()-1),0) -> 07.06.2021 | D13: =IF(ROWS(GPS_IMPORT!$1:7)<=COUNTIF(GPS_IMPORT!$A$2:$A$10000,$B$5),INDEX(GPS_IMPORT!$2:$10000,MATCH($B$5,(GPS_IMPORT!$A$2:$A$10000),0)+ROWS($1:7)-1,COLUMN()-1),0) -> 13:14:07 | E13: =IF(ROWS(GPS_IMPORT!$1:7)<=COUNTIF(GPS_IMPORT!$A$2:$A$10000,$B$5),INDEX(GPS_IMPORT!$2:$10000,MATCH($B$5,(GPS_IMPORT!$A$2:$A$10000),0)+ROWS($1:7)-1,COLUMN()-1),0) -> 748313.1552 | F13: =IF(ROWS(GPS_IMPORT!$1:7)<=COUNTIF(GPS_IMPORT!$A$2:$A$10000,$B$5),INDEX(GPS_IMPORT!$2:$10000,MATCH($B$5,(GPS_IMPORT!$A$2:$A$10000),0)+ROWS($1:7)-1,COLUMN()-1),0) -> 1642208.636 | G13: =IF(ROWS(GPS_IMPORT!$1:7)<=COUNTIF(GPS_IMPORT!$A$2:$A$10000,$B$5),INDEX(GPS_IMPORT!$2:$10000,MATCH($B$5,(GPS_IMPORT!$A$2:$A$10000),0)+ROWS($1:7)-1,COLUMN()-1),0) -> 632.9331 | H13: 0.03812499996 | I13: -0.005750000244 | J13: 0.041875 | K13: TRUE | L13: 0.03812499996 | M13: -0.005750000244
A14: 8 | B14: =IF(ROWS(GPS_IMPORT!$1:8)<=COUNTIF(GPS_IMPORT!$A$2:$A$10000,$B$5),INDEX(GPS_IMPORT!$2:$10000,MATCH($B$5,(GPS_IMPORT!$A$2:$A$10000),0)+ROWS($1:8)-1,COLUMN()-1),0) -> 51 | C14: =IF(ROWS(GPS_IMPORT!$1:8)<=COUNTIF(GPS_IMPORT!$A$2:$A$10000,$B$5),INDEX(GPS_IMPORT!$2:$10000,MATCH($B$5,(GPS_IMPORT!$A$2:$A$10000),0)+ROWS($1:8)-1,COLUMN()-1),0) -> 07.06.2021 | D14: =IF(ROWS(GPS_IMPORT!$1:8)<=COUNTIF(GPS_IMPORT!$A$2:$A$10000,$B$5),INDEX(GPS_IMPORT!$2:$10000,MATCH($B$5,(GPS_IMPORT!$A$2:$A$10000),0)+ROWS($1:8)-1,COLUMN()-1),0) -> 13:15:50 | E14: =IF(ROWS(GPS_IMPORT!$1:8)<=COUNTIF(GPS_IMPORT!$A$2:$A$10000,$B$5),INDEX(GPS_IMPORT!$2:$10000,MATCH($B$5,(GPS_IMPORT!$A$2:$A$10000),0)+ROWS($1:8)-1,COLUMN()-1),0) -> 748313.1968 | F14: =IF(ROWS(GPS_IMPORT!$1:8)<=COUNTIF(GPS_IMPORT!$A$2:$A$10000,$B$5),INDEX(GPS_IMPORT!$2:$10000,MATCH($B$5,(GPS_IMPORT!$A$2:$A$10000),0)+ROWS($1:8)-1,COLUMN()-1),0) -> 1642208.624 | G14: =IF(ROWS(GPS_IMPORT!$1:8)<=COUNTIF(GPS_IMPORT!$A$2:$A$10000,$B$5),INDEX(GPS_IMPORT!$2:$10000,MATCH($B$5,(GPS_IMPORT!$A$2:$A$10000),0)+ROWS($1:8)-1,COLUMN()-1),0) -> 632.934 | H14: -0.003475000034 | I14: 0.006249999627 | J14: 0.040975 | K14: TRUE | L14: 0 | M14: 0
A15: 9 | B15: =IF(ROWS(GPS_IMPORT!$1:9)<=COUNTIF(GPS_IMPORT!$A$2:$A$10000,$B$5),INDEX(GPS_IMPORT!$2:$10000,MATCH($B$5,(GPS_IMPORT!$A$2:$A$10000),0)+ROWS($1:9)-1,COLUMN()-1),0) -> 51 | C15: =IF(ROWS(GPS_IMPORT!$1:9)<=COUNTIF(GPS_IMPORT!$A$2:$A$10000,$B$5),INDEX(GPS_IMPORT!$2:$10000,MATCH($B$5,(GPS_IMPORT!$A$2:$A$10000),0)+ROWS($1:9)-1,COLUMN()-1),0) -> 07.06.2021 | D15: =IF(ROWS(GPS_IMPORT!$1:9)<=COUNTIF(GPS_IMPORT!$A$2:$A$10000,$B$5),INDEX(GPS_IMPORT!$2:$10000,MATCH($B$5,(GPS_IMPORT!$A$2:$A$10000),0)+ROWS($1:9)-1,COLUMN()-1),0) -> 13:16:54 | E15: =IF(ROWS(GPS_IMPORT!$1:9)<=COUNTIF(GPS_IMPORT!$A$2:$A$10000,$B$5),INDEX(GPS_IMPORT!$2:$10000,MATCH($B$5,(GPS_IMPORT!$A$2:$A$10000),0)+ROWS($1:9)-1,COLUMN()-1),0) -> 748313.2003 | F15: =IF(ROWS(GPS_IMPORT!$1:9)<=COUNTIF(GPS_IMPORT!$A$2:$A$10000,$B$5),INDEX(GPS_IMPORT!$2:$10000,MATCH($B$5,(GPS_IMPORT!$A$2:$A$10000),0)+ROWS($1:9)-1,COLUMN()-1),0) -> 1642208.615 | G15: =IF(ROWS(GPS_IMPORT!$1:9)<=COUNTIF(GPS_IMPORT!$A$2:$A$10000,$B$5),INDEX(GPS_IMPORT!$2:$10000,MATCH($B$5,(GPS_IMPORT!$A$2:$A$10000),0)+ROWS($1:9)-1,COLUMN()-1),0) -> 633.0114 | H15: -0.006975000026 | I15: 0.01524999971 | J15: -0.036425 | K15: TRUE | L15: 0 | M15: 0
A16: 10 | B16: =IF(ROWS(GPS_IMPORT!$1:10)<=COUNTIF(GPS_IMPORT!$A$2:$A$10000,$B$5),INDEX(GPS_IMPORT!$2:$10000,MATCH($B$5,(GPS_IMPORT!$A$2:$A$10000),0)+ROWS($1:10)-1,COLUMN()-1),0) -> 51 | C16: =IF(ROWS(GPS_IMPORT!$1:10)<=COUNTIF(GPS_IMPORT!$A$2:$A$10000,$B$5),INDEX(GPS_IMPORT!$2:$10000,MATCH($B$5,(GPS_IMPORT!$A$2:$A$10000),0)+ROWS($1:10)-1,COLUMN()-1),0) -> 07.06.2021 | D16: =IF(ROWS(GPS_IMPORT!$1:10)<=COUNTIF(GPS_IMPORT!$A$2:$A$10000,$B$5),INDEX(GPS_IMPORT!$2:$10000,MATCH($B$5,(GPS_IMPORT!$A$2:$A$10000),0)+ROWS($1:10)-1,COLUMN()-1),0) -> 13:17:59 | E16: =IF(ROWS(GPS_IMPORT!$1:10)<=COUNTIF(GPS_IMPORT!$A$2:$A$10000,$B$5),INDEX(GPS_IMPORT!$2:$10000,MATCH($B$5,(GPS_IMPORT!$A$2:$A$10000),0)+ROWS($1:10)-1,COLUMN()-1),0) -> 748313.174 | F16: =IF(ROWS(GPS_IMPORT!$1:10)<=COUNTIF(GPS_IMPORT!$A$2:$A$10000,$B$5),INDEX(GPS_IMPORT!$2:$10000,MATCH($B$5,(GPS_IMPORT!$A$2:$A$10000),0)+ROWS($1:10)-1,COLUMN()-1),0) -> 1642208.621 | G16: =IF(ROWS(GPS_IMPORT!$1:10)<=COUNTIF(GPS_IMPORT!$A$2:$A$10000,$B$5),INDEX(GPS_IMPORT!$2:$10000,MATCH($B$5,(GPS_IMPORT!$A$2:$A$10000),0)+ROWS($1:10)-1,COLUMN()-1),0) -> 633.0158 | H16: 0.019325 | I16: 0.009249999654 | J16: -0.040825 | K16: TRUE | L16: 0 | M16: 0
A17: 11 | B17: =IF(ROWS(GPS_IMPORT!$1:11)<=COUNTIF(GPS_IMPORT!$A$2:$A$10000,$B$5),INDEX(GPS_IMPORT!$2:$10000,MATCH($B$5,(GPS_IMPORT!$A$2:$A$10000),0)+ROWS($1:11)-1,COLUMN()-1),0) -> 51 | C17: =IF(ROWS(GPS_IMPORT!$1:11)<=COUNTIF(GPS_IMPORT!$A$2:$A$10000,$B$5),INDEX(GPS_IMPORT!$2:$10000,MATCH($B$5,(GPS_IMPORT!$A$2:$A$10000),0)+ROWS($1:11)-1,COLUMN()-1),0) -> 07.06.2021 | D17: =IF(ROWS(GPS_IMPORT!$1:11)<=COUNTIF(GPS_IMPORT!$A$2:$A$10000,$B$5),INDEX(GPS_IMPORT!$2:$10000,MATCH($B$5,(GPS_IMPORT!$A$2:$A$10000),0)+ROWS($1:11)-1,COLUMN()-1),0) -> 13:48:07 | E17: =IF(ROWS(GPS_IMPORT!$1:11)<=COUNTIF(GPS_IMPORT!$A$2:$A$10000,$B$5),INDEX(GPS_IMPORT!$2:$10000,MATCH($B$5,(GPS_IMPORT!$A$2:$A$10000),0)+ROWS($1:11)-1,COLUMN()-1),0) -> 748313.2022 | F17: =IF(ROWS(GPS_IMPORT!$1:11)<=COUNTIF(GPS_IMPORT!$A$2:$A$10000,$B$5),INDEX(GPS_IMPORT!$2:$10000,MATCH($B$5,(GPS_IMPORT!$A$2:$A$10000),0)+ROWS($1:11)-1,COLUMN()-1),0) -> 1642208.642 | G17: =IF(ROWS(GPS_IMPORT!$1:11)<=COUNTIF(GPS_IMPORT!$A$2:$A$10000,$B$5),INDEX(GPS_IMPORT!$2:$10000,MATCH($B$5,(GPS_IMPORT!$A$2:$A$10000),0)+ROWS($1:11)-1,COLUMN()-1),0) -> 633.0026 | H17: -0.008875000058 | I17: -0.0117500003 | J17: -0.027625 | K17: TRUE | L17: 0 | M17: 0
A18: 12 | B18: =IF(ROWS(GPS_IMPORT!$1:12)<=COUNTIF(GPS_IMPORT!$A$2:$A$10000,$B$5),INDEX(GPS_IMPORT!$2:$10000,MATCH($B$5,(GPS_IMPORT!$A$2:$A$10000),0)+ROWS($1:12)-1,COLUMN()-1),0) -> 51 | C18: =IF(ROWS(GPS_IMPORT!$1:12)<=COUNTIF(GPS_IMPORT!$A$2:$A$10000,$B$5),INDEX(GPS_IMPORT!$2:$10000,MATCH($B$5,(GPS_IMPORT!$A$2:$A$10000),0)+ROWS($1:12)-1,COLUMN()-1),0) -> 07.06.2021 | D18: =IF(ROWS(GPS_IMPORT!$1:12)<=COUNTIF(GPS_IMPORT!$A$2:$A$10000,$B$5),INDEX(GPS_IMPORT!$2:$10000,MATCH($B$5,(GPS_IMPORT!$A$2:$A$10000),0)+ROWS($1:12)-1,COLUMN()-1),0) -> 13:48:50 | E18: =IF(ROWS(GPS_IMPORT!$1:12)<=COUNTIF(GPS_IMPORT!$A$2:$A$10000,$B$5),INDEX(GPS_IMPORT!$2:$10000,MATCH($B$5,(GPS_IMPORT!$A$2:$A$10000),0)+ROWS($1:12)-1,COLUMN()-1),0) -> 748313.2221 | F18: =IF(ROWS(GPS_IMPORT!$1:12)<=COUNTIF(GPS_IMPORT!$A$2:$A$10000,$B$5),INDEX(GPS_IMPORT!$2:$10000,MATCH($B$5,(GPS_IMPORT!$A$2:$A$10000),0)+ROWS($1:12)-1,COLUMN()-1),0) -> 1642208.655 | G18: =IF(ROWS(GPS_IMPORT!$1:12)<=COUNTIF(GPS_IMPORT!$A$2:$A$10000,$B$5),INDEX(GPS_IMPORT!$2:$10000,MATCH($B$5,(GPS_IMPORT!$A$2:$A$10000),0)+ROWS($1:12)-1,COLUMN()-1),0) -> 632.9757 | H18: -0.02877500001 | I18: -0.02475000033 | J18: -0.000725 | K18: TRUE | L18: -0.02877500001 | M18: -0.02475000033
A19: 13 | B19: =IF(ROWS(GPS_IMPORT!$1:13)<=COUNTIF(GPS_IMPORT!$A$2:$A$10000,$B$5),INDEX(GPS_IMPORT!$2:$10000,MATCH($B$5,(GPS_IMPORT!$A$2:$A$10000),0)+ROWS($1:13)-1,COLUMN()-1),0) -> 0 | C19: =IF(ROWS(GPS_IMPORT!$1:13)<=COUNTIF(GPS_IMPORT!$A$2:$A$10000,$B$5),INDEX(GPS_IMPORT!$2:$10000,MATCH($B$5,(GPS_IMPORT!$A$2:$A$10000),0)+ROWS($1:13)-1,COLUMN()-1),0) -> 00:00:00 | D19: =IF(ROWS(GPS_IMPORT!$1:13)<=COUNTIF(GPS_IMPORT!$A$2:$A$10000,$B$5),INDEX(GPS_IMPORT!$2:$10000,MATCH($B$5,(GPS_IMPORT!$A$2:$A$10000),0)+ROWS($1:13)-1,COLUMN()-1),0) -> 00:00:00 | E19: =IF(ROWS(GPS_IMPORT!$1:13)<=COUNTIF(GPS_IMPORT!$A$2:$A$10000,$B$5),INDEX(GPS_IMPORT!$2:$10000,MATCH($B$5,(GPS_IMPORT!$A$2:$A$10000),0)+ROWS($1:13)-1,COLUMN()-1),0) -> 0 | F19: =IF(ROWS(GPS_IMPORT!$1:13)<=COUNTIF(GPS_IMPORT!$A$2:$A$10000,$B$5),INDEX(GPS_IMPORT!$2:$10000,MATCH($B$5,(GPS_IMPORT!$A$2:$A$10000),0)+ROWS($1:13)-1,COLUMN()-1),0) -> 0 | G19: =IF(ROWS(GPS_IMPORT!$1:13)<=COUNTIF(GPS_IMPORT!$A$2:$A$10000,$B$5),INDEX(GPS_IMPORT!$2:$10000,MATCH($B$5,(GPS_IMPORT!$A$2:$A$10000),0)+ROWS($1:13)-1,COLUMN()-1),0) -> 0 | H19: 0 | I19: 0 | J19: 0 | K19: FALSE | L19: 0 | M19: 0
A20: 14 | B20: =IF(ROWS(GPS_IMPORT!$1:14)<=COUNTIF(GPS_IMPORT!$A$2:$A$10000,$B$5),INDEX(GPS_IMPORT!$2:$10000,MATCH($B$5,(GPS_IMPORT!$A$2:$A$10000),0)+ROWS($1:14)-1,COLUMN()-1),0) -> 0 | C20: =IF(ROWS(GPS_IMPORT!$1:14)<=COUNTIF(GPS_IMPORT!$A$2:$A$10000,$B$5),INDEX(GPS_IMPORT!$2:$10000,MATCH($B$5,(GPS_IMPORT!$A$2:$A$10000),0)+ROWS($1:14)-1,COLUMN()-1),0) -> 00:00:00 | D20: =IF(ROWS(GPS_IMPORT!$1:14)<=COUNTIF(GPS_IMPORT!$A$2:$A$10000,$B$5),INDEX(GPS_IMPORT!$2:$10000,MATCH($B$5,(GPS_IMPORT!$A$2:$A$10000),0)+ROWS($1:14)-1,COLUMN()-1),0) -> 00:00:00 | E20: =IF(ROWS(GPS_IMPORT!$1:14)<=COUNTIF(GPS_IMPORT!$A$2:$A$10000,$B$5),INDEX(GPS_IMPORT!$2:$10000,MATCH($B$5,(GPS_IMPORT!$A$2:$A$10000),0)+ROWS($1:14)-1,COLUMN()-1),0) -> 0 | F20: =IF(ROWS(GPS_IMPORT!$1:14)<=COUNTIF(GPS_IMPORT!$A$2:$A$10000,$B$5),INDEX(GPS_IMPORT!$2:$10000,MATCH($B$5,(GPS_IMPORT!$A$2:$A$10000),0)+ROWS($1:14)-1,COLUMN()-1),0) -> 0 | G20: =IF(ROWS(GPS_IMPORT!$1:14)<=COUNTIF(GPS_IMPORT!$A$2:$A$10000,$B$5),INDEX(GPS_IMPORT!$2:$10000,MATCH($B$5,(GPS_IMPORT!$A$2:$A$10000),0)+ROWS($1:14)-1,COLUMN()-1),0) -> 0 | H20: 0 | I20: 0 | J20: 0 | K20: FALSE | L20: 0 | M20: 0
A21: 15 | B21: =IF(ROWS(GPS_IMPORT!$1:15)<=COUNTIF(GPS_IMPORT!$A$2:$A$10000,$B$5),INDEX(GPS_IMPORT!$2:$10000,MATCH($B$5,(GPS_IMPORT!$A$2:$A$10000),0)+ROWS($1:15)-1,COLUMN()-1),0) -> 0 | C21: =IF(ROWS(GPS_IMPORT!$1:15)<=COUNTIF(GPS_IMPORT!$A$2:$A$10000,$B$5),INDEX(GPS_IMPORT!$2:$10000,MATCH($B$5,(GPS_IMPORT!$A$2:$A$10000),0)+ROWS($1:15)-1,COLUMN()-1),0) -> 00:00:00 | D21: =IF(ROWS(GPS_IMPORT!$1:15)<=COUNTIF(GPS_IMPORT!$A$2:$A$10000,$B$5),INDEX(GPS_IMPORT!$2:$10000,MATCH($B$5,(GPS_IMPORT!$A$2:$A$10000),0)+ROWS($1:15)-1,COLUMN()-1),0) -> 00:00:00 | E21: =IF(ROWS(GPS_IMPORT!$1:15)<=COUNTIF(GPS_IMPORT!$A$2:$A$10000,$B$5),INDEX(GPS_IMPORT!$2:$10000,MATCH($B$5,(GPS_IMPORT!$A$2:$A$10000),0)+ROWS($1:15)-1,COLUMN()-1),0) -> 0 | F21: =IF(ROWS(GPS_IMPORT!$1:15)<=COUNTIF(GPS_IMPORT!$A$2:$A$10000,$B$5),INDEX(GPS_IMPORT!$2:$10000,MATCH($B$5,(GPS_IMPORT!$A$2:$A$10000),0)+ROWS($1:15)-1,COLUMN()-1),0) -> 0 | G21: =IF(ROWS(GPS_IMPORT!$1:15)<=COUNTIF(GPS_IMPORT!$A$2:$A$10000,$B$5),INDEX(GPS_IMPORT!$2:$10000,MATCH($B$5,(GPS_IMPORT!$A$2:$A$10000),0)+ROWS($1:15)-1,COLUMN()-1),0) -> 0 | H21: =IF(K21=TRUE,IF(E21>0,E$22-E21,0),0) -> 0 | I21: 0 | J21: 0 | K21: FALSE | L21: 0 | M21: 0
D22: AVERAGE | E22: =(IF($K$7=TRUE,E7,0)+IF($K$8=TRUE,E8,0)+IF($K$9=TRUE,E9,0)+IF($K$10=TRUE,E10,0)+IF($K$11=TRUE,E11,0)+IF($K$12=TRUE,E12,0)+IF($K$13=TRUE,E13,0)+IF($K$14=TRUE,E14,0)+IF($K$15=TRUE,E15,0)+IF($K$16=TRUE,E16,0)+IF($K$17=TRUE,E17,0)+IF($K$18=TRUE,E18,0)+IF($K$19=TRUE,E19,0)+IF($K$20=TRUE,E20,0)+IF($K$21=TRUE,E21,0))/(IF($K$7=TRUE,1,0)+IF($K$8=TRUE,1,0)+IF($K$9=TRUE,1,0)+IF($K$10=TRUE,1,0)+IF($K$11=TRUE,1,0)+IF($K$12=TRUE,1,0)+IF($K$13=TRUE,1,0)+IF($K$14=TRUE,1,0)+IF($K$15=TRUE,1,0)+IF($K$16=TRUE,1,0)+IF($K$17=TRUE,1,0)+IF($K$18=TRUE,1,0)+IF($K$19=TRUE,1,0)+IF($K$20=TRUE,1,0)+IF($K$21=TRUE,1,0)) -> 748313.1933 | F22: =(IF($K$7=TRUE,F7,0)+IF($K$8=TRUE,F8,0)+IF($K$9=TRUE,F9,0)+IF($K$10=TRUE,F10,0)+IF($K$11=TRUE,F11,0)+IF($K$12=TRUE,F12,0)+IF($K$13=TRUE,F13,0)+IF($K$14=TRUE,F14,0)+IF($K$15=TRUE,F15,0)+IF($K$16=TRUE,F16,0)+IF($K$17=TRUE,F17,0)+IF($K$18=TRUE,F18,0)+IF($K$19=TRUE,F19,0)+IF($K$20=TRUE,F20,0)+IF($K$21=TRUE,F21,0))/(IF($K$7=TRUE,1,0)+IF($K$8=TRUE,1,0)+IF($K$9=TRUE,1,0)+IF($K$10=TRUE,1,0)+IF($K$11=TRUE,1,0)+IF($K$12=TRUE,1,0)+IF($K$13=TRUE,1,0)+IF($K$14=TRUE,1,0)+IF($K$15=TRUE,1,0)+IF($K$16=TRUE,1,0)+IF($K$17=TRUE,1,0)+IF($K$18=TRUE,1,0)+IF($K$19=TRUE,1,0)+IF($K$20=TRUE,1,0)+IF($K$21=TRUE,1,0)) -> 1642208.63 | G22: =(IF($K$7=TRUE,G7,0)+IF($K$8=TRUE,G8,0)+IF($K$9=TRUE,G9,0)+IF($K$10=TRUE,G10,0)+IF($K$11=TRUE,G11,0)+IF($K$12=TRUE,G12,0)+IF($K$13=TRUE,G13,0)+IF($K$14=TRUE,G14,0)+IF($K$15=TRUE,G15,0)+IF($K$16=TRUE,G16,0)+IF($K$17=TRUE,G17,0)+IF($K$18=TRUE,G18,0)+IF($K$19=TRUE,G19,0)+IF($K$20=TRUE,G20,0)+IF($K$21=TRUE,G21,0))/ (IF($K$7=TRUE,1,0)+IF($K$8=TRUE,1,0)+IF($K$9=TRUE,1,0)+IF($K$10=TRUE,1,0)+IF($K$11=TRUE,1,0)+IF($K$12=TRUE,1,0)+IF($K$13=TRUE,1,0)+IF($K$14=TRUE,1,0)+IF($K$15=TRUE,1,0)+IF($K$16=TRUE,1,0)+IF($K$17=TRUE,1,0)+IF($K$18=TRUE,1,0)+IF($K$19=TRUE,1,0)+IF($K$20=TRUE,1,0)+IF($K$21=TRUE,1,0)) -> 632.974975 | H22: RMSE: | I22: RMSE: | J22: RMSE:
G23: ="RMSE IN "&GPS_IMPORT!J4&":" -> RMSE IN U.S. Survey FT: | H23: =SQRT(SUMSQ((IF(K7:K21=TRUE,H7:H21)))/COUNTIF(K7:K21,K7:K21=TRUE)) -> 0.02196131339 | I23: =SQRT(SUMSQ((IF(K7:K21=TRUE,I7:I21)))/COUNTIF(K7:K21,K7:K21=TRUE)) -> 0.01389501453 | J23: =SQRT(SUMSQ((IF(K7:K21=TRUE,J7:J21)))/COUNTIF(K7:K21,K7:K21=TRUE)) -> 0.03327580631
G24: Tolerance: | H24: =VLOOKUP(GPS_IMPORT!$K$4,Lists!H3:I5,2,FALSE) -> 0.029 | J24: =VLOOKUP(GPS_IMPORT!$K$4,Lists!H3:J5,3,FALSE) -> 0.039
H25: =IF(H23<=H24,"PASS","FAIL") -> PASS | I25: =IF(I23<=H24,"PASS","FAIL") -> PASS | J25: =IF(J23<=J24,"PASS","FAIL") -> PASS
A27: AVERAGED GPS-DERIVED POSITION | I27: Notes:
B28: MONUMENT COORDINATES | D28: NORTHING | E28: EASTING | F28: ORTHO HEIGHT | N28: Degrees | O28: Radians | P28: SIN | Q28: COS
B29: =GPS_IMPORT!J4&" ("&IF(GPS_IMPORT!K2="TRUE","GROUND","GRID")&")" -> U.S. Survey FT (GRID) | D29: =$E$22 -> 748313.1933 | E29: =$F$22 -> 1642208.63 | F29: =$G$22 -> 632.974975 | N29: 1 | O29: =N29*(PI()/180) -> 0.01745329252 | P29: =SIN(O29)*H$24 -> 0.0005061197867 | Q29: =COS(O29)*H$24 -> 0.02899558316
N30: =N29+1 -> 2 | O30: =N30*(PI()/180) -> 0.03490658504 | P30: 0.001012085404 | Q30: 0.02898233398
A31: LEVELED ELEVATION | N31: =N30+1 -> 3 | O31: 0.05235987756 | P31: 0.001517742731 | Q31: 0.02896025651
A32: ='LEVEL RUN'!B5 -> U.S. Survey FT | C32: =IFERROR(VLOOKUP(B5,'LEVEL RUN'!A7:I59,9,FALSE),"N/A") -> 632.9679723 | D32: (Fill out Level Run Sheet or N/A if no leveled elevation is available) | N32: 4 | O32: 0.06981317008 | P32: 0.002022937739 | Q32: 0.02892935746
A33: MONUMENT HELD | C33: =IF('LEVEL RUN'!A7="","",'LEVEL RUN'!A7) -> 331 | D33: (Type the monument name from which leveling originated) | N33: 5 | O33: 0.0872664626 | P33: 0.00252751654 | Q33: 0.02888964624
A34: LEVELED ELEVATION - GPS DERIVED ELEVATION = | E34: =IF(C32="N/A","N/A",C32-(F29*'LEVEL RUN'!F5)) -> -0.007002710843 | F34: ='LEVEL RUN'!D5 -> sft | N34: 6 | O34: 0.1047197551 | P34: 0.003031325435 | Q34: 0.02884113497
N35: 7 | O35: 0.1221730476 | P35: 0.003534210959 | Q35: 0.0287838384
A36: FINAL MONUMENT COORDINATES | N36: 8 | O36: 0.1396263402 | P36: 0.004036019928 | Q36: 0.02871777399
B37: MONUMENT COORDINATES | D37: NORTHING | E37: EASTING | F37: ELEVATION | G37: FEATURE CODE | N37: 9 | O37: 0.1570796327 | P37: 0.004536599486 | Q37: 0.02864296188
B38: =GPS_IMPORT!J6&" (GRID)" -> U.S. Survey FT (GRID) | D38: =IF(GPS_IMPORT!K2=TRUE,($E$22*GPS_IMPORT!$L$6)*(1/REPORT!C13),$E$22*GPS_IMPORT!$L$6) -> 748313.1933 | E38: =IF(GPS_IMPORT!K2=TRUE,($F$22*GPS_IMPORT!$L$6)*(1/REPORT!C13),$F$22*GPS_IMPORT!$L$6) -> 1642208.63 | F38: =IF($C$32="N/A",($G$22*GPS_IMPORT!$L$6),$C$32*'LEVEL RUN'!H5) -> 632.9679723 | G38: =VLOOKUP($B$5,GPS_IMPORT!$A$2:$G$2000,7,FALSE) -> IPS | N38: 10 | O38: 0.1745329252 | P38: 0.005035797152 | Q38: 0.02855942484
B39: =GPS_IMPORT!J6&" (GROUND)" -> U.S. Survey FT (GROUND) | D39: =IF(GPS_IMPORT!K2=TRUE,$E$22*GPS_IMPORT!$L$6,$E$22*GPS_IMPORT!$L$6*REPORT!C13) -> 748332.1556 | E39: =IF(GPS_IMPORT!K2=TRUE,$F$22*GPS_IMPORT!$L$6,$F$22*GPS_IMPORT!$L$6*REPORT!C13) -> 1642250.244 | F39: =IF($C$32="N/A",($G$22*GPS_IMPORT!$L$6),$C$32*'LEVEL RUN'!H5) -> 632.9679723 | G39: =$G$38 -> IPS | N39: 11 | O39: 0.1919862177 | P39: 0.005533460866 | Q39: 0.02846718832
N40: 12 | O40: 0.2094395102 | P40: 0.006029439034 | Q40: 0.02836628042
A41: ∆ North, ∆ East, and ∆ Ht. are the difference between the average northing, easting, and height for each observation. | I41: Mask Angle: | J41: 10° | N41: 13 | O41: 0.2268928028 | P41: 0.006523580576 | Q41: 0.02825673188
N42: 14 | O42: 0.2443460953 | P42: 0.007015734972 | Q42: 0.02813857606
N43: 15 | O43: 0.2617993878 | P43: 0.007505752308 | Q43: 0.02801184896
N44: 16 | O44: 0.2792526803 | P44: 0.007993483319 | Q44: 0.02787658918
N45: 17 | O45: 0.2967059728 | P45: 0.008478779437 | Q45: 0.02773283792
N46: 18 | O46: 0.3141592654 | P46: 0.008961492837 | Q46: 0.02758063897
N47: 19 | O47: 0.3316125579 | P47: 0.009441476479 | Q47: 0.02742003869
N48: 20 | O48: 0.3490658504 | P48: 0.009918584156 | Q48: 0.027251086
N49: 21 | O49: 0.3665191429 | P49: 0.01039267054 | Q49: 0.02707383237
N50: 22 | O50: 0.3839724354 | P50: 0.01086359121 | Q50: 0.02688833178
N51: 23 | O51: 0.401425728 | P51: 0.01133120273 | Q51: 0.02669464075
N52: 24 | O52: 0.4188790205 | P52: 0.01179536265 | Q52: 0.02649281827
N53: 25 | O53: 0.436332313 | P53: 0.01225592959 | Q53: 0.02628292582
N54: 26 | O54: 0.4537856055 | P54: 0.01271276326 | Q54: 0.02606502734
N55: 27 | O55: 0.471238898 | P55: 0.01316572449 | Q55: 0.0258391892
N56: 28 | O56: 0.4886921906 | P56: 0.01361467532 | Q56: 0.02560548019
N57: 29 | O57: 0.5061454831 | P57: 0.01405947899 | Q57: 0.02536397151
N58: 30 | O58: 0.5235987756 | P58: 0.0145 | Q58: 0.02511473671
N59: 31 | O59: 0.5410520681 | P59: 0.01493610417 | Q59: 0.02485785172
N60: 32 | O60: 0.5585053606 | P60: 0.01536765866 | Q60: 0.02459339479
N61: 33 | O61: 0.5759586532 | P61: 0.01579453202 | Q61: 0.02432144647
N62: 34 | O62: 0.5934119457 | P62: 0.0162165942 | Q62: 0.0240420896
N63: 35 | O63: 0.6108652382 | P63: 0.01663371665 | Q63: 0.02375540928
N64: 36 | O64: 0.6283185307 | P64: 0.01704577232 | Q64: 0.02346149284
N65: 37 | O65: 0.6457718232 | P65: 0.01745263567 | Q65: 0.02316042979
N66: 38 | O66: 0.6632251158 | P66: 0.01785418278 | Q66: 0.02285231185
N67: 39 | O67: 0.6806784083 | P67: 0.01825029134 | Q67: 0.02253723288
N68: 40 | O68: 0.6981317008 | P68: 0.01864084068 | Q68: 0.02221528885
N69: 41 | O69: 0.7155849933 | P69: 0.01902571184 | Q69: 0.02188657783
N70: 42 | O70: 0.7330382858 | P70: 0.01940478758 | Q70: 0.02155119994
N71: 43 | O71: 0.7504915784 | P71: 0.01977795244 | Q71: 0.02120925735
N72: 44 | O72: 0.7679448709 | P72: 0.02014509274 | Q72: 0.02086085421
N73: 45 | O73: 0.7853981634 | P73: 0.02050609665 | Q73: 0.02050609665
N74: 46 | O74: 0.8028514559 | P74: 0.02086085421 | Q74: 0.02014509274
N75: 47 | O75: 0.8203047484 | P75: 0.02120925735 | Q75: 0.01977795244
N76: 48 | O76: 0.837758041 | P76: 0.02155119994 | Q76: 0.01940478758
N77: 49 | O77: 0.8552113335 | P77: 0.02188657783 | Q77: 0.01902571184
N78: 50 | O78: 0.872664626 | P78: 0.02221528885 | Q78: 0.01864084068
N79: 51 | O79: 0.8901179185 | P79: 0.02253723288 | Q79: 0.01825029134
N80: 52 | O80: 0.907571211 | P80: 0.02285231185 | Q80: 0.01785418278
N81: 53 | O81: 0.9250245036 | P81: 0.02316042979 | Q81: 0.01745263567
N82: 54 | O82: 0.9424777961 | P82: 0.02346149284 | Q82: 0.01704577232
N83: 55 | O83: 0.9599310886 | P83: 0.02375540928 | Q83: 0.01663371665
N84: 56 | O84: 0.9773843811 | P84: 0.0240420896 | Q84: 0.0162165942
N85: 57 | O85: 0.9948376736 | P85: 0.02432144647 | Q85: 0.01579453202
N86: 58 | O86: 1.012290966 | P86: 0.02459339479 | Q86: 0.01536765866
N87: 59 | O87: 1.029744259 | P87: 0.02485785172 | Q87: 0.01493610417
N88: 60 | O88: 1.047197551 | P88: 0.02511473671 | Q88: 0.0145
N89: 61 | O89: 1.064650844 | P89: 0.02536397151 | Q89: 0.01405947899
N90: 62 | O90: 1.082104136 | P90: 0.02560548019 | Q90: 0.01361467532
N91: 63 | O91: 1.099557429 | P91: 0.0258391892 | Q91: 0.01316572449
N92: 64 | O92: 1.117010721 | P92: 0.02606502734 | Q92: 0.01271276326
N93: 65 | O93: 1.134464014 | P93: =SIN(O93)*H$24 -> 0.02628292582 | Q93: =COS(O93)*H$24 -> 0.01225592959
N94: 66 | O94: =N94*(PI()/180) -> 1.151917306 | P94: 0.02649281827 | Q94: 0.01179536265
N95: =N94+1 -> 67 | O95: 1.169370599 | P95: 0.02669464075 | Q95: 0.01133120273
N96: 68 | O96: 1.186823891 | P96: 0.02688833178 | Q96: 0.01086359121
N97: 69 | O97: 1.204277184 | P97: 0.02707383237 | Q97: 0.01039267054
N98: 70 | O98: 1.221730476 | P98: 0.027251086 | Q98: 0.009918584156
N99: 71 | O99: 1.239183769 | P99: 0.02742003869 | Q99: 0.009441476479
N100: 72 | O100: 1.256637061 | P100: 0.02758063897 | Q100: 0.008961492837
N101: 73 | O101: 1.274090354 | P101: 0.02773283792 | Q101: 0.008478779437
N102: 74 | O102: 1.291543646 | P102: 0.02787658918 | Q102: 0.007993483319
N103: 75 | O103: 1.308996939 | P103: 0.02801184896 | Q103: 0.007505752308
N104: 76 | O104: 1.326450232 | P104: 0.02813857606 | Q104: 0.007015734972
N105: 77 | O105: 1.343903524 | P105: 0.02825673188 | Q105: 0.006523580576
N106: 78 | O106: 1.361356817 | P106: 0.02836628042 | Q106: 0.006029439034
N107: 79 | O107: 1.378810109 | P107: 0.02846718832 | Q107: 0.005533460866
N108: 80 | O108: 1.396263402 | P108: 0.02855942484 | Q108: 0.005035797152
N109: 81 | O109: 1.413716694 | P109: 0.02864296188 | Q109: 0.004536599486
N110: 82 | O110: 1.431169987 | P110: 0.02871777399 | Q110: 0.004036019928
N111: 83 | O111: 1.448623279 | P111: 0.0287838384 | Q111: 0.003534210959
N112: 84 | O112: 1.466076572 | P112: 0.02884113497 | Q112: 0.003031325435
N113: 85 | O113: 1.483529864 | P113: 0.02888964624 | Q113: 0.00252751654
N114: 86 | O114: 1.500983157 | P114: 0.02892935746 | Q114: 0.002022937739
N115: 87 | O115: 1.518436449 | P115: 0.02896025651 | Q115: 0.001517742731
N116: 88 | O116: 1.535889742 | P116: 0.02898233398 | Q116: 0.001012085404
N117: 89 | O117: 1.553343034 | P117: 0.02899558316 | Q117: 0.0005061197867
N118: 90 | O118: 1.570796327 | P118: 0.029 | Q118: 1.77646526e-18
N119: 91 | O119: 1.588249619 | P119: 0.02899558316 | Q119: -0.0005061197867
N120: 92 | O120: 1.605702912 | P120: 0.02898233398 | Q120: -0.001012085404
N121: 93 | O121: 1.623156204 | P121: 0.02896025651 | Q121: -0.001517742731
N122: 94 | O122: 1.640609497 | P122: 0.02892935746 | Q122: -0.002022937739
N123: 95 | O123: 1.658062789 | P123: 0.02888964624 | Q123: -0.00252751654
N124: 96 | O124: 1.675516082 | P124: 0.02884113497 | Q124: -0.003031325435
N125: 97 | O125: 1.692969374 | P125: 0.0287838384 | Q125: -0.003534210959
N126: 98 | O126: 1.710422667 | P126: 0.02871777399 | Q126: -0.004036019928
N127: 99 | O127: 1.727875959 | P127: 0.02864296188 | Q127: -0.004536599486
N128: 100 | O128: 1.745329252 | P128: 0.02855942484 | Q128: -0.005035797152
N129: 101 | O129: 1.762782545 | P129: 0.02846718832 | Q129: -0.005533460866
N130: 102 | O130: 1.780235837 | P130: 0.02836628042 | Q130: -0.006029439034
N131: 103 | O131: 1.79768913 | P131: 0.02825673188 | Q131: -0.006523580576
N132: 104 | O132: 1.815142422 | P132: 0.02813857606 | Q132: -0.007015734972
N133: 105 | O133: 1.832595715 | P133: 0.02801184896 | Q133: -0.007505752308
N134: 106 | O134: 1.850049007 | P134: 0.02787658918 | Q134: -0.007993483319
N135: 107 | O135: 1.8675023 | P135: 0.02773283792 | Q135: -0.008478779437
N136: 108 | O136: 1.884955592 | P136: 0.02758063897 | Q136: -0.008961492837
N137: 109 | O137: 1.902408885 | P137: 0.02742003869 | Q137: -0.009441476479
N138: 110 | O138: 1.919862177 | P138: 0.027251086 | Q138: -0.009918584156
N139: 111 | O139: 1.93731547 | P139: 0.02707383237 | Q139: -0.01039267054
N140: 112 | O140: 1.954768762 | P140: 0.02688833178 | Q140: -0.01086359121
N141: 113 | O141: 1.972222055 | P141: 0.02669464075 | Q141: -0.01133120273
N142: 114 | O142: 1.989675347 | P142: 0.02649281827 | Q142: -0.01179536265
N143: 115 | O143: 2.00712864 | P143: 0.02628292582 | Q143: -0.01225592959
N144: 116 | O144: 2.024581932 | P144: 0.02606502734 | Q144: -0.01271276326
N145: 117 | O145: 2.042035225 | P145: 0.0258391892 | Q145: -0.01316572449
N146: 118 | O146: 2.059488517 | P146: 0.02560548019 | Q146: -0.01361467532
N147: 119 | O147: 2.07694181 | P147: 0.02536397151 | Q147: -0.01405947899
N148: 120 | O148: 2.094395102 | P148: 0.02511473671 | Q148: -0.0145
N149: 121 | O149: 2.111848395 | P149: 0.02485785172 | Q149: -0.01493610417
N150: 122 | O150: 2.129301687 | P150: 0.02459339479 | Q150: -0.01536765866
N151: 123 | O151: 2.14675498 | P151: 0.02432144647 | Q151: -0.01579453202
N152: 124 | O152: 2.164208272 | P152: 0.0240420896 | Q152: -0.0162165942
N153: 125 | O153: 2.181661565 | P153: 0.02375540928 | Q153: -0.01663371665
N154: 126 | O154: 2.199114858 | P154: 0.02346149284 | Q154: -0.01704577232
N155: 127 | O155: 2.21656815 | P155: 0.02316042979 | Q155: -0.01745263567
N156: 128 | O156: 2.234021443 | P156: 0.02285231185 | Q156: -0.01785418278
N157: 129 | O157: 2.251474735 | P157: =SIN(O157)*H$24 -> 0.02253723288 | Q157: =COS(O157)*H$24 -> -0.01825029134
N158: 130 | O158: =N158*(PI()/180) -> 2.268928028 | P158: 0.02221528885 | Q158: -0.01864084068
N159: =N158+1 -> 131 | O159: 2.28638132 | P159: 0.02188657783 | Q159: -0.01902571184
N160: 132 | O160: 2.303834613 | P160: 0.02155119994 | Q160: -0.01940478758
N161: 133 | O161: 2.321287905 | P161: 0.02120925735 | Q161: -0.01977795244
N162: 134 | O162: 2.338741198 | P162: 0.02086085421 | Q162: -0.02014509274
N163: 135 | O163: 2.35619449 | P163: 0.02050609665 | Q163: -0.02050609665
N164: 136 | O164: 2.373647783 | P164: 0.02014509274 | Q164: -0.02086085421
N165: 137 | O165: 2.391101075 | P165: 0.01977795244 | Q165: -0.02120925735
N166: 138 | O166: 2.408554368 | P166: 0.01940478758 | Q166: -0.02155119994
N167: 139 | O167: 2.42600766 | P167: 0.01902571184 | Q167: -0.02188657783
N168: 140 | O168: 2.443460953 | P168: 0.01864084068 | Q168: -0.02221528885
N169: 141 | O169: 2.460914245 | P169: 0.01825029134 | Q169: -0.02253723288
N170: 142 | O170: 2.478367538 | P170: 0.01785418278 | Q170: -0.02285231185
N171: 143 | O171: 2.49582083 | P171: 0.01745263567 | Q171: -0.02316042979
N172: 144 | O172: 2.513274123 | P172: 0.01704577232 | Q172: -0.02346149284
N173: 145 | O173: 2.530727415 | P173: 0.01663371665 | Q173: -0.02375540928
N174: 146 | O174: 2.548180708 | P174: 0.0162165942 | Q174: -0.0240420896
N175: 147 | O175: 2.565634 | P175: 0.01579453202 | Q175: -0.02432144647
N176: 148 | O176: 2.583087293 | P176: 0.01536765866 | Q176: -0.02459339479
N177: 149 | O177: 2.600540585 | P177: 0.01493610417 | Q177: -0.02485785172
N178: 150 | O178: 2.617993878 | P178: 0.0145 | Q178: -0.02511473671
N179: 151 | O179: 2.635447171 | P179: 0.01405947899 | Q179: -0.02536397151
N180: 152 | O180: 2.652900463 | P180: 0.01361467532 | Q180: -0.02560548019
N181: 153 | O181: 2.670353756 | P181: 0.01316572449 | Q181: -0.0258391892
N182: 154 | O182: 2.687807048 | P182: 0.01271276326 | Q182: -0.02606502734
N183: 155 | O183: 2.705260341 | P183: 0.01225592959 | Q183: -0.02628292582
N184: 156 | O184: 2.722713633 | P184: 0.01179536265 | Q184: -0.02649281827
N185: 157 | O185: 2.740166926 | P185: 0.01133120273 | Q185: -0.02669464075
N186: 158 | O186: 2.757620218 | P186: 0.01086359121 | Q186: -0.02688833178
N187: 159 | O187: 2.775073511 | P187: 0.01039267054 | Q187: -0.02707383237
N188: 160 | O188: 2.792526803 | P188: 0.009918584156 | Q188: -0.027251086
N189: 161 | O189: 2.809980096 | P189: 0.009441476479 | Q189: -0.02742003869
N190: 162 | O190: 2.827433388 | P190: 0.008961492837 | Q190: -0.02758063897
N191: 163 | O191: 2.844886681 | P191: 0.008478779437 | Q191: -0.02773283792
N192: 164 | O192: 2.862339973 | P192: 0.007993483319 | Q192: -0.02787658918
N193: 165 | O193: 2.879793266 | P193: 0.007505752308 | Q193: -0.02801184896
N194: 166 | O194: 2.897246558 | P194: 0.007015734972 | Q194: -0.02813857606
N195: 167 | O195: 2.914699851 | P195: 0.006523580576 | Q195: -0.02825673188
N196: 168 | O196: 2.932153143 | P196: 0.006029439034 | Q196: -0.02836628042
N197: 169 | O197: 2.949606436 | P197: 0.005533460866 | Q197: -0.02846718832
N198: 170 | O198: 2.967059728 | P198: 0.005035797152 | Q198: -0.02855942484
N199: 171 | O199: 2.984513021 | P199: 0.004536599486 | Q199: -0.02864296188
N200: 172 | O200: 3.001966313 | P200: 0.004036019928 | Q200: -0.02871777399
N201: 173 | O201: 3.019419606 | P201: 0.003534210959 | Q201: -0.0287838384
N202: 174 | O202: 3.036872898 | P202: 0.003031325435 | Q202: -0.02884113497
... 186 more rows

Sheet 52
A1: VRS GNSS Project Control Monument Coordinate Analysis
A3: Project: | B3: =REPORT!B2 -> LUC-23-11.75 | D3: GPS Antenna: | E3: =REPORT!A41 -> Trimble R6 | I3: Report Date: | J3: =REPORT!C49 -> 2021-07-22
A4: PID: | B4: =REPORT!E2 -> 105889 | D4: VRS Network: | E4: ODOT VRS | I4: Prepared By: | J4: =REPORT!C48 -> TK/DCK
A5: Point ID: | B5: 52 | C5: No. of Sessions: | D5: =COUNTIF(GPS_IMPORT!A2:A1000,$B$5) -> 12 | E5: =IF(GPS_IMPORT!K2="TRUE","(GROUND)","(GRID)") -> (GRID) | I5: Checked By: | J5: =REPORT!C52 -> DCK/JS/MDH
A6: SESSION # | B6: Point | C6: Observation Date | D6: Start Time | E6: ="Northing("&GPS_IMPORT!K4&")" -> Northing(sft) | F6: ="Easting("&GPS_IMPORT!K4&")" -> Easting(sft) | G6: ="Height("&GPS_IMPORT!K4&")" -> Height(sft) | H6: ="∆ Northing("&GPS_IMPORT!K4&")" -> ∆ Northing(sft) | I6: ="∆ Easting("&GPS_IMPORT!K4&")" -> ∆ Easting(sft) | J6: ="∆ Height("&GPS_IMPORT!K4&")" -> ∆ Height(sft) | K6: Include in Solution?
A7: 1 | B7: =IF(ROWS(GPS_IMPORT!$1:1)<=COUNTIF(GPS_IMPORT!$A$2:$A$10000,$B$5),INDEX(GPS_IMPORT!$2:$10000,MATCH($B$5,(GPS_IMPORT!$A$2:$A$10000),0)+ROWS($1:1)-1,COLUMN()-1),0) -> 52 | C7: =IF(ROWS(GPS_IMPORT!$1:1)<=COUNTIF(GPS_IMPORT!$A$2:$A$10000,$B$5),INDEX(GPS_IMPORT!$2:$10000,MATCH($B$5,(GPS_IMPORT!$A$2:$A$10000),0)+ROWS($1:1)-1,COLUMN()-1),0) -> 07.06.2021 | D7: =IF(ROWS(GPS_IMPORT!$1:1)<=COUNTIF(GPS_IMPORT!$A$2:$A$10000,$B$5),INDEX(GPS_IMPORT!$2:$10000,MATCH($B$5,(GPS_IMPORT!$A$2:$A$10000),0)+ROWS($1:1)-1,COLUMN()-1),0) -> 09:20:12 | E7: =IF(ROWS(GPS_IMPORT!$1:1)<=COUNTIF(GPS_IMPORT!$A$2:$A$10000,$B$5),INDEX(GPS_IMPORT!$2:$10000,MATCH($B$5,(GPS_IMPORT!$A$2:$A$10000),0)+ROWS($1:1)-1,COLUMN()-1),0) -> 748574.4745 | F7: =IF(ROWS(GPS_IMPORT!$1:1)<=COUNTIF(GPS_IMPORT!$A$2:$A$10000,$B$5),INDEX(GPS_IMPORT!$2:$10000,MATCH($B$5,(GPS_IMPORT!$A$2:$A$10000),0)+ROWS($1:1)-1,COLUMN()-1),0) -> 1642379.821 | G7: =IF(ROWS(GPS_IMPORT!$1:1)<=COUNTIF(GPS_IMPORT!$A$2:$A$10000,$B$5),INDEX(GPS_IMPORT!$2:$10000,MATCH($B$5,(GPS_IMPORT!$A$2:$A$10000),0)+ROWS($1:1)-1,COLUMN()-1),0) -> 643.0625 | H7: =IF(K7=TRUE,IF(E7>0,E$22-E7,0),0) -> 0 | I7: =IF(K7=TRUE,IF(F7>0,F$22-F7,0),0) -> 0 | J7: =IF(K7=TRUE,IF(G7>0,G$22-G7,0),0) -> 0 | K7: FALSE | L7: =IF(OR(ABS(H7)>$H$24,ABS(I7)>$H$24,ABS(SQRT((H7^2)+(I7^2)))>$H$24),IF(K7=TRUE,IF(E7>0,E$22-E7,0),0),0) -> 0 | M7: =IF(OR(ABS(H7)>$H$24,ABS(I7)>$H$24,ABS(SQRT((H7^2)+(I7^2)))>$H$24),IF(K7=TRUE,IF(E7>0,F$22-F7,0),0),0) -> 0
A8: 2 | B8: =IF(ROWS(GPS_IMPORT!$1:2)<=COUNTIF(GPS_IMPORT!$A$2:$A$10000,$B$5),INDEX(GPS_IMPORT!$2:$10000,MATCH($B$5,(GPS_IMPORT!$A$2:$A$10000),0)+ROWS($1:2)-1,COLUMN()-1),0) -> 52 | C8: =IF(ROWS(GPS_IMPORT!$1:2)<=COUNTIF(GPS_IMPORT!$A$2:$A$10000,$B$5),INDEX(GPS_IMPORT!$2:$10000,MATCH($B$5,(GPS_IMPORT!$A$2:$A$10000),0)+ROWS($1:2)-1,COLUMN()-1),0) -> 07.06.2021 | D8: =IF(ROWS(GPS_IMPORT!$1:2)<=COUNTIF(GPS_IMPORT!$A$2:$A$10000,$B$5),INDEX(GPS_IMPORT!$2:$10000,MATCH($B$5,(GPS_IMPORT!$A$2:$A$10000),0)+ROWS($1:2)-1,COLUMN()-1),0) -> 09:21:06 | E8: =IF(ROWS(GPS_IMPORT!$1:2)<=COUNTIF(GPS_IMPORT!$A$2:$A$10000,$B$5),INDEX(GPS_IMPORT!$2:$10000,MATCH($B$5,(GPS_IMPORT!$A$2:$A$10000),0)+ROWS($1:2)-1,COLUMN()-1),0) -> 748574.4796 | F8: =IF(ROWS(GPS_IMPORT!$1:2)<=COUNTIF(GPS_IMPORT!$A$2:$A$10000,$B$5),INDEX(GPS_IMPORT!$2:$10000,MATCH($B$5,(GPS_IMPORT!$A$2:$A$10000),0)+ROWS($1:2)-1,COLUMN()-1),0) -> 1642379.836 | G8: =IF(ROWS(GPS_IMPORT!$1:2)<=COUNTIF(GPS_IMPORT!$A$2:$A$10000,$B$5),INDEX(GPS_IMPORT!$2:$10000,MATCH($B$5,(GPS_IMPORT!$A$2:$A$10000),0)+ROWS($1:2)-1,COLUMN()-1),0) -> 643.0787 | H8: =IF(K8=TRUE,IF(E8>0,E$22-E8,0),0) -> 0 | I8: =IF(K8=TRUE,IF(F8>0,F$22-F8,0),0) -> 0 | J8: =IF(K8=TRUE,IF(G8>0,G$22-G8,0),0) -> 0 | K8: FALSE | L8: 0 | M8: 0
A9: 3 | B9: =IF(ROWS(GPS_IMPORT!$1:3)<=COUNTIF(GPS_IMPORT!$A$2:$A$10000,$B$5),INDEX(GPS_IMPORT!$2:$10000,MATCH($B$5,(GPS_IMPORT!$A$2:$A$10000),0)+ROWS($1:3)-1,COLUMN()-1),0) -> 52 | C9: =IF(ROWS(GPS_IMPORT!$1:3)<=COUNTIF(GPS_IMPORT!$A$2:$A$10000,$B$5),INDEX(GPS_IMPORT!$2:$10000,MATCH($B$5,(GPS_IMPORT!$A$2:$A$10000),0)+ROWS($1:3)-1,COLUMN()-1),0) -> 07.06.2021 | D9: =IF(ROWS(GPS_IMPORT!$1:3)<=COUNTIF(GPS_IMPORT!$A$2:$A$10000,$B$5),INDEX(GPS_IMPORT!$2:$10000,MATCH($B$5,(GPS_IMPORT!$A$2:$A$10000),0)+ROWS($1:3)-1,COLUMN()-1),0) -> 09:22:48 | E9: =IF(ROWS(GPS_IMPORT!$1:3)<=COUNTIF(GPS_IMPORT!$A$2:$A$10000,$B$5),INDEX(GPS_IMPORT!$2:$10000,MATCH($B$5,(GPS_IMPORT!$A$2:$A$10000),0)+ROWS($1:3)-1,COLUMN()-1),0) -> 748574.4735 | F9: =IF(ROWS(GPS_IMPORT!$1:3)<=COUNTIF(GPS_IMPORT!$A$2:$A$10000,$B$5),INDEX(GPS_IMPORT!$2:$10000,MATCH($B$5,(GPS_IMPORT!$A$2:$A$10000),0)+ROWS($1:3)-1,COLUMN()-1),0) -> 1642379.846 | G9: =IF(ROWS(GPS_IMPORT!$1:3)<=COUNTIF(GPS_IMPORT!$A$2:$A$10000,$B$5),INDEX(GPS_IMPORT!$2:$10000,MATCH($B$5,(GPS_IMPORT!$A$2:$A$10000),0)+ROWS($1:3)-1,COLUMN()-1),0) -> 643.07 | H9: 0 | I9: 0 | J9: 0 | K9: FALSE | L9: 0 | M9: 0
A10: 4 | B10: =IF(ROWS(GPS_IMPORT!$1:4)<=COUNTIF(GPS_IMPORT!$A$2:$A$10000,$B$5),INDEX(GPS_IMPORT!$2:$10000,MATCH($B$5,(GPS_IMPORT!$A$2:$A$10000),0)+ROWS($1:4)-1,COLUMN()-1),0) -> 52 | C10: =IF(ROWS(GPS_IMPORT!$1:4)<=COUNTIF(GPS_IMPORT!$A$2:$A$10000,$B$5),INDEX(GPS_IMPORT!$2:$10000,MATCH($B$5,(GPS_IMPORT!$A$2:$A$10000),0)+ROWS($1:4)-1,COLUMN()-1),0) -> 07.06.2021 | D10: =IF(ROWS(GPS_IMPORT!$1:4)<=COUNTIF(GPS_IMPORT!$A$2:$A$10000,$B$5),INDEX(GPS_IMPORT!$2:$10000,MATCH($B$5,(GPS_IMPORT!$A$2:$A$10000),0)+ROWS($1:4)-1,COLUMN()-1),0) -> 09:23:35 | E10: =IF(ROWS(GPS_IMPORT!$1:4)<=COUNTIF(GPS_IMPORT!$A$2:$A$10000,$B$5),INDEX(GPS_IMPORT!$2:$10000,MATCH($B$5,(GPS_IMPORT!$A$2:$A$10000),0)+ROWS($1:4)-1,COLUMN()-1),0) -> 748574.4466 | F10: =IF(ROWS(GPS_IMPORT!$1:4)<=COUNTIF(GPS_IMPORT!$A$2:$A$10000,$B$5),INDEX(GPS_IMPORT!$2:$10000,MATCH($B$5,(GPS_IMPORT!$A$2:$A$10000),0)+ROWS($1:4)-1,COLUMN()-1),0) -> 1642379.854 | G10: =IF(ROWS(GPS_IMPORT!$1:4)<=COUNTIF(GPS_IMPORT!$A$2:$A$10000,$B$5),INDEX(GPS_IMPORT!$2:$10000,MATCH($B$5,(GPS_IMPORT!$A$2:$A$10000),0)+ROWS($1:4)-1,COLUMN()-1),0) -> 643.0571 | H10: -0.04761428572 | I10: 0.02357142861 | J10: 0.04202857143 | K10: TRUE | L10: -0.04761428572 | M10: 0.02357142861
A11: 5 | B11: =IF(ROWS(GPS_IMPORT!$1:5)<=COUNTIF(GPS_IMPORT!$A$2:$A$10000,$B$5),INDEX(GPS_IMPORT!$2:$10000,MATCH($B$5,(GPS_IMPORT!$A$2:$A$10000),0)+ROWS($1:5)-1,COLUMN()-1),0) -> 52 | C11: =IF(ROWS(GPS_IMPORT!$1:5)<=COUNTIF(GPS_IMPORT!$A$2:$A$10000,$B$5),INDEX(GPS_IMPORT!$2:$10000,MATCH($B$5,(GPS_IMPORT!$A$2:$A$10000),0)+ROWS($1:5)-1,COLUMN()-1),0) -> 07.06.2021 | D11: =IF(ROWS(GPS_IMPORT!$1:5)<=COUNTIF(GPS_IMPORT!$A$2:$A$10000,$B$5),INDEX(GPS_IMPORT!$2:$10000,MATCH($B$5,(GPS_IMPORT!$A$2:$A$10000),0)+ROWS($1:5)-1,COLUMN()-1),0) -> 13:30:00 | E11: =IF(ROWS(GPS_IMPORT!$1:5)<=COUNTIF(GPS_IMPORT!$A$2:$A$10000,$B$5),INDEX(GPS_IMPORT!$2:$10000,MATCH($B$5,(GPS_IMPORT!$A$2:$A$10000),0)+ROWS($1:5)-1,COLUMN()-1),0) -> 748574.4005 | F11: =IF(ROWS(GPS_IMPORT!$1:5)<=COUNTIF(GPS_IMPORT!$A$2:$A$10000,$B$5),INDEX(GPS_IMPORT!$2:$10000,MATCH($B$5,(GPS_IMPORT!$A$2:$A$10000),0)+ROWS($1:5)-1,COLUMN()-1),0) -> 1642379.873 | G11: =IF(ROWS(GPS_IMPORT!$1:5)<=COUNTIF(GPS_IMPORT!$A$2:$A$10000,$B$5),INDEX(GPS_IMPORT!$2:$10000,MATCH($B$5,(GPS_IMPORT!$A$2:$A$10000),0)+ROWS($1:5)-1,COLUMN()-1),0) -> 643.1821 | H11: 0 | I11: 0 | J11: 0 | K11: FALSE | L11: 0 | M11: 0
A12: 6 | B12: =IF(ROWS(GPS_IMPORT!$1:6)<=COUNTIF(GPS_IMPORT!$A$2:$A$10000,$B$5),INDEX(GPS_IMPORT!$2:$10000,MATCH($B$5,(GPS_IMPORT!$A$2:$A$10000),0)+ROWS($1:6)-1,COLUMN()-1),0) -> 52 | C12: =IF(ROWS(GPS_IMPORT!$1:6)<=COUNTIF(GPS_IMPORT!$A$2:$A$10000,$B$5),INDEX(GPS_IMPORT!$2:$10000,MATCH($B$5,(GPS_IMPORT!$A$2:$A$10000),0)+ROWS($1:6)-1,COLUMN()-1),0) -> 07.06.2021 | D12: =IF(ROWS(GPS_IMPORT!$1:6)<=COUNTIF(GPS_IMPORT!$A$2:$A$10000,$B$5),INDEX(GPS_IMPORT!$2:$10000,MATCH($B$5,(GPS_IMPORT!$A$2:$A$10000),0)+ROWS($1:6)-1,COLUMN()-1),0) -> 13:31:11 | E12: =IF(ROWS(GPS_IMPORT!$1:6)<=COUNTIF(GPS_IMPORT!$A$2:$A$10000,$B$5),INDEX(GPS_IMPORT!$2:$10000,MATCH($B$5,(GPS_IMPORT!$A$2:$A$10000),0)+ROWS($1:6)-1,COLUMN()-1),0) -> 748574.3872 | F12: =IF(ROWS(GPS_IMPORT!$1:6)<=COUNTIF(GPS_IMPORT!$A$2:$A$10000,$B$5),INDEX(GPS_IMPORT!$2:$10000,MATCH($B$5,(GPS_IMPORT!$A$2:$A$10000),0)+ROWS($1:6)-1,COLUMN()-1),0) -> 1642379.874 | G12: =IF(ROWS(GPS_IMPORT!$1:6)<=COUNTIF(GPS_IMPORT!$A$2:$A$10000,$B$5),INDEX(GPS_IMPORT!$2:$10000,MATCH($B$5,(GPS_IMPORT!$A$2:$A$10000),0)+ROWS($1:6)-1,COLUMN()-1),0) -> 643.0915 | H12: 0.01178571431 | I12: 0.003571428591 | J12: 0.007628571429 | K12: TRUE | L12: 0 | M12: 0
A13: 7 | B13: =IF(ROWS(GPS_IMPORT!$1:7)<=COUNTIF(GPS_IMPORT!$A$2:$A$10000,$B$5),INDEX(GPS_IMPORT!$2:$10000,MATCH($B$5,(GPS_IMPORT!$A$2:$A$10000),0)+ROWS($1:7)-1,COLUMN()-1),0) -> 52 | C13: =IF(ROWS(GPS_IMPORT!$1:7)<=COUNTIF(GPS_IMPORT!$A$2:$A$10000,$B$5),INDEX(GPS_IMPORT!$2:$10000,MATCH($B$5,(GPS_IMPORT!$A$2:$A$10000),0)+ROWS($1:7)-1,COLUMN()-1),0) -> 07.06.2021 | D13: =IF(ROWS(GPS_IMPORT!$1:7)<=COUNTIF(GPS_IMPORT!$A$2:$A$10000,$B$5),INDEX(GPS_IMPORT!$2:$10000,MATCH($B$5,(GPS_IMPORT!$A$2:$A$10000),0)+ROWS($1:7)-1,COLUMN()-1),0) -> 13:32:42 | E13: =IF(ROWS(GPS_IMPORT!$1:7)<=COUNTIF(GPS_IMPORT!$A$2:$A$10000,$B$5),INDEX(GPS_IMPORT!$2:$10000,MATCH($B$5,(GPS_IMPORT!$A$2:$A$10000),0)+ROWS($1:7)-1,COLUMN()-1),0) -> 748574.4042 | F13: =IF(ROWS(GPS_IMPORT!$1:7)<=COUNTIF(GPS_IMPORT!$A$2:$A$10000,$B$5),INDEX(GPS_IMPORT!$2:$10000,MATCH($B$5,(GPS_IMPORT!$A$2:$A$10000),0)+ROWS($1:7)-1,COLUMN()-1),0) -> 1642379.882 | G13: =IF(ROWS(GPS_IMPORT!$1:7)<=COUNTIF(GPS_IMPORT!$A$2:$A$10000,$B$5),INDEX(GPS_IMPORT!$2:$10000,MATCH($B$5,(GPS_IMPORT!$A$2:$A$10000),0)+ROWS($1:7)-1,COLUMN()-1),0) -> 643.0731 | H13: -0.005214285688 | I13: -0.004428571323 | J13: 0.02602857143 | K13: TRUE | L13: 0 | M13: 0
A14: 8 | B14: =IF(ROWS(GPS_IMPORT!$1:8)<=COUNTIF(GPS_IMPORT!$A$2:$A$10000,$B$5),INDEX(GPS_IMPORT!$2:$10000,MATCH($B$5,(GPS_IMPORT!$A$2:$A$10000),0)+ROWS($1:8)-1,COLUMN()-1),0) -> 52 | C14: =IF(ROWS(GPS_IMPORT!$1:8)<=COUNTIF(GPS_IMPORT!$A$2:$A$10000,$B$5),INDEX(GPS_IMPORT!$2:$10000,MATCH($B$5,(GPS_IMPORT!$A$2:$A$10000),0)+ROWS($1:8)-1,COLUMN()-1),0) -> 07.06.2021 | D14: =IF(ROWS(GPS_IMPORT!$1:8)<=COUNTIF(GPS_IMPORT!$A$2:$A$10000,$B$5),INDEX(GPS_IMPORT!$2:$10000,MATCH($B$5,(GPS_IMPORT!$A$2:$A$10000),0)+ROWS($1:8)-1,COLUMN()-1),0) -> 13:34:04 | E14: =IF(ROWS(GPS_IMPORT!$1:8)<=COUNTIF(GPS_IMPORT!$A$2:$A$10000,$B$5),INDEX(GPS_IMPORT!$2:$10000,MATCH($B$5,(GPS_IMPORT!$A$2:$A$10000),0)+ROWS($1:8)-1,COLUMN()-1),0) -> 748574.3912 | F14: =IF(ROWS(GPS_IMPORT!$1:8)<=COUNTIF(GPS_IMPORT!$A$2:$A$10000,$B$5),INDEX(GPS_IMPORT!$2:$10000,MATCH($B$5,(GPS_IMPORT!$A$2:$A$10000),0)+ROWS($1:8)-1,COLUMN()-1),0) -> 1642379.894 | G14: =IF(ROWS(GPS_IMPORT!$1:8)<=COUNTIF(GPS_IMPORT!$A$2:$A$10000,$B$5),INDEX(GPS_IMPORT!$2:$10000,MATCH($B$5,(GPS_IMPORT!$A$2:$A$10000),0)+ROWS($1:8)-1,COLUMN()-1),0) -> 643.1319 | H14: 0.007785714348 | I14: -0.01642857143 | J14: -0.03277142857 | K14: TRUE | L14: 0 | M14: 0
A15: 9 | B15: =IF(ROWS(GPS_IMPORT!$1:9)<=COUNTIF(GPS_IMPORT!$A$2:$A$10000,$B$5),INDEX(GPS_IMPORT!$2:$10000,MATCH($B$5,(GPS_IMPORT!$A$2:$A$10000),0)+ROWS($1:9)-1,COLUMN()-1),0) -> 52 | C15: =IF(ROWS(GPS_IMPORT!$1:9)<=COUNTIF(GPS_IMPORT!$A$2:$A$10000,$B$5),INDEX(GPS_IMPORT!$2:$10000,MATCH($B$5,(GPS_IMPORT!$A$2:$A$10000),0)+ROWS($1:9)-1,COLUMN()-1),0) -> 07.06.2021 | D15: =IF(ROWS(GPS_IMPORT!$1:9)<=COUNTIF(GPS_IMPORT!$A$2:$A$10000,$B$5),INDEX(GPS_IMPORT!$2:$10000,MATCH($B$5,(GPS_IMPORT!$A$2:$A$10000),0)+ROWS($1:9)-1,COLUMN()-1),0) -> 13:35:19 | E15: =IF(ROWS(GPS_IMPORT!$1:9)<=COUNTIF(GPS_IMPORT!$A$2:$A$10000,$B$5),INDEX(GPS_IMPORT!$2:$10000,MATCH($B$5,(GPS_IMPORT!$A$2:$A$10000),0)+ROWS($1:9)-1,COLUMN()-1),0) -> 748574.3657 | F15: =IF(ROWS(GPS_IMPORT!$1:9)<=COUNTIF(GPS_IMPORT!$A$2:$A$10000,$B$5),INDEX(GPS_IMPORT!$2:$10000,MATCH($B$5,(GPS_IMPORT!$A$2:$A$10000),0)+ROWS($1:9)-1,COLUMN()-1),0) -> 1642379.882 | G15: =IF(ROWS(GPS_IMPORT!$1:9)<=COUNTIF(GPS_IMPORT!$A$2:$A$10000,$B$5),INDEX(GPS_IMPORT!$2:$10000,MATCH($B$5,(GPS_IMPORT!$A$2:$A$10000),0)+ROWS($1:9)-1,COLUMN()-1),0) -> 643.0942 | H15: 0.03328571434 | I15: -0.004428571323 | J15: 0.004928571429 | K15: TRUE | L15: 0.03328571434 | M15: -0.004428571323
A16: 10 | B16: =IF(ROWS(GPS_IMPORT!$1:10)<=COUNTIF(GPS_IMPORT!$A$2:$A$10000,$B$5),INDEX(GPS_IMPORT!$2:$10000,MATCH($B$5,(GPS_IMPORT!$A$2:$A$10000),0)+ROWS($1:10)-1,COLUMN()-1),0) -> 52 | C16: =IF(ROWS(GPS_IMPORT!$1:10)<=COUNTIF(GPS_IMPORT!$A$2:$A$10000,$B$5),INDEX(GPS_IMPORT!$2:$10000,MATCH($B$5,(GPS_IMPORT!$A$2:$A$10000),0)+ROWS($1:10)-1,COLUMN()-1),0) -> 07.06.2021 | D16: =IF(ROWS(GPS_IMPORT!$1:10)<=COUNTIF(GPS_IMPORT!$A$2:$A$10000,$B$5),INDEX(GPS_IMPORT!$2:$10000,MATCH($B$5,(GPS_IMPORT!$A$2:$A$10000),0)+ROWS($1:10)-1,COLUMN()-1),0) -> 13:36:13 | E16: =IF(ROWS(GPS_IMPORT!$1:10)<=COUNTIF(GPS_IMPORT!$A$2:$A$10000,$B$5),INDEX(GPS_IMPORT!$2:$10000,MATCH($B$5,(GPS_IMPORT!$A$2:$A$10000),0)+ROWS($1:10)-1,COLUMN()-1),0) -> 748574.3901 | F16: =IF(ROWS(GPS_IMPORT!$1:10)<=COUNTIF(GPS_IMPORT!$A$2:$A$10000,$B$5),INDEX(GPS_IMPORT!$2:$10000,MATCH($B$5,(GPS_IMPORT!$A$2:$A$10000),0)+ROWS($1:10)-1,COLUMN()-1),0) -> 1642379.873 | G16: =IF(ROWS(GPS_IMPORT!$1:10)<=COUNTIF(GPS_IMPORT!$A$2:$A$10000,$B$5),INDEX(GPS_IMPORT!$2:$10000,MATCH($B$5,(GPS_IMPORT!$A$2:$A$10000),0)+ROWS($1:10)-1,COLUMN()-1),0) -> 643.0915 | H16: 0.008885714342 | I16: 0.004571428755 | J16: 0.007628571429 | K16: TRUE | L16: 0 | M16: 0
A17: 11 | B17: =IF(ROWS(GPS_IMPORT!$1:11)<=COUNTIF(GPS_IMPORT!$A$2:$A$10000,$B$5),INDEX(GPS_IMPORT!$2:$10000,MATCH($B$5,(GPS_IMPORT!$A$2:$A$10000),0)+ROWS($1:11)-1,COLUMN()-1),0) -> 52 | C17: =IF(ROWS(GPS_IMPORT!$1:11)<=COUNTIF(GPS_IMPORT!$A$2:$A$10000,$B$5),INDEX(GPS_IMPORT!$2:$10000,MATCH($B$5,(GPS_IMPORT!$A$2:$A$10000),0)+ROWS($1:11)-1,COLUMN()-1),0) -> 07.06.2021 | D17: =IF(ROWS(GPS_IMPORT!$1:11)<=COUNTIF(GPS_IMPORT!$A$2:$A$10000,$B$5),INDEX(GPS_IMPORT!$2:$10000,MATCH($B$5,(GPS_IMPORT!$A$2:$A$10000),0)+ROWS($1:11)-1,COLUMN()-1),0) -> 13:37:19 | E17: =IF(ROWS(GPS_IMPORT!$1:11)<=COUNTIF(GPS_IMPORT!$A$2:$A$10000,$B$5),INDEX(GPS_IMPORT!$2:$10000,MATCH($B$5,(GPS_IMPORT!$A$2:$A$10000),0)+ROWS($1:11)-1,COLUMN()-1),0) -> 748574.4079 | F17: =IF(ROWS(GPS_IMPORT!$1:11)<=COUNTIF(GPS_IMPORT!$A$2:$A$10000,$B$5),INDEX(GPS_IMPORT!$2:$10000,MATCH($B$5,(GPS_IMPORT!$A$2:$A$10000),0)+ROWS($1:11)-1,COLUMN()-1),0) -> 1642379.884 | G17: =IF(ROWS(GPS_IMPORT!$1:11)<=COUNTIF(GPS_IMPORT!$A$2:$A$10000,$B$5),INDEX(GPS_IMPORT!$2:$10000,MATCH($B$5,(GPS_IMPORT!$A$2:$A$10000),0)+ROWS($1:11)-1,COLUMN()-1),0) -> 643.1546 | H17: -0.008914285689 | I17: -0.006428571418 | J17: -0.05547142857 | K17: TRUE | L17: 0 | M17: 0
A18: 12 | B18: =IF(ROWS(GPS_IMPORT!$1:12)<=COUNTIF(GPS_IMPORT!$A$2:$A$10000,$B$5),INDEX(GPS_IMPORT!$2:$10000,MATCH($B$5,(GPS_IMPORT!$A$2:$A$10000),0)+ROWS($1:12)-1,COLUMN()-1),0) -> 52 | C18: =IF(ROWS(GPS_IMPORT!$1:12)<=COUNTIF(GPS_IMPORT!$A$2:$A$10000,$B$5),INDEX(GPS_IMPORT!$2:$10000,MATCH($B$5,(GPS_IMPORT!$A$2:$A$10000),0)+ROWS($1:12)-1,COLUMN()-1),0) -> 07.06.2021 | D18: =IF(ROWS(GPS_IMPORT!$1:12)<=COUNTIF(GPS_IMPORT!$A$2:$A$10000,$B$5),INDEX(GPS_IMPORT!$2:$10000,MATCH($B$5,(GPS_IMPORT!$A$2:$A$10000),0)+ROWS($1:12)-1,COLUMN()-1),0) -> 13:38:18 | E18: =IF(ROWS(GPS_IMPORT!$1:12)<=COUNTIF(GPS_IMPORT!$A$2:$A$10000,$B$5),INDEX(GPS_IMPORT!$2:$10000,MATCH($B$5,(GPS_IMPORT!$A$2:$A$10000),0)+ROWS($1:12)-1,COLUMN()-1),0) -> 748574.3905 | F18: =IF(ROWS(GPS_IMPORT!$1:12)<=COUNTIF(GPS_IMPORT!$A$2:$A$10000,$B$5),INDEX(GPS_IMPORT!$2:$10000,MATCH($B$5,(GPS_IMPORT!$A$2:$A$10000),0)+ROWS($1:12)-1,COLUMN()-1),0) -> 1642379.901 | G18: =IF(ROWS(GPS_IMPORT!$1:12)<=COUNTIF(GPS_IMPORT!$A$2:$A$10000,$B$5),INDEX(GPS_IMPORT!$2:$10000,MATCH($B$5,(GPS_IMPORT!$A$2:$A$10000),0)+ROWS($1:12)-1,COLUMN()-1),0) -> 643.166 | H18: 0 | I18: 0 | J18: 0 | K18: FALSE | L18: 0 | M18: 0
A19: 13 | B19: =IF(ROWS(GPS_IMPORT!$1:13)<=COUNTIF(GPS_IMPORT!$A$2:$A$10000,$B$5),INDEX(GPS_IMPORT!$2:$10000,MATCH($B$5,(GPS_IMPORT!$A$2:$A$10000),0)+ROWS($1:13)-1,COLUMN()-1),0) -> 0 | C19: =IF(ROWS(GPS_IMPORT!$1:13)<=COUNTIF(GPS_IMPORT!$A$2:$A$10000,$B$5),INDEX(GPS_IMPORT!$2:$10000,MATCH($B$5,(GPS_IMPORT!$A$2:$A$10000),0)+ROWS($1:13)-1,COLUMN()-1),0) -> 00:00:00 | D19: =IF(ROWS(GPS_IMPORT!$1:13)<=COUNTIF(GPS_IMPORT!$A$2:$A$10000,$B$5),INDEX(GPS_IMPORT!$2:$10000,MATCH($B$5,(GPS_IMPORT!$A$2:$A$10000),0)+ROWS($1:13)-1,COLUMN()-1),0) -> 00:00:00 | E19: =IF(ROWS(GPS_IMPORT!$1:13)<=COUNTIF(GPS_IMPORT!$A$2:$A$10000,$B$5),INDEX(GPS_IMPORT!$2:$10000,MATCH($B$5,(GPS_IMPORT!$A$2:$A$10000),0)+ROWS($1:13)-1,COLUMN()-1),0) -> 0 | F19: =IF(ROWS(GPS_IMPORT!$1:13)<=COUNTIF(GPS_IMPORT!$A$2:$A$10000,$B$5),INDEX(GPS_IMPORT!$2:$10000,MATCH($B$5,(GPS_IMPORT!$A$2:$A$10000),0)+ROWS($1:13)-1,COLUMN()-1),0) -> 0 | G19: =IF(ROWS(GPS_IMPORT!$1:13)<=COUNTIF(GPS_IMPORT!$A$2:$A$10000,$B$5),INDEX(GPS_IMPORT!$2:$10000,MATCH($B$5,(GPS_IMPORT!$A$2:$A$10000),0)+ROWS($1:13)-1,COLUMN()-1),0) -> 0 | H19: 0 | I19: 0 | J19: 0 | K19: FALSE | L19: 0 | M19: 0
A20: 14 | B20: =IF(ROWS(GPS_IMPORT!$1:14)<=COUNTIF(GPS_IMPORT!$A$2:$A$10000,$B$5),INDEX(GPS_IMPORT!$2:$10000,MATCH($B$5,(GPS_IMPORT!$A$2:$A$10000),0)+ROWS($1:14)-1,COLUMN()-1),0) -> 0 | C20: =IF(ROWS(GPS_IMPORT!$1:14)<=COUNTIF(GPS_IMPORT!$A$2:$A$10000,$B$5),INDEX(GPS_IMPORT!$2:$10000,MATCH($B$5,(GPS_IMPORT!$A$2:$A$10000),0)+ROWS($1:14)-1,COLUMN()-1),0) -> 00:00:00 | D20: =IF(ROWS(GPS_IMPORT!$1:14)<=COUNTIF(GPS_IMPORT!$A$2:$A$10000,$B$5),INDEX(GPS_IMPORT!$2:$10000,MATCH($B$5,(GPS_IMPORT!$A$2:$A$10000),0)+ROWS($1:14)-1,COLUMN()-1),0) -> 00:00:00 | E20: =IF(ROWS(GPS_IMPORT!$1:14)<=COUNTIF(GPS_IMPORT!$A$2:$A$10000,$B$5),INDEX(GPS_IMPORT!$2:$10000,MATCH($B$5,(GPS_IMPORT!$A$2:$A$10000),0)+ROWS($1:14)-1,COLUMN()-1),0) -> 0 | F20: =IF(ROWS(GPS_IMPORT!$1:14)<=COUNTIF(GPS_IMPORT!$A$2:$A$10000,$B$5),INDEX(GPS_IMPORT!$2:$10000,MATCH($B$5,(GPS_IMPORT!$A$2:$A$10000),0)+ROWS($1:14)-1,COLUMN()-1),0) -> 0 | G20: =IF(ROWS(GPS_IMPORT!$1:14)<=COUNTIF(GPS_IMPORT!$A$2:$A$10000,$B$5),INDEX(GPS_IMPORT!$2:$10000,MATCH($B$5,(GPS_IMPORT!$A$2:$A$10000),0)+ROWS($1:14)-1,COLUMN()-1),0) -> 0 | H20: 0 | I20: 0 | J20: 0 | K20: FALSE | L20: 0 | M20: 0
A21: 15 | B21: =IF(ROWS(GPS_IMPORT!$1:15)<=COUNTIF(GPS_IMPORT!$A$2:$A$10000,$B$5),INDEX(GPS_IMPORT!$2:$10000,MATCH($B$5,(GPS_IMPORT!$A$2:$A$10000),0)+ROWS($1:15)-1,COLUMN()-1),0) -> 0 | C21: =IF(ROWS(GPS_IMPORT!$1:15)<=COUNTIF(GPS_IMPORT!$A$2:$A$10000,$B$5),INDEX(GPS_IMPORT!$2:$10000,MATCH($B$5,(GPS_IMPORT!$A$2:$A$10000),0)+ROWS($1:15)-1,COLUMN()-1),0) -> 00:00:00 | D21: =IF(ROWS(GPS_IMPORT!$1:15)<=COUNTIF(GPS_IMPORT!$A$2:$A$10000,$B$5),INDEX(GPS_IMPORT!$2:$10000,MATCH($B$5,(GPS_IMPORT!$A$2:$A$10000),0)+ROWS($1:15)-1,COLUMN()-1),0) -> 00:00:00 | E21: =IF(ROWS(GPS_IMPORT!$1:15)<=COUNTIF(GPS_IMPORT!$A$2:$A$10000,$B$5),INDEX(GPS_IMPORT!$2:$10000,MATCH($B$5,(GPS_IMPORT!$A$2:$A$10000),0)+ROWS($1:15)-1,COLUMN()-1),0) -> 0 | F21: =IF(ROWS(GPS_IMPORT!$1:15)<=COUNTIF(GPS_IMPORT!$A$2:$A$10000,$B$5),INDEX(GPS_IMPORT!$2:$10000,MATCH($B$5,(GPS_IMPORT!$A$2:$A$10000),0)+ROWS($1:15)-1,COLUMN()-1),0) -> 0 | G21: =IF(ROWS(GPS_IMPORT!$1:15)<=COUNTIF(GPS_IMPORT!$A$2:$A$10000,$B$5),INDEX(GPS_IMPORT!$2:$10000,MATCH($B$5,(GPS_IMPORT!$A$2:$A$10000),0)+ROWS($1:15)-1,COLUMN()-1),0) -> 0 | H21: =IF(K21=TRUE,IF(E21>0,E$22-E21,0),0) -> 0 | I21: 0 | J21: 0 | K21: FALSE | L21: 0 | M21: 0
D22: AVERAGE | E22: =(IF($K$7=TRUE,E7,0)+IF($K$8=TRUE,E8,0)+IF($K$9=TRUE,E9,0)+IF($K$10=TRUE,E10,0)+IF($K$11=TRUE,E11,0)+IF($K$12=TRUE,E12,0)+IF($K$13=TRUE,E13,0)+IF($K$14=TRUE,E14,0)+IF($K$15=TRUE,E15,0)+IF($K$16=TRUE,E16,0)+IF($K$17=TRUE,E17,0)+IF($K$18=TRUE,E18,0)+IF($K$19=TRUE,E19,0)+IF($K$20=TRUE,E20,0)+IF($K$21=TRUE,E21,0))/(IF($K$7=TRUE,1,0)+IF($K$8=TRUE,1,0)+IF($K$9=TRUE,1,0)+IF($K$10=TRUE,1,0)+IF($K$11=TRUE,1,0)+IF($K$12=TRUE,1,0)+IF($K$13=TRUE,1,0)+IF($K$14=TRUE,1,0)+IF($K$15=TRUE,1,0)+IF($K$16=TRUE,1,0)+IF($K$17=TRUE,1,0)+IF($K$18=TRUE,1,0)+IF($K$19=TRUE,1,0)+IF($K$20=TRUE,1,0)+IF($K$21=TRUE,1,0)) -> 748574.399 | F22: =(IF($K$7=TRUE,F7,0)+IF($K$8=TRUE,F8,0)+IF($K$9=TRUE,F9,0)+IF($K$10=TRUE,F10,0)+IF($K$11=TRUE,F11,0)+IF($K$12=TRUE,F12,0)+IF($K$13=TRUE,F13,0)+IF($K$14=TRUE,F14,0)+IF($K$15=TRUE,F15,0)+IF($K$16=TRUE,F16,0)+IF($K$17=TRUE,F17,0)+IF($K$18=TRUE,F18,0)+IF($K$19=TRUE,F19,0)+IF($K$20=TRUE,F20,0)+IF($K$21=TRUE,F21,0))/(IF($K$7=TRUE,1,0)+IF($K$8=TRUE,1,0)+IF($K$9=TRUE,1,0)+IF($K$10=TRUE,1,0)+IF($K$11=TRUE,1,0)+IF($K$12=TRUE,1,0)+IF($K$13=TRUE,1,0)+IF($K$14=TRUE,1,0)+IF($K$15=TRUE,1,0)+IF($K$16=TRUE,1,0)+IF($K$17=TRUE,1,0)+IF($K$18=TRUE,1,0)+IF($K$19=TRUE,1,0)+IF($K$20=TRUE,1,0)+IF($K$21=TRUE,1,0)) -> 1642379.878 | G22: =(IF($K$7=TRUE,G7,0)+IF($K$8=TRUE,G8,0)+IF($K$9=TRUE,G9,0)+IF($K$10=TRUE,G10,0)+IF($K$11=TRUE,G11,0)+IF($K$12=TRUE,G12,0)+IF($K$13=TRUE,G13,0)+IF($K$14=TRUE,G14,0)+IF($K$15=TRUE,G15,0)+IF($K$16=TRUE,G16,0)+IF($K$17=TRUE,G17,0)+IF($K$18=TRUE,G18,0)+IF($K$19=TRUE,G19,0)+IF($K$20=TRUE,G20,0)+IF($K$21=TRUE,G21,0))/ (IF($K$7=TRUE,1,0)+IF($K$8=TRUE,1,0)+IF($K$9=TRUE,1,0)+IF($K$10=TRUE,1,0)+IF($K$11=TRUE,1,0)+IF($K$12=TRUE,1,0)+IF($K$13=TRUE,1,0)+IF($K$14=TRUE,1,0)+IF($K$15=TRUE,1,0)+IF($K$16=TRUE,1,0)+IF($K$17=TRUE,1,0)+IF($K$18=TRUE,1,0)+IF($K$19=TRUE,1,0)+IF($K$20=TRUE,1,0)+IF($K$21=TRUE,1,0)) -> 643.0991286 | H22: RMSE: | I22: RMSE: | J22: RMSE:
G23: ="RMSE IN "&GPS_IMPORT!J4&":" -> RMSE IN U.S. Survey FT: | H23: =SQRT(SUMSQ((IF(K7:K21=TRUE,H7:H21)))/COUNTIF(K7:K21,K7:K21=TRUE)) -> 0.02168002703 | I23: =SQRT(SUMSQ((IF(K7:K21=TRUE,I7:I21)))/COUNTIF(K7:K21,K7:K21=TRUE)) -> 0.0108380942 | J23: =SQRT(SUMSQ((IF(K7:K21=TRUE,J7:J21)))/COUNTIF(K7:K21,K7:K21=TRUE)) -> 0.02901640546
G24: Tolerance: | H24: =VLOOKUP(GPS_IMPORT!$K$4,Lists!H3:I5,2,FALSE) -> 0.029 | J24: =VLOOKUP(GPS_IMPORT!$K$4,Lists!H3:J5,3,FALSE) -> 0.039
H25: =IF(H23<=H24,"PASS","FAIL") -> PASS | I25: =IF(I23<=H24,"PASS","FAIL") -> PASS | J25: =IF(J23<=J24,"PASS","FAIL") -> PASS
A27: AVERAGED GPS-DERIVED POSITION | I27: Notes:
B28: MONUMENT COORDINATES | D28: NORTHING | E28: EASTING | F28: ORTHO HEIGHT | N28: Degrees | O28: Radians | P28: SIN | Q28: COS
B29: =GPS_IMPORT!J4&" ("&IF(GPS_IMPORT!K2="TRUE","GROUND","GRID")&")" -> U.S. Survey FT (GRID) | D29: =$E$22 -> 748574.399 | E29: =$F$22 -> 1642379.878 | F29: =$G$22 -> 643.0991286 | N29: 1 | O29: =N29*(PI()/180) -> 0.01745329252 | P29: =SIN(O29)*H$24 -> 0.0005061197867 | Q29: =COS(O29)*H$24 -> 0.02899558316
N30: =N29+1 -> 2 | O30: =N30*(PI()/180) -> 0.03490658504 | P30: 0.001012085404 | Q30: 0.02898233398
A31: LEVELED ELEVATION | N31: =N30+1 -> 3 | O31: 0.05235987756 | P31: 0.001517742731 | Q31: 0.02896025651
A32: ='LEVEL RUN'!B5 -> U.S. Survey FT | C32: =IFERROR(VLOOKUP(B5,'LEVEL RUN'!A7:I59,9,FALSE),"N/A") -> 643.2379446 | D32: (Fill out Level Run Sheet or N/A if no leveled elevation is available) | N32: 4 | O32: 0.06981317008 | P32: 0.002022937739 | Q32: 0.02892935746
A33: MONUMENT HELD | C33: =IF('LEVEL RUN'!A7="","",'LEVEL RUN'!A7) -> 331 | D33: (Type the monument name from which leveling originated) | N33: 5 | O33: 0.0872664626 | P33: 0.00252751654 | Q33: 0.02888964624
A34: LEVELED ELEVATION - GPS DERIVED ELEVATION = | E34: =IF(C32="N/A","N/A",C32-(F29*'LEVEL RUN'!F5)) -> 0.1388160069 | F34: ='LEVEL RUN'!D5 -> sft | N34: 6 | O34: 0.1047197551 | P34: 0.003031325435 | Q34: 0.02884113497
N35: 7 | O35: 0.1221730476 | P35: 0.003534210959 | Q35: 0.0287838384
A36: FINAL MONUMENT COORDINATES | N36: 8 | O36: 0.1396263402 | P36: 0.004036019928 | Q36: 0.02871777399
B37: MONUMENT COORDINATES | D37: NORTHING | E37: EASTING | F37: ELEVATION | G37: FEATURE CODE | N37: 9 | O37: 0.1570796327 | P37: 0.004536599486 | Q37: 0.02864296188
B38: =GPS_IMPORT!J6&" (GRID)" -> U.S. Survey FT (GRID) | D38: =IF(GPS_IMPORT!K2=TRUE,($E$22*GPS_IMPORT!$L$6)*(1/REPORT!C13),$E$22*GPS_IMPORT!$L$6) -> 748574.399 | E38: =IF(GPS_IMPORT!K2=TRUE,($F$22*GPS_IMPORT!$L$6)*(1/REPORT!C13),$F$22*GPS_IMPORT!$L$6) -> 1642379.878 | F38: =IF($C$32="N/A",($G$22*GPS_IMPORT!$L$6),$C$32*'LEVEL RUN'!H5) -> 643.2379446 | G38: =VLOOKUP($B$5,GPS_IMPORT!$A$2:$G$2000,7,FALSE) -> IPS | N38: 10 | O38: 0.1745329252 | P38: 0.005035797152 | Q38: 0.02855942484
B39: =GPS_IMPORT!J6&" (GROUND)" -> U.S. Survey FT (GROUND) | D39: =IF(GPS_IMPORT!K2=TRUE,$E$22*GPS_IMPORT!$L$6,$E$22*GPS_IMPORT!$L$6*REPORT!C13) -> 748593.3679 | E39: =IF(GPS_IMPORT!K2=TRUE,$F$22*GPS_IMPORT!$L$6,$F$22*GPS_IMPORT!$L$6*REPORT!C13) -> 1642421.495 | F39: =IF($C$32="N/A",($G$22*GPS_IMPORT!$L$6),$C$32*'LEVEL RUN'!H5) -> 643.2379446 | G39: =$G$38 -> IPS | N39: 11 | O39: 0.1919862177 | P39: 0.005533460866 | Q39: 0.02846718832
N40: 12 | O40: 0.2094395102 | P40: 0.006029439034 | Q40: 0.02836628042
A41: ∆ North, ∆ East, and ∆ Ht. are the difference between the average northing, easting, and height for each observation. | I41: Mask Angle: | J41: 10° | N41: 13 | O41: 0.2268928028 | P41: 0.006523580576 | Q41: 0.02825673188
N42: 14 | O42: 0.2443460953 | P42: 0.007015734972 | Q42: 0.02813857606
N43: 15 | O43: 0.2617993878 | P43: 0.007505752308 | Q43: 0.02801184896
N44: 16 | O44: 0.2792526803 | P44: 0.007993483319 | Q44: 0.02787658918
N45: 17 | O45: 0.2967059728 | P45: 0.008478779437 | Q45: 0.02773283792
N46: 18 | O46: 0.3141592654 | P46: 0.008961492837 | Q46: 0.02758063897
N47: 19 | O47: 0.3316125579 | P47: 0.009441476479 | Q47: 0.02742003869
N48: 20 | O48: 0.3490658504 | P48: 0.009918584156 | Q48: 0.027251086
N49: 21 | O49: 0.3665191429 | P49: 0.01039267054 | Q49: 0.02707383237
N50: 22 | O50: 0.3839724354 | P50: 0.01086359121 | Q50: 0.02688833178
N51: 23 | O51: 0.401425728 | P51: 0.01133120273 | Q51: 0.02669464075
N52: 24 | O52: 0.4188790205 | P52: 0.01179536265 | Q52: 0.02649281827
N53: 25 | O53: 0.436332313 | P53: 0.01225592959 | Q53: 0.02628292582
N54: 26 | O54: 0.4537856055 | P54: 0.01271276326 | Q54: 0.02606502734
N55: 27 | O55: 0.471238898 | P55: 0.01316572449 | Q55: 0.0258391892
N56: 28 | O56: 0.4886921906 | P56: 0.01361467532 | Q56: 0.02560548019
N57: 29 | O57: 0.5061454831 | P57: 0.01405947899 | Q57: 0.02536397151
N58: 30 | O58: 0.5235987756 | P58: 0.0145 | Q58: 0.02511473671
N59: 31 | O59: 0.5410520681 | P59: 0.01493610417 | Q59: 0.02485785172
N60: 32 | O60: 0.5585053606 | P60: 0.01536765866 | Q60: 0.02459339479
N61: 33 | O61: 0.5759586532 | P61: 0.01579453202 | Q61: 0.02432144647
N62: 34 | O62: 0.5934119457 | P62: 0.0162165942 | Q62: 0.0240420896
N63: 35 | O63: 0.6108652382 | P63: 0.01663371665 | Q63: 0.02375540928
N64: 36 | O64: 0.6283185307 | P64: 0.01704577232 | Q64: 0.02346149284
N65: 37 | O65: 0.6457718232 | P65: 0.01745263567 | Q65: 0.02316042979
N66: 38 | O66: 0.6632251158 | P66: 0.01785418278 | Q66: 0.02285231185
N67: 39 | O67: 0.6806784083 | P67: 0.01825029134 | Q67: 0.02253723288
N68: 40 | O68: 0.6981317008 | P68: 0.01864084068 | Q68: 0.02221528885
N69: 41 | O69: 0.7155849933 | P69: 0.01902571184 | Q69: 0.02188657783
N70: 42 | O70: 0.7330382858 | P70: 0.01940478758 | Q70: 0.02155119994
N71: 43 | O71: 0.7504915784 | P71: 0.01977795244 | Q71: 0.02120925735
N72: 44 | O72: 0.7679448709 | P72: 0.02014509274 | Q72: 0.02086085421
N73: 45 | O73: 0.7853981634 | P73: 0.02050609665 | Q73: 0.02050609665
N74: 46 | O74: 0.8028514559 | P74: 0.02086085421 | Q74: 0.02014509274
N75: 47 | O75: 0.8203047484 | P75: 0.02120925735 | Q75: 0.01977795244
N76: 48 | O76: 0.837758041 | P76: 0.02155119994 | Q76: 0.01940478758
N77: 49 | O77: 0.8552113335 | P77: 0.02188657783 | Q77: 0.01902571184
N78: 50 | O78: 0.872664626 | P78: 0.02221528885 | Q78: 0.01864084068
N79: 51 | O79: 0.8901179185 | P79: 0.02253723288 | Q79: 0.01825029134
N80: 52 | O80: 0.907571211 | P80: 0.02285231185 | Q80: 0.01785418278
N81: 53 | O81: 0.9250245036 | P81: 0.02316042979 | Q81: 0.01745263567
N82: 54 | O82: 0.9424777961 | P82: 0.02346149284 | Q82: 0.01704577232
N83: 55 | O83: 0.9599310886 | P83: 0.02375540928 | Q83: 0.01663371665
N84: 56 | O84: 0.9773843811 | P84: 0.0240420896 | Q84: 0.0162165942
N85: 57 | O85: 0.9948376736 | P85: 0.02432144647 | Q85: 0.01579453202
N86: 58 | O86: 1.012290966 | P86: 0.02459339479 | Q86: 0.01536765866
N87: 59 | O87: 1.029744259 | P87: 0.02485785172 | Q87: 0.01493610417
N88: 60 | O88: 1.047197551 | P88: 0.02511473671 | Q88: 0.0145
N89: 61 | O89: 1.064650844 | P89: 0.02536397151 | Q89: 0.01405947899
N90: 62 | O90: 1.082104136 | P90: 0.02560548019 | Q90: 0.01361467532
N91: 63 | O91: 1.099557429 | P91: 0.0258391892 | Q91: 0.01316572449
N92: 64 | O92: 1.117010721 | P92: 0.02606502734 | Q92: 0.01271276326
N93: 65 | O93: 1.134464014 | P93: =SIN(O93)*H$24 -> 0.02628292582 | Q93: =COS(O93)*H$24 -> 0.01225592959
N94: 66 | O94: =N94*(PI()/180) -> 1.151917306 | P94: 0.02649281827 | Q94: 0.01179536265
N95: =N94+1 -> 67 | O95: 1.169370599 | P95: 0.02669464075 | Q95: 0.01133120273
N96: 68 | O96: 1.186823891 | P96: 0.02688833178 | Q96: 0.01086359121
N97: 69 | O97: 1.204277184 | P97: 0.02707383237 | Q97: 0.01039267054
N98: 70 | O98: 1.221730476 | P98: 0.027251086 | Q98: 0.009918584156
N99: 71 | O99: 1.239183769 | P99: 0.02742003869 | Q99: 0.009441476479
N100: 72 | O100: 1.256637061 | P100: 0.02758063897 | Q100: 0.008961492837
N101: 73 | O101: 1.274090354 | P101: 0.02773283792 | Q101: 0.008478779437
N102: 74 | O102: 1.291543646 | P102: 0.02787658918 | Q102: 0.007993483319
N103: 75 | O103: 1.308996939 | P103: 0.02801184896 | Q103: 0.007505752308
N104: 76 | O104: 1.326450232 | P104: 0.02813857606 | Q104: 0.007015734972
N105: 77 | O105: 1.343903524 | P105: 0.02825673188 | Q105: 0.006523580576
N106: 78 | O106: 1.361356817 | P106: 0.02836628042 | Q106: 0.006029439034
N107: 79 | O107: 1.378810109 | P107: 0.02846718832 | Q107: 0.005533460866
N108: 80 | O108: 1.396263402 | P108: 0.02855942484 | Q108: 0.005035797152
N109: 81 | O109: 1.413716694 | P109: 0.02864296188 | Q109: 0.004536599486
N110: 82 | O110: 1.431169987 | P110: 0.02871777399 | Q110: 0.004036019928
N111: 83 | O111: 1.448623279 | P111: 0.0287838384 | Q111: 0.003534210959
N112: 84 | O112: 1.466076572 | P112: 0.02884113497 | Q112: 0.003031325435
N113: 85 | O113: 1.483529864 | P113: 0.02888964624 | Q113: 0.00252751654
N114: 86 | O114: 1.500983157 | P114: 0.02892935746 | Q114: 0.002022937739
N115: 87 | O115: 1.518436449 | P115: 0.02896025651 | Q115: 0.001517742731
N116: 88 | O116: 1.535889742 | P116: 0.02898233398 | Q116: 0.001012085404
N117: 89 | O117: 1.553343034 | P117: 0.02899558316 | Q117: 0.0005061197867
N118: 90 | O118: 1.570796327 | P118: 0.029 | Q118: 1.77646526e-18
N119: 91 | O119: 1.588249619 | P119: 0.02899558316 | Q119: -0.0005061197867
N120: 92 | O120: 1.605702912 | P120: 0.02898233398 | Q120: -0.001012085404
N121: 93 | O121: 1.623156204 | P121: 0.02896025651 | Q121: -0.001517742731
N122: 94 | O122: 1.640609497 | P122: 0.02892935746 | Q122: -0.002022937739
N123: 95 | O123: 1.658062789 | P123: 0.02888964624 | Q123: -0.00252751654
N124: 96 | O124: 1.675516082 | P124: 0.02884113497 | Q124: -0.003031325435
N125: 97 | O125: 1.692969374 | P125: 0.0287838384 | Q125: -0.003534210959
N126: 98 | O126: 1.710422667 | P126: 0.02871777399 | Q126: -0.004036019928
N127: 99 | O127: 1.727875959 | P127: 0.02864296188 | Q127: -0.004536599486
N128: 100 | O128: 1.745329252 | P128: 0.02855942484 | Q128: -0.005035797152
N129: 101 | O129: 1.762782545 | P129: 0.02846718832 | Q129: -0.005533460866
N130: 102 | O130: 1.780235837 | P130: 0.02836628042 | Q130: -0.006029439034
N131: 103 | O131: 1.79768913 | P131: 0.02825673188 | Q131: -0.006523580576
N132: 104 | O132: 1.815142422 | P132: 0.02813857606 | Q132: -0.007015734972
N133: 105 | O133: 1.832595715 | P133: 0.02801184896 | Q133: -0.007505752308
N134: 106 | O134: 1.850049007 | P134: 0.02787658918 | Q134: -0.007993483319
N135: 107 | O135: 1.8675023 | P135: 0.02773283792 | Q135: -0.008478779437
N136: 108 | O136: 1.884955592 | P136: 0.02758063897 | Q136: -0.008961492837
N137: 109 | O137: 1.902408885 | P137: 0.02742003869 | Q137: -0.009441476479
N138: 110 | O138: 1.919862177 | P138: 0.027251086 | Q138: -0.009918584156
N139: 111 | O139: 1.93731547 | P139: 0.02707383237 | Q139: -0.01039267054
N140: 112 | O140: 1.954768762 | P140: 0.02688833178 | Q140: -0.01086359121
N141: 113 | O141: 1.972222055 | P141: 0.02669464075 | Q141: -0.01133120273
N142: 114 | O142: 1.989675347 | P142: 0.02649281827 | Q142: -0.01179536265
N143: 115 | O143: 2.00712864 | P143: 0.02628292582 | Q143: -0.01225592959
N144: 116 | O144: 2.024581932 | P144: 0.02606502734 | Q144: -0.01271276326
N145: 117 | O145: 2.042035225 | P145: 0.0258391892 | Q145: -0.01316572449
N146: 118 | O146: 2.059488517 | P146: 0.02560548019 | Q146: -0.01361467532
N147: 119 | O147: 2.07694181 | P147: 0.02536397151 | Q147: -0.01405947899
N148: 120 | O148: 2.094395102 | P148: 0.02511473671 | Q148: -0.0145
N149: 121 | O149: 2.111848395 | P149: 0.02485785172 | Q149: -0.01493610417
N150: 122 | O150: 2.129301687 | P150: 0.02459339479 | Q150: -0.01536765866
N151: 123 | O151: 2.14675498 | P151: 0.02432144647 | Q151: -0.01579453202
N152: 124 | O152: 2.164208272 | P152: 0.0240420896 | Q152: -0.0162165942
N153: 125 | O153: 2.181661565 | P153: 0.02375540928 | Q153: -0.01663371665
N154: 126 | O154: 2.199114858 | P154: 0.02346149284 | Q154: -0.01704577232
N155: 127 | O155: 2.21656815 | P155: 0.02316042979 | Q155: -0.01745263567
N156: 128 | O156: 2.234021443 | P156: 0.02285231185 | Q156: -0.01785418278
N157: 129 | O157: 2.251474735 | P157: =SIN(O157)*H$24 -> 0.02253723288 | Q157: =COS(O157)*H$24 -> -0.01825029134
N158: 130 | O158: =N158*(PI()/180) -> 2.268928028 | P158: 0.02221528885 | Q158: -0.01864084068
N159: =N158+1 -> 131 | O159: 2.28638132 | P159: 0.02188657783 | Q159: -0.01902571184
N160: 132 | O160: 2.303834613 | P160: 0.02155119994 | Q160: -0.01940478758
N161: 133 | O161: 2.321287905 | P161: 0.02120925735 | Q161: -0.01977795244
N162: 134 | O162: 2.338741198 | P162: 0.02086085421 | Q162: -0.02014509274
N163: 135 | O163: 2.35619449 | P163: 0.02050609665 | Q163: -0.02050609665
N164: 136 | O164: 2.373647783 | P164: 0.02014509274 | Q164: -0.02086085421
N165: 137 | O165: 2.391101075 | P165: 0.01977795244 | Q165: -0.02120925735
N166: 138 | O166: 2.408554368 | P166: 0.01940478758 | Q166: -0.02155119994
N167: 139 | O167: 2.42600766 | P167: 0.01902571184 | Q167: -0.02188657783
N168: 140 | O168: 2.443460953 | P168: 0.01864084068 | Q168: -0.02221528885
N169: 141 | O169: 2.460914245 | P169: 0.01825029134 | Q169: -0.02253723288
N170: 142 | O170: 2.478367538 | P170: 0.01785418278 | Q170: -0.02285231185
N171: 143 | O171: 2.49582083 | P171: 0.01745263567 | Q171: -0.02316042979
N172: 144 | O172: 2.513274123 | P172: 0.01704577232 | Q172: -0.02346149284
N173: 145 | O173: 2.530727415 | P173: 0.01663371665 | Q173: -0.02375540928
N174: 146 | O174: 2.548180708 | P174: 0.0162165942 | Q174: -0.0240420896
N175: 147 | O175: 2.565634 | P175: 0.01579453202 | Q175: -0.02432144647
N176: 148 | O176: 2.583087293 | P176: 0.01536765866 | Q176: -0.02459339479
N177: 149 | O177: 2.600540585 | P177: 0.01493610417 | Q177: -0.02485785172
N178: 150 | O178: 2.617993878 | P178: 0.0145 | Q178: -0.02511473671
N179: 151 | O179: 2.635447171 | P179: 0.01405947899 | Q179: -0.02536397151
N180: 152 | O180: 2.652900463 | P180: 0.01361467532 | Q180: -0.02560548019
N181: 153 | O181: 2.670353756 | P181: 0.01316572449 | Q181: -0.0258391892
N182: 154 | O182: 2.687807048 | P182: 0.01271276326 | Q182: -0.02606502734
N183: 155 | O183: 2.705260341 | P183: 0.01225592959 | Q183: -0.02628292582
N184: 156 | O184: 2.722713633 | P184: 0.01179536265 | Q184: -0.02649281827
N185: 157 | O185: 2.740166926 | P185: 0.01133120273 | Q185: -0.02669464075
N186: 158 | O186: 2.757620218 | P186: 0.01086359121 | Q186: -0.02688833178
N187: 159 | O187: 2.775073511 | P187: 0.01039267054 | Q187: -0.02707383237
N188: 160 | O188: 2.792526803 | P188: 0.009918584156 | Q188: -0.027251086
N189: 161 | O189: 2.809980096 | P189: 0.009441476479 | Q189: -0.02742003869
N190: 162 | O190: 2.827433388 | P190: 0.008961492837 | Q190: -0.02758063897
N191: 163 | O191: 2.844886681 | P191: 0.008478779437 | Q191: -0.02773283792
N192: 164 | O192: 2.862339973 | P192: 0.007993483319 | Q192: -0.02787658918
N193: 165 | O193: 2.879793266 | P193: 0.007505752308 | Q193: -0.02801184896
N194: 166 | O194: 2.897246558 | P194: 0.007015734972 | Q194: -0.02813857606
N195: 167 | O195: 2.914699851 | P195: 0.006523580576 | Q195: -0.02825673188
N196: 168 | O196: 2.932153143 | P196: 0.006029439034 | Q196: -0.02836628042
N197: 169 | O197: 2.949606436 | P197: 0.005533460866 | Q197: -0.02846718832
N198: 170 | O198: 2.967059728 | P198: 0.005035797152 | Q198: -0.02855942484
N199: 171 | O199: 2.984513021 | P199: 0.004536599486 | Q199: -0.02864296188
N200: 172 | O200: 3.001966313 | P200: 0.004036019928 | Q200: -0.02871777399
N201: 173 | O201: 3.019419606 | P201: 0.003534210959 | Q201: -0.0287838384
N202: 174 | O202: 3.036872898 | P202: 0.003031325435 | Q202: -0.02884113497
... 186 more rows

Sheet 53
A1: VRS GNSS Project Control Monument Coordinate Analysis
A3: Project: | B3: =REPORT!B2 -> LUC-23-11.75 | D3: GPS Antenna: | E3: =REPORT!A41 -> Trimble R6 | I3: Report Date: | J3: =REPORT!C49 -> 2021-07-22
A4: PID: | B4: =REPORT!E2 -> 105889 | D4: VRS Network: | E4: ODOT VRS | I4: Prepared By: | J4: =REPORT!C48 -> TK/DCK
A5: Point ID: | B5: 53 | C5: No. of Sessions: | D5: =COUNTIF(GPS_IMPORT!A2:A1000,$B$5) -> 12 | E5: =IF(GPS_IMPORT!K2="TRUE","(GROUND)","(GRID)") -> (GRID) | I5: Checked By: | J5: =REPORT!C52 -> DCK/JS/MDH
A6: SESSION # | B6: Point | C6: Observation Date | D6: Start Time | E6: ="Northing("&GPS_IMPORT!K4&")" -> Northing(sft) | F6: ="Easting("&GPS_IMPORT!K4&")" -> Easting(sft) | G6: ="Height("&GPS_IMPORT!K4&")" -> Height(sft) | H6: ="∆ Northing("&GPS_IMPORT!K4&")" -> ∆ Northing(sft) | I6: ="∆ Easting("&GPS_IMPORT!K4&")" -> ∆ Easting(sft) | J6: ="∆ Height("&GPS_IMPORT!K4&")" -> ∆ Height(sft) | K6: Include in Solution?
A7: 1 | B7: =IF(ROWS(GPS_IMPORT!$1:1)<=COUNTIF(GPS_IMPORT!$A$2:$A$10000,$B$5),INDEX(GPS_IMPORT!$2:$10000,MATCH($B$5,(GPS_IMPORT!$A$2:$A$10000),0)+ROWS($1:1)-1,COLUMN()-1),0) -> 53 | C7: =IF(ROWS(GPS_IMPORT!$1:1)<=COUNTIF(GPS_IMPORT!$A$2:$A$10000,$B$5),INDEX(GPS_IMPORT!$2:$10000,MATCH($B$5,(GPS_IMPORT!$A$2:$A$10000),0)+ROWS($1:1)-1,COLUMN()-1),0) -> 07.06.2021 | D7: =IF(ROWS(GPS_IMPORT!$1:1)<=COUNTIF(GPS_IMPORT!$A$2:$A$10000,$B$5),INDEX(GPS_IMPORT!$2:$10000,MATCH($B$5,(GPS_IMPORT!$A$2:$A$10000),0)+ROWS($1:1)-1,COLUMN()-1),0) -> 09:33:32 | E7: =IF(ROWS(GPS_IMPORT!$1:1)<=COUNTIF(GPS_IMPORT!$A$2:$A$10000,$B$5),INDEX(GPS_IMPORT!$2:$10000,MATCH($B$5,(GPS_IMPORT!$A$2:$A$10000),0)+ROWS($1:1)-1,COLUMN()-1),0) -> 748684.542 | F7: =IF(ROWS(GPS_IMPORT!$1:1)<=COUNTIF(GPS_IMPORT!$A$2:$A$10000,$B$5),INDEX(GPS_IMPORT!$2:$10000,MATCH($B$5,(GPS_IMPORT!$A$2:$A$10000),0)+ROWS($1:1)-1,COLUMN()-1),0) -> 1642191.68 | G7: =IF(ROWS(GPS_IMPORT!$1:1)<=COUNTIF(GPS_IMPORT!$A$2:$A$10000,$B$5),INDEX(GPS_IMPORT!$2:$10000,MATCH($B$5,(GPS_IMPORT!$A$2:$A$10000),0)+ROWS($1:1)-1,COLUMN()-1),0) -> 644.4957 | H7: =IF(K7=TRUE,IF(E7>0,E$22-E7,0),0) -> -0.01742999989 | I7: =IF(K7=TRUE,IF(F7>0,F$22-F7,0),0) -> -0.01239999966 | J7: =IF(K7=TRUE,IF(G7>0,G$22-G7,0),0) -> 0.02589 | K7: TRUE | L7: =IF(OR(ABS(H7)>$H$24,ABS(I7)>$H$24,ABS(SQRT((H7^2)+(I7^2)))>$H$24),IF(K7=TRUE,IF(E7>0,E$22-E7,0),0),0) -> 0 | M7: =IF(OR(ABS(H7)>$H$24,ABS(I7)>$H$24,ABS(SQRT((H7^2)+(I7^2)))>$H$24),IF(K7=TRUE,IF(E7>0,F$22-F7,0),0),0) -> 0
A8: 2 | B8: =IF(ROWS(GPS_IMPORT!$1:2)<=COUNTIF(GPS_IMPORT!$A$2:$A$10000,$B$5),INDEX(GPS_IMPORT!$2:$10000,MATCH($B$5,(GPS_IMPORT!$A$2:$A$10000),0)+ROWS($1:2)-1,COLUMN()-1),0) -> 53 | C8: =IF(ROWS(GPS_IMPORT!$1:2)<=COUNTIF(GPS_IMPORT!$A$2:$A$10000,$B$5),INDEX(GPS_IMPORT!$2:$10000,MATCH($B$5,(GPS_IMPORT!$A$2:$A$10000),0)+ROWS($1:2)-1,COLUMN()-1),0) -> 07.06.2021 | D8: =IF(ROWS(GPS_IMPORT!$1:2)<=COUNTIF(GPS_IMPORT!$A$2:$A$10000,$B$5),INDEX(GPS_IMPORT!$2:$10000,MATCH($B$5,(GPS_IMPORT!$A$2:$A$10000),0)+ROWS($1:2)-1,COLUMN()-1),0) -> 09:35:33 | E8: =IF(ROWS(GPS_IMPORT!$1:2)<=COUNTIF(GPS_IMPORT!$A$2:$A$10000,$B$5),INDEX(GPS_IMPORT!$2:$10000,MATCH($B$5,(GPS_IMPORT!$A$2:$A$10000),0)+ROWS($1:2)-1,COLUMN()-1),0) -> 748684.519 | F8: =IF(ROWS(GPS_IMPORT!$1:2)<=COUNTIF(GPS_IMPORT!$A$2:$A$10000,$B$5),INDEX(GPS_IMPORT!$2:$10000,MATCH($B$5,(GPS_IMPORT!$A$2:$A$10000),0)+ROWS($1:2)-1,COLUMN()-1),0) -> 1642191.666 | G8: =IF(ROWS(GPS_IMPORT!$1:2)<=COUNTIF(GPS_IMPORT!$A$2:$A$10000,$B$5),INDEX(GPS_IMPORT!$2:$10000,MATCH($B$5,(GPS_IMPORT!$A$2:$A$10000),0)+ROWS($1:2)-1,COLUMN()-1),0) -> 644.4834 | H8: =IF(K8=TRUE,IF(E8>0,E$22-E8,0),0) -> 0.005570000154 | I8: =IF(K8=TRUE,IF(F8>0,F$22-F8,0),0) -> 0.001600000309 | J8: =IF(K8=TRUE,IF(G8>0,G$22-G8,0),0) -> 0.03819 | K8: TRUE | L8: 0 | M8: 0
A9: 3 | B9: =IF(ROWS(GPS_IMPORT!$1:3)<=COUNTIF(GPS_IMPORT!$A$2:$A$10000,$B$5),INDEX(GPS_IMPORT!$2:$10000,MATCH($B$5,(GPS_IMPORT!$A$2:$A$10000),0)+ROWS($1:3)-1,COLUMN()-1),0) -> 53 | C9: =IF(ROWS(GPS_IMPORT!$1:3)<=COUNTIF(GPS_IMPORT!$A$2:$A$10000,$B$5),INDEX(GPS_IMPORT!$2:$10000,MATCH($B$5,(GPS_IMPORT!$A$2:$A$10000),0)+ROWS($1:3)-1,COLUMN()-1),0) -> 07.06.2021 | D9: =IF(ROWS(GPS_IMPORT!$1:3)<=COUNTIF(GPS_IMPORT!$A$2:$A$10000,$B$5),INDEX(GPS_IMPORT!$2:$10000,MATCH($B$5,(GPS_IMPORT!$A$2:$A$10000),0)+ROWS($1:3)-1,COLUMN()-1),0) -> 09:37:36 | E9: =IF(ROWS(GPS_IMPORT!$1:3)<=COUNTIF(GPS_IMPORT!$A$2:$A$10000,$B$5),INDEX(GPS_IMPORT!$2:$10000,MATCH($B$5,(GPS_IMPORT!$A$2:$A$10000),0)+ROWS($1:3)-1,COLUMN()-1),0) -> 748684.4997 | F9: =IF(ROWS(GPS_IMPORT!$1:3)<=COUNTIF(GPS_IMPORT!$A$2:$A$10000,$B$5),INDEX(GPS_IMPORT!$2:$10000,MATCH($B$5,(GPS_IMPORT!$A$2:$A$10000),0)+ROWS($1:3)-1,COLUMN()-1),0) -> 1642191.667 | G9: =IF(ROWS(GPS_IMPORT!$1:3)<=COUNTIF(GPS_IMPORT!$A$2:$A$10000,$B$5),INDEX(GPS_IMPORT!$2:$10000,MATCH($B$5,(GPS_IMPORT!$A$2:$A$10000),0)+ROWS($1:3)-1,COLUMN()-1),0) -> 644.5456 | H9: 0.02487000008 | I9: 0.0006000003777 | J9: -0.02401 | K9: TRUE | L9: 0 | M9: 0
A10: 4 | B10: =IF(ROWS(GPS_IMPORT!$1:4)<=COUNTIF(GPS_IMPORT!$A$2:$A$10000,$B$5),INDEX(GPS_IMPORT!$2:$10000,MATCH($B$5,(GPS_IMPORT!$A$2:$A$10000),0)+ROWS($1:4)-1,COLUMN()-1),0) -> 53 | C10: =IF(ROWS(GPS_IMPORT!$1:4)<=COUNTIF(GPS_IMPORT!$A$2:$A$10000,$B$5),INDEX(GPS_IMPORT!$2:$10000,MATCH($B$5,(GPS_IMPORT!$A$2:$A$10000),0)+ROWS($1:4)-1,COLUMN()-1),0) -> 07.06.2021 | D10: =IF(ROWS(GPS_IMPORT!$1:4)<=COUNTIF(GPS_IMPORT!$A$2:$A$10000,$B$5),INDEX(GPS_IMPORT!$2:$10000,MATCH($B$5,(GPS_IMPORT!$A$2:$A$10000),0)+ROWS($1:4)-1,COLUMN()-1),0) -> 09:38:35 | E10: =IF(ROWS(GPS_IMPORT!$1:4)<=COUNTIF(GPS_IMPORT!$A$2:$A$10000,$B$5),INDEX(GPS_IMPORT!$2:$10000,MATCH($B$5,(GPS_IMPORT!$A$2:$A$10000),0)+ROWS($1:4)-1,COLUMN()-1),0) -> 748684.5561 | F10: =IF(ROWS(GPS_IMPORT!$1:4)<=COUNTIF(GPS_IMPORT!$A$2:$A$10000,$B$5),INDEX(GPS_IMPORT!$2:$10000,MATCH($B$5,(GPS_IMPORT!$A$2:$A$10000),0)+ROWS($1:4)-1,COLUMN()-1),0) -> 1642191.711 | G10: =IF(ROWS(GPS_IMPORT!$1:4)<=COUNTIF(GPS_IMPORT!$A$2:$A$10000,$B$5),INDEX(GPS_IMPORT!$2:$10000,MATCH($B$5,(GPS_IMPORT!$A$2:$A$10000),0)+ROWS($1:4)-1,COLUMN()-1),0) -> 644.5006 | H10: -0.03152999992 | I10: -0.04339999962 | J10: 0.02099 | K10: TRUE | L10: -0.03152999992 | M10: -0.04339999962
A11: 5 | B11: =IF(ROWS(GPS_IMPORT!$1:5)<=COUNTIF(GPS_IMPORT!$A$2:$A$10000,$B$5),INDEX(GPS_IMPORT!$2:$10000,MATCH($B$5,(GPS_IMPORT!$A$2:$A$10000),0)+ROWS($1:5)-1,COLUMN()-1),0) -> 53 | C11: =IF(ROWS(GPS_IMPORT!$1:5)<=COUNTIF(GPS_IMPORT!$A$2:$A$10000,$B$5),INDEX(GPS_IMPORT!$2:$10000,MATCH($B$5,(GPS_IMPORT!$A$2:$A$10000),0)+ROWS($1:5)-1,COLUMN()-1),0) -> 07.06.2021 | D11: =IF(ROWS(GPS_IMPORT!$1:5)<=COUNTIF(GPS_IMPORT!$A$2:$A$10000,$B$5),INDEX(GPS_IMPORT!$2:$10000,MATCH($B$5,(GPS_IMPORT!$A$2:$A$10000),0)+ROWS($1:5)-1,COLUMN()-1),0) -> 12:53:44 | E11: =IF(ROWS(GPS_IMPORT!$1:5)<=COUNTIF(GPS_IMPORT!$A$2:$A$10000,$B$5),INDEX(GPS_IMPORT!$2:$10000,MATCH($B$5,(GPS_IMPORT!$A$2:$A$10000),0)+ROWS($1:5)-1,COLUMN()-1),0) -> 748684.496 | F11: =IF(ROWS(GPS_IMPORT!$1:5)<=COUNTIF(GPS_IMPORT!$A$2:$A$10000,$B$5),INDEX(GPS_IMPORT!$2:$10000,MATCH($B$5,(GPS_IMPORT!$A$2:$A$10000),0)+ROWS($1:5)-1,COLUMN()-1),0) -> 1642191.652 | G11: =IF(ROWS(GPS_IMPORT!$1:5)<=COUNTIF(GPS_IMPORT!$A$2:$A$10000,$B$5),INDEX(GPS_IMPORT!$2:$10000,MATCH($B$5,(GPS_IMPORT!$A$2:$A$10000),0)+ROWS($1:5)-1,COLUMN()-1),0) -> 644.5393 | H11: 0.02857000008 | I11: 0.01560000028 | J11: -0.01771 | K11: TRUE | L11: 0.02857000008 | M11: 0.01560000028
A12: 6 | B12: =IF(ROWS(GPS_IMPORT!$1:6)<=COUNTIF(GPS_IMPORT!$A$2:$A$10000,$B$5),INDEX(GPS_IMPORT!$2:$10000,MATCH($B$5,(GPS_IMPORT!$A$2:$A$10000),0)+ROWS($1:6)-1,COLUMN()-1),0) -> 53 | C12: =IF(ROWS(GPS_IMPORT!$1:6)<=COUNTIF(GPS_IMPORT!$A$2:$A$10000,$B$5),INDEX(GPS_IMPORT!$2:$10000,MATCH($B$5,(GPS_IMPORT!$A$2:$A$10000),0)+ROWS($1:6)-1,COLUMN()-1),0) -> 07.06.2021 | D12: =IF(ROWS(GPS_IMPORT!$1:6)<=COUNTIF(GPS_IMPORT!$A$2:$A$10000,$B$5),INDEX(GPS_IMPORT!$2:$10000,MATCH($B$5,(GPS_IMPORT!$A$2:$A$10000),0)+ROWS($1:6)-1,COLUMN()-1),0) -> 12:54:49 | E12: =IF(ROWS(GPS_IMPORT!$1:6)<=COUNTIF(GPS_IMPORT!$A$2:$A$10000,$B$5),INDEX(GPS_IMPORT!$2:$10000,MATCH($B$5,(GPS_IMPORT!$A$2:$A$10000),0)+ROWS($1:6)-1,COLUMN()-1),0) -> 748684.5043 | F12: =IF(ROWS(GPS_IMPORT!$1:6)<=COUNTIF(GPS_IMPORT!$A$2:$A$10000,$B$5),INDEX(GPS_IMPORT!$2:$10000,MATCH($B$5,(GPS_IMPORT!$A$2:$A$10000),0)+ROWS($1:6)-1,COLUMN()-1),0) -> 1642191.651 | G12: =IF(ROWS(GPS_IMPORT!$1:6)<=COUNTIF(GPS_IMPORT!$A$2:$A$10000,$B$5),INDEX(GPS_IMPORT!$2:$10000,MATCH($B$5,(GPS_IMPORT!$A$2:$A$10000),0)+ROWS($1:6)-1,COLUMN()-1),0) -> 644.5915 | H12: 0.0202700001 | I12: 0.01660000021 | J12: -0.06991 | K12: TRUE | L12: 0 | M12: 0
A13: 7 | B13: =IF(ROWS(GPS_IMPORT!$1:7)<=COUNTIF(GPS_IMPORT!$A$2:$A$10000,$B$5),INDEX(GPS_IMPORT!$2:$10000,MATCH($B$5,(GPS_IMPORT!$A$2:$A$10000),0)+ROWS($1:7)-1,COLUMN()-1),0) -> 53 | C13: =IF(ROWS(GPS_IMPORT!$1:7)<=COUNTIF(GPS_IMPORT!$A$2:$A$10000,$B$5),INDEX(GPS_IMPORT!$2:$10000,MATCH($B$5,(GPS_IMPORT!$A$2:$A$10000),0)+ROWS($1:7)-1,COLUMN()-1),0) -> 07.06.2021 | D13: =IF(ROWS(GPS_IMPORT!$1:7)<=COUNTIF(GPS_IMPORT!$A$2:$A$10000,$B$5),INDEX(GPS_IMPORT!$2:$10000,MATCH($B$5,(GPS_IMPORT!$A$2:$A$10000),0)+ROWS($1:7)-1,COLUMN()-1),0) -> 12:55:45 | E13: =IF(ROWS(GPS_IMPORT!$1:7)<=COUNTIF(GPS_IMPORT!$A$2:$A$10000,$B$5),INDEX(GPS_IMPORT!$2:$10000,MATCH($B$5,(GPS_IMPORT!$A$2:$A$10000),0)+ROWS($1:7)-1,COLUMN()-1),0) -> 748684.5076 | F13: =IF(ROWS(GPS_IMPORT!$1:7)<=COUNTIF(GPS_IMPORT!$A$2:$A$10000,$B$5),INDEX(GPS_IMPORT!$2:$10000,MATCH($B$5,(GPS_IMPORT!$A$2:$A$10000),0)+ROWS($1:7)-1,COLUMN()-1),0) -> 1642191.683 | G13: =IF(ROWS(GPS_IMPORT!$1:7)<=COUNTIF(GPS_IMPORT!$A$2:$A$10000,$B$5),INDEX(GPS_IMPORT!$2:$10000,MATCH($B$5,(GPS_IMPORT!$A$2:$A$10000),0)+ROWS($1:7)-1,COLUMN()-1),0) -> 644.5637 | H13: 0.01697000011 | I13: -0.01539999968 | J13: -0.04211 | K13: TRUE | L13: 0 | M13: 0
A14: 8 | B14: =IF(ROWS(GPS_IMPORT!$1:8)<=COUNTIF(GPS_IMPORT!$A$2:$A$10000,$B$5),INDEX(GPS_IMPORT!$2:$10000,MATCH($B$5,(GPS_IMPORT!$A$2:$A$10000),0)+ROWS($1:8)-1,COLUMN()-1),0) -> 53 | C14: =IF(ROWS(GPS_IMPORT!$1:8)<=COUNTIF(GPS_IMPORT!$A$2:$A$10000,$B$5),INDEX(GPS_IMPORT!$2:$10000,MATCH($B$5,(GPS_IMPORT!$A$2:$A$10000),0)+ROWS($1:8)-1,COLUMN()-1),0) -> 07.06.2021 | D14: =IF(ROWS(GPS_IMPORT!$1:8)<=COUNTIF(GPS_IMPORT!$A$2:$A$10000,$B$5),INDEX(GPS_IMPORT!$2:$10000,MATCH($B$5,(GPS_IMPORT!$A$2:$A$10000),0)+ROWS($1:8)-1,COLUMN()-1),0) -> 14:00:59 | E14: =IF(ROWS(GPS_IMPORT!$1:8)<=COUNTIF(GPS_IMPORT!$A$2:$A$10000,$B$5),INDEX(GPS_IMPORT!$2:$10000,MATCH($B$5,(GPS_IMPORT!$A$2:$A$10000),0)+ROWS($1:8)-1,COLUMN()-1),0) -> 748684.5126 | F14: =IF(ROWS(GPS_IMPORT!$1:8)<=COUNTIF(GPS_IMPORT!$A$2:$A$10000,$B$5),INDEX(GPS_IMPORT!$2:$10000,MATCH($B$5,(GPS_IMPORT!$A$2:$A$10000),0)+ROWS($1:8)-1,COLUMN()-1),0) -> 1642191.672 | G14: =IF(ROWS(GPS_IMPORT!$1:8)<=COUNTIF(GPS_IMPORT!$A$2:$A$10000,$B$5),INDEX(GPS_IMPORT!$2:$10000,MATCH($B$5,(GPS_IMPORT!$A$2:$A$10000),0)+ROWS($1:8)-1,COLUMN()-1),0) -> 644.6126 | H14: 0 | I14: 0 | J14: 0 | K14: FALSE | L14: 0 | M14: 0
A15: 9 | B15: =IF(ROWS(GPS_IMPORT!$1:9)<=COUNTIF(GPS_IMPORT!$A$2:$A$10000,$B$5),INDEX(GPS_IMPORT!$2:$10000,MATCH($B$5,(GPS_IMPORT!$A$2:$A$10000),0)+ROWS($1:9)-1,COLUMN()-1),0) -> 53 | C15: =IF(ROWS(GPS_IMPORT!$1:9)<=COUNTIF(GPS_IMPORT!$A$2:$A$10000,$B$5),INDEX(GPS_IMPORT!$2:$10000,MATCH($B$5,(GPS_IMPORT!$A$2:$A$10000),0)+ROWS($1:9)-1,COLUMN()-1),0) -> 07.06.2021 | D15: =IF(ROWS(GPS_IMPORT!$1:9)<=COUNTIF(GPS_IMPORT!$A$2:$A$10000,$B$5),INDEX(GPS_IMPORT!$2:$10000,MATCH($B$5,(GPS_IMPORT!$A$2:$A$10000),0)+ROWS($1:9)-1,COLUMN()-1),0) -> 14:01:58 | E15: =IF(ROWS(GPS_IMPORT!$1:9)<=COUNTIF(GPS_IMPORT!$A$2:$A$10000,$B$5),INDEX(GPS_IMPORT!$2:$10000,MATCH($B$5,(GPS_IMPORT!$A$2:$A$10000),0)+ROWS($1:9)-1,COLUMN()-1),0) -> 748684.5214 | F15: =IF(ROWS(GPS_IMPORT!$1:9)<=COUNTIF(GPS_IMPORT!$A$2:$A$10000,$B$5),INDEX(GPS_IMPORT!$2:$10000,MATCH($B$5,(GPS_IMPORT!$A$2:$A$10000),0)+ROWS($1:9)-1,COLUMN()-1),0) -> 1642191.649 | G15: =IF(ROWS(GPS_IMPORT!$1:9)<=COUNTIF(GPS_IMPORT!$A$2:$A$10000,$B$5),INDEX(GPS_IMPORT!$2:$10000,MATCH($B$5,(GPS_IMPORT!$A$2:$A$10000),0)+ROWS($1:9)-1,COLUMN()-1),0) -> 644.634 | H15: 0 | I15: 0 | J15: 0 | K15: FALSE | L15: 0 | M15: 0
A16: 10 | B16: =IF(ROWS(GPS_IMPORT!$1:10)<=COUNTIF(GPS_IMPORT!$A$2:$A$10000,$B$5),INDEX(GPS_IMPORT!$2:$10000,MATCH($B$5,(GPS_IMPORT!$A$2:$A$10000),0)+ROWS($1:10)-1,COLUMN()-1),0) -> 53 | C16: =IF(ROWS(GPS_IMPORT!$1:10)<=COUNTIF(GPS_IMPORT!$A$2:$A$10000,$B$5),INDEX(GPS_IMPORT!$2:$10000,MATCH($B$5,(GPS_IMPORT!$A$2:$A$10000),0)+ROWS($1:10)-1,COLUMN()-1),0) -> 07.06.2021 | D16: =IF(ROWS(GPS_IMPORT!$1:10)<=COUNTIF(GPS_IMPORT!$A$2:$A$10000,$B$5),INDEX(GPS_IMPORT!$2:$10000,MATCH($B$5,(GPS_IMPORT!$A$2:$A$10000),0)+ROWS($1:10)-1,COLUMN()-1),0) -> 14:02:56 | E16: =IF(ROWS(GPS_IMPORT!$1:10)<=COUNTIF(GPS_IMPORT!$A$2:$A$10000,$B$5),INDEX(GPS_IMPORT!$2:$10000,MATCH($B$5,(GPS_IMPORT!$A$2:$A$10000),0)+ROWS($1:10)-1,COLUMN()-1),0) -> 748684.529 | F16: =IF(ROWS(GPS_IMPORT!$1:10)<=COUNTIF(GPS_IMPORT!$A$2:$A$10000,$B$5),INDEX(GPS_IMPORT!$2:$10000,MATCH($B$5,(GPS_IMPORT!$A$2:$A$10000),0)+ROWS($1:10)-1,COLUMN()-1),0) -> 1642191.651 | G16: =IF(ROWS(GPS_IMPORT!$1:10)<=COUNTIF(GPS_IMPORT!$A$2:$A$10000,$B$5),INDEX(GPS_IMPORT!$2:$10000,MATCH($B$5,(GPS_IMPORT!$A$2:$A$10000),0)+ROWS($1:10)-1,COLUMN()-1),0) -> 644.5415 | H16: -0.004429999855 | I16: 0.01660000021 | J16: -0.01991 | K16: TRUE | L16: 0 | M16: 0
A17: 11 | B17: =IF(ROWS(GPS_IMPORT!$1:11)<=COUNTIF(GPS_IMPORT!$A$2:$A$10000,$B$5),INDEX(GPS_IMPORT!$2:$10000,MATCH($B$5,(GPS_IMPORT!$A$2:$A$10000),0)+ROWS($1:11)-1,COLUMN()-1),0) -> 53 | C17: =IF(ROWS(GPS_IMPORT!$1:11)<=COUNTIF(GPS_IMPORT!$A$2:$A$10000,$B$5),INDEX(GPS_IMPORT!$2:$10000,MATCH($B$5,(GPS_IMPORT!$A$2:$A$10000),0)+ROWS($1:11)-1,COLUMN()-1),0) -> 07.06.2021 | D17: =IF(ROWS(GPS_IMPORT!$1:11)<=COUNTIF(GPS_IMPORT!$A$2:$A$10000,$B$5),INDEX(GPS_IMPORT!$2:$10000,MATCH($B$5,(GPS_IMPORT!$A$2:$A$10000),0)+ROWS($1:11)-1,COLUMN()-1),0) -> 14:04:02 | E17: =IF(ROWS(GPS_IMPORT!$1:11)<=COUNTIF(GPS_IMPORT!$A$2:$A$10000,$B$5),INDEX(GPS_IMPORT!$2:$10000,MATCH($B$5,(GPS_IMPORT!$A$2:$A$10000),0)+ROWS($1:11)-1,COLUMN()-1),0) -> 748684.5624 | F17: =IF(ROWS(GPS_IMPORT!$1:11)<=COUNTIF(GPS_IMPORT!$A$2:$A$10000,$B$5),INDEX(GPS_IMPORT!$2:$10000,MATCH($B$5,(GPS_IMPORT!$A$2:$A$10000),0)+ROWS($1:11)-1,COLUMN()-1),0) -> 1642191.663 | G17: =IF(ROWS(GPS_IMPORT!$1:11)<=COUNTIF(GPS_IMPORT!$A$2:$A$10000,$B$5),INDEX(GPS_IMPORT!$2:$10000,MATCH($B$5,(GPS_IMPORT!$A$2:$A$10000),0)+ROWS($1:11)-1,COLUMN()-1),0) -> 644.4656 | H17: -0.03782999993 | I17: 0.004600000335 | J17: 0.05599 | K17: TRUE | L17: -0.03782999993 | M17: 0.004600000335
A18: 12 | B18: =IF(ROWS(GPS_IMPORT!$1:12)<=COUNTIF(GPS_IMPORT!$A$2:$A$10000,$B$5),INDEX(GPS_IMPORT!$2:$10000,MATCH($B$5,(GPS_IMPORT!$A$2:$A$10000),0)+ROWS($1:12)-1,COLUMN()-1),0) -> 53 | C18: =IF(ROWS(GPS_IMPORT!$1:12)<=COUNTIF(GPS_IMPORT!$A$2:$A$10000,$B$5),INDEX(GPS_IMPORT!$2:$10000,MATCH($B$5,(GPS_IMPORT!$A$2:$A$10000),0)+ROWS($1:12)-1,COLUMN()-1),0) -> 07.06.2021 | D18: =IF(ROWS(GPS_IMPORT!$1:12)<=COUNTIF(GPS_IMPORT!$A$2:$A$10000,$B$5),INDEX(GPS_IMPORT!$2:$10000,MATCH($B$5,(GPS_IMPORT!$A$2:$A$10000),0)+ROWS($1:12)-1,COLUMN()-1),0) -> 14:05:20 | E18: =IF(ROWS(GPS_IMPORT!$1:12)<=COUNTIF(GPS_IMPORT!$A$2:$A$10000,$B$5),INDEX(GPS_IMPORT!$2:$10000,MATCH($B$5,(GPS_IMPORT!$A$2:$A$10000),0)+ROWS($1:12)-1,COLUMN()-1),0) -> 748684.5296 | F18: =IF(ROWS(GPS_IMPORT!$1:12)<=COUNTIF(GPS_IMPORT!$A$2:$A$10000,$B$5),INDEX(GPS_IMPORT!$2:$10000,MATCH($B$5,(GPS_IMPORT!$A$2:$A$10000),0)+ROWS($1:12)-1,COLUMN()-1),0) -> 1642191.652 | G18: =IF(ROWS(GPS_IMPORT!$1:12)<=COUNTIF(GPS_IMPORT!$A$2:$A$10000,$B$5),INDEX(GPS_IMPORT!$2:$10000,MATCH($B$5,(GPS_IMPORT!$A$2:$A$10000),0)+ROWS($1:12)-1,COLUMN()-1),0) -> 644.489 | H18: -0.005029999884 | I18: 0.01560000028 | J18: 0.03259 | K18: TRUE | L18: 0 | M18: 0
A19: 13 | B19: =IF(ROWS(GPS_IMPORT!$1:13)<=COUNTIF(GPS_IMPORT!$A$2:$A$10000,$B$5),INDEX(GPS_IMPORT!$2:$10000,MATCH($B$5,(GPS_IMPORT!$A$2:$A$10000),0)+ROWS($1:13)-1,COLUMN()-1),0) -> 0 | C19: =IF(ROWS(GPS_IMPORT!$1:13)<=COUNTIF(GPS_IMPORT!$A$2:$A$10000,$B$5),INDEX(GPS_IMPORT!$2:$10000,MATCH($B$5,(GPS_IMPORT!$A$2:$A$10000),0)+ROWS($1:13)-1,COLUMN()-1),0) -> 00:00:00 | D19: =IF(ROWS(GPS_IMPORT!$1:13)<=COUNTIF(GPS_IMPORT!$A$2:$A$10000,$B$5),INDEX(GPS_IMPORT!$2:$10000,MATCH($B$5,(GPS_IMPORT!$A$2:$A$10000),0)+ROWS($1:13)-1,COLUMN()-1),0) -> 00:00:00 | E19: =IF(ROWS(GPS_IMPORT!$1:13)<=COUNTIF(GPS_IMPORT!$A$2:$A$10000,$B$5),INDEX(GPS_IMPORT!$2:$10000,MATCH($B$5,(GPS_IMPORT!$A$2:$A$10000),0)+ROWS($1:13)-1,COLUMN()-1),0) -> 0 | F19: =IF(ROWS(GPS_IMPORT!$1:13)<=COUNTIF(GPS_IMPORT!$A$2:$A$10000,$B$5),INDEX(GPS_IMPORT!$2:$10000,MATCH($B$5,(GPS_IMPORT!$A$2:$A$10000),0)+ROWS($1:13)-1,COLUMN()-1),0) -> 0 | G19: =IF(ROWS(GPS_IMPORT!$1:13)<=COUNTIF(GPS_IMPORT!$A$2:$A$10000,$B$5),INDEX(GPS_IMPORT!$2:$10000,MATCH($B$5,(GPS_IMPORT!$A$2:$A$10000),0)+ROWS($1:13)-1,COLUMN()-1),0) -> 0 | H19: 0 | I19: 0 | J19: 0 | K19: FALSE | L19: 0 | M19: 0
A20: 14 | B20: =IF(ROWS(GPS_IMPORT!$1:14)<=COUNTIF(GPS_IMPORT!$A$2:$A$10000,$B$5),INDEX(GPS_IMPORT!$2:$10000,MATCH($B$5,(GPS_IMPORT!$A$2:$A$10000),0)+ROWS($1:14)-1,COLUMN()-1),0) -> 0 | C20: =IF(ROWS(GPS_IMPORT!$1:14)<=COUNTIF(GPS_IMPORT!$A$2:$A$10000,$B$5),INDEX(GPS_IMPORT!$2:$10000,MATCH($B$5,(GPS_IMPORT!$A$2:$A$10000),0)+ROWS($1:14)-1,COLUMN()-1),0) -> 00:00:00 | D20: =IF(ROWS(GPS_IMPORT!$1:14)<=COUNTIF(GPS_IMPORT!$A$2:$A$10000,$B$5),INDEX(GPS_IMPORT!$2:$10000,MATCH($B$5,(GPS_IMPORT!$A$2:$A$10000),0)+ROWS($1:14)-1,COLUMN()-1),0) -> 00:00:00 | E20: =IF(ROWS(GPS_IMPORT!$1:14)<=COUNTIF(GPS_IMPORT!$A$2:$A$10000,$B$5),INDEX(GPS_IMPORT!$2:$10000,MATCH($B$5,(GPS_IMPORT!$A$2:$A$10000),0)+ROWS($1:14)-1,COLUMN()-1),0) -> 0 | F20: =IF(ROWS(GPS_IMPORT!$1:14)<=COUNTIF(GPS_IMPORT!$A$2:$A$10000,$B$5),INDEX(GPS_IMPORT!$2:$10000,MATCH($B$5,(GPS_IMPORT!$A$2:$A$10000),0)+ROWS($1:14)-1,COLUMN()-1),0) -> 0 | G20: =IF(ROWS(GPS_IMPORT!$1:14)<=COUNTIF(GPS_IMPORT!$A$2:$A$10000,$B$5),INDEX(GPS_IMPORT!$2:$10000,MATCH($B$5,(GPS_IMPORT!$A$2:$A$10000),0)+ROWS($1:14)-1,COLUMN()-1),0) -> 0 | H20: 0 | I20: 0 | J20: 0 | K20: FALSE | L20: 0 | M20: 0
A21: 15 | B21: =IF(ROWS(GPS_IMPORT!$1:15)<=COUNTIF(GPS_IMPORT!$A$2:$A$10000,$B$5),INDEX(GPS_IMPORT!$2:$10000,MATCH($B$5,(GPS_IMPORT!$A$2:$A$10000),0)+ROWS($1:15)-1,COLUMN()-1),0) -> 0 | C21: =IF(ROWS(GPS_IMPORT!$1:15)<=COUNTIF(GPS_IMPORT!$A$2:$A$10000,$B$5),INDEX(GPS_IMPORT!$2:$10000,MATCH($B$5,(GPS_IMPORT!$A$2:$A$10000),0)+ROWS($1:15)-1,COLUMN()-1),0) -> 00:00:00 | D21: =IF(ROWS(GPS_IMPORT!$1:15)<=COUNTIF(GPS_IMPORT!$A$2:$A$10000,$B$5),INDEX(GPS_IMPORT!$2:$10000,MATCH($B$5,(GPS_IMPORT!$A$2:$A$10000),0)+ROWS($1:15)-1,COLUMN()-1),0) -> 00:00:00 | E21: =IF(ROWS(GPS_IMPORT!$1:15)<=COUNTIF(GPS_IMPORT!$A$2:$A$10000,$B$5),INDEX(GPS_IMPORT!$2:$10000,MATCH($B$5,(GPS_IMPORT!$A$2:$A$10000),0)+ROWS($1:15)-1,COLUMN()-1),0) -> 0 | F21: =IF(ROWS(GPS_IMPORT!$1:15)<=COUNTIF(GPS_IMPORT!$A$2:$A$10000,$B$5),INDEX(GPS_IMPORT!$2:$10000,MATCH($B$5,(GPS_IMPORT!$A$2:$A$10000),0)+ROWS($1:15)-1,COLUMN()-1),0) -> 0 | G21: =IF(ROWS(GPS_IMPORT!$1:15)<=COUNTIF(GPS_IMPORT!$A$2:$A$10000,$B$5),INDEX(GPS_IMPORT!$2:$10000,MATCH($B$5,(GPS_IMPORT!$A$2:$A$10000),0)+ROWS($1:15)-1,COLUMN()-1),0) -> 0 | H21: =IF(K21=TRUE,IF(E21>0,E$22-E21,0),0) -> 0 | I21: 0 | J21: 0 | K21: FALSE | L21: 0 | M21: 0
D22: AVERAGE | E22: =(IF($K$7=TRUE,E7,0)+IF($K$8=TRUE,E8,0)+IF($K$9=TRUE,E9,0)+IF($K$10=TRUE,E10,0)+IF($K$11=TRUE,E11,0)+IF($K$12=TRUE,E12,0)+IF($K$13=TRUE,E13,0)+IF($K$14=TRUE,E14,0)+IF($K$15=TRUE,E15,0)+IF($K$16=TRUE,E16,0)+IF($K$17=TRUE,E17,0)+IF($K$18=TRUE,E18,0)+IF($K$19=TRUE,E19,0)+IF($K$20=TRUE,E20,0)+IF($K$21=TRUE,E21,0))/(IF($K$7=TRUE,1,0)+IF($K$8=TRUE,1,0)+IF($K$9=TRUE,1,0)+IF($K$10=TRUE,1,0)+IF($K$11=TRUE,1,0)+IF($K$12=TRUE,1,0)+IF($K$13=TRUE,1,0)+IF($K$14=TRUE,1,0)+IF($K$15=TRUE,1,0)+IF($K$16=TRUE,1,0)+IF($K$17=TRUE,1,0)+IF($K$18=TRUE,1,0)+IF($K$19=TRUE,1,0)+IF($K$20=TRUE,1,0)+IF($K$21=TRUE,1,0)) -> 748684.5246 | F22: =(IF($K$7=TRUE,F7,0)+IF($K$8=TRUE,F8,0)+IF($K$9=TRUE,F9,0)+IF($K$10=TRUE,F10,0)+IF($K$11=TRUE,F11,0)+IF($K$12=TRUE,F12,0)+IF($K$13=TRUE,F13,0)+IF($K$14=TRUE,F14,0)+IF($K$15=TRUE,F15,0)+IF($K$16=TRUE,F16,0)+IF($K$17=TRUE,F17,0)+IF($K$18=TRUE,F18,0)+IF($K$19=TRUE,F19,0)+IF($K$20=TRUE,F20,0)+IF($K$21=TRUE,F21,0))/(IF($K$7=TRUE,1,0)+IF($K$8=TRUE,1,0)+IF($K$9=TRUE,1,0)+IF($K$10=TRUE,1,0)+IF($K$11=TRUE,1,0)+IF($K$12=TRUE,1,0)+IF($K$13=TRUE,1,0)+IF($K$14=TRUE,1,0)+IF($K$15=TRUE,1,0)+IF($K$16=TRUE,1,0)+IF($K$17=TRUE,1,0)+IF($K$18=TRUE,1,0)+IF($K$19=TRUE,1,0)+IF($K$20=TRUE,1,0)+IF($K$21=TRUE,1,0)) -> 1642191.668 | G22: =(IF($K$7=TRUE,G7,0)+IF($K$8=TRUE,G8,0)+IF($K$9=TRUE,G9,0)+IF($K$10=TRUE,G10,0)+IF($K$11=TRUE,G11,0)+IF($K$12=TRUE,G12,0)+IF($K$13=TRUE,G13,0)+IF($K$14=TRUE,G14,0)+IF($K$15=TRUE,G15,0)+IF($K$16=TRUE,G16,0)+IF($K$17=TRUE,G17,0)+IF($K$18=TRUE,G18,0)+IF($K$19=TRUE,G19,0)+IF($K$20=TRUE,G20,0)+IF($K$21=TRUE,G21,0))/ (IF($K$7=TRUE,1,0)+IF($K$8=TRUE,1,0)+IF($K$9=TRUE,1,0)+IF($K$10=TRUE,1,0)+IF($K$11=TRUE,1,0)+IF($K$12=TRUE,1,0)+IF($K$13=TRUE,1,0)+IF($K$14=TRUE,1,0)+IF($K$15=TRUE,1,0)+IF($K$16=TRUE,1,0)+IF($K$17=TRUE,1,0)+IF($K$18=TRUE,1,0)+IF($K$19=TRUE,1,0)+IF($K$20=TRUE,1,0)+IF($K$21=TRUE,1,0)) -> 644.52159 | H22: RMSE: | I22: RMSE: | J22: RMSE:
G23: ="RMSE IN "&GPS_IMPORT!J4&":" -> RMSE IN U.S. Survey FT: | H23: =SQRT(SUMSQ((IF(K7:K21=TRUE,H7:H21)))/COUNTIF(K7:K21,K7:K21=TRUE)) -> 0.02222300835 | I23: =SQRT(SUMSQ((IF(K7:K21=TRUE,I7:I21)))/COUNTIF(K7:K21,K7:K21=TRUE)) -> 0.01826581502 | J23: =SQRT(SUMSQ((IF(K7:K21=TRUE,J7:J21)))/COUNTIF(K7:K21,K7:K21=TRUE)) -> 0.03835821815
G24: Tolerance: | H24: =VLOOKUP(GPS_IMPORT!$K$4,Lists!H3:I5,2,FALSE) -> 0.029 | J24: =VLOOKUP(GPS_IMPORT!$K$4,Lists!H3:J5,3,FALSE) -> 0.039
H25: =IF(H23<=H24,"PASS","FAIL") -> PASS | I25: =IF(I23<=H24,"PASS","FAIL") -> PASS | J25: =IF(J23<=J24,"PASS","FAIL") -> PASS
A27: AVERAGED GPS-DERIVED POSITION | I27: Notes:
B28: MONUMENT COORDINATES | D28: NORTHING | E28: EASTING | F28: ORTHO HEIGHT | N28: Degrees | O28: Radians | P28: SIN | Q28: COS
B29: =GPS_IMPORT!J4&" ("&IF(GPS_IMPORT!K2="TRUE","GROUND","GRID")&")" -> U.S. Survey FT (GRID) | D29: =$E$22 -> 748684.5246 | E29: =$F$22 -> 1642191.668 | F29: =$G$22 -> 644.52159 | N29: 1 | O29: =N29*(PI()/180) -> 0.01745329252 | P29: =SIN(O29)*H$24 -> 0.0005061197867 | Q29: =COS(O29)*H$24 -> 0.02899558316
N30: =N29+1 -> 2 | O30: =N30*(PI()/180) -> 0.03490658504 | P30: 0.001012085404 | Q30: 0.02898233398
A31: LEVELED ELEVATION | N31: =N30+1 -> 3 | O31: 0.05235987756 | P31: 0.001517742731 | Q31: 0.02896025651
A32: ='LEVEL RUN'!B5 -> U.S. Survey FT | C32: =IFERROR(VLOOKUP(B5,'LEVEL RUN'!A7:I59,9,FALSE),"N/A") -> 644.5979169 | D32: (Fill out Level Run Sheet or N/A if no leveled elevation is available) | N32: 4 | O32: 0.06981317008 | P32: 0.002022937739 | Q32: 0.02892935746
A33: MONUMENT HELD | C33: =IF('LEVEL RUN'!A7="","",'LEVEL RUN'!A7) -> 331 | D33: (Type the monument name from which leveling originated) | N33: 5 | O33: 0.0872664626 | P33: 0.00252751654 | Q33: 0.02888964624
A34: LEVELED ELEVATION - GPS DERIVED ELEVATION = | E34: =IF(C32="N/A","N/A",C32-(F29*'LEVEL RUN'!F5)) -> 0.07632686747 | F34: ='LEVEL RUN'!D5 -> sft | N34: 6 | O34: 0.1047197551 | P34: 0.003031325435 | Q34: 0.02884113497
N35: 7 | O35: 0.1221730476 | P35: 0.003534210959 | Q35: 0.0287838384
A36: FINAL MONUMENT COORDINATES | N36: 8 | O36: 0.1396263402 | P36: 0.004036019928 | Q36: 0.02871777399
B37: MONUMENT COORDINATES | D37: NORTHING | E37: EASTING | F37: ELEVATION | G37: FEATURE CODE | N37: 9 | O37: 0.1570796327 | P37: 0.004536599486 | Q37: 0.02864296188
B38: =GPS_IMPORT!J6&" (GRID)" -> U.S. Survey FT (GRID) | D38: =IF(GPS_IMPORT!K2=TRUE,($E$22*GPS_IMPORT!$L$6)*(1/REPORT!C13),$E$22*GPS_IMPORT!$L$6) -> 748684.5246 | E38: =IF(GPS_IMPORT!K2=TRUE,($F$22*GPS_IMPORT!$L$6)*(1/REPORT!C13),$F$22*GPS_IMPORT!$L$6) -> 1642191.668 | F38: =IF($C$32="N/A",($G$22*GPS_IMPORT!$L$6),$C$32*'LEVEL RUN'!H5) -> 644.5979169 | G38: =VLOOKUP($B$5,GPS_IMPORT!$A$2:$G$2000,7,FALSE) -> IPS | N38: 10 | O38: 0.1745329252 | P38: 0.005035797152 | Q38: 0.02855942484
B39: =GPS_IMPORT!J6&" (GROUND)" -> U.S. Survey FT (GROUND) | D39: =IF(GPS_IMPORT!K2=TRUE,$E$22*GPS_IMPORT!$L$6,$E$22*GPS_IMPORT!$L$6*REPORT!C13) -> 748703.4962 | E39: =IF(GPS_IMPORT!K2=TRUE,$F$22*GPS_IMPORT!$L$6,$F$22*GPS_IMPORT!$L$6*REPORT!C13) -> 1642233.281 | F39: =IF($C$32="N/A",($G$22*GPS_IMPORT!$L$6),$C$32*'LEVEL RUN'!H5) -> 644.5979169 | G39: =$G$38 -> IPS | N39: 11 | O39: 0.1919862177 | P39: 0.005533460866 | Q39: 0.02846718832
N40: 12 | O40: 0.2094395102 | P40: 0.006029439034 | Q40: 0.02836628042
A41: ∆ North, ∆ East, and ∆ Ht. are the difference between the average northing, easting, and height for each observation. | I41: Mask Angle: | J41: 10° | N41: 13 | O41: 0.2268928028 | P41: 0.006523580576 | Q41: 0.02825673188
N42: 14 | O42: 0.2443460953 | P42: 0.007015734972 | Q42: 0.02813857606
N43: 15 | O43: 0.2617993878 | P43: 0.007505752308 | Q43: 0.02801184896
N44: 16 | O44: 0.2792526803 | P44: 0.007993483319 | Q44: 0.02787658918
N45: 17 | O45: 0.2967059728 | P45: 0.008478779437 | Q45: 0.02773283792
N46: 18 | O46: 0.3141592654 | P46: 0.008961492837 | Q46: 0.02758063897
N47: 19 | O47: 0.3316125579 | P47: 0.009441476479 | Q47: 0.02742003869
N48: 20 | O48: 0.3490658504 | P48: 0.009918584156 | Q48: 0.027251086
N49: 21 | O49: 0.3665191429 | P49: 0.01039267054 | Q49: 0.02707383237
N50: 22 | O50: 0.3839724354 | P50: 0.01086359121 | Q50: 0.02688833178
N51: 23 | O51: 0.401425728 | P51: 0.01133120273 | Q51: 0.02669464075
N52: 24 | O52: 0.4188790205 | P52: 0.01179536265 | Q52: 0.02649281827
N53: 25 | O53: 0.436332313 | P53: 0.01225592959 | Q53: 0.02628292582
N54: 26 | O54: 0.4537856055 | P54: 0.01271276326 | Q54: 0.02606502734
N55: 27 | O55: 0.471238898 | P55: 0.01316572449 | Q55: 0.0258391892
N56: 28 | O56: 0.4886921906 | P56: 0.01361467532 | Q56: 0.02560548019
N57: 29 | O57: 0.5061454831 | P57: 0.01405947899 | Q57: 0.02536397151
N58: 30 | O58: 0.5235987756 | P58: 0.0145 | Q58: 0.02511473671
N59: 31 | O59: 0.5410520681 | P59: 0.01493610417 | Q59: 0.02485785172
N60: 32 | O60: 0.5585053606 | P60: 0.01536765866 | Q60: 0.02459339479
N61: 33 | O61: 0.5759586532 | P61: 0.01579453202 | Q61: 0.02432144647
N62: 34 | O62: 0.5934119457 | P62: 0.0162165942 | Q62: 0.0240420896
N63: 35 | O63: 0.6108652382 | P63: 0.01663371665 | Q63: 0.02375540928
N64: 36 | O64: 0.6283185307 | P64: 0.01704577232 | Q64: 0.02346149284
N65: 37 | O65: 0.6457718232 | P65: 0.01745263567 | Q65: 0.02316042979
N66: 38 | O66: 0.6632251158 | P66: 0.01785418278 | Q66: 0.02285231185
N67: 39 | O67: 0.6806784083 | P67: 0.01825029134 | Q67: 0.02253723288
N68: 40 | O68: 0.6981317008 | P68: 0.01864084068 | Q68: 0.02221528885
N69: 41 | O69: 0.7155849933 | P69: 0.01902571184 | Q69: 0.02188657783
N70: 42 | O70: 0.7330382858 | P70: 0.01940478758 | Q70: 0.02155119994
N71: 43 | O71: 0.7504915784 | P71: 0.01977795244 | Q71: 0.02120925735
N72: 44 | O72: 0.7679448709 | P72: 0.02014509274 | Q72: 0.02086085421
N73: 45 | O73: 0.7853981634 | P73: 0.02050609665 | Q73: 0.02050609665
N74: 46 | O74: 0.8028514559 | P74: 0.02086085421 | Q74: 0.02014509274
N75: 47 | O75: 0.8203047484 | P75: 0.02120925735 | Q75: 0.01977795244
N76: 48 | O76: 0.837758041 | P76: 0.02155119994 | Q76: 0.01940478758
N77: 49 | O77: 0.8552113335 | P77: 0.02188657783 | Q77: 0.01902571184
N78: 50 | O78: 0.872664626 | P78: 0.02221528885 | Q78: 0.01864084068
N79: 51 | O79: 0.8901179185 | P79: 0.02253723288 | Q79: 0.01825029134
N80: 52 | O80: 0.907571211 | P80: 0.02285231185 | Q80: 0.01785418278
N81: 53 | O81: 0.9250245036 | P81: 0.02316042979 | Q81: 0.01745263567
N82: 54 | O82: 0.9424777961 | P82: 0.02346149284 | Q82: 0.01704577232
N83: 55 | O83: 0.9599310886 | P83: 0.02375540928 | Q83: 0.01663371665
N84: 56 | O84: 0.9773843811 | P84: 0.0240420896 | Q84: 0.0162165942
N85: 57 | O85: 0.9948376736 | P85: 0.02432144647 | Q85: 0.01579453202
N86: 58 | O86: 1.012290966 | P86: 0.02459339479 | Q86: 0.01536765866
N87: 59 | O87: 1.029744259 | P87: 0.02485785172 | Q87: 0.01493610417
N88: 60 | O88: 1.047197551 | P88: 0.02511473671 | Q88: 0.0145
N89: 61 | O89: 1.064650844 | P89: 0.02536397151 | Q89: 0.01405947899
N90: 62 | O90: 1.082104136 | P90: 0.02560548019 | Q90: 0.01361467532
N91: 63 | O91: 1.099557429 | P91: 0.0258391892 | Q91: 0.01316572449
N92: 64 | O92: 1.117010721 | P92: 0.02606502734 | Q92: 0.01271276326
N93: 65 | O93: 1.134464014 | P93: =SIN(O93)*H$24 -> 0.02628292582 | Q93: =COS(O93)*H$24 -> 0.01225592959
N94: 66 | O94: =N94*(PI()/180) -> 1.151917306 | P94: 0.02649281827 | Q94: 0.01179536265
N95: =N94+1 -> 67 | O95: 1.169370599 | P95: 0.02669464075 | Q95: 0.01133120273
N96: 68 | O96: 1.186823891 | P96: 0.02688833178 | Q96: 0.01086359121
N97: 69 | O97: 1.204277184 | P97: 0.02707383237 | Q97: 0.01039267054
N98: 70 | O98: 1.221730476 | P98: 0.027251086 | Q98: 0.009918584156
N99: 71 | O99: 1.239183769 | P99: 0.02742003869 | Q99: 0.009441476479
N100: 72 | O100: 1.256637061 | P100: 0.02758063897 | Q100: 0.008961492837
N101: 73 | O101: 1.274090354 | P101: 0.02773283792 | Q101: 0.008478779437
N102: 74 | O102: 1.291543646 | P102: 0.02787658918 | Q102: 0.007993483319
N103: 75 | O103: 1.308996939 | P103: 0.02801184896 | Q103: 0.007505752308
N104: 76 | O104: 1.326450232 | P104: 0.02813857606 | Q104: 0.007015734972
N105: 77 | O105: 1.343903524 | P105: 0.02825673188 | Q105: 0.006523580576
N106: 78 | O106: 1.361356817 | P106: 0.02836628042 | Q106: 0.006029439034
N107: 79 | O107: 1.378810109 | P107: 0.02846718832 | Q107: 0.005533460866
N108: 80 | O108: 1.396263402 | P108: 0.02855942484 | Q108: 0.005035797152
N109: 81 | O109: 1.413716694 | P109: 0.02864296188 | Q109: 0.004536599486
N110: 82 | O110: 1.431169987 | P110: 0.02871777399 | Q110: 0.004036019928
N111: 83 | O111: 1.448623279 | P111: 0.0287838384 | Q111: 0.003534210959
N112: 84 | O112: 1.466076572 | P112: 0.02884113497 | Q112: 0.003031325435
N113: 85 | O113: 1.483529864 | P113: 0.02888964624 | Q113: 0.00252751654
N114: 86 | O114: 1.500983157 | P114: 0.02892935746 | Q114: 0.002022937739
N115: 87 | O115: 1.518436449 | P115: 0.02896025651 | Q115: 0.001517742731
N116: 88 | O116: 1.535889742 | P116: 0.02898233398 | Q116: 0.001012085404
N117: 89 | O117: 1.553343034 | P117: 0.02899558316 | Q117: 0.0005061197867
N118: 90 | O118: 1.570796327 | P118: 0.029 | Q118: 1.77646526e-18
N119: 91 | O119: 1.588249619 | P119: 0.02899558316 | Q119: -0.0005061197867
N120: 92 | O120: 1.605702912 | P120: 0.02898233398 | Q120: -0.001012085404
N121: 93 | O121: 1.623156204 | P121: 0.02896025651 | Q121: -0.001517742731
N122: 94 | O122: 1.640609497 | P122: 0.02892935746 | Q122: -0.002022937739
N123: 95 | O123: 1.658062789 | P123: 0.02888964624 | Q123: -0.00252751654
N124: 96 | O124: 1.675516082 | P124: 0.02884113497 | Q124: -0.003031325435
N125: 97 | O125: 1.692969374 | P125: 0.0287838384 | Q125: -0.003534210959
N126: 98 | O126: 1.710422667 | P126: 0.02871777399 | Q126: -0.004036019928
N127: 99 | O127: 1.727875959 | P127: 0.02864296188 | Q127: -0.004536599486
N128: 100 | O128: 1.745329252 | P128: 0.02855942484 | Q128: -0.005035797152
N129: 101 | O129: 1.762782545 | P129: 0.02846718832 | Q129: -0.005533460866
N130: 102 | O130: 1.780235837 | P130: 0.02836628042 | Q130: -0.006029439034
N131: 103 | O131: 1.79768913 | P131: 0.02825673188 | Q131: -0.006523580576
N132: 104 | O132: 1.815142422 | P132: 0.02813857606 | Q132: -0.007015734972
N133: 105 | O133: 1.832595715 | P133: 0.02801184896 | Q133: -0.007505752308
N134: 106 | O134: 1.850049007 | P134: 0.02787658918 | Q134: -0.007993483319
N135: 107 | O135: 1.8675023 | P135: 0.02773283792 | Q135: -0.008478779437
N136: 108 | O136: 1.884955592 | P136: 0.02758063897 | Q136: -0.008961492837
N137: 109 | O137: 1.902408885 | P137: 0.02742003869 | Q137: -0.009441476479
N138: 110 | O138: 1.919862177 | P138: 0.027251086 | Q138: -0.009918584156
N139: 111 | O139: 1.93731547 | P139: 0.02707383237 | Q139: -0.01039267054
N140: 112 | O140: 1.954768762 | P140: 0.02688833178 | Q140: -0.01086359121
N141: 113 | O141: 1.972222055 | P141: 0.02669464075 | Q141: -0.01133120273
N142: 114 | O142: 1.989675347 | P142: 0.02649281827 | Q142: -0.01179536265
N143: 115 | O143: 2.00712864 | P143: 0.02628292582 | Q143: -0.01225592959
N144: 116 | O144: 2.024581932 | P144: 0.02606502734 | Q144: -0.01271276326
N145: 117 | O145: 2.042035225 | P145: 0.0258391892 | Q145: -0.01316572449
N146: 118 | O146: 2.059488517 | P146: 0.02560548019 | Q146: -0.01361467532
N147: 119 | O147: 2.07694181 | P147: 0.02536397151 | Q147: -0.01405947899
N148: 120 | O148: 2.094395102 | P148: 0.02511473671 | Q148: -0.0145
N149: 121 | O149: 2.111848395 | P149: 0.02485785172 | Q149: -0.01493610417
N150: 122 | O150: 2.129301687 | P150: 0.02459339479 | Q150: -0.01536765866
N151: 123 | O151: 2.14675498 | P151: 0.02432144647 | Q151: -0.01579453202
N152: 124 | O152: 2.164208272 | P152: 0.0240420896 | Q152: -0.0162165942
N153: 125 | O153: 2.181661565 | P153: 0.02375540928 | Q153: -0.01663371665
N154: 126 | O154: 2.199114858 | P154: 0.02346149284 | Q154: -0.01704577232
N155: 127 | O155: 2.21656815 | P155: 0.02316042979 | Q155: -0.01745263567
N156: 128 | O156: 2.234021443 | P156: 0.02285231185 | Q156: -0.01785418278
N157: 129 | O157: 2.251474735 | P157: =SIN(O157)*H$24 -> 0.02253723288 | Q157: =COS(O157)*H$24 -> -0.01825029134
N158: 130 | O158: =N158*(PI()/180) -> 2.268928028 | P158: 0.02221528885 | Q158: -0.01864084068
N159: =N158+1 -> 131 | O159: 2.28638132 | P159: 0.02188657783 | Q159: -0.01902571184
N160: 132 | O160: 2.303834613 | P160: 0.02155119994 | Q160: -0.01940478758
N161: 133 | O161: 2.321287905 | P161: 0.02120925735 | Q161: -0.01977795244
N162: 134 | O162: 2.338741198 | P162: 0.02086085421 | Q162: -0.02014509274
N163: 135 | O163: 2.35619449 | P163: 0.02050609665 | Q163: -0.02050609665
N164: 136 | O164: 2.373647783 | P164: 0.02014509274 | Q164: -0.02086085421
N165: 137 | O165: 2.391101075 | P165: 0.01977795244 | Q165: -0.02120925735
N166: 138 | O166: 2.408554368 | P166: 0.01940478758 | Q166: -0.02155119994
N167: 139 | O167: 2.42600766 | P167: 0.01902571184 | Q167: -0.02188657783
N168: 140 | O168: 2.443460953 | P168: 0.01864084068 | Q168: -0.02221528885
N169: 141 | O169: 2.460914245 | P169: 0.01825029134 | Q169: -0.02253723288
N170: 142 | O170: 2.478367538 | P170: 0.01785418278 | Q170: -0.02285231185
N171: 143 | O171: 2.49582083 | P171: 0.01745263567 | Q171: -0.02316042979
N172: 144 | O172: 2.513274123 | P172: 0.01704577232 | Q172: -0.02346149284
N173: 145 | O173: 2.530727415 | P173: 0.01663371665 | Q173: -0.02375540928
N174: 146 | O174: 2.548180708 | P174: 0.0162165942 | Q174: -0.0240420896
N175: 147 | O175: 2.565634 | P175: 0.01579453202 | Q175: -0.02432144647
N176: 148 | O176: 2.583087293 | P176: 0.01536765866 | Q176: -0.02459339479
N177: 149 | O177: 2.600540585 | P177: 0.01493610417 | Q177: -0.02485785172
N178: 150 | O178: 2.617993878 | P178: 0.0145 | Q178: -0.02511473671
N179: 151 | O179: 2.635447171 | P179: 0.01405947899 | Q179: -0.02536397151
N180: 152 | O180: 2.652900463 | P180: 0.01361467532 | Q180: -0.02560548019
N181: 153 | O181: 2.670353756 | P181: 0.01316572449 | Q181: -0.0258391892
N182: 154 | O182: 2.687807048 | P182: 0.01271276326 | Q182: -0.02606502734
N183: 155 | O183: 2.705260341 | P183: 0.01225592959 | Q183: -0.02628292582
N184: 156 | O184: 2.722713633 | P184: 0.01179536265 | Q184: -0.02649281827
N185: 157 | O185: 2.740166926 | P185: 0.01133120273 | Q185: -0.02669464075
N186: 158 | O186: 2.757620218 | P186: 0.01086359121 | Q186: -0.02688833178
N187: 159 | O187: 2.775073511 | P187: 0.01039267054 | Q187: -0.02707383237
N188: 160 | O188: 2.792526803 | P188: 0.009918584156 | Q188: -0.027251086
N189: 161 | O189: 2.809980096 | P189: 0.009441476479 | Q189: -0.02742003869
N190: 162 | O190: 2.827433388 | P190: 0.008961492837 | Q190: -0.02758063897
N191: 163 | O191: 2.844886681 | P191: 0.008478779437 | Q191: -0.02773283792
N192: 164 | O192: 2.862339973 | P192: 0.007993483319 | Q192: -0.02787658918
N193: 165 | O193: 2.879793266 | P193: 0.007505752308 | Q193: -0.02801184896
N194: 166 | O194: 2.897246558 | P194: 0.007015734972 | Q194: -0.02813857606
N195: 167 | O195: 2.914699851 | P195: 0.006523580576 | Q195: -0.02825673188
N196: 168 | O196: 2.932153143 | P196: 0.006029439034 | Q196: -0.02836628042
N197: 169 | O197: 2.949606436 | P197: 0.005533460866 | Q197: -0.02846718832
N198: 170 | O198: 2.967059728 | P198: 0.005035797152 | Q198: -0.02855942484
N199: 171 | O199: 2.984513021 | P199: 0.004536599486 | Q199: -0.02864296188
N200: 172 | O200: 3.001966313 | P200: 0.004036019928 | Q200: -0.02871777399
N201: 173 | O201: 3.019419606 | P201: 0.003534210959 | Q201: -0.0287838384
N202: 174 | O202: 3.036872898 | P202: 0.003031325435 | Q202: -0.02884113497
... 186 more rows

Sheet 54
A1: VRS GNSS Project Control Monument Coordinate Analysis
A3: Project: | B3: =REPORT!B2 -> LUC-23-11.75 | D3: GPS Antenna: | E3: =REPORT!A41 -> Trimble R6 | I3: Report Date: | J3: =REPORT!C49 -> 2021-07-22
A4: PID: | B4: =REPORT!E2 -> 105889 | D4: VRS Network: | E4: ODOT VRS | I4: Prepared By: | J4: =REPORT!C48 -> TK/DCK
A5: Point ID: | B5: 54 | C5: No. of Sessions: | D5: =COUNTIF(GPS_IMPORT!A2:A1000,$B$5) -> 12 | E5: =IF(GPS_IMPORT!K2="TRUE","(GROUND)","(GRID)") -> (GRID) | I5: Checked By: | J5: =REPORT!C52 -> DCK/JS/MDH
A6: SESSION # | B6: Point | C6: Observation Date | D6: Start Time | E6: ="Northing("&GPS_IMPORT!K4&")" -> Northing(sft) | F6: ="Easting("&GPS_IMPORT!K4&")" -> Easting(sft) | G6: ="Height("&GPS_IMPORT!K4&")" -> Height(sft) | H6: ="∆ Northing("&GPS_IMPORT!K4&")" -> ∆ Northing(sft) | I6: ="∆ Easting("&GPS_IMPORT!K4&")" -> ∆ Easting(sft) | J6: ="∆ Height("&GPS_IMPORT!K4&")" -> ∆ Height(sft) | K6: Include in Solution?
A7: 1 | B7: =IF(ROWS(GPS_IMPORT!$1:1)<=COUNTIF(GPS_IMPORT!$A$2:$A$10000,$B$5),INDEX(GPS_IMPORT!$2:$10000,MATCH($B$5,(GPS_IMPORT!$A$2:$A$10000),0)+ROWS($1:1)-1,COLUMN()-1),0) -> 54 | C7: =IF(ROWS(GPS_IMPORT!$1:1)<=COUNTIF(GPS_IMPORT!$A$2:$A$10000,$B$5),INDEX(GPS_IMPORT!$2:$10000,MATCH($B$5,(GPS_IMPORT!$A$2:$A$10000),0)+ROWS($1:1)-1,COLUMN()-1),0) -> 07.06.2021 | D7: =IF(ROWS(GPS_IMPORT!$1:1)<=COUNTIF(GPS_IMPORT!$A$2:$A$10000,$B$5),INDEX(GPS_IMPORT!$2:$10000,MATCH($B$5,(GPS_IMPORT!$A$2:$A$10000),0)+ROWS($1:1)-1,COLUMN()-1),0) -> 09:43:47 | E7: =IF(ROWS(GPS_IMPORT!$1:1)<=COUNTIF(GPS_IMPORT!$A$2:$A$10000,$B$5),INDEX(GPS_IMPORT!$2:$10000,MATCH($B$5,(GPS_IMPORT!$A$2:$A$10000),0)+ROWS($1:1)-1,COLUMN()-1),0) -> 748616.2756 | F7: =IF(ROWS(GPS_IMPORT!$1:1)<=COUNTIF(GPS_IMPORT!$A$2:$A$10000,$B$5),INDEX(GPS_IMPORT!$2:$10000,MATCH($B$5,(GPS_IMPORT!$A$2:$A$10000),0)+ROWS($1:1)-1,COLUMN()-1),0) -> 1641773.309 | G7: =IF(ROWS(GPS_IMPORT!$1:1)<=COUNTIF(GPS_IMPORT!$A$2:$A$10000,$B$5),INDEX(GPS_IMPORT!$2:$10000,MATCH($B$5,(GPS_IMPORT!$A$2:$A$10000),0)+ROWS($1:1)-1,COLUMN()-1),0) -> 642.6238 | H7: =IF(K7=TRUE,IF(E7>0,E$22-E7,0),0) -> 0 | I7: =IF(K7=TRUE,IF(F7>0,F$22-F7,0),0) -> 0 | J7: =IF(K7=TRUE,IF(G7>0,G$22-G7,0),0) -> 0 | K7: FALSE | L7: =IF(OR(ABS(H7)>$H$24,ABS(I7)>$H$24,ABS(SQRT((H7^2)+(I7^2)))>$H$24),IF(K7=TRUE,IF(E7>0,E$22-E7,0),0),0) -> 0 | M7: =IF(OR(ABS(H7)>$H$24,ABS(I7)>$H$24,ABS(SQRT((H7^2)+(I7^2)))>$H$24),IF(K7=TRUE,IF(E7>0,F$22-F7,0),0),0) -> 0
A8: 2 | B8: =IF(ROWS(GPS_IMPORT!$1:2)<=COUNTIF(GPS_IMPORT!$A$2:$A$10000,$B$5),INDEX(GPS_IMPORT!$2:$10000,MATCH($B$5,(GPS_IMPORT!$A$2:$A$10000),0)+ROWS($1:2)-1,COLUMN()-1),0) -> 54 | C8: =IF(ROWS(GPS_IMPORT!$1:2)<=COUNTIF(GPS_IMPORT!$A$2:$A$10000,$B$5),INDEX(GPS_IMPORT!$2:$10000,MATCH($B$5,(GPS_IMPORT!$A$2:$A$10000),0)+ROWS($1:2)-1,COLUMN()-1),0) -> 07.06.2021 | D8: =IF(ROWS(GPS_IMPORT!$1:2)<=COUNTIF(GPS_IMPORT!$A$2:$A$10000,$B$5),INDEX(GPS_IMPORT!$2:$10000,MATCH($B$5,(GPS_IMPORT!$A$2:$A$10000),0)+ROWS($1:2)-1,COLUMN()-1),0) -> 09:44:53 | E8: =IF(ROWS(GPS_IMPORT!$1:2)<=COUNTIF(GPS_IMPORT!$A$2:$A$10000,$B$5),INDEX(GPS_IMPORT!$2:$10000,MATCH($B$5,(GPS_IMPORT!$A$2:$A$10000),0)+ROWS($1:2)-1,COLUMN()-1),0) -> 748616.2849 | F8: =IF(ROWS(GPS_IMPORT!$1:2)<=COUNTIF(GPS_IMPORT!$A$2:$A$10000,$B$5),INDEX(GPS_IMPORT!$2:$10000,MATCH($B$5,(GPS_IMPORT!$A$2:$A$10000),0)+ROWS($1:2)-1,COLUMN()-1),0) -> 1641773.32 | G8: =IF(ROWS(GPS_IMPORT!$1:2)<=COUNTIF(GPS_IMPORT!$A$2:$A$10000,$B$5),INDEX(GPS_IMPORT!$2:$10000,MATCH($B$5,(GPS_IMPORT!$A$2:$A$10000),0)+ROWS($1:2)-1,COLUMN()-1),0) -> 642.6175 | H8: =IF(K8=TRUE,IF(E8>0,E$22-E8,0),0) -> 0 | I8: =IF(K8=TRUE,IF(F8>0,F$22-F8,0),0) -> 0 | J8: =IF(K8=TRUE,IF(G8>0,G$22-G8,0),0) -> 0 | K8: FALSE | L8: 0 | M8: 0
A9: 3 | B9: =IF(ROWS(GPS_IMPORT!$1:3)<=COUNTIF(GPS_IMPORT!$A$2:$A$10000,$B$5),INDEX(GPS_IMPORT!$2:$10000,MATCH($B$5,(GPS_IMPORT!$A$2:$A$10000),0)+ROWS($1:3)-1,COLUMN()-1),0) -> 54 | C9: =IF(ROWS(GPS_IMPORT!$1:3)<=COUNTIF(GPS_IMPORT!$A$2:$A$10000,$B$5),INDEX(GPS_IMPORT!$2:$10000,MATCH($B$5,(GPS_IMPORT!$A$2:$A$10000),0)+ROWS($1:3)-1,COLUMN()-1),0) -> 07.06.2021 | D9: =IF(ROWS(GPS_IMPORT!$1:3)<=COUNTIF(GPS_IMPORT!$A$2:$A$10000,$B$5),INDEX(GPS_IMPORT!$2:$10000,MATCH($B$5,(GPS_IMPORT!$A$2:$A$10000),0)+ROWS($1:3)-1,COLUMN()-1),0) -> 09:46:44 | E9: =IF(ROWS(GPS_IMPORT!$1:3)<=COUNTIF(GPS_IMPORT!$A$2:$A$10000,$B$5),INDEX(GPS_IMPORT!$2:$10000,MATCH($B$5,(GPS_IMPORT!$A$2:$A$10000),0)+ROWS($1:3)-1,COLUMN()-1),0) -> 748616.2775 | F9: =IF(ROWS(GPS_IMPORT!$1:3)<=COUNTIF(GPS_IMPORT!$A$2:$A$10000,$B$5),INDEX(GPS_IMPORT!$2:$10000,MATCH($B$5,(GPS_IMPORT!$A$2:$A$10000),0)+ROWS($1:3)-1,COLUMN()-1),0) -> 1641773.332 | G9: =IF(ROWS(GPS_IMPORT!$1:3)<=COUNTIF(GPS_IMPORT!$A$2:$A$10000,$B$5),INDEX(GPS_IMPORT!$2:$10000,MATCH($B$5,(GPS_IMPORT!$A$2:$A$10000),0)+ROWS($1:3)-1,COLUMN()-1),0) -> 642.5759 | H9: 0 | I9: 0 | J9: 0 | K9: FALSE | L9: 0 | M9: 0
A10: 4 | B10: =IF(ROWS(GPS_IMPORT!$1:4)<=COUNTIF(GPS_IMPORT!$A$2:$A$10000,$B$5),INDEX(GPS_IMPORT!$2:$10000,MATCH($B$5,(GPS_IMPORT!$A$2:$A$10000),0)+ROWS($1:4)-1,COLUMN()-1),0) -> 54 | C10: =IF(ROWS(GPS_IMPORT!$1:4)<=COUNTIF(GPS_IMPORT!$A$2:$A$10000,$B$5),INDEX(GPS_IMPORT!$2:$10000,MATCH($B$5,(GPS_IMPORT!$A$2:$A$10000),0)+ROWS($1:4)-1,COLUMN()-1),0) -> 07.06.2021 | D10: =IF(ROWS(GPS_IMPORT!$1:4)<=COUNTIF(GPS_IMPORT!$A$2:$A$10000,$B$5),INDEX(GPS_IMPORT!$2:$10000,MATCH($B$5,(GPS_IMPORT!$A$2:$A$10000),0)+ROWS($1:4)-1,COLUMN()-1),0) -> 09:47:59 | E10: =IF(ROWS(GPS_IMPORT!$1:4)<=COUNTIF(GPS_IMPORT!$A$2:$A$10000,$B$5),INDEX(GPS_IMPORT!$2:$10000,MATCH($B$5,(GPS_IMPORT!$A$2:$A$10000),0)+ROWS($1:4)-1,COLUMN()-1),0) -> 748616.2589 | F10: =IF(ROWS(GPS_IMPORT!$1:4)<=COUNTIF(GPS_IMPORT!$A$2:$A$10000,$B$5),INDEX(GPS_IMPORT!$2:$10000,MATCH($B$5,(GPS_IMPORT!$A$2:$A$10000),0)+ROWS($1:4)-1,COLUMN()-1),0) -> 1641773.352 | G10: =IF(ROWS(GPS_IMPORT!$1:4)<=COUNTIF(GPS_IMPORT!$A$2:$A$10000,$B$5),INDEX(GPS_IMPORT!$2:$10000,MATCH($B$5,(GPS_IMPORT!$A$2:$A$10000),0)+ROWS($1:4)-1,COLUMN()-1),0) -> 642.5879 | H10: 0 | I10: 0 | J10: 0 | K10: FALSE | L10: 0 | M10: 0
A11: 5 | B11: =IF(ROWS(GPS_IMPORT!$1:5)<=COUNTIF(GPS_IMPORT!$A$2:$A$10000,$B$5),INDEX(GPS_IMPORT!$2:$10000,MATCH($B$5,(GPS_IMPORT!$A$2:$A$10000),0)+ROWS($1:5)-1,COLUMN()-1),0) -> 54 | C11: =IF(ROWS(GPS_IMPORT!$1:5)<=COUNTIF(GPS_IMPORT!$A$2:$A$10000,$B$5),INDEX(GPS_IMPORT!$2:$10000,MATCH($B$5,(GPS_IMPORT!$A$2:$A$10000),0)+ROWS($1:5)-1,COLUMN()-1),0) -> 07.06.2021 | D11: =IF(ROWS(GPS_IMPORT!$1:5)<=COUNTIF(GPS_IMPORT!$A$2:$A$10000,$B$5),INDEX(GPS_IMPORT!$2:$10000,MATCH($B$5,(GPS_IMPORT!$A$2:$A$10000),0)+ROWS($1:5)-1,COLUMN()-1),0) -> 13:00:06 | E11: =IF(ROWS(GPS_IMPORT!$1:5)<=COUNTIF(GPS_IMPORT!$A$2:$A$10000,$B$5),INDEX(GPS_IMPORT!$2:$10000,MATCH($B$5,(GPS_IMPORT!$A$2:$A$10000),0)+ROWS($1:5)-1,COLUMN()-1),0) -> 748616.2008 | F11: =IF(ROWS(GPS_IMPORT!$1:5)<=COUNTIF(GPS_IMPORT!$A$2:$A$10000,$B$5),INDEX(GPS_IMPORT!$2:$10000,MATCH($B$5,(GPS_IMPORT!$A$2:$A$10000),0)+ROWS($1:5)-1,COLUMN()-1),0) -> 1641773.278 | G11: =IF(ROWS(GPS_IMPORT!$1:5)<=COUNTIF(GPS_IMPORT!$A$2:$A$10000,$B$5),INDEX(GPS_IMPORT!$2:$10000,MATCH($B$5,(GPS_IMPORT!$A$2:$A$10000),0)+ROWS($1:5)-1,COLUMN()-1),0) -> 642.6864 | H11: 0.009787500021 | I11: 0.01925000036 | J11: -0.01255 | K11: TRUE | L11: 0 | M11: 0
A12: 6 | B12: =IF(ROWS(GPS_IMPORT!$1:6)<=COUNTIF(GPS_IMPORT!$A$2:$A$10000,$B$5),INDEX(GPS_IMPORT!$2:$10000,MATCH($B$5,(GPS_IMPORT!$A$2:$A$10000),0)+ROWS($1:6)-1,COLUMN()-1),0) -> 54 | C12: =IF(ROWS(GPS_IMPORT!$1:6)<=COUNTIF(GPS_IMPORT!$A$2:$A$10000,$B$5),INDEX(GPS_IMPORT!$2:$10000,MATCH($B$5,(GPS_IMPORT!$A$2:$A$10000),0)+ROWS($1:6)-1,COLUMN()-1),0) -> 07.06.2021 | D12: =IF(ROWS(GPS_IMPORT!$1:6)<=COUNTIF(GPS_IMPORT!$A$2:$A$10000,$B$5),INDEX(GPS_IMPORT!$2:$10000,MATCH($B$5,(GPS_IMPORT!$A$2:$A$10000),0)+ROWS($1:6)-1,COLUMN()-1),0) -> 13:01:16 | E12: =IF(ROWS(GPS_IMPORT!$1:6)<=COUNTIF(GPS_IMPORT!$A$2:$A$10000,$B$5),INDEX(GPS_IMPORT!$2:$10000,MATCH($B$5,(GPS_IMPORT!$A$2:$A$10000),0)+ROWS($1:6)-1,COLUMN()-1),0) -> 748616.2435 | F12: =IF(ROWS(GPS_IMPORT!$1:6)<=COUNTIF(GPS_IMPORT!$A$2:$A$10000,$B$5),INDEX(GPS_IMPORT!$2:$10000,MATCH($B$5,(GPS_IMPORT!$A$2:$A$10000),0)+ROWS($1:6)-1,COLUMN()-1),0) -> 1641773.277 | G12: =IF(ROWS(GPS_IMPORT!$1:6)<=COUNTIF(GPS_IMPORT!$A$2:$A$10000,$B$5),INDEX(GPS_IMPORT!$2:$10000,MATCH($B$5,(GPS_IMPORT!$A$2:$A$10000),0)+ROWS($1:6)-1,COLUMN()-1),0) -> 642.68 | H12: -0.03291249997 | I12: 0.02025000029 | J12: -0.00615 | K12: TRUE | L12: -0.03291249997 | M12: 0.02025000029
A13: 7 | B13: =IF(ROWS(GPS_IMPORT!$1:7)<=COUNTIF(GPS_IMPORT!$A$2:$A$10000,$B$5),INDEX(GPS_IMPORT!$2:$10000,MATCH($B$5,(GPS_IMPORT!$A$2:$A$10000),0)+ROWS($1:7)-1,COLUMN()-1),0) -> 54 | C13: =IF(ROWS(GPS_IMPORT!$1:7)<=COUNTIF(GPS_IMPORT!$A$2:$A$10000,$B$5),INDEX(GPS_IMPORT!$2:$10000,MATCH($B$5,(GPS_IMPORT!$A$2:$A$10000),0)+ROWS($1:7)-1,COLUMN()-1),0) -> 07.06.2021 | D13: =IF(ROWS(GPS_IMPORT!$1:7)<=COUNTIF(GPS_IMPORT!$A$2:$A$10000,$B$5),INDEX(GPS_IMPORT!$2:$10000,MATCH($B$5,(GPS_IMPORT!$A$2:$A$10000),0)+ROWS($1:7)-1,COLUMN()-1),0) -> 13:02:22 | E13: =IF(ROWS(GPS_IMPORT!$1:7)<=COUNTIF(GPS_IMPORT!$A$2:$A$10000,$B$5),INDEX(GPS_IMPORT!$2:$10000,MATCH($B$5,(GPS_IMPORT!$A$2:$A$10000),0)+ROWS($1:7)-1,COLUMN()-1),0) -> 748616.1847 | F13: =IF(ROWS(GPS_IMPORT!$1:7)<=COUNTIF(GPS_IMPORT!$A$2:$A$10000,$B$5),INDEX(GPS_IMPORT!$2:$10000,MATCH($B$5,(GPS_IMPORT!$A$2:$A$10000),0)+ROWS($1:7)-1,COLUMN()-1),0) -> 1641773.28 | G13: =IF(ROWS(GPS_IMPORT!$1:7)<=COUNTIF(GPS_IMPORT!$A$2:$A$10000,$B$5),INDEX(GPS_IMPORT!$2:$10000,MATCH($B$5,(GPS_IMPORT!$A$2:$A$10000),0)+ROWS($1:7)-1,COLUMN()-1),0) -> 642.7287 | H13: 0.02588750003 | I13: 0.01725000027 | J13: -0.05485 | K13: TRUE | L13: 0.02588750003 | M13: 0.01725000027
A14: 8 | B14: =IF(ROWS(GPS_IMPORT!$1:8)<=COUNTIF(GPS_IMPORT!$A$2:$A$10000,$B$5),INDEX(GPS_IMPORT!$2:$10000,MATCH($B$5,(GPS_IMPORT!$A$2:$A$10000),0)+ROWS($1:8)-1,COLUMN()-1),0) -> 54 | C14: =IF(ROWS(GPS_IMPORT!$1:8)<=COUNTIF(GPS_IMPORT!$A$2:$A$10000,$B$5),INDEX(GPS_IMPORT!$2:$10000,MATCH($B$5,(GPS_IMPORT!$A$2:$A$10000),0)+ROWS($1:8)-1,COLUMN()-1),0) -> 07.06.2021 | D14: =IF(ROWS(GPS_IMPORT!$1:8)<=COUNTIF(GPS_IMPORT!$A$2:$A$10000,$B$5),INDEX(GPS_IMPORT!$2:$10000,MATCH($B$5,(GPS_IMPORT!$A$2:$A$10000),0)+ROWS($1:8)-1,COLUMN()-1),0) -> 13:04:18 | E14: =IF(ROWS(GPS_IMPORT!$1:8)<=COUNTIF(GPS_IMPORT!$A$2:$A$10000,$B$5),INDEX(GPS_IMPORT!$2:$10000,MATCH($B$5,(GPS_IMPORT!$A$2:$A$10000),0)+ROWS($1:8)-1,COLUMN()-1),0) -> 748616.1746 | F14: =IF(ROWS(GPS_IMPORT!$1:8)<=COUNTIF(GPS_IMPORT!$A$2:$A$10000,$B$5),INDEX(GPS_IMPORT!$2:$10000,MATCH($B$5,(GPS_IMPORT!$A$2:$A$10000),0)+ROWS($1:8)-1,COLUMN()-1),0) -> 1641773.304 | G14: =IF(ROWS(GPS_IMPORT!$1:8)<=COUNTIF(GPS_IMPORT!$A$2:$A$10000,$B$5),INDEX(GPS_IMPORT!$2:$10000,MATCH($B$5,(GPS_IMPORT!$A$2:$A$10000),0)+ROWS($1:8)-1,COLUMN()-1),0) -> 642.6439 | H14: 0.03598749998 | I14: -0.006749999709 | J14: 0.02995 | K14: TRUE | L14: 0.03598749998 | M14: -0.006749999709
A15: 9 | B15: =IF(ROWS(GPS_IMPORT!$1:9)<=COUNTIF(GPS_IMPORT!$A$2:$A$10000,$B$5),INDEX(GPS_IMPORT!$2:$10000,MATCH($B$5,(GPS_IMPORT!$A$2:$A$10000),0)+ROWS($1:9)-1,COLUMN()-1),0) -> 54 | C15: =IF(ROWS(GPS_IMPORT!$1:9)<=COUNTIF(GPS_IMPORT!$A$2:$A$10000,$B$5),INDEX(GPS_IMPORT!$2:$10000,MATCH($B$5,(GPS_IMPORT!$A$2:$A$10000),0)+ROWS($1:9)-1,COLUMN()-1),0) -> 07.06.2021 | D15: =IF(ROWS(GPS_IMPORT!$1:9)<=COUNTIF(GPS_IMPORT!$A$2:$A$10000,$B$5),INDEX(GPS_IMPORT!$2:$10000,MATCH($B$5,(GPS_IMPORT!$A$2:$A$10000),0)+ROWS($1:9)-1,COLUMN()-1),0) -> 13:05:17 | E15: =IF(ROWS(GPS_IMPORT!$1:9)<=COUNTIF(GPS_IMPORT!$A$2:$A$10000,$B$5),INDEX(GPS_IMPORT!$2:$10000,MATCH($B$5,(GPS_IMPORT!$A$2:$A$10000),0)+ROWS($1:9)-1,COLUMN()-1),0) -> 748616.2004 | F15: =IF(ROWS(GPS_IMPORT!$1:9)<=COUNTIF(GPS_IMPORT!$A$2:$A$10000,$B$5),INDEX(GPS_IMPORT!$2:$10000,MATCH($B$5,(GPS_IMPORT!$A$2:$A$10000),0)+ROWS($1:9)-1,COLUMN()-1),0) -> 1641773.31 | G15: =IF(ROWS(GPS_IMPORT!$1:9)<=COUNTIF(GPS_IMPORT!$A$2:$A$10000,$B$5),INDEX(GPS_IMPORT!$2:$10000,MATCH($B$5,(GPS_IMPORT!$A$2:$A$10000),0)+ROWS($1:9)-1,COLUMN()-1),0) -> 642.6227 | H15: 0.01018750004 | I15: -0.01274999976 | J15: 0.05115 | K15: TRUE | L15: 0 | M15: 0
A16: 10 | B16: =IF(ROWS(GPS_IMPORT!$1:10)<=COUNTIF(GPS_IMPORT!$A$2:$A$10000,$B$5),INDEX(GPS_IMPORT!$2:$10000,MATCH($B$5,(GPS_IMPORT!$A$2:$A$10000),0)+ROWS($1:10)-1,COLUMN()-1),0) -> 54 | C16: =IF(ROWS(GPS_IMPORT!$1:10)<=COUNTIF(GPS_IMPORT!$A$2:$A$10000,$B$5),INDEX(GPS_IMPORT!$2:$10000,MATCH($B$5,(GPS_IMPORT!$A$2:$A$10000),0)+ROWS($1:10)-1,COLUMN()-1),0) -> 07.06.2021 | D16: =IF(ROWS(GPS_IMPORT!$1:10)<=COUNTIF(GPS_IMPORT!$A$2:$A$10000,$B$5),INDEX(GPS_IMPORT!$2:$10000,MATCH($B$5,(GPS_IMPORT!$A$2:$A$10000),0)+ROWS($1:10)-1,COLUMN()-1),0) -> 13:06:15 | E16: =IF(ROWS(GPS_IMPORT!$1:10)<=COUNTIF(GPS_IMPORT!$A$2:$A$10000,$B$5),INDEX(GPS_IMPORT!$2:$10000,MATCH($B$5,(GPS_IMPORT!$A$2:$A$10000),0)+ROWS($1:10)-1,COLUMN()-1),0) -> 748616.2135 | F16: =IF(ROWS(GPS_IMPORT!$1:10)<=COUNTIF(GPS_IMPORT!$A$2:$A$10000,$B$5),INDEX(GPS_IMPORT!$2:$10000,MATCH($B$5,(GPS_IMPORT!$A$2:$A$10000),0)+ROWS($1:10)-1,COLUMN()-1),0) -> 1641773.298 | G16: =IF(ROWS(GPS_IMPORT!$1:10)<=COUNTIF(GPS_IMPORT!$A$2:$A$10000,$B$5),INDEX(GPS_IMPORT!$2:$10000,MATCH($B$5,(GPS_IMPORT!$A$2:$A$10000),0)+ROWS($1:10)-1,COLUMN()-1),0) -> 642.6833 | H16: -0.002912499942 | I16: -0.0007499996573 | J16: -0.00945 | K16: TRUE | L16: 0 | M16: 0
A17: 11 | B17: =IF(ROWS(GPS_IMPORT!$1:11)<=COUNTIF(GPS_IMPORT!$A$2:$A$10000,$B$5),INDEX(GPS_IMPORT!$2:$10000,MATCH($B$5,(GPS_IMPORT!$A$2:$A$10000),0)+ROWS($1:11)-1,COLUMN()-1),0) -> 54 | C17: =IF(ROWS(GPS_IMPORT!$1:11)<=COUNTIF(GPS_IMPORT!$A$2:$A$10000,$B$5),INDEX(GPS_IMPORT!$2:$10000,MATCH($B$5,(GPS_IMPORT!$A$2:$A$10000),0)+ROWS($1:11)-1,COLUMN()-1),0) -> 07.06.2021 | D17: =IF(ROWS(GPS_IMPORT!$1:11)<=COUNTIF(GPS_IMPORT!$A$2:$A$10000,$B$5),INDEX(GPS_IMPORT!$2:$10000,MATCH($B$5,(GPS_IMPORT!$A$2:$A$10000),0)+ROWS($1:11)-1,COLUMN()-1),0) -> 13:53:10 | E17: =IF(ROWS(GPS_IMPORT!$1:11)<=COUNTIF(GPS_IMPORT!$A$2:$A$10000,$B$5),INDEX(GPS_IMPORT!$2:$10000,MATCH($B$5,(GPS_IMPORT!$A$2:$A$10000),0)+ROWS($1:11)-1,COLUMN()-1),0) -> 748616.239 | F17: =IF(ROWS(GPS_IMPORT!$1:11)<=COUNTIF(GPS_IMPORT!$A$2:$A$10000,$B$5),INDEX(GPS_IMPORT!$2:$10000,MATCH($B$5,(GPS_IMPORT!$A$2:$A$10000),0)+ROWS($1:11)-1,COLUMN()-1),0) -> 1641773.309 | G17: =IF(ROWS(GPS_IMPORT!$1:11)<=COUNTIF(GPS_IMPORT!$A$2:$A$10000,$B$5),INDEX(GPS_IMPORT!$2:$10000,MATCH($B$5,(GPS_IMPORT!$A$2:$A$10000),0)+ROWS($1:11)-1,COLUMN()-1),0) -> 642.6641 | H17: -0.02841249993 | I17: -0.0117499996 | J17: 0.00975 | K17: TRUE | L17: -0.02841249993 | M17: -0.0117499996
A18: 12 | B18: =IF(ROWS(GPS_IMPORT!$1:12)<=COUNTIF(GPS_IMPORT!$A$2:$A$10000,$B$5),INDEX(GPS_IMPORT!$2:$10000,MATCH($B$5,(GPS_IMPORT!$A$2:$A$10000),0)+ROWS($1:12)-1,COLUMN()-1),0) -> 54 | C18: =IF(ROWS(GPS_IMPORT!$1:12)<=COUNTIF(GPS_IMPORT!$A$2:$A$10000,$B$5),INDEX(GPS_IMPORT!$2:$10000,MATCH($B$5,(GPS_IMPORT!$A$2:$A$10000),0)+ROWS($1:12)-1,COLUMN()-1),0) -> 07.06.2021 | D18: =IF(ROWS(GPS_IMPORT!$1:12)<=COUNTIF(GPS_IMPORT!$A$2:$A$10000,$B$5),INDEX(GPS_IMPORT!$2:$10000,MATCH($B$5,(GPS_IMPORT!$A$2:$A$10000),0)+ROWS($1:12)-1,COLUMN()-1),0) -> 13:53:46 | E18: =IF(ROWS(GPS_IMPORT!$1:12)<=COUNTIF(GPS_IMPORT!$A$2:$A$10000,$B$5),INDEX(GPS_IMPORT!$2:$10000,MATCH($B$5,(GPS_IMPORT!$A$2:$A$10000),0)+ROWS($1:12)-1,COLUMN()-1),0) -> 748616.2282 | F18: =IF(ROWS(GPS_IMPORT!$1:12)<=COUNTIF(GPS_IMPORT!$A$2:$A$10000,$B$5),INDEX(GPS_IMPORT!$2:$10000,MATCH($B$5,(GPS_IMPORT!$A$2:$A$10000),0)+ROWS($1:12)-1,COLUMN()-1),0) -> 1641773.322 | G18: =IF(ROWS(GPS_IMPORT!$1:12)<=COUNTIF(GPS_IMPORT!$A$2:$A$10000,$B$5),INDEX(GPS_IMPORT!$2:$10000,MATCH($B$5,(GPS_IMPORT!$A$2:$A$10000),0)+ROWS($1:12)-1,COLUMN()-1),0) -> 642.6817 | H18: -0.0176125 | I18: -0.02474999963 | J18: -0.00785 | K18: TRUE | L18: -0.0176125 | M18: -0.02474999963
A19: 13 | B19: =IF(ROWS(GPS_IMPORT!$1:13)<=COUNTIF(GPS_IMPORT!$A$2:$A$10000,$B$5),INDEX(GPS_IMPORT!$2:$10000,MATCH($B$5,(GPS_IMPORT!$A$2:$A$10000),0)+ROWS($1:13)-1,COLUMN()-1),0) -> 0 | C19: =IF(ROWS(GPS_IMPORT!$1:13)<=COUNTIF(GPS_IMPORT!$A$2:$A$10000,$B$5),INDEX(GPS_IMPORT!$2:$10000,MATCH($B$5,(GPS_IMPORT!$A$2:$A$10000),0)+ROWS($1:13)-1,COLUMN()-1),0) -> 00:00:00 | D19: =IF(ROWS(GPS_IMPORT!$1:13)<=COUNTIF(GPS_IMPORT!$A$2:$A$10000,$B$5),INDEX(GPS_IMPORT!$2:$10000,MATCH($B$5,(GPS_IMPORT!$A$2:$A$10000),0)+ROWS($1:13)-1,COLUMN()-1),0) -> 00:00:00 | E19: =IF(ROWS(GPS_IMPORT!$1:13)<=COUNTIF(GPS_IMPORT!$A$2:$A$10000,$B$5),INDEX(GPS_IMPORT!$2:$10000,MATCH($B$5,(GPS_IMPORT!$A$2:$A$10000),0)+ROWS($1:13)-1,COLUMN()-1),0) -> 0 | F19: =IF(ROWS(GPS_IMPORT!$1:13)<=COUNTIF(GPS_IMPORT!$A$2:$A$10000,$B$5),INDEX(GPS_IMPORT!$2:$10000,MATCH($B$5,(GPS_IMPORT!$A$2:$A$10000),0)+ROWS($1:13)-1,COLUMN()-1),0) -> 0 | G19: =IF(ROWS(GPS_IMPORT!$1:13)<=COUNTIF(GPS_IMPORT!$A$2:$A$10000,$B$5),INDEX(GPS_IMPORT!$2:$10000,MATCH($B$5,(GPS_IMPORT!$A$2:$A$10000),0)+ROWS($1:13)-1,COLUMN()-1),0) -> 0 | H19: 0 | I19: 0 | J19: 0 | K19: FALSE | L19: 0 | M19: 0
A20: 14 | B20: =IF(ROWS(GPS_IMPORT!$1:14)<=COUNTIF(GPS_IMPORT!$A$2:$A$10000,$B$5),INDEX(GPS_IMPORT!$2:$10000,MATCH($B$5,(GPS_IMPORT!$A$2:$A$10000),0)+ROWS($1:14)-1,COLUMN()-1),0) -> 0 | C20: =IF(ROWS(GPS_IMPORT!$1:14)<=COUNTIF(GPS_IMPORT!$A$2:$A$10000,$B$5),INDEX(GPS_IMPORT!$2:$10000,MATCH($B$5,(GPS_IMPORT!$A$2:$A$10000),0)+ROWS($1:14)-1,COLUMN()-1),0) -> 00:00:00 | D20: =IF(ROWS(GPS_IMPORT!$1:14)<=COUNTIF(GPS_IMPORT!$A$2:$A$10000,$B$5),INDEX(GPS_IMPORT!$2:$10000,MATCH($B$5,(GPS_IMPORT!$A$2:$A$10000),0)+ROWS($1:14)-1,COLUMN()-1),0) -> 00:00:00 | E20: =IF(ROWS(GPS_IMPORT!$1:14)<=COUNTIF(GPS_IMPORT!$A$2:$A$10000,$B$5),INDEX(GPS_IMPORT!$2:$10000,MATCH($B$5,(GPS_IMPORT!$A$2:$A$10000),0)+ROWS($1:14)-1,COLUMN()-1),0) -> 0 | F20: =IF(ROWS(GPS_IMPORT!$1:14)<=COUNTIF(GPS_IMPORT!$A$2:$A$10000,$B$5),INDEX(GPS_IMPORT!$2:$10000,MATCH($B$5,(GPS_IMPORT!$A$2:$A$10000),0)+ROWS($1:14)-1,COLUMN()-1),0) -> 0 | G20: =IF(ROWS(GPS_IMPORT!$1:14)<=COUNTIF(GPS_IMPORT!$A$2:$A$10000,$B$5),INDEX(GPS_IMPORT!$2:$10000,MATCH($B$5,(GPS_IMPORT!$A$2:$A$10000),0)+ROWS($1:14)-1,COLUMN()-1),0) -> 0 | H20: 0 | I20: 0 | J20: 0 | K20: FALSE | L20: 0 | M20: 0
A21: 15 | B21: =IF(ROWS(GPS_IMPORT!$1:15)<=COUNTIF(GPS_IMPORT!$A$2:$A$10000,$B$5),INDEX(GPS_IMPORT!$2:$10000,MATCH($B$5,(GPS_IMPORT!$A$2:$A$10000),0)+ROWS($1:15)-1,COLUMN()-1),0) -> 0 | C21: =IF(ROWS(GPS_IMPORT!$1:15)<=COUNTIF(GPS_IMPORT!$A$2:$A$10000,$B$5),INDEX(GPS_IMPORT!$2:$10000,MATCH($B$5,(GPS_IMPORT!$A$2:$A$10000),0)+ROWS($1:15)-1,COLUMN()-1),0) -> 00:00:00 | D21: =IF(ROWS(GPS_IMPORT!$1:15)<=COUNTIF(GPS_IMPORT!$A$2:$A$10000,$B$5),INDEX(GPS_IMPORT!$2:$10000,MATCH($B$5,(GPS_IMPORT!$A$2:$A$10000),0)+ROWS($1:15)-1,COLUMN()-1),0) -> 00:00:00 | E21: =IF(ROWS(GPS_IMPORT!$1:15)<=COUNTIF(GPS_IMPORT!$A$2:$A$10000,$B$5),INDEX(GPS_IMPORT!$2:$10000,MATCH($B$5,(GPS_IMPORT!$A$2:$A$10000),0)+ROWS($1:15)-1,COLUMN()-1),0) -> 0 | F21: =IF(ROWS(GPS_IMPORT!$1:15)<=COUNTIF(GPS_IMPORT!$A$2:$A$10000,$B$5),INDEX(GPS_IMPORT!$2:$10000,MATCH($B$5,(GPS_IMPORT!$A$2:$A$10000),0)+ROWS($1:15)-1,COLUMN()-1),0) -> 0 | G21: =IF(ROWS(GPS_IMPORT!$1:15)<=COUNTIF(GPS_IMPORT!$A$2:$A$10000,$B$5),INDEX(GPS_IMPORT!$2:$10000,MATCH($B$5,(GPS_IMPORT!$A$2:$A$10000),0)+ROWS($1:15)-1,COLUMN()-1),0) -> 0 | H21: =IF(K21=TRUE,IF(E21>0,E$22-E21,0),0) -> 0 | I21: 0 | J21: 0 | K21: FALSE | L21: 0 | M21: 0
D22: AVERAGE | E22: =(IF($K$7=TRUE,E7,0)+IF($K$8=TRUE,E8,0)+IF($K$9=TRUE,E9,0)+IF($K$10=TRUE,E10,0)+IF($K$11=TRUE,E11,0)+IF($K$12=TRUE,E12,0)+IF($K$13=TRUE,E13,0)+IF($K$14=TRUE,E14,0)+IF($K$15=TRUE,E15,0)+IF($K$16=TRUE,E16,0)+IF($K$17=TRUE,E17,0)+IF($K$18=TRUE,E18,0)+IF($K$19=TRUE,E19,0)+IF($K$20=TRUE,E20,0)+IF($K$21=TRUE,E21,0))/(IF($K$7=TRUE,1,0)+IF($K$8=TRUE,1,0)+IF($K$9=TRUE,1,0)+IF($K$10=TRUE,1,0)+IF($K$11=TRUE,1,0)+IF($K$12=TRUE,1,0)+IF($K$13=TRUE,1,0)+IF($K$14=TRUE,1,0)+IF($K$15=TRUE,1,0)+IF($K$16=TRUE,1,0)+IF($K$17=TRUE,1,0)+IF($K$18=TRUE,1,0)+IF($K$19=TRUE,1,0)+IF($K$20=TRUE,1,0)+IF($K$21=TRUE,1,0)) -> 748616.2106 | F22: =(IF($K$7=TRUE,F7,0)+IF($K$8=TRUE,F8,0)+IF($K$9=TRUE,F9,0)+IF($K$10=TRUE,F10,0)+IF($K$11=TRUE,F11,0)+IF($K$12=TRUE,F12,0)+IF($K$13=TRUE,F13,0)+IF($K$14=TRUE,F14,0)+IF($K$15=TRUE,F15,0)+IF($K$16=TRUE,F16,0)+IF($K$17=TRUE,F17,0)+IF($K$18=TRUE,F18,0)+IF($K$19=TRUE,F19,0)+IF($K$20=TRUE,F20,0)+IF($K$21=TRUE,F21,0))/(IF($K$7=TRUE,1,0)+IF($K$8=TRUE,1,0)+IF($K$9=TRUE,1,0)+IF($K$10=TRUE,1,0)+IF($K$11=TRUE,1,0)+IF($K$12=TRUE,1,0)+IF($K$13=TRUE,1,0)+IF($K$14=TRUE,1,0)+IF($K$15=TRUE,1,0)+IF($K$16=TRUE,1,0)+IF($K$17=TRUE,1,0)+IF($K$18=TRUE,1,0)+IF($K$19=TRUE,1,0)+IF($K$20=TRUE,1,0)+IF($K$21=TRUE,1,0)) -> 1641773.297 | G22: =(IF($K$7=TRUE,G7,0)+IF($K$8=TRUE,G8,0)+IF($K$9=TRUE,G9,0)+IF($K$10=TRUE,G10,0)+IF($K$11=TRUE,G11,0)+IF($K$12=TRUE,G12,0)+IF($K$13=TRUE,G13,0)+IF($K$14=TRUE,G14,0)+IF($K$15=TRUE,G15,0)+IF($K$16=TRUE,G16,0)+IF($K$17=TRUE,G17,0)+IF($K$18=TRUE,G18,0)+IF($K$19=TRUE,G19,0)+IF($K$20=TRUE,G20,0)+IF($K$21=TRUE,G21,0))/ (IF($K$7=TRUE,1,0)+IF($K$8=TRUE,1,0)+IF($K$9=TRUE,1,0)+IF($K$10=TRUE,1,0)+IF($K$11=TRUE,1,0)+IF($K$12=TRUE,1,0)+IF($K$13=TRUE,1,0)+IF($K$14=TRUE,1,0)+IF($K$15=TRUE,1,0)+IF($K$16=TRUE,1,0)+IF($K$17=TRUE,1,0)+IF($K$18=TRUE,1,0)+IF($K$19=TRUE,1,0)+IF($K$20=TRUE,1,0)+IF($K$21=TRUE,1,0)) -> 642.67385 | H22: RMSE: | I22: RMSE: | J22: RMSE:
G23: ="RMSE IN "&GPS_IMPORT!J4&":" -> RMSE IN U.S. Survey FT: | H23: =SQRT(SUMSQ((IF(K7:K21=TRUE,H7:H21)))/COUNTIF(K7:K21,K7:K21=TRUE)) -> 0.02499722483 | I23: =SQRT(SUMSQ((IF(K7:K21=TRUE,I7:I21)))/COUNTIF(K7:K21,K7:K21=TRUE)) -> 0.01706081558 | J23: =SQRT(SUMSQ((IF(K7:K21=TRUE,J7:J21)))/COUNTIF(K7:K21,K7:K21=TRUE)) -> 0.03153945375
G24: Tolerance: | H24: =VLOOKUP(GPS_IMPORT!$K$4,Lists!H3:I5,2,FALSE) -> 0.029 | J24: =VLOOKUP(GPS_IMPORT!$K$4,Lists!H3:J5,3,FALSE) -> 0.039
H25: =IF(H23<=H24,"PASS","FAIL") -> PASS | I25: =IF(I23<=H24,"PASS","FAIL") -> PASS | J25: =IF(J23<=J24,"PASS","FAIL") -> PASS
A27: AVERAGED GPS-DERIVED POSITION | I27: Notes:
B28: MONUMENT COORDINATES | D28: NORTHING | E28: EASTING | F28: ORTHO HEIGHT | N28: Degrees | O28: Radians | P28: SIN | Q28: COS
B29: =GPS_IMPORT!J4&" ("&IF(GPS_IMPORT!K2="TRUE","GROUND","GRID")&")" -> U.S. Survey FT (GRID) | D29: =$E$22 -> 748616.2106 | E29: =$F$22 -> 1641773.297 | F29: =$G$22 -> 642.67385 | N29: 1 | O29: =N29*(PI()/180) -> 0.01745329252 | P29: =SIN(O29)*H$24 -> 0.0005061197867 | Q29: =COS(O29)*H$24 -> 0.02899558316
N30: =N29+1 -> 2 | O30: =N30*(PI()/180) -> 0.03490658504 | P30: 0.001012085404 | Q30: 0.02898233398
A31: LEVELED ELEVATION | N31: =N30+1 -> 3 | O31: 0.05235987756 | P31: 0.001517742731 | Q31: 0.02896025651
A32: ='LEVEL RUN'!B5 -> U.S. Survey FT | C32: =IFERROR(VLOOKUP(B5,'LEVEL RUN'!A7:I59,9,FALSE),"N/A") -> 642.7878892 | D32: (Fill out Level Run Sheet or N/A if no leveled elevation is available) | N32: 4 | O32: 0.06981317008 | P32: 0.002022937739 | Q32: 0.02892935746
A33: MONUMENT HELD | C33: =IF('LEVEL RUN'!A7="","",'LEVEL RUN'!A7) -> 331 | D33: (Type the monument name from which leveling originated) | N33: 5 | O33: 0.0872664626 | P33: 0.00252751654 | Q33: 0.02888964624
A34: LEVELED ELEVATION - GPS DERIVED ELEVATION = | E34: =IF(C32="N/A","N/A",C32-(F29*'LEVEL RUN'!F5)) -> 0.1140391566 | F34: ='LEVEL RUN'!D5 -> sft | N34: 6 | O34: 0.1047197551 | P34: 0.003031325435 | Q34: 0.02884113497
N35: 7 | O35: 0.1221730476 | P35: 0.003534210959 | Q35: 0.0287838384
A36: FINAL MONUMENT COORDINATES | N36: 8 | O36: 0.1396263402 | P36: 0.004036019928 | Q36: 0.02871777399
B37: MONUMENT COORDINATES | D37: NORTHING | E37: EASTING | F37: ELEVATION | G37: FEATURE CODE | N37: 9 | O37: 0.1570796327 | P37: 0.004536599486 | Q37: 0.02864296188
B38: =GPS_IMPORT!J6&" (GRID)" -> U.S. Survey FT (GRID) | D38: =IF(GPS_IMPORT!K2=TRUE,($E$22*GPS_IMPORT!$L$6)*(1/REPORT!C13),$E$22*GPS_IMPORT!$L$6) -> 748616.2106 | E38: =IF(GPS_IMPORT!K2=TRUE,($F$22*GPS_IMPORT!$L$6)*(1/REPORT!C13),$F$22*GPS_IMPORT!$L$6) -> 1641773.297 | F38: =IF($C$32="N/A",($G$22*GPS_IMPORT!$L$6),$C$32*'LEVEL RUN'!H5) -> 642.7878892 | G38: =VLOOKUP($B$5,GPS_IMPORT!$A$2:$G$2000,7,FALSE) -> IPS | N38: 10 | O38: 0.1745329252 | P38: 0.005035797152 | Q38: 0.02855942484
B39: =GPS_IMPORT!J6&" (GROUND)" -> U.S. Survey FT (GROUND) | D39: =IF(GPS_IMPORT!K2=TRUE,$E$22*GPS_IMPORT!$L$6,$E$22*GPS_IMPORT!$L$6*REPORT!C13) -> 748635.1805 | E39: =IF(GPS_IMPORT!K2=TRUE,$F$22*GPS_IMPORT!$L$6,$F$22*GPS_IMPORT!$L$6*REPORT!C13) -> 1641814.9 | F39: =IF($C$32="N/A",($G$22*GPS_IMPORT!$L$6),$C$32*'LEVEL RUN'!H5) -> 642.7878892 | G39: =$G$38 -> IPS | N39: 11 | O39: 0.1919862177 | P39: 0.005533460866 | Q39: 0.02846718832
N40: 12 | O40: 0.2094395102 | P40: 0.006029439034 | Q40: 0.02836628042
A41: ∆ North, ∆ East, and ∆ Ht. are the difference between the average northing, easting, and height for each observation. | I41: Mask Angle: | J41: 10° | N41: 13 | O41: 0.2268928028 | P41: 0.006523580576 | Q41: 0.02825673188
N42: 14 | O42: 0.2443460953 | P42: 0.007015734972 | Q42: 0.02813857606
N43: 15 | O43: 0.2617993878 | P43: 0.007505752308 | Q43: 0.02801184896
N44: 16 | O44: 0.2792526803 | P44: 0.007993483319 | Q44: 0.02787658918
N45: 17 | O45: 0.2967059728 | P45: 0.008478779437 | Q45: 0.02773283792
N46: 18 | O46: 0.3141592654 | P46: 0.008961492837 | Q46: 0.02758063897
N47: 19 | O47: 0.3316125579 | P47: 0.009441476479 | Q47: 0.02742003869
N48: 20 | O48: 0.3490658504 | P48: 0.009918584156 | Q48: 0.027251086
N49: 21 | O49: 0.3665191429 | P49: 0.01039267054 | Q49: 0.02707383237
N50: 22 | O50: 0.3839724354 | P50: 0.01086359121 | Q50: 0.02688833178
N51: 23 | O51: 0.401425728 | P51: 0.01133120273 | Q51: 0.02669464075
N52: 24 | O52: 0.4188790205 | P52: 0.01179536265 | Q52: 0.02649281827
N53: 25 | O53: 0.436332313 | P53: 0.01225592959 | Q53: 0.02628292582
N54: 26 | O54: 0.4537856055 | P54: 0.01271276326 | Q54: 0.02606502734
N55: 27 | O55: 0.471238898 | P55: 0.01316572449 | Q55: 0.0258391892
N56: 28 | O56: 0.4886921906 | P56: 0.01361467532 | Q56: 0.02560548019
N57: 29 | O57: 0.5061454831 | P57: 0.01405947899 | Q57: 0.02536397151
N58: 30 | O58: 0.5235987756 | P58: 0.0145 | Q58: 0.02511473671
N59: 31 | O59: 0.5410520681 | P59: 0.01493610417 | Q59: 0.02485785172
N60: 32 | O60: 0.5585053606 | P60: 0.01536765866 | Q60: 0.02459339479
N61: 33 | O61: 0.5759586532 | P61: 0.01579453202 | Q61: 0.02432144647
N62: 34 | O62: 0.5934119457 | P62: 0.0162165942 | Q62: 0.0240420896
N63: 35 | O63: 0.6108652382 | P63: 0.01663371665 | Q63: 0.02375540928
N64: 36 | O64: 0.6283185307 | P64: 0.01704577232 | Q64: 0.02346149284
N65: 37 | O65: 0.6457718232 | P65: 0.01745263567 | Q65: 0.02316042979
N66: 38 | O66: 0.6632251158 | P66: 0.01785418278 | Q66: 0.02285231185
N67: 39 | O67: 0.6806784083 | P67: 0.01825029134 | Q67: 0.02253723288
N68: 40 | O68: 0.6981317008 | P68: 0.01864084068 | Q68: 0.02221528885
N69: 41 | O69: 0.7155849933 | P69: 0.01902571184 | Q69: 0.02188657783
N70: 42 | O70: 0.7330382858 | P70: 0.01940478758 | Q70: 0.02155119994
N71: 43 | O71: 0.7504915784 | P71: 0.01977795244 | Q71: 0.02120925735
N72: 44 | O72: 0.7679448709 | P72: 0.02014509274 | Q72: 0.02086085421
N73: 45 | O73: 0.7853981634 | P73: 0.02050609665 | Q73: 0.02050609665
N74: 46 | O74: 0.8028514559 | P74: 0.02086085421 | Q74: 0.02014509274
N75: 47 | O75: 0.8203047484 | P75: 0.02120925735 | Q75: 0.01977795244
N76: 48 | O76: 0.837758041 | P76: 0.02155119994 | Q76: 0.01940478758
N77: 49 | O77: 0.8552113335 | P77: 0.02188657783 | Q77: 0.01902571184
N78: 50 | O78: 0.872664626 | P78: 0.02221528885 | Q78: 0.01864084068
N79: 51 | O79: 0.8901179185 | P79: 0.02253723288 | Q79: 0.01825029134
N80: 52 | O80: 0.907571211 | P80: 0.02285231185 | Q80: 0.01785418278
N81: 53 | O81: 0.9250245036 | P81: 0.02316042979 | Q81: 0.01745263567
N82: 54 | O82: 0.9424777961 | P82: 0.02346149284 | Q82: 0.01704577232
N83: 55 | O83: 0.9599310886 | P83: 0.02375540928 | Q83: 0.01663371665
N84: 56 | O84: 0.9773843811 | P84: 0.0240420896 | Q84: 0.0162165942
N85: 57 | O85: 0.9948376736 | P85: 0.02432144647 | Q85: 0.01579453202
N86: 58 | O86: 1.012290966 | P86: 0.02459339479 | Q86: 0.01536765866
N87: 59 | O87: 1.029744259 | P87: 0.02485785172 | Q87: 0.01493610417
N88: 60 | O88: 1.047197551 | P88: 0.02511473671 | Q88: 0.0145
N89: 61 | O89: 1.064650844 | P89: 0.02536397151 | Q89: 0.01405947899
N90: 62 | O90: 1.082104136 | P90: 0.02560548019 | Q90: 0.01361467532
N91: 63 | O91: 1.099557429 | P91: 0.0258391892 | Q91: 0.01316572449
N92: 64 | O92: 1.117010721 | P92: 0.02606502734 | Q92: 0.01271276326
N93: 65 | O93: 1.134464014 | P93: =SIN(O93)*H$24 -> 0.02628292582 | Q93: =COS(O93)*H$24 -> 0.01225592959
N94: 66 | O94: =N94*(PI()/180) -> 1.151917306 | P94: 0.02649281827 | Q94: 0.01179536265
N95: =N94+1 -> 67 | O95: 1.169370599 | P95: 0.02669464075 | Q95: 0.01133120273
N96: 68 | O96: 1.186823891 | P96: 0.02688833178 | Q96: 0.01086359121
N97: 69 | O97: 1.204277184 | P97: 0.02707383237 | Q97: 0.01039267054
N98: 70 | O98: 1.221730476 | P98: 0.027251086 | Q98: 0.009918584156
N99: 71 | O99: 1.239183769 | P99: 0.02742003869 | Q99: 0.009441476479
N100: 72 | O100: 1.256637061 | P100: 0.02758063897 | Q100: 0.008961492837
N101: 73 | O101: 1.274090354 | P101: 0.02773283792 | Q101: 0.008478779437
N102: 74 | O102: 1.291543646 | P102: 0.02787658918 | Q102: 0.007993483319
N103: 75 | O103: 1.308996939 | P103: 0.02801184896 | Q103: 0.007505752308
N104: 76 | O104: 1.326450232 | P104: 0.02813857606 | Q104: 0.007015734972
N105: 77 | O105: 1.343903524 | P105: 0.02825673188 | Q105: 0.006523580576
N106: 78 | O106: 1.361356817 | P106: 0.02836628042 | Q106: 0.006029439034
N107: 79 | O107: 1.378810109 | P107: 0.02846718832 | Q107: 0.005533460866
N108: 80 | O108: 1.396263402 | P108: 0.02855942484 | Q108: 0.005035797152
N109: 81 | O109: 1.413716694 | P109: 0.02864296188 | Q109: 0.004536599486
N110: 82 | O110: 1.431169987 | P110: 0.02871777399 | Q110: 0.004036019928
N111: 83 | O111: 1.448623279 | P111: 0.0287838384 | Q111: 0.003534210959
N112: 84 | O112: 1.466076572 | P112: 0.02884113497 | Q112: 0.003031325435
N113: 85 | O113: 1.483529864 | P113: 0.02888964624 | Q113: 0.00252751654
N114: 86 | O114: 1.500983157 | P114: 0.02892935746 | Q114: 0.002022937739
N115: 87 | O115: 1.518436449 | P115: 0.02896025651 | Q115: 0.001517742731
N116: 88 | O116: 1.535889742 | P116: 0.02898233398 | Q116: 0.001012085404
N117: 89 | O117: 1.553343034 | P117: 0.02899558316 | Q117: 0.0005061197867
N118: 90 | O118: 1.570796327 | P118: 0.029 | Q118: 1.77646526e-18
N119: 91 | O119: 1.588249619 | P119: 0.02899558316 | Q119: -0.0005061197867
N120: 92 | O120: 1.605702912 | P120: 0.02898233398 | Q120: -0.001012085404
N121: 93 | O121: 1.623156204 | P121: 0.02896025651 | Q121: -0.001517742731
N122: 94 | O122: 1.640609497 | P122: 0.02892935746 | Q122: -0.002022937739
N123: 95 | O123: 1.658062789 | P123: 0.02888964624 | Q123: -0.00252751654
N124: 96 | O124: 1.675516082 | P124: 0.02884113497 | Q124: -0.003031325435
N125: 97 | O125: 1.692969374 | P125: 0.0287838384 | Q125: -0.003534210959
N126: 98 | O126: 1.710422667 | P126: 0.02871777399 | Q126: -0.004036019928
N127: 99 | O127: 1.727875959 | P127: 0.02864296188 | Q127: -0.004536599486
N128: 100 | O128: 1.745329252 | P128: 0.02855942484 | Q128: -0.005035797152
N129: 101 | O129: 1.762782545 | P129: 0.02846718832 | Q129: -0.005533460866
N130: 102 | O130: 1.780235837 | P130: 0.02836628042 | Q130: -0.006029439034
N131: 103 | O131: 1.79768913 | P131: 0.02825673188 | Q131: -0.006523580576
N132: 104 | O132: 1.815142422 | P132: 0.02813857606 | Q132: -0.007015734972
N133: 105 | O133: 1.832595715 | P133: 0.02801184896 | Q133: -0.007505752308
N134: 106 | O134: 1.850049007 | P134: 0.02787658918 | Q134: -0.007993483319
N135: 107 | O135: 1.8675023 | P135: 0.02773283792 | Q135: -0.008478779437
N136: 108 | O136: 1.884955592 | P136: 0.02758063897 | Q136: -0.008961492837
N137: 109 | O137: 1.902408885 | P137: 0.02742003869 | Q137: -0.009441476479
N138: 110 | O138: 1.919862177 | P138: 0.027251086 | Q138: -0.009918584156
N139: 111 | O139: 1.93731547 | P139: 0.02707383237 | Q139: -0.01039267054
N140: 112 | O140: 1.954768762 | P140: 0.02688833178 | Q140: -0.01086359121
N141: 113 | O141: 1.972222055 | P141: 0.02669464075 | Q141: -0.01133120273
N142: 114 | O142: 1.989675347 | P142: 0.02649281827 | Q142: -0.01179536265
N143: 115 | O143: 2.00712864 | P143: 0.02628292582 | Q143: -0.01225592959
N144: 116 | O144: 2.024581932 | P144: 0.02606502734 | Q144: -0.01271276326
N145: 117 | O145: 2.042035225 | P145: 0.0258391892 | Q145: -0.01316572449
N146: 118 | O146: 2.059488517 | P146: 0.02560548019 | Q146: -0.01361467532
N147: 119 | O147: 2.07694181 | P147: 0.02536397151 | Q147: -0.01405947899
N148: 120 | O148: 2.094395102 | P148: 0.02511473671 | Q148: -0.0145
N149: 121 | O149: 2.111848395 | P149: 0.02485785172 | Q149: -0.01493610417
N150: 122 | O150: 2.129301687 | P150: 0.02459339479 | Q150: -0.01536765866
N151: 123 | O151: 2.14675498 | P151: 0.02432144647 | Q151: -0.01579453202
N152: 124 | O152: 2.164208272 | P152: 0.0240420896 | Q152: -0.0162165942
N153: 125 | O153: 2.181661565 | P153: 0.02375540928 | Q153: -0.01663371665
N154: 126 | O154: 2.199114858 | P154: 0.02346149284 | Q154: -0.01704577232
N155: 127 | O155: 2.21656815 | P155: 0.02316042979 | Q155: -0.01745263567
N156: 128 | O156: 2.234021443 | P156: 0.02285231185 | Q156: -0.01785418278
N157: 129 | O157: 2.251474735 | P157: =SIN(O157)*H$24 -> 0.02253723288 | Q157: =COS(O157)*H$24 -> -0.01825029134
N158: 130 | O158: =N158*(PI()/180) -> 2.268928028 | P158: 0.02221528885 | Q158: -0.01864084068
N159: =N158+1 -> 131 | O159: 2.28638132 | P159: 0.02188657783 | Q159: -0.01902571184
N160: 132 | O160: 2.303834613 | P160: 0.02155119994 | Q160: -0.01940478758
N161: 133 | O161: 2.321287905 | P161: 0.02120925735 | Q161: -0.01977795244
N162: 134 | O162: 2.338741198 | P162: 0.02086085421 | Q162: -0.02014509274
N163: 135 | O163: 2.35619449 | P163: 0.02050609665 | Q163: -0.02050609665
N164: 136 | O164: 2.373647783 | P164: 0.02014509274 | Q164: -0.02086085421
N165: 137 | O165: 2.391101075 | P165: 0.01977795244 | Q165: -0.02120925735
N166: 138 | O166: 2.408554368 | P166: 0.01940478758 | Q166: -0.02155119994
N167: 139 | O167: 2.42600766 | P167: 0.01902571184 | Q167: -0.02188657783
N168: 140 | O168: 2.443460953 | P168: 0.01864084068 | Q168: -0.02221528885
N169: 141 | O169: 2.460914245 | P169: 0.01825029134 | Q169: -0.02253723288
N170: 142 | O170: 2.478367538 | P170: 0.01785418278 | Q170: -0.02285231185
N171: 143 | O171: 2.49582083 | P171: 0.01745263567 | Q171: -0.02316042979
N172: 144 | O172: 2.513274123 | P172: 0.01704577232 | Q172: -0.02346149284
N173: 145 | O173: 2.530727415 | P173: 0.01663371665 | Q173: -0.02375540928
N174: 146 | O174: 2.548180708 | P174: 0.0162165942 | Q174: -0.0240420896
N175: 147 | O175: 2.565634 | P175: 0.01579453202 | Q175: -0.02432144647
N176: 148 | O176: 2.583087293 | P176: 0.01536765866 | Q176: -0.02459339479
N177: 149 | O177: 2.600540585 | P177: 0.01493610417 | Q177: -0.02485785172
N178: 150 | O178: 2.617993878 | P178: 0.0145 | Q178: -0.02511473671
N179: 151 | O179: 2.635447171 | P179: 0.01405947899 | Q179: -0.02536397151
N180: 152 | O180: 2.652900463 | P180: 0.01361467532 | Q180: -0.02560548019
N181: 153 | O181: 2.670353756 | P181: 0.01316572449 | Q181: -0.0258391892
N182: 154 | O182: 2.687807048 | P182: 0.01271276326 | Q182: -0.02606502734
N183: 155 | O183: 2.705260341 | P183: 0.01225592959 | Q183: -0.02628292582
N184: 156 | O184: 2.722713633 | P184: 0.01179536265 | Q184: -0.02649281827
N185: 157 | O185: 2.740166926 | P185: 0.01133120273 | Q185: -0.02669464075
N186: 158 | O186: 2.757620218 | P186: 0.01086359121 | Q186: -0.02688833178
N187: 159 | O187: 2.775073511 | P187: 0.01039267054 | Q187: -0.02707383237
N188: 160 | O188: 2.792526803 | P188: 0.009918584156 | Q188: -0.027251086
N189: 161 | O189: 2.809980096 | P189: 0.009441476479 | Q189: -0.02742003869
N190: 162 | O190: 2.827433388 | P190: 0.008961492837 | Q190: -0.02758063897
N191: 163 | O191: 2.844886681 | P191: 0.008478779437 | Q191: -0.02773283792
N192: 164 | O192: 2.862339973 | P192: 0.007993483319 | Q192: -0.02787658918
N193: 165 | O193: 2.879793266 | P193: 0.007505752308 | Q193: -0.02801184896
N194: 166 | O194: 2.897246558 | P194: 0.007015734972 | Q194: -0.02813857606
N195: 167 | O195: 2.914699851 | P195: 0.006523580576 | Q195: -0.02825673188
N196: 168 | O196: 2.932153143 | P196: 0.006029439034 | Q196: -0.02836628042
N197: 169 | O197: 2.949606436 | P197: 0.005533460866 | Q197: -0.02846718832
N198: 170 | O198: 2.967059728 | P198: 0.005035797152 | Q198: -0.02855942484
N199: 171 | O199: 2.984513021 | P199: 0.004536599486 | Q199: -0.02864296188
N200: 172 | O200: 3.001966313 | P200: 0.004036019928 | Q200: -0.02871777399
N201: 173 | O201: 3.019419606 | P201: 0.003534210959 | Q201: -0.0287838384
N202: 174 | O202: 3.036872898 | P202: 0.003031325435 | Q202: -0.02884113497
... 186 more rows

Sheet 55
A1: VRS GNSS Project Control Monument Coordinate Analysis
A3: Project: | B3: =REPORT!B2 -> LUC-23-11.75 | D3: GPS Antenna: | E3: =REPORT!A41 -> Trimble R6 | I3: Report Date: | J3: =REPORT!C49 -> 2021-07-22
A4: PID: | B4: =REPORT!E2 -> 105889 | D4: VRS Network: | E4: ODOT VRS | I4: Prepared By: | J4: =REPORT!C48 -> TK/DCK
A5: Point ID: | B5: 55 | C5: No. of Sessions: | D5: =COUNTIF(GPS_IMPORT!A2:A1000,$B$5) -> 13 | E5: =IF(GPS_IMPORT!K2="TRUE","(GROUND)","(GRID)") -> (GRID) | I5: Checked By: | J5: =REPORT!C52 -> DCK/JS/MDH
A6: SESSION # | B6: Point | C6: Observation Date | D6: Start Time | E6: ="Northing("&GPS_IMPORT!K4&")" -> Northing(sft) | F6: ="Easting("&GPS_IMPORT!K4&")" -> Easting(sft) | G6: ="Height("&GPS_IMPORT!K4&")" -> Height(sft) | H6: ="∆ Northing("&GPS_IMPORT!K4&")" -> ∆ Northing(sft) | I6: ="∆ Easting("&GPS_IMPORT!K4&")" -> ∆ Easting(sft) | J6: ="∆ Height("&GPS_IMPORT!K4&")" -> ∆ Height(sft) | K6: Include in Solution?
A7: 1 | B7: =IF(ROWS(GPS_IMPORT!$1:1)<=COUNTIF(GPS_IMPORT!$A$2:$A$10000,$B$5),INDEX(GPS_IMPORT!$2:$10000,MATCH($B$5,(GPS_IMPORT!$A$2:$A$10000),0)+ROWS($1:1)-1,COLUMN()-1),0) -> 55 | C7: =IF(ROWS(GPS_IMPORT!$1:1)<=COUNTIF(GPS_IMPORT!$A$2:$A$10000,$B$5),INDEX(GPS_IMPORT!$2:$10000,MATCH($B$5,(GPS_IMPORT!$A$2:$A$10000),0)+ROWS($1:1)-1,COLUMN()-1),0) -> 07.06.2021 | D7: =IF(ROWS(GPS_IMPORT!$1:1)<=COUNTIF(GPS_IMPORT!$A$2:$A$10000,$B$5),INDEX(GPS_IMPORT!$2:$10000,MATCH($B$5,(GPS_IMPORT!$A$2:$A$10000),0)+ROWS($1:1)-1,COLUMN()-1),0) -> 10:02:46 | E7: =IF(ROWS(GPS_IMPORT!$1:1)<=COUNTIF(GPS_IMPORT!$A$2:$A$10000,$B$5),INDEX(GPS_IMPORT!$2:$10000,MATCH($B$5,(GPS_IMPORT!$A$2:$A$10000),0)+ROWS($1:1)-1,COLUMN()-1),0) -> 748634.4853 | F7: =IF(ROWS(GPS_IMPORT!$1:1)<=COUNTIF(GPS_IMPORT!$A$2:$A$10000,$B$5),INDEX(GPS_IMPORT!$2:$10000,MATCH($B$5,(GPS_IMPORT!$A$2:$A$10000),0)+ROWS($1:1)-1,COLUMN()-1),0) -> 1643552.512 | G7: =IF(ROWS(GPS_IMPORT!$1:1)<=COUNTIF(GPS_IMPORT!$A$2:$A$10000,$B$5),INDEX(GPS_IMPORT!$2:$10000,MATCH($B$5,(GPS_IMPORT!$A$2:$A$10000),0)+ROWS($1:1)-1,COLUMN()-1),0) -> 646.9491 | H7: =IF(K7=TRUE,IF(E7>0,E$22-E7,0),0) -> 0 | I7: =IF(K7=TRUE,IF(F7>0,F$22-F7,0),0) -> 0 | J7: =IF(K7=TRUE,IF(G7>0,G$22-G7,0),0) -> 0 | K7: FALSE | L7: =IF(OR(ABS(H7)>$H$24,ABS(I7)>$H$24,ABS(SQRT((H7^2)+(I7^2)))>$H$24),IF(K7=TRUE,IF(E7>0,E$22-E7,0),0),0) -> 0 | M7: =IF(OR(ABS(H7)>$H$24,ABS(I7)>$H$24,ABS(SQRT((H7^2)+(I7^2)))>$H$24),IF(K7=TRUE,IF(E7>0,F$22-F7,0),0),0) -> 0
A8: 2 | B8: =IF(ROWS(GPS_IMPORT!$1:2)<=COUNTIF(GPS_IMPORT!$A$2:$A$10000,$B$5),INDEX(GPS_IMPORT!$2:$10000,MATCH($B$5,(GPS_IMPORT!$A$2:$A$10000),0)+ROWS($1:2)-1,COLUMN()-1),0) -> 55 | C8: =IF(ROWS(GPS_IMPORT!$1:2)<=COUNTIF(GPS_IMPORT!$A$2:$A$10000,$B$5),INDEX(GPS_IMPORT!$2:$10000,MATCH($B$5,(GPS_IMPORT!$A$2:$A$10000),0)+ROWS($1:2)-1,COLUMN()-1),0) -> 07.06.2021 | D8: =IF(ROWS(GPS_IMPORT!$1:2)<=COUNTIF(GPS_IMPORT!$A$2:$A$10000,$B$5),INDEX(GPS_IMPORT!$2:$10000,MATCH($B$5,(GPS_IMPORT!$A$2:$A$10000),0)+ROWS($1:2)-1,COLUMN()-1),0) -> 10:03:47 | E8: =IF(ROWS(GPS_IMPORT!$1:2)<=COUNTIF(GPS_IMPORT!$A$2:$A$10000,$B$5),INDEX(GPS_IMPORT!$2:$10000,MATCH($B$5,(GPS_IMPORT!$A$2:$A$10000),0)+ROWS($1:2)-1,COLUMN()-1),0) -> 748634.4882 | F8: =IF(ROWS(GPS_IMPORT!$1:2)<=COUNTIF(GPS_IMPORT!$A$2:$A$10000,$B$5),INDEX(GPS_IMPORT!$2:$10000,MATCH($B$5,(GPS_IMPORT!$A$2:$A$10000),0)+ROWS($1:2)-1,COLUMN()-1),0) -> 1643552.491 | G8: =IF(ROWS(GPS_IMPORT!$1:2)<=COUNTIF(GPS_IMPORT!$A$2:$A$10000,$B$5),INDEX(GPS_IMPORT!$2:$10000,MATCH($B$5,(GPS_IMPORT!$A$2:$A$10000),0)+ROWS($1:2)-1,COLUMN()-1),0) -> 646.9147 | H8: =IF(K8=TRUE,IF(E8>0,E$22-E8,0),0) -> 0.02523333335 | I8: =IF(K8=TRUE,IF(F8>0,F$22-F8,0),0) -> -0.03249999997 | J8: =IF(K8=TRUE,IF(G8>0,G$22-G8,0),0) -> 0.02505 | K8: TRUE | L8: 0.02523333335 | M8: -0.03249999997
A9: 3 | B9: =IF(ROWS(GPS_IMPORT!$1:3)<=COUNTIF(GPS_IMPORT!$A$2:$A$10000,$B$5),INDEX(GPS_IMPORT!$2:$10000,MATCH($B$5,(GPS_IMPORT!$A$2:$A$10000),0)+ROWS($1:3)-1,COLUMN()-1),0) -> 55 | C9: =IF(ROWS(GPS_IMPORT!$1:3)<=COUNTIF(GPS_IMPORT!$A$2:$A$10000,$B$5),INDEX(GPS_IMPORT!$2:$10000,MATCH($B$5,(GPS_IMPORT!$A$2:$A$10000),0)+ROWS($1:3)-1,COLUMN()-1),0) -> 07.06.2021 | D9: =IF(ROWS(GPS_IMPORT!$1:3)<=COUNTIF(GPS_IMPORT!$A$2:$A$10000,$B$5),INDEX(GPS_IMPORT!$2:$10000,MATCH($B$5,(GPS_IMPORT!$A$2:$A$10000),0)+ROWS($1:3)-1,COLUMN()-1),0) -> 10:05:30 | E9: =IF(ROWS(GPS_IMPORT!$1:3)<=COUNTIF(GPS_IMPORT!$A$2:$A$10000,$B$5),INDEX(GPS_IMPORT!$2:$10000,MATCH($B$5,(GPS_IMPORT!$A$2:$A$10000),0)+ROWS($1:3)-1,COLUMN()-1),0) -> 748634.5081 | F9: =IF(ROWS(GPS_IMPORT!$1:3)<=COUNTIF(GPS_IMPORT!$A$2:$A$10000,$B$5),INDEX(GPS_IMPORT!$2:$10000,MATCH($B$5,(GPS_IMPORT!$A$2:$A$10000),0)+ROWS($1:3)-1,COLUMN()-1),0) -> 1643552.453 | G9: =IF(ROWS(GPS_IMPORT!$1:3)<=COUNTIF(GPS_IMPORT!$A$2:$A$10000,$B$5),INDEX(GPS_IMPORT!$2:$10000,MATCH($B$5,(GPS_IMPORT!$A$2:$A$10000),0)+ROWS($1:3)-1,COLUMN()-1),0) -> 646.8912 | H9: 0.005333333393 | I9: 0.00549999997 | J9: 0.04855 | K9: TRUE | L9: 0 | M9: 0
A10: 4 | B10: =IF(ROWS(GPS_IMPORT!$1:4)<=COUNTIF(GPS_IMPORT!$A$2:$A$10000,$B$5),INDEX(GPS_IMPORT!$2:$10000,MATCH($B$5,(GPS_IMPORT!$A$2:$A$10000),0)+ROWS($1:4)-1,COLUMN()-1),0) -> 55 | C10: =IF(ROWS(GPS_IMPORT!$1:4)<=COUNTIF(GPS_IMPORT!$A$2:$A$10000,$B$5),INDEX(GPS_IMPORT!$2:$10000,MATCH($B$5,(GPS_IMPORT!$A$2:$A$10000),0)+ROWS($1:4)-1,COLUMN()-1),0) -> 07.06.2021 | D10: =IF(ROWS(GPS_IMPORT!$1:4)<=COUNTIF(GPS_IMPORT!$A$2:$A$10000,$B$5),INDEX(GPS_IMPORT!$2:$10000,MATCH($B$5,(GPS_IMPORT!$A$2:$A$10000),0)+ROWS($1:4)-1,COLUMN()-1),0) -> 10:06:21 | E10: =IF(ROWS(GPS_IMPORT!$1:4)<=COUNTIF(GPS_IMPORT!$A$2:$A$10000,$B$5),INDEX(GPS_IMPORT!$2:$10000,MATCH($B$5,(GPS_IMPORT!$A$2:$A$10000),0)+ROWS($1:4)-1,COLUMN()-1),0) -> 748634.5327 | F10: =IF(ROWS(GPS_IMPORT!$1:4)<=COUNTIF(GPS_IMPORT!$A$2:$A$10000,$B$5),INDEX(GPS_IMPORT!$2:$10000,MATCH($B$5,(GPS_IMPORT!$A$2:$A$10000),0)+ROWS($1:4)-1,COLUMN()-1),0) -> 1643552.416 | G10: =IF(ROWS(GPS_IMPORT!$1:4)<=COUNTIF(GPS_IMPORT!$A$2:$A$10000,$B$5),INDEX(GPS_IMPORT!$2:$10000,MATCH($B$5,(GPS_IMPORT!$A$2:$A$10000),0)+ROWS($1:4)-1,COLUMN()-1),0) -> 646.9044 | H10: -0.01926666661 | I10: 0.04249999998 | J10: 0.03535 | K10: TRUE | L10: -0.01926666661 | M10: 0.04249999998
A11: 5 | B11: =IF(ROWS(GPS_IMPORT!$1:5)<=COUNTIF(GPS_IMPORT!$A$2:$A$10000,$B$5),INDEX(GPS_IMPORT!$2:$10000,MATCH($B$5,(GPS_IMPORT!$A$2:$A$10000),0)+ROWS($1:5)-1,COLUMN()-1),0) -> 55 | C11: =IF(ROWS(GPS_IMPORT!$1:5)<=COUNTIF(GPS_IMPORT!$A$2:$A$10000,$B$5),INDEX(GPS_IMPORT!$2:$10000,MATCH($B$5,(GPS_IMPORT!$A$2:$A$10000),0)+ROWS($1:5)-1,COLUMN()-1),0) -> 07.06.2021 | D11: =IF(ROWS(GPS_IMPORT!$1:5)<=COUNTIF(GPS_IMPORT!$A$2:$A$10000,$B$5),INDEX(GPS_IMPORT!$2:$10000,MATCH($B$5,(GPS_IMPORT!$A$2:$A$10000),0)+ROWS($1:5)-1,COLUMN()-1),0) -> 10:07:15 | E11: =IF(ROWS(GPS_IMPORT!$1:5)<=COUNTIF(GPS_IMPORT!$A$2:$A$10000,$B$5),INDEX(GPS_IMPORT!$2:$10000,MATCH($B$5,(GPS_IMPORT!$A$2:$A$10000),0)+ROWS($1:5)-1,COLUMN()-1),0) -> 748634.5178 | F11: =IF(ROWS(GPS_IMPORT!$1:5)<=COUNTIF(GPS_IMPORT!$A$2:$A$10000,$B$5),INDEX(GPS_IMPORT!$2:$10000,MATCH($B$5,(GPS_IMPORT!$A$2:$A$10000),0)+ROWS($1:5)-1,COLUMN()-1),0) -> 1643552.445 | G11: =IF(ROWS(GPS_IMPORT!$1:5)<=COUNTIF(GPS_IMPORT!$A$2:$A$10000,$B$5),INDEX(GPS_IMPORT!$2:$10000,MATCH($B$5,(GPS_IMPORT!$A$2:$A$10000),0)+ROWS($1:5)-1,COLUMN()-1),0) -> 646.8797 | H11: 0 | I11: 0 | J11: 0 | K11: FALSE | L11: 0 | M11: 0
A12: 6 | B12: =IF(ROWS(GPS_IMPORT!$1:6)<=COUNTIF(GPS_IMPORT!$A$2:$A$10000,$B$5),INDEX(GPS_IMPORT!$2:$10000,MATCH($B$5,(GPS_IMPORT!$A$2:$A$10000),0)+ROWS($1:6)-1,COLUMN()-1),0) -> 55 | C12: =IF(ROWS(GPS_IMPORT!$1:6)<=COUNTIF(GPS_IMPORT!$A$2:$A$10000,$B$5),INDEX(GPS_IMPORT!$2:$10000,MATCH($B$5,(GPS_IMPORT!$A$2:$A$10000),0)+ROWS($1:6)-1,COLUMN()-1),0) -> 07.06.2021 | D12: =IF(ROWS(GPS_IMPORT!$1:6)<=COUNTIF(GPS_IMPORT!$A$2:$A$10000,$B$5),INDEX(GPS_IMPORT!$2:$10000,MATCH($B$5,(GPS_IMPORT!$A$2:$A$10000),0)+ROWS($1:6)-1,COLUMN()-1),0) -> 14:39:45 | E12: =IF(ROWS(GPS_IMPORT!$1:6)<=COUNTIF(GPS_IMPORT!$A$2:$A$10000,$B$5),INDEX(GPS_IMPORT!$2:$10000,MATCH($B$5,(GPS_IMPORT!$A$2:$A$10000),0)+ROWS($1:6)-1,COLUMN()-1),0) -> 748634.5231 | F12: =IF(ROWS(GPS_IMPORT!$1:6)<=COUNTIF(GPS_IMPORT!$A$2:$A$10000,$B$5),INDEX(GPS_IMPORT!$2:$10000,MATCH($B$5,(GPS_IMPORT!$A$2:$A$10000),0)+ROWS($1:6)-1,COLUMN()-1),0) -> 1643552.423 | G12: =IF(ROWS(GPS_IMPORT!$1:6)<=COUNTIF(GPS_IMPORT!$A$2:$A$10000,$B$5),INDEX(GPS_IMPORT!$2:$10000,MATCH($B$5,(GPS_IMPORT!$A$2:$A$10000),0)+ROWS($1:6)-1,COLUMN()-1),0) -> 646.9556 | H12: -0.009666666621 | I12: 0.0355 | J12: -0.01585 | K12: TRUE | L12: -0.009666666621 | M12: 0.0355
A13: 7 | B13: =IF(ROWS(GPS_IMPORT!$1:7)<=COUNTIF(GPS_IMPORT!$A$2:$A$10000,$B$5),INDEX(GPS_IMPORT!$2:$10000,MATCH($B$5,(GPS_IMPORT!$A$2:$A$10000),0)+ROWS($1:7)-1,COLUMN()-1),0) -> 55 | C13: =IF(ROWS(GPS_IMPORT!$1:7)<=COUNTIF(GPS_IMPORT!$A$2:$A$10000,$B$5),INDEX(GPS_IMPORT!$2:$10000,MATCH($B$5,(GPS_IMPORT!$A$2:$A$10000),0)+ROWS($1:7)-1,COLUMN()-1),0) -> 07.06.2021 | D13: =IF(ROWS(GPS_IMPORT!$1:7)<=COUNTIF(GPS_IMPORT!$A$2:$A$10000,$B$5),INDEX(GPS_IMPORT!$2:$10000,MATCH($B$5,(GPS_IMPORT!$A$2:$A$10000),0)+ROWS($1:7)-1,COLUMN()-1),0) -> 14:40:35 | E13: =IF(ROWS(GPS_IMPORT!$1:7)<=COUNTIF(GPS_IMPORT!$A$2:$A$10000,$B$5),INDEX(GPS_IMPORT!$2:$10000,MATCH($B$5,(GPS_IMPORT!$A$2:$A$10000),0)+ROWS($1:7)-1,COLUMN()-1),0) -> 748634.5106 | F13: =IF(ROWS(GPS_IMPORT!$1:7)<=COUNTIF(GPS_IMPORT!$A$2:$A$10000,$B$5),INDEX(GPS_IMPORT!$2:$10000,MATCH($B$5,(GPS_IMPORT!$A$2:$A$10000),0)+ROWS($1:7)-1,COLUMN()-1),0) -> 1643552.48 | G13: =IF(ROWS(GPS_IMPORT!$1:7)<=COUNTIF(GPS_IMPORT!$A$2:$A$10000,$B$5),INDEX(GPS_IMPORT!$2:$10000,MATCH($B$5,(GPS_IMPORT!$A$2:$A$10000),0)+ROWS($1:7)-1,COLUMN()-1),0) -> 646.9709 | H13: 0.002833333332 | I13: -0.02150000003 | J13: -0.03115 | K13: TRUE | L13: 0 | M13: 0
A14: 8 | B14: =IF(ROWS(GPS_IMPORT!$1:8)<=COUNTIF(GPS_IMPORT!$A$2:$A$10000,$B$5),INDEX(GPS_IMPORT!$2:$10000,MATCH($B$5,(GPS_IMPORT!$A$2:$A$10000),0)+ROWS($1:8)-1,COLUMN()-1),0) -> 55 | C14: =IF(ROWS(GPS_IMPORT!$1:8)<=COUNTIF(GPS_IMPORT!$A$2:$A$10000,$B$5),INDEX(GPS_IMPORT!$2:$10000,MATCH($B$5,(GPS_IMPORT!$A$2:$A$10000),0)+ROWS($1:8)-1,COLUMN()-1),0) -> 07.06.2021 | D14: =IF(ROWS(GPS_IMPORT!$1:8)<=COUNTIF(GPS_IMPORT!$A$2:$A$10000,$B$5),INDEX(GPS_IMPORT!$2:$10000,MATCH($B$5,(GPS_IMPORT!$A$2:$A$10000),0)+ROWS($1:8)-1,COLUMN()-1),0) -> 14:41:27 | E14: =IF(ROWS(GPS_IMPORT!$1:8)<=COUNTIF(GPS_IMPORT!$A$2:$A$10000,$B$5),INDEX(GPS_IMPORT!$2:$10000,MATCH($B$5,(GPS_IMPORT!$A$2:$A$10000),0)+ROWS($1:8)-1,COLUMN()-1),0) -> 748634.5179 | F14: =IF(ROWS(GPS_IMPORT!$1:8)<=COUNTIF(GPS_IMPORT!$A$2:$A$10000,$B$5),INDEX(GPS_IMPORT!$2:$10000,MATCH($B$5,(GPS_IMPORT!$A$2:$A$10000),0)+ROWS($1:8)-1,COLUMN()-1),0) -> 1643552.488 | G14: =IF(ROWS(GPS_IMPORT!$1:8)<=COUNTIF(GPS_IMPORT!$A$2:$A$10000,$B$5),INDEX(GPS_IMPORT!$2:$10000,MATCH($B$5,(GPS_IMPORT!$A$2:$A$10000),0)+ROWS($1:8)-1,COLUMN()-1),0) -> 647.0017 | H14: -0.004466666607 | I14: -0.02949999995 | J14: -0.06195 | K14: TRUE | L14: -0.004466666607 | M14: -0.02949999995
